{"text_format":"1","workbook":"xlsx","n_sheets":10,"sheets":["Skriveni","Naslovna","RefStr","Bilanca","RDG","Dodatni","NT_I","NT_D","PK","Kont"],"not_rendered":{"charts":0,"images":0,"macros":0,"external_links":0,"defined_names":15,"comments":6,"pivot_tables":0},"unopened":[],"bounds":{"document_bytes":16777216,"sheet_cells":100000,"rows_first":2000,"rows_last":500,"rows_between":2000,"halvings":0,"cell_chars":16384,"cell_head_chars":4096},"cells_cut":0,"cells_raw":0,"read":"whole","date_system":"1900"}

{"sheet":"Skriveni","index":0,"n_rows":448,"n_cols":31,"rows_kept":448,"cut":false,"hidden":true,"merged":[]}
["OPIS","VRIJEDNOST",null,"OBRAZAC","SIFRA","AOP","BILJESKA","KNTBR","DECIMALE","IZNOS01","IZNOS02","IZNOS03","IZNOS04","IZNOS05","IZNOS06","IZNOS07","IZNOS08","IZNOS09","IZNOS10","IZNOS11","IZNOS12","IZNOS13","IZNOS14","IZNOS15","IZNOS16","IZNOS17","IZNOS18","IZNOS19","IZNOS20","IZNOS21","IZNOS22"]
["GOD_OBR",{"$f":"RefStr!F12","v":2024},null,"BIL",1,{"$f":"Bilanca!G9","v":1},{"$f":"IF(Bilanca!H9=0,\"\",Bilanca!H9)","v":""},{"$f":"J2/100*F2+2*K2/100*F2","v":0},0,{"$f":"ROUND(Bilanca!I9,2)","v":0},{"$f":"ROUND(Bilanca!J9,2)","v":0}]
["VP","777",null,"BIL",1,{"$f":"Bilanca!G10","v":2},{"$f":"IF(Bilanca!H10=0,\"\",Bilanca!H10)","v":""},{"$f":"J3/100*F3+2*K3/100*F3","v":821069.73239999986},0,{"$f":"ROUND(Bilanca!I10,2)","v":13185733.119999999},{"$f":"ROUND(Bilanca!J10,2)","v":13933876.75}]
["VER","5010",null,"BIL",1,{"$f":"Bilanca!G11","v":3},{"$f":"IF(Bilanca!H11=0,\"\",Bilanca!H11)","v":""},{"$f":"J4/100*F4+2*K4/100*F4","v":16130.592300000004},0,{"$f":"ROUND(Bilanca!I11,2)","v":213753.07},{"$f":"ROUND(Bilanca!J11,2)","v":161966.67000000001}]
["VRSTA_IZV",{"$f":"IF(ISNUMBER(RefStr!C17), RefStr!C17,0)","v":10},null,"BIL",1,{"$f":"Bilanca!G12","v":4},{"$f":"IF(Bilanca!H12=0,\"\",Bilanca!H12)","v":""},0,0,{"$f":"ROUND(Bilanca!I12,2)","v":0},{"$f":"ROUND(Bilanca!J12,2)","v":0}]
["MB",{"$f":"RefStr!H27","v":"03361721"},null,"BIL",1,{"$f":"Bilanca!G13","v":5},{"$f":"IF(Bilanca!H13=0,\"\",Bilanca!H13)","v":""},26884.320500000002,0,{"$f":"ROUND(Bilanca!I13,2)","v":213753.07},{"$f":"ROUND(Bilanca!J13,2)","v":161966.67000000001}]
["MBS",{"$f":"RefStr!M27","v":"030026579"},null,"BIL",1,{"$f":"Bilanca!G14","v":6},{"$f":"IF(Bilanca!H14=0,\"\",Bilanca!H14)","v":""},0,0,{"$f":"ROUND(Bilanca!I14,2)","v":0},{"$f":"ROUND(Bilanca!J14,2)","v":0}]
["OIB",{"$f":"RefStr!C27","v":"48188420009"},null,"BIL",1,{"$f":"Bilanca!G15","v":7},{"$f":"IF(Bilanca!H15=0,\"\",Bilanca!H15)","v":""},0,0,{"$f":"ROUND(Bilanca!I15,2)","v":0},{"$f":"ROUND(Bilanca!J15,2)","v":0}]
["NAZIV",{"$f":"TRIM(RefStr!C29)","v":"Zračna luka Osijek d.o.o."},null,"BIL",1,{"$f":"Bilanca!G16","v":8},{"$f":"IF(Bilanca!H16=0,\"\",Bilanca!H16)","v":""},0,0,{"$f":"ROUND(Bilanca!I16,2)","v":0},{"$f":"ROUND(Bilanca!J16,2)","v":0}]
["POSTA",{"$f":"TEXT(RefStr!C31, \"00000\")","v":"31207"},null,"BIL",1,{"$f":"Bilanca!G17","v":9},{"$f":"IF(Bilanca!H17=0,\"\",Bilanca!H17)","v":""},0,0,{"$f":"ROUND(Bilanca!I17,2)","v":0},{"$f":"ROUND(Bilanca!J17,2)","v":0}]
["MJESTO",{"$f":"TRIM(RefStr!F31)","v":"Klisa"},null,"BIL",1,{"$f":"Bilanca!G18","v":10},{"$f":"IF(Bilanca!H18=0,\"\",Bilanca!H18)","v":""},4047352.733,0,{"$f":"ROUND(Bilanca!I18,2)","v":12957889.09},{"$f":"ROUND(Bilanca!J18,2)","v":13757819.119999999}]
["ADRESA",{"$f":"TRIM(RefStr!C33)","v":"Vukovarska ulica 67"},null,"BIL",1,{"$f":"Bilanca!G19","v":11},{"$f":"IF(Bilanca!H19=0,\"\",Bilanca!H19)","v":""},671132.74359999993,0,{"$f":"ROUND(Bilanca!I19,2)","v":2033855.94},{"$f":"ROUND(Bilanca!J19,2)","v":2033675.41}]
["E_MAIL",{"$f":"TRIM(RefStr!C35)","v":"info@osijek-airport.hr"},null,"BIL",1,{"$f":"Bilanca!G20","v":12},{"$f":"IF(Bilanca!H20=0,\"\",Bilanca!H20)","v":""},2937638.8415999999,0,{"$f":"ROUND(Bilanca!I20,2)","v":8124824.6799999997},{"$f":"ROUND(Bilanca!J20,2)","v":8177749.5}]
["WEB",{"$f":"TRIM(RefStr!C37)","v":"www.osijek-airport.hr"},null,"BIL",1,{"$f":"Bilanca!G21","v":13},{"$f":"IF(Bilanca!H21=0,\"\",Bilanca!H21)","v":""},257227.5784,0,{"$f":"ROUND(Bilanca!I21,2)","v":671411.7},{"$f":"ROUND(Bilanca!J21,2)","v":653630.99}]
["ZUPANIJA",{"$f":"TEXT(RefStr!J39,\"00\")","v":"14"},null,"BIL",1,{"$f":"Bilanca!G22","v":14},{"$f":"IF(Bilanca!H22=0,\"\",Bilanca!H22)","v":""},160950.18799999999,0,{"$f":"ROUND(Bilanca!I22,2)","v":419900.94},{"$f":"ROUND(Bilanca!J22,2)","v":364871.63}]
["OPCINA",{"$f":"TEXT(RefStr!C39, \"000\")","v":"312"},null,"BIL",1,{"$f":"Bilanca!G23","v":15},{"$f":"IF(Bilanca!H23=0,\"\",Bilanca!H23)","v":""},0,0,{"$f":"ROUND(Bilanca!I23,2)","v":0},{"$f":"ROUND(Bilanca!J23,2)","v":0}]
["DJELAT",{"$f":"RefStr!C42","v":"5223"},null,"BIL",1,{"$f":"Bilanca!G24","v":16},{"$f":"IF(Bilanca!H24=0,\"\",Bilanca!H24)","v":""},399804.83840000001,0,{"$f":"ROUND(Bilanca!I24,2)","v":905945},{"$f":"ROUND(Bilanca!J24,2)","v":796417.62}]
["KONS",{"$f":"IF(RefStr!C21<>\"\",RefStr!C21,\"\")","v":"NE"},null,"BIL",1,{"$f":"Bilanca!G25","v":17},{"$f":"IF(Bilanca!H25=0,\"\",Bilanca!H25)","v":""},716182.47189999989,0,{"$f":"ROUND(Bilanca!I25,2)","v":784552.17},{"$f":"ROUND(Bilanca!J25,2)","v":1714142.95}]
["REVIZIJA",{"$f":"IF(RefStr!I21<>\"\",RefStr!I21,\"\")","v":"DA"},null,"BIL",1,{"$f":"Bilanca!G26","v":18},{"$f":"IF(Bilanca!H26=0,\"\",Bilanca!H26)","v":""},9370.9259999999995,0,{"$f":"ROUND(Bilanca!I26,2)","v":17398.66},{"$f":"ROUND(Bilanca!J26,2)","v":17331.02}]
["SVRHA",{"$f":"RefStr!C19","v":2},null,"BIL",1,{"$f":"Bilanca!G27","v":19},{"$f":"IF(Bilanca!H27=0,\"\",Bilanca!H27)","v":""},0,0,{"$f":"ROUND(Bilanca!I27,2)","v":0},{"$f":"ROUND(Bilanca!J27,2)","v":0}]
["VELICINA",{"$f":"IF(RefStr!C50>0,IF(RefStr!C50=1,4,RefStr!C50-1),RefStr!C50)","v":1},null,"BIL",1,{"$f":"Bilanca!G28","v":20},{"$f":"IF(Bilanca!H28=0,\"\",Bilanca!H28)","v":""},8454.5759999999991,0,{"$f":"ROUND(Bilanca!I28,2)","v":14090.96},{"$f":"ROUND(Bilanca!J28,2)","v":14090.96}]
["VLAST",{"$f":"RefStr!C52","v":11},null,"BIL",1,{"$f":"Bilanca!G29","v":21},{"$f":"IF(Bilanca!H29=0,\"\",Bilanca!H29)","v":""},0,0,{"$f":"ROUND(Bilanca!I29,2)","v":0},{"$f":"ROUND(Bilanca!J29,2)","v":0}]
["KAPITALD",{"$f":"RefStr!C54","v":100},null,"BIL",1,{"$f":"Bilanca!G30","v":22},{"$f":"IF(Bilanca!H30=0,\"\",Bilanca!H30)","v":""},0,0,{"$f":"ROUND(Bilanca!I30,2)","v":0},{"$f":"ROUND(Bilanca!J30,2)","v":0}]
["KAPITALS",{"$f":"RefStr!F54","v":0},null,"BIL",1,{"$f":"Bilanca!G31","v":23},{"$f":"IF(Bilanca!H31=0,\"\",Bilanca!H31)","v":""},0,0,{"$f":"ROUND(Bilanca!I31,2)","v":0},{"$f":"ROUND(Bilanca!J31,2)","v":0}]
["ZAPSTANJEP",{"$f":"RefStr!C56","v":50},null,"BIL",1,{"$f":"Bilanca!G32","v":24},{"$f":"IF(Bilanca!H32=0,\"\",Bilanca!H32)","v":""},0,0,{"$f":"ROUND(Bilanca!I32,2)","v":0},{"$f":"ROUND(Bilanca!J32,2)","v":0}]
["ZAPSTANJET",{"$f":"RefStr!F56","v":57},null,"BIL",1,{"$f":"Bilanca!G33","v":25},{"$f":"IF(Bilanca!H33=0,\"\",Bilanca!H33)","v":""},{"$error":"#REF!"},0,{"$f":"ROUND(Bilanca!#REF!,2)","v":{"$error":"#REF!"}},{"$f":"ROUND(Bilanca!J33,2)","v":9210.9599999999991}]
["ZAPPROST",{"$f":"RefStr!C58","v":49},null,"BIL",1,{"$f":"Bilanca!G34","v":26},{"$f":"IF(Bilanca!H34=0,\"\",Bilanca!H34)","v":""},0,0,{"$f":"ROUND(Bilanca!I34,2)","v":0},{"$f":"ROUND(Bilanca!J34,2)","v":0}]
["ZAPPROSD",{"$f":"RefStr!F58","v":55},null,"BIL",1,{"$f":"Bilanca!G35","v":27},{"$f":"IF(Bilanca!H35=0,\"\",Bilanca!H35)","v":""},2486.9591999999998,0,{"$f":"ROUND(Bilanca!I33,2)","v":9210.9599999999991},{"$f":"ROUND(Bilanca!J35,2)","v":0}]
["MJPOSLP",{"$f":"RefStr!C60","v":12},null,"BIL",1,{"$f":"Bilanca!G36","v":28},{"$f":"IF(Bilanca!H36=0,\"\",Bilanca!H36)","v":""},4099.2,0,{"$f":"ROUND(Bilanca!I36,2)","v":4880},{"$f":"ROUND(Bilanca!J36,2)","v":4880}]
["MJPOSLT",{"$f":"RefStr!F60","v":12},null,"BIL",1,{"$f":"Bilanca!G37","v":29},{"$f":"IF(Bilanca!H37=0,\"\",Bilanca!H37)","v":""},0,0,{"$f":"ROUND(Bilanca!I37,2)","v":0},{"$f":"ROUND(Bilanca!J37,2)","v":0}]
["PRIPMB1","0",null,"BIL",1,{"$f":"Bilanca!G38","v":30},{"$f":"IF(Bilanca!H38=0,\"\",Bilanca!H38)","v":""},0,0,{"$f":"ROUND(Bilanca!I38,2)","v":0},{"$f":"ROUND(Bilanca!J38,2)","v":0}]
["PRIPMB2","0",null,"BIL",1,{"$f":"Bilanca!G39","v":31},{"$f":"IF(Bilanca!H39=0,\"\",Bilanca!H39)","v":""},0,0,{"$f":"ROUND(Bilanca!I39,2)","v":0},{"$f":"ROUND(Bilanca!J39,2)","v":0}]
["PRIPMB3","0",null,"BIL",1,{"$f":"Bilanca!G40","v":32},{"$f":"IF(Bilanca!H40=0,\"\",Bilanca!H40)","v":""},0,0,{"$f":"ROUND(Bilanca!I40,2)","v":0},{"$f":"ROUND(Bilanca!J40,2)","v":0}]
["STATMB1","0",null,"BIL",1,{"$f":"Bilanca!G41","v":33},{"$f":"IF(Bilanca!H41=0,\"\",Bilanca!H41)","v":""},0,0,{"$f":"ROUND(Bilanca!I41,2)","v":0},{"$f":"ROUND(Bilanca!J41,2)","v":0}]
["STATMB2","0",null,"BIL",1,{"$f":"Bilanca!G42","v":34},{"$f":"IF(Bilanca!H42=0,\"\",Bilanca!H42)","v":""},0,0,{"$f":"ROUND(Bilanca!I42,2)","v":0},{"$f":"ROUND(Bilanca!J42,2)","v":0}]
["STATMB3","0",null,"BIL",1,{"$f":"Bilanca!G43","v":35},{"$f":"IF(Bilanca!H43=0,\"\",Bilanca!H43)","v":""},0,0,{"$f":"ROUND(Bilanca!I43,2)","v":0},{"$f":"ROUND(Bilanca!J43,2)","v":0}]
["MBSERVIS",{"$f":"RefStr!B64","v":0},null,"BIL",1,{"$f":"Bilanca!G44","v":36},{"$f":"IF(Bilanca!H44=0,\"\",Bilanca!H44)","v":""},0,0,{"$f":"ROUND(Bilanca!I44,2)","v":0},{"$f":"ROUND(Bilanca!J44,2)","v":0}]
["NAZIVSERVIS",{"$f":"RefStr!B66","v":0},null,"BIL",1,{"$f":"Bilanca!G45","v":37},{"$f":"IF(Bilanca!H45=0,\"\",Bilanca!H45)","v":""},638274.43850000005,0,{"$f":"ROUND(Bilanca!I45,2)","v":309542.53000000003},{"$f":"ROUND(Bilanca!J45,2)","v":707761.76}]
["KONTAKT_OS",{"$f":"RefStr!C68","v":"Katarina Jelečević"},null,"BIL",1,{"$f":"Bilanca!G46","v":38},{"$f":"IF(Bilanca!H46=0,\"\",Bilanca!H46)","v":""},35235.222600000001,0,{"$f":"ROUND(Bilanca!I46,2)","v":25755.93},{"$f":"ROUND(Bilanca!J46,2)","v":33484.17}]
["TEL",{"$f":"TRIM(RefStr!C70)","v":"031/512-402"},null,"BIL",1,{"$f":"Bilanca!G47","v":39},{"$f":"IF(Bilanca!H47=0,\"\",Bilanca!H47)","v":""},25305.040800000002,0,{"$f":"ROUND(Bilanca!I47,2)","v":20129},{"$f":"ROUND(Bilanca!J47,2)","v":22377.86}]
["FAX","",null,"BIL",1,{"$f":"Bilanca!G48","v":40},{"$f":"IF(Bilanca!H48=0,\"\",Bilanca!H48)","v":""},0,0,{"$f":"ROUND(Bilanca!I48,2)","v":0},{"$f":"ROUND(Bilanca!J48,2)","v":0}]
["KONTAKT_EMAIL",{"$f":"TRIM(RefStr!C72)","v":"katarina.jelecevic@osijek-airport.hr"},null,"BIL",1,{"$f":"Bilanca!G49","v":41},{"$f":"IF(Bilanca!H49=0,\"\",Bilanca!H49)","v":""},0,0,{"$f":"ROUND(Bilanca!I49,2)","v":0},{"$f":"ROUND(Bilanca!J49,2)","v":0}]
["OVL_OSOBA",{"$f":"TRIM(RefStr!A75)","v":"KOS IVAN"},null,"BIL",1,{"$f":"Bilanca!G50","v":42},{"$f":"IF(Bilanca!H50=0,\"\",Bilanca!H50)","v":""},11692.611000000001,0,{"$f":"ROUND(Bilanca!I50,2)","v":5626.93},{"$f":"ROUND(Bilanca!J50,2)","v":11106.31}]
["DATUMOD",{"$f":"IF(RefStr!C4<>\"\",TEXT(RefStr!C4,\"YYYYMMDD\"),\"\")","v":"20240101"},null,"BIL",1,{"$f":"Bilanca!G51","v":43},{"$f":"IF(Bilanca!H51=0,\"\",Bilanca!H51)","v":""},0,0,{"$f":"ROUND(Bilanca!I51,2)","v":0},{"$f":"ROUND(Bilanca!J51,2)","v":0}]
["DATUMDO",{"$f":"IF(RefStr!F4<>\"\",TEXT(RefStr!F4,\"YYYYMMDD\"),\"\")","v":"20241231"},null,"BIL",1,{"$f":"Bilanca!G52","v":44},{"$f":"IF(Bilanca!H52=0,\"\",Bilanca!H52)","v":""},0,0,{"$f":"ROUND(Bilanca!I52,2)","v":0},{"$f":"ROUND(Bilanca!J52,2)","v":0}]
["IMABIL",{"$f":"IF(Bilanca!Q1<>0,\"DA\", \"NE\")","v":"DA"},null,"BIL",1,{"$f":"Bilanca!G53","v":45},{"$f":"IF(Bilanca!H53=0,\"\",Bilanca!H53)","v":""},0,0,{"$f":"ROUND(Bilanca!I53,2)","v":0},{"$f":"ROUND(Bilanca!J53,2)","v":0}]
["IMARDG",{"$f":"IF(RDG!Q1<>0, \"DA\",\"NE\")","v":"DA"},null,"BIL",1,{"$f":"Bilanca!G54","v":46},{"$f":"IF(Bilanca!H54=0,\"\",Bilanca!H54)","v":""},396681.93839999998,0,{"$f":"ROUND(Bilanca!I54,2)","v":232882.22},{"$f":"ROUND(Bilanca!J54,2)","v":314734.90999999997}]
["IMADOD",{"$f":"RefStr!I54","v":"NE"},null,"BIL",1,{"$f":"Bilanca!G55","v":47},{"$f":"IF(Bilanca!H55=0,\"\",Bilanca!H55)","v":""},0,0,{"$f":"ROUND(Bilanca!I55,2)","v":0},{"$f":"ROUND(Bilanca!J55,2)","v":0}]
["IMANTI",{"$f":"IF(NT_I!Q1<>0,\"DA\",\"NE\")","v":"NE"},null,"BIL",1,{"$f":"Bilanca!G56","v":48},{"$f":"IF(Bilanca!H56=0,\"\",Bilanca!H56)","v":""},0,0,{"$f":"ROUND(Bilanca!I56,2)","v":0},{"$f":"ROUND(Bilanca!J56,2)","v":0}]
["IMANTD",{"$f":"IF(NT_D!Q1<>0, \"DA\", \"NE\")","v":"NE"},null,"BIL",1,{"$f":"Bilanca!G57","v":49},{"$f":"IF(Bilanca!H57=0,\"\",Bilanca!H57)","v":""},345232.28810000001,0,{"$f":"ROUND(Bilanca!I57,2)","v":189519.47},{"$f":"ROUND(Bilanca!J57,2)","v":257518.11}]
["IMAPK",{"$f":"RefStr!I60","v":"NE"},null,"BIL",1,{"$f":"Bilanca!G58","v":50},{"$f":"IF(Bilanca!H58=0,\"\",Bilanca!H58)","v":""},0,0,{"$f":"ROUND(Bilanca!I58,2)","v":0},{"$f":"ROUND(Bilanca!J58,2)","v":0}]
["IMALM","NE",null,"BIL",1,{"$f":"Bilanca!G59","v":51},{"$f":"IF(Bilanca!H59=0,\"\",Bilanca!H59)","v":""},66877.60560000001,0,{"$f":"ROUND(Bilanca!I59,2)","v":37092.46},{"$f":"ROUND(Bilanca!J59,2)","v":47020.05}]
["IMABILJ",{"$f":"RefStr!I56","v":"DA"},null,"BIL",1,{"$f":"Bilanca!G60","v":52},{"$f":"IF(Bilanca!H60=0,\"\",Bilanca!H60)","v":""},13865.1708,0,{"$f":"ROUND(Bilanca!I60,2)","v":6270.29},{"$f":"ROUND(Bilanca!J60,2)","v":10196.75}]
["IMAREVIZ",{"$f":"RefStr!I62","v":"DA"},null,"BIL",1,{"$f":"Bilanca!G61","v":53},{"$f":"IF(Bilanca!H61=0,\"\",Bilanca!H61)","v":""},0,0,{"$f":"ROUND(Bilanca!I61,2)","v":0},{"$f":"ROUND(Bilanca!J61,2)","v":0}]
["IMAGODIZV",{"$f":"RefStr!I64","v":"NE"},null,"BIL",1,{"$f":"Bilanca!G62","v":54},{"$f":"IF(Bilanca!H62=0,\"\",Bilanca!H62)","v":""},0,0,{"$f":"ROUND(Bilanca!I62,2)","v":0},{"$f":"ROUND(Bilanca!J62,2)","v":0}]
["IMAODLRASP",{"$f":"RefStr!I66","v":"DA"},null,"BIL",1,{"$f":"Bilanca!G63","v":55},{"$f":"IF(Bilanca!H63=0,\"\",Bilanca!H63)","v":""},0,0,{"$f":"ROUND(Bilanca!I63,2)","v":0},{"$f":"ROUND(Bilanca!J63,2)","v":0}]
["IMAODLUTVR",{"$f":"RefStr!I68","v":"DA"},null,"BIL",1,{"$f":"Bilanca!G64","v":56},{"$f":"IF(Bilanca!H64=0,\"\",Bilanca!H64)","v":""},0,0,{"$f":"ROUND(Bilanca!I64,2)","v":0},{"$f":"ROUND(Bilanca!J64,2)","v":0}]
["KONTROLIRAN",{"$f":"IF(Kont!J4>0,\"NE\", \"DA\")","v":"DA"},null,"BIL",1,{"$f":"Bilanca!G65","v":57},{"$f":"IF(Bilanca!H65=0,\"\",Bilanca!H65)","v":""},0,0,{"$f":"ROUND(Bilanca!I65,2)","v":0},{"$f":"ROUND(Bilanca!J65,2)","v":0}]
["KTR_BROJ",{"$f":"ROUND(SUM(H2:H448)+SUM(RefStr!Q9:Q65),2)","v":{"$error":"#REF!"}},null,"BIL",1,{"$f":"Bilanca!G66","v":58},{"$f":"IF(Bilanca!H66=0,\"\",Bilanca!H66)","v":""},0,0,{"$f":"ROUND(Bilanca!I66,2)","v":0},{"$f":"ROUND(Bilanca!J66,2)","v":0}]
["SIF_OBL_ORG","0",null,"BIL",1,{"$f":"Bilanca!G67","v":59},{"$f":"IF(Bilanca!H67=0,\"\",Bilanca!H67)","v":""},0,0,{"$f":"ROUND(Bilanca!I67,2)","v":0},{"$f":"ROUND(Bilanca!J67,2)","v":0}]
["KTR_LISTAMB",0,null,"BIL",1,{"$f":"Bilanca!G68","v":60},{"$f":"IF(Bilanca!H68=0,\"\",Bilanca!H68)","v":""},0,0,{"$f":"ROUND(Bilanca!I68,2)","v":0},{"$f":"ROUND(Bilanca!J68,2)","v":0}]
["IMANSTD",{"$f":"RefStr!I70","v":0},null,"BIL",1,{"$f":"Bilanca!G69","v":61},{"$f":"IF(Bilanca!H69=0,\"\",Bilanca!H69)","v":""},0,0,{"$f":"ROUND(Bilanca!I69,2)","v":0},{"$f":"ROUND(Bilanca!J69,2)","v":0}]
["REV_OIB",{"$f":"IF(ISNUMBER(VALUE(RefStr!L21)),TEXT(INT(VALUE(RefStr!L21)),\"00000000000\"),\"\")","v":"39806187636"},null,"BIL",1,{"$f":"Bilanca!G70","v":62},{"$f":"IF(Bilanca!H70=0,\"\",Bilanca!H70)","v":""},0,0,{"$f":"ROUND(Bilanca!I70,2)","v":0},{"$f":"ROUND(Bilanca!J70,2)","v":0}]
["PRIHOD_NULA",{"$f":"RefStr!N6","v":"DA"},null,"BIL",1,{"$f":"Bilanca!G71","v":63},{"$f":"IF(Bilanca!H71=0,\"\",Bilanca!H71)","v":""},485093.53619999997,0,{"$f":"ROUND(Bilanca!I71,2)","v":50904.38},{"$f":"ROUND(Bilanca!J71,2)","v":359542.68}]
["STANDARDI",{"$f":"TRIM(RefStr!N19)","v":"MSFI"},null,"BIL",1,{"$f":"Bilanca!G72","v":64},{"$f":"IF(Bilanca!H72=0,\"\",Bilanca!H72)","v":""},100520.5696,0,{"$f":"ROUND(Bilanca!I72,2)","v":104844.53},{"$f":"ROUND(Bilanca!J72,2)","v":26109.43}]
["VRSTA_NEFIN",{"$f":"RefStr!C23","v":1},null,"BIL",1,{"$f":"Bilanca!G73","v":65},{"$f":"IF(Bilanca!H73=0,\"\",Bilanca!H73)","v":""},27908150.438999996,0,{"$f":"ROUND(Bilanca!I73,2)","v":13600120.18},{"$f":"ROUND(Bilanca!J73,2)","v":14667747.939999999}]
["TEL_OBV",{"$f":"TRIM(RefStr!L35)","v":"031/514-402"},null,"BIL",1,{"$f":"Bilanca!G74","v":66},{"$f":"IF(Bilanca!H74=0,\"\",Bilanca!H74)","v":""},0,0,{"$f":"ROUND(Bilanca!I74,2)","v":0},{"$f":"ROUND(Bilanca!J74,2)","v":0}]
["AUTONOMNOST",{"$f":"RefStr!C44","v":1},null,"BIL",1,{"$f":"Bilanca!G76","v":67},{"$f":"IF(Bilanca!H76=0,\"\",Bilanca!H76)","v":""},{"$f":"J68/100*F68+2*K68/100*F68","v":2085887.0542000001},0,{"$f":"ROUND(Bilanca!I76,2)","v":812816.6},{"$f":"ROUND(Bilanca!J76,2)","v":1150223.83}]
["MB_MATICE",{"$f":"TRIM(RefStr!M46)","v":""},null,"BIL",1,{"$f":"Bilanca!G77","v":68},{"$f":"IF(Bilanca!H77=0,\"\",Bilanca!H77)","v":""},7095120,0,{"$f":"ROUND(Bilanca!I77,2)","v":3478000},{"$f":"ROUND(Bilanca!J77,2)","v":3478000}]
["DRZAVA_MATICE",{"$f":"RefStr!C46","v":0},null,"BIL",1,{"$f":"Bilanca!G78","v":69},{"$f":"IF(Bilanca!H78=0,\"\",Bilanca!H78)","v":""},0,0,{"$f":"ROUND(Bilanca!I78,2)","v":0},{"$f":"ROUND(Bilanca!J78,2)","v":0}]
["OZNAKA_VALUTE",{"$f":"IF(YEAR(RefStr!F4)>2022,\"EUR\",\"HRK\")","v":"EUR"},null,"BIL",1,{"$f":"Bilanca!G79","v":70},{"$f":"IF(Bilanca!H79=0,\"\",Bilanca!H79)","v":""},0,0,{"$f":"ROUND(Bilanca!I79,2)","v":0},{"$f":"ROUND(Bilanca!J79,2)","v":0}]
["PRIHOD_NULA_PR",{"$f":"RefStr!N7","v":"DA"},null,"BIL",1,{"$f":"Bilanca!G80","v":71},{"$f":"IF(Bilanca!H80=0,\"\",Bilanca!H80)","v":""},0,0,{"$f":"ROUND(Bilanca!I80,2)","v":0},{"$f":"ROUND(Bilanca!J80,2)","v":0}]
["OZNAKA_BRISANJA",{"$f":"RefStr!G6","v":"NE"},null,"BIL",1,{"$f":"Bilanca!G81","v":72},{"$f":"IF(Bilanca!H81=0,\"\",Bilanca!H81)","v":""},0,0,{"$f":"ROUND(Bilanca!I81,2)","v":0},{"$f":"ROUND(Bilanca!J81,2)","v":0}]
[null,null,null,"BIL",1,{"$f":"Bilanca!G82","v":73},{"$f":"IF(Bilanca!H82=0,\"\",Bilanca!H82)","v":""},0,0,{"$f":"ROUND(Bilanca!I82,2)","v":0},{"$f":"ROUND(Bilanca!J82,2)","v":0}]
[null,null,null,"BIL",1,{"$f":"Bilanca!G83","v":74},{"$f":"IF(Bilanca!H83=0,\"\",Bilanca!H83)","v":""},0,0,{"$f":"ROUND(Bilanca!I83,2)","v":0},{"$f":"ROUND(Bilanca!J83,2)","v":0}]
[null,null,null,"BIL",1,{"$f":"Bilanca!G84","v":75},{"$f":"IF(Bilanca!H84=0,\"\",Bilanca!H84)","v":""},0,0,{"$f":"ROUND(Bilanca!I84,2)","v":0},{"$f":"ROUND(Bilanca!J84,2)","v":0}]
[null,null,null,"BIL",1,{"$f":"Bilanca!G85","v":76},{"$f":"IF(Bilanca!H85=0,\"\",Bilanca!H85)","v":""},0,0,{"$f":"ROUND(Bilanca!I85,2)","v":0},{"$f":"ROUND(Bilanca!J85,2)","v":0}]
[null,null,null,"BIL",1,{"$f":"Bilanca!G86","v":77},{"$f":"IF(Bilanca!H86=0,\"\",Bilanca!H86)","v":""},0,0,{"$f":"ROUND(Bilanca!I86,2)","v":0},{"$f":"ROUND(Bilanca!J86,2)","v":0}]
[null,null,null,"BIL",1,{"$f":"Bilanca!G87","v":78},{"$f":"IF(Bilanca!H87=0,\"\",Bilanca!H87)","v":""},0,0,{"$f":"ROUND(Bilanca!I87,2)","v":0},{"$f":"ROUND(Bilanca!J87,2)","v":0}]
[null,null,null,"BIL",1,{"$f":"Bilanca!G88","v":79},{"$f":"IF(Bilanca!H88=0,\"\",Bilanca!H88)","v":""},0,0,{"$f":"ROUND(Bilanca!I88,2)","v":0},{"$f":"ROUND(Bilanca!J88,2)","v":0}]
[null,null,null,"BIL",1,{"$f":"Bilanca!G89","v":80},{"$f":"IF(Bilanca!H89=0,\"\",Bilanca!H89)","v":""},0,0,{"$f":"ROUND(Bilanca!I89,2)","v":0},{"$f":"ROUND(Bilanca!J89,2)","v":0}]
[null,null,null,"BIL",1,{"$f":"Bilanca!G90","v":81},{"$f":"IF(Bilanca!H90=0,\"\",Bilanca!H90)","v":""},0,0,{"$f":"ROUND(Bilanca!I90,2)","v":0},{"$f":"ROUND(Bilanca!J90,2)","v":0}]
[null,null,null,"BIL",1,{"$f":"Bilanca!G91","v":82},{"$f":"IF(Bilanca!H91=0,\"\",Bilanca!H91)","v":""},0,0,{"$f":"ROUND(Bilanca!I91,2)","v":0},{"$f":"ROUND(Bilanca!J91,2)","v":0}]
[null,null,null,"BIL",1,{"$f":"Bilanca!G92","v":83},{"$f":"IF(Bilanca!H92=0,\"\",Bilanca!H92)","v":""},{"$f":"J84/100*F84+2*K84/100*F84","v":0},0,{"$f":"ROUND(Bilanca!I92,2)","v":0},{"$f":"ROUND(Bilanca!J92,2)","v":0}]
[null,null,null,"BIL",1,{"$f":"Bilanca!G93","v":84},{"$f":"IF(Bilanca!H93=0,\"\",Bilanca!H93)","v":""},-6112017.7439999999,0,{"$f":"ROUND(Bilanca!I93,2)","v":-1945844.8},{"$f":"ROUND(Bilanca!J93,2)","v":-2665183.4}]
[null,null,null,"BIL",1,{"$f":"Bilanca!G94","v":85},{"$f":"IF(Bilanca!H94=0,\"\",Bilanca!H94)","v":""},0,0,{"$f":"ROUND(Bilanca!I94,2)","v":0},{"$f":"ROUND(Bilanca!J94,2)","v":0}]
[null,null,null,"BIL",1,{"$f":"Bilanca!G95","v":86},{"$f":"IF(Bilanca!H95=0,\"\",Bilanca!H95)","v":""},6257541.9759999998,0,{"$f":"ROUND(Bilanca!I95,2)","v":1945844.8},{"$f":"ROUND(Bilanca!J95,2)","v":2665183.4}]
[null,null,null,"BIL",1,{"$f":"Bilanca!G96","v":87},{"$f":"IF(Bilanca!H96=0,\"\",Bilanca!H96)","v":""},-38736.001799999969,0,{"$f":"ROUND(Bilanca!I96,2)","v":-719338.6},{"$f":"ROUND(Bilanca!J96,2)","v":337407.23}]
[null,null,null,"BIL",1,{"$f":"Bilanca!G97","v":88},{"$f":"IF(Bilanca!H97=0,\"\",Bilanca!H97)","v":""},593836.72479999997,0,{"$f":"ROUND(Bilanca!I97,2)","v":0},{"$f":"ROUND(Bilanca!J97,2)","v":337407.23}]
[null,null,null,"BIL",1,{"$f":"Bilanca!G98","v":89},{"$f":"IF(Bilanca!H98=0,\"\",Bilanca!H98)","v":""},640211.35399999993,0,{"$f":"ROUND(Bilanca!I98,2)","v":719338.6},{"$f":"ROUND(Bilanca!J98,2)","v":0}]
[null,null,null,"BIL",1,{"$f":"Bilanca!G99","v":90},{"$f":"IF(Bilanca!H99=0,\"\",Bilanca!H99)","v":""},0,0,{"$f":"ROUND(Bilanca!I99,2)","v":0},{"$f":"ROUND(Bilanca!J99,2)","v":0}]
[null,null,null,"BIL",1,{"$f":"Bilanca!G100","v":91},{"$f":"IF(Bilanca!H100=0,\"\",Bilanca!H100)","v":""},59517.4398,0,{"$f":"ROUND(Bilanca!I100,2)","v":22102.959999999999},{"$f":"ROUND(Bilanca!J100,2)","v":21650.41}]
[null,null,null,"BIL",1,{"$f":"Bilanca!G101","v":92},{"$f":"IF(Bilanca!H101=0,\"\",Bilanca!H101)","v":""},0,0,{"$f":"ROUND(Bilanca!I101,2)","v":0},{"$f":"ROUND(Bilanca!J101,2)","v":0}]
[null,null,null,"BIL",1,{"$f":"Bilanca!G102","v":93},{"$f":"IF(Bilanca!H102=0,\"\",Bilanca!H102)","v":""},0,0,{"$f":"ROUND(Bilanca!I102,2)","v":0},{"$f":"ROUND(Bilanca!J102,2)","v":0}]
[null,null,null,"BIL",1,{"$f":"Bilanca!G103","v":94},{"$f":"IF(Bilanca!H103=0,\"\",Bilanca!H103)","v":""},61479.553199999995,0,{"$f":"ROUND(Bilanca!I103,2)","v":22102.959999999999},{"$f":"ROUND(Bilanca!J103,2)","v":21650.41}]
[null,null,null,"BIL",1,{"$f":"Bilanca!G104","v":95},{"$f":"IF(Bilanca!H104=0,\"\",Bilanca!H104)","v":""},0,0,{"$f":"ROUND(Bilanca!I104,2)","v":0},{"$f":"ROUND(Bilanca!J104,2)","v":0}]
[null,null,null,"BIL",1,{"$f":"Bilanca!G105","v":96},{"$f":"IF(Bilanca!H105=0,\"\",Bilanca!H105)","v":""},0,0,{"$f":"ROUND(Bilanca!I105,2)","v":0},{"$f":"ROUND(Bilanca!J105,2)","v":0}]
[null,null,null,"BIL",1,{"$f":"Bilanca!G106","v":97},{"$f":"IF(Bilanca!H106=0,\"\",Bilanca!H106)","v":""},0,0,{"$f":"ROUND(Bilanca!I106,2)","v":0},{"$f":"ROUND(Bilanca!J106,2)","v":0}]
[null,null,null,"BIL",1,{"$f":"Bilanca!G107","v":98},{"$f":"IF(Bilanca!H107=0,\"\",Bilanca!H107)","v":""},8236336.9116000002,0,{"$f":"ROUND(Bilanca!I107,2)","v":2959653.22},{"$f":"ROUND(Bilanca!J107,2)","v":2722386.1}]
[null,null,null,"BIL",1,{"$f":"Bilanca!G108","v":99},{"$f":"IF(Bilanca!H108=0,\"\",Bilanca!H108)","v":""},0,0,{"$f":"ROUND(Bilanca!I108,2)","v":0},{"$f":"ROUND(Bilanca!J108,2)","v":0}]
[null,null,null,"BIL",1,{"$f":"Bilanca!G109","v":100},{"$f":"IF(Bilanca!H109=0,\"\",Bilanca!H109)","v":""},0,0,{"$f":"ROUND(Bilanca!I109,2)","v":0},{"$f":"ROUND(Bilanca!J109,2)","v":0}]
[null,null,null,"BIL",1,{"$f":"Bilanca!G110","v":101},{"$f":"IF(Bilanca!H110=0,\"\",Bilanca!H110)","v":""},0,0,{"$f":"ROUND(Bilanca!I110,2)","v":0},{"$f":"ROUND(Bilanca!J110,2)","v":0}]
[null,null,null,"BIL",1,{"$f":"Bilanca!G111","v":102},{"$f":"IF(Bilanca!H111=0,\"\",Bilanca!H111)","v":""},0,0,{"$f":"ROUND(Bilanca!I111,2)","v":0},{"$f":"ROUND(Bilanca!J111,2)","v":0}]
[null,null,null,"BIL",1,{"$f":"Bilanca!G112","v":103},{"$f":"IF(Bilanca!H112=0,\"\",Bilanca!H112)","v":""},0,0,{"$f":"ROUND(Bilanca!I112,2)","v":0},{"$f":"ROUND(Bilanca!J112,2)","v":0}]
[null,null,null,"BIL",1,{"$f":"Bilanca!G113","v":104},{"$f":"IF(Bilanca!H113=0,\"\",Bilanca!H113)","v":""},8692064.3367999997,0,{"$f":"ROUND(Bilanca!I113,2)","v":2936317.59},{"$f":"ROUND(Bilanca!J113,2)","v":2710718.29}]
[null,null,null,"BIL",1,{"$f":"Bilanca!G114","v":105},{"$f":"IF(Bilanca!H114=0,\"\",Bilanca!H114)","v":""},0,0,{"$f":"ROUND(Bilanca!I114,2)","v":0},{"$f":"ROUND(Bilanca!J114,2)","v":0}]
[null,null,null,"BIL",1,{"$f":"Bilanca!G115","v":106},{"$f":"IF(Bilanca!H115=0,\"\",Bilanca!H115)","v":""},0,0,{"$f":"ROUND(Bilanca!I115,2)","v":0},{"$f":"ROUND(Bilanca!J115,2)","v":0}]
[null,null,null,"BIL",1,{"$f":"Bilanca!G116","v":107},{"$f":"IF(Bilanca!H116=0,\"\",Bilanca!H116)","v":""},0,0,{"$f":"ROUND(Bilanca!I116,2)","v":0},{"$f":"ROUND(Bilanca!J116,2)","v":0}]
[null,null,null,"BIL",1,{"$f":"Bilanca!G117","v":108},{"$f":"IF(Bilanca!H117=0,\"\",Bilanca!H117)","v":""},50404.95,0,{"$f":"ROUND(Bilanca!I117,2)","v":23335.63},{"$f":"ROUND(Bilanca!J117,2)","v":11667.81}]
[null,null,null,"BIL",1,{"$f":"Bilanca!G118","v":109},{"$f":"IF(Bilanca!H118=0,\"\",Bilanca!H118)","v":""},0,0,{"$f":"ROUND(Bilanca!I118,2)","v":0},{"$f":"ROUND(Bilanca!J118,2)","v":0}]
[null,null,null,"BIL",1,{"$f":"Bilanca!G119","v":110},{"$f":"IF(Bilanca!H119=0,\"\",Bilanca!H119)","v":""},1941758.5769999998,0,{"$f":"ROUND(Bilanca!I119,2)","v":417850.17},{"$f":"ROUND(Bilanca!J119,2)","v":673692.45}]
[null,null,null,"BIL",1,{"$f":"Bilanca!G120","v":111},{"$f":"IF(Bilanca!H120=0,\"\",Bilanca!H120)","v":""},0,0,{"$f":"ROUND(Bilanca!I120,2)","v":0},{"$f":"ROUND(Bilanca!J120,2)","v":0}]
[null,null,null,"BIL",1,{"$f":"Bilanca!G121","v":112},{"$f":"IF(Bilanca!H121=0,\"\",Bilanca!H121)","v":""},0,0,{"$f":"ROUND(Bilanca!I121,2)","v":0},{"$f":"ROUND(Bilanca!J121,2)","v":0}]
[null,null,null,"BIL",1,{"$f":"Bilanca!G122","v":113},{"$f":"IF(Bilanca!H122=0,\"\",Bilanca!H122)","v":""},0,0,{"$f":"ROUND(Bilanca!I122,2)","v":0},{"$f":"ROUND(Bilanca!J122,2)","v":0}]
[null,null,null,"BIL",1,{"$f":"Bilanca!G123","v":114},{"$f":"IF(Bilanca!H123=0,\"\",Bilanca!H123)","v":""},0,0,{"$f":"ROUND(Bilanca!I123,2)","v":0},{"$f":"ROUND(Bilanca!J123,2)","v":0}]
[null,null,null,"BIL",1,{"$f":"Bilanca!G124","v":115},{"$f":"IF(Bilanca!H124=0,\"\",Bilanca!H124)","v":""},0,0,{"$f":"ROUND(Bilanca!I124,2)","v":0},{"$f":"ROUND(Bilanca!J124,2)","v":0}]
[null,null,null,"BIL",1,{"$f":"Bilanca!G125","v":116},{"$f":"IF(Bilanca!H125=0,\"\",Bilanca!H125)","v":""},611765.13840000005,0,{"$f":"ROUND(Bilanca!I125,2)","v":38792.22},{"$f":"ROUND(Bilanca!J125,2)","v":244295.76}]
[null,null,null,"BIL",1,{"$f":"Bilanca!G126","v":117},{"$f":"IF(Bilanca!H126=0,\"\",Bilanca!H126)","v":""},37581.827400000002,0,{"$f":"ROUND(Bilanca!I126,2)","v":8623.52},{"$f":"ROUND(Bilanca!J126,2)","v":11748.85}]
[null,null,null,"BIL",1,{"$f":"Bilanca!G127","v":118},{"$f":"IF(Bilanca!H127=0,\"\",Bilanca!H127)","v":""},467788.88679999992,0,{"$f":"ROUND(Bilanca!I127,2)","v":129118.78},{"$f":"ROUND(Bilanca!J127,2)","v":133656.24}]
[null,null,null,"BIL",1,{"$f":"Bilanca!G128","v":119},{"$f":"IF(Bilanca!H128=0,\"\",Bilanca!H128)","v":""},0,0,{"$f":"ROUND(Bilanca!I128,2)","v":0},{"$f":"ROUND(Bilanca!J128,2)","v":0}]
[null,null,null,"BIL",1,{"$f":"Bilanca!G129","v":120},{"$f":"IF(Bilanca!H129=0,\"\",Bilanca!H129)","v":""},246868.30799999999,0,{"$f":"ROUND(Bilanca!I129,2)","v":52081.83},{"$f":"ROUND(Bilanca!J129,2)","v":76820.88}]
[null,null,null,"BIL",1,{"$f":"Bilanca!G130","v":121},{"$f":"IF(Bilanca!H130=0,\"\",Bilanca!H130)","v":""},123017.796,0,{"$f":"ROUND(Bilanca!I130,2)","v":28200.06},{"$f":"ROUND(Bilanca!J130,2)","v":36733.769999999997}]
[null,null,null,"BIL",1,{"$f":"Bilanca!G131","v":122},{"$f":"IF(Bilanca!H131=0,\"\",Bilanca!H131)","v":""},0,0,{"$f":"ROUND(Bilanca!I131,2)","v":0},{"$f":"ROUND(Bilanca!J131,2)","v":0}]
[null,null,null,"BIL",1,{"$f":"Bilanca!G132","v":123},{"$f":"IF(Bilanca!H132=0,\"\",Bilanca!H132)","v":""},0,0,{"$f":"ROUND(Bilanca!I132,2)","v":0},{"$f":"ROUND(Bilanca!J132,2)","v":0}]
[null,null,null,"BIL",1,{"$f":"Bilanca!G133","v":124},{"$f":"IF(Bilanca!H133=0,\"\",Bilanca!H133)","v":""},622365.49840000004,0,{"$f":"ROUND(Bilanca!I133,2)","v":161033.76},{"$f":"ROUND(Bilanca!J133,2)","v":170436.95}]
[null,null,null,"BIL",1,{"$f":"Bilanca!G134","v":125},{"$f":"IF(Bilanca!H134=0,\"\",Bilanca!H134)","v":""},36984109.412500009,0,{"$f":"ROUND(Bilanca!I134,2)","v":9387697.2300000004},{"$f":"ROUND(Bilanca!J134,2)","v":10099795.15}]
[null,null,null,"BIL",1,{"$f":"Bilanca!G135","v":126},{"$f":"IF(Bilanca!H135=0,\"\",Bilanca!H135)","v":""},54098876.235599995,0,{"$f":"ROUND(Bilanca!I135,2)","v":13600120.18},{"$f":"ROUND(Bilanca!J135,2)","v":14667747.939999999}]
[null,null,null,"BIL",1,{"$f":"Bilanca!G136","v":127},{"$f":"IF(Bilanca!H136=0,\"\",Bilanca!H136)","v":""},0,0,{"$f":"ROUND(Bilanca!I136,2)","v":0},{"$f":"ROUND(Bilanca!J136,2)","v":0}]
[null,null,null,"RDG",2,{"$f":"RDG!G8","v":128},{"$f":"IF(RDG!H8=0,\"\",RDG!H8)","v":""},{"$f":"J129/100*F129+2*K129/100*F129","v":13558630.6688},0,{"$f":"ROUND(RDG!I8,2)","v":2963897.89},{"$f":"ROUND(RDG!J8,2)","v":3814391.16}]
[null,null,null,"RDG",2,{"$f":"RDG!G9","v":129},{"$f":"IF(RDG!H9=0,\"\",RDG!H9)","v":""},{"$f":"J130/100*F130+2*K130/100*F130","v":0},0,{"$f":"ROUND(RDG!I9,2)","v":0},{"$f":"ROUND(RDG!J9,2)","v":0}]
[null,null,null,"RDG",2,{"$f":"RDG!G10","v":130},{"$f":"IF(RDG!H10=0,\"\",RDG!H10)","v":""},{"$f":"J131/100*F131+2*K131/100*F131","v":4787452.7090000007},0,{"$f":"ROUND(RDG!I10,2)","v":1087059.73},{"$f":"ROUND(RDG!J10,2)","v":1297798.1000000001}]
[null,null,null,"RDG",2,{"$f":"RDG!G11","v":131},{"$f":"IF(RDG!H11=0,\"\",RDG!H11)","v":""},0,0,{"$f":"ROUND(RDG!I11,2)","v":0},{"$f":"ROUND(RDG!J11,2)","v":0}]
[null,null,null,"RDG",2,{"$f":"RDG!G12","v":132},{"$f":"IF(RDG!H12=0,\"\",RDG!H12)","v":""},0,0,{"$f":"ROUND(RDG!I12,2)","v":0},{"$f":"ROUND(RDG!J12,2)","v":0}]
[null,null,null,"RDG",2,{"$f":"RDG!G13","v":133},{"$f":"IF(RDG!H13=0,\"\",RDG!H13)","v":""},9190332.2923999988,0,{"$f":"ROUND(RDG!I13,2)","v":1876838.16},{"$f":"ROUND(RDG!J13,2)","v":2516593.06}]
[null,null,null,"RDG",2,{"$f":"RDG!G14","v":134},{"$f":"IF(RDG!H14=0,\"\",RDG!H14)","v":""},13887364.847399998,0,{"$f":"ROUND(RDG!I14,2)","v":3590896.11},{"$f":"ROUND(RDG!J14,2)","v":3386404.5}]
[null,null,null,"RDG",2,{"$f":"RDG!G15","v":135},{"$f":"IF(RDG!H15=0,\"\",RDG!H15)","v":""},0,0,{"$f":"ROUND(RDG!I15,2)","v":0},{"$f":"ROUND(RDG!J15,2)","v":0}]
[null,null,null,"RDG",2,{"$f":"RDG!G16","v":136},{"$f":"IF(RDG!H16=0,\"\",RDG!H16)","v":""},6878789.6551999999,0,{"$f":"ROUND(RDG!I16,2)","v":2032806.65},{"$f":"ROUND(RDG!J16,2)","v":1512563.46}]
[null,null,null,"RDG",2,{"$f":"RDG!G17","v":137},{"$f":"IF(RDG!H17=0,\"\",RDG!H17)","v":""},1289684.6816,0,{"$f":"ROUND(RDG!I17,2)","v":422993.64},{"$f":"ROUND(RDG!J17,2)","v":259191.02}]
[null,null,null,"RDG",2,{"$f":"RDG!G18","v":138},{"$f":"IF(RDG!H18=0,\"\",RDG!H18)","v":""},294127.25220000005,0,{"$f":"ROUND(RDG!I18,2)","v":52898.99},{"$f":"ROUND(RDG!J18,2)","v":80118.350000000006}]
[null,null,null,"RDG",2,{"$f":"RDG!G19","v":139},{"$f":"IF(RDG!H19=0,\"\",RDG!H19)","v":""},5425756.8579999991,0,{"$f":"ROUND(RDG!I19,2)","v":1556914.02},{"$f":"ROUND(RDG!J19,2)","v":1173254.0900000001}]
[null,null,null,"RDG",2,{"$f":"RDG!G20","v":140},{"$f":"IF(RDG!H20=0,\"\",RDG!H20)","v":""},4302069.8699999992,0,{"$f":"ROUND(RDG!I20,2)","v":838818.61},{"$f":"ROUND(RDG!J20,2)","v":1117044.22}]
[null,null,null,"RDG",2,{"$f":"RDG!G21","v":141},{"$f":"IF(RDG!H21=0,\"\",RDG!H21)","v":""},2771055.2763,0,{"$f":"ROUND(RDG!I21,2)","v":533627.11},{"$f":"ROUND(RDG!J21,2)","v":715830.16}]
[null,null,null,"RDG",2,{"$f":"RDG!G22","v":142},{"$f":"IF(RDG!H22=0,\"\",RDG!H22)","v":""},1004109.051,0,{"$f":"ROUND(RDG!I22,2)","v":193377.05},{"$f":"ROUND(RDG!J22,2)","v":256871}]
[null,null,null,"RDG",2,{"$f":"RDG!G23","v":143},{"$f":"IF(RDG!H23=0,\"\",RDG!H23)","v":""},572715.81510000001,0,{"$f":"ROUND(RDG!I23,2)","v":111814.45},{"$f":"ROUND(RDG!J23,2)","v":144343.06}]
[null,null,null,"RDG",2,{"$f":"RDG!G24","v":144},{"$f":"IF(RDG!H24=0,\"\",RDG!H24)","v":""},1600104.8591999998,0,{"$f":"ROUND(RDG!I24,2)","v":366921.41},{"$f":"ROUND(RDG!J24,2)","v":372131.26}]
[null,null,null,"RDG",2,{"$f":"RDG!G25","v":145},{"$f":"IF(RDG!H25=0,\"\",RDG!H25)","v":""},1209915.0899999999,0,{"$f":"ROUND(RDG!I25,2)","v":249909.36},{"$f":"ROUND(RDG!J25,2)","v":292257.42}]
[null,null,null,"RDG",2,{"$f":"RDG!G26","v":146},{"$f":"IF(RDG!H26=0,\"\",RDG!H26)","v":""},0,0,{"$f":"ROUND(RDG!I26,2)","v":0},{"$f":"ROUND(RDG!J26,2)","v":0}]
[null,null,null,"RDG",2,{"$f":"RDG!G27","v":147},{"$f":"IF(RDG!H27=0,\"\",RDG!H27)","v":""},0,0,{"$f":"ROUND(RDG!I27,2)","v":0},{"$f":"ROUND(RDG!J27,2)","v":0}]
[null,null,null,"RDG",2,{"$f":"RDG!G28","v":148},{"$f":"IF(RDG!H28=0,\"\",RDG!H28)","v":""},0,0,{"$f":"ROUND(RDG!I28,2)","v":0},{"$f":"ROUND(RDG!J28,2)","v":0}]
[null,null,null,"RDG",2,{"$f":"RDG!G29","v":149},{"$f":"IF(RDG!H29=0,\"\",RDG!H29)","v":""},351207.08049999998,0,{"$f":"ROUND(RDG!I29,2)","v":65429.75},{"$f":"ROUND(RDG!J29,2)","v":85139.85}]
[null,null,null,"RDG",2,{"$f":"RDG!G30","v":150},{"$f":"IF(RDG!H30=0,\"\",RDG!H30)","v":""},0,0,{"$f":"ROUND(RDG!I30,2)","v":0},{"$f":"ROUND(RDG!J30,2)","v":0}]
[null,null,null,"RDG",2,{"$f":"RDG!G31","v":151},{"$f":"IF(RDG!H31=0,\"\",RDG!H31)","v":""},0,0,{"$f":"ROUND(RDG!I31,2)","v":0},{"$f":"ROUND(RDG!J31,2)","v":0}]
[null,null,null,"RDG",2,{"$f":"RDG!G32","v":152},{"$f":"IF(RDG!H32=0,\"\",RDG!H32)","v":""},0,0,{"$f":"ROUND(RDG!I32,2)","v":0},{"$f":"ROUND(RDG!J32,2)","v":0}]
[null,null,null,"RDG",2,{"$f":"RDG!G33","v":153},{"$f":"IF(RDG!H33=0,\"\",RDG!H33)","v":""},0,0,{"$f":"ROUND(RDG!I33,2)","v":0},{"$f":"ROUND(RDG!J33,2)","v":0}]
[null,null,null,"RDG",2,{"$f":"RDG!G34","v":154},{"$f":"IF(RDG!H34=0,\"\",RDG!H34)","v":""},0,0,{"$f":"ROUND(RDG!I34,2)","v":0},{"$f":"ROUND(RDG!J34,2)","v":0}]
[null,null,null,"RDG",2,{"$f":"RDG!G35","v":155},{"$f":"IF(RDG!H35=0,\"\",RDG!H35)","v":""},365349.64750000002,0,{"$f":"ROUND(RDG!I35,2)","v":65429.75},{"$f":"ROUND(RDG!J35,2)","v":85139.85}]
[null,null,null,"RDG",2,{"$f":"RDG!G36","v":156},{"$f":"IF(RDG!H36=0,\"\",RDG!H36)","v":""},80413.179600000003,0,{"$f":"ROUND(RDG!I36,2)","v":37010.33},{"$f":"ROUND(RDG!J36,2)","v":7268.29}]
[null,null,null,"RDG",2,{"$f":"RDG!G37","v":157},{"$f":"IF(RDG!H37=0,\"\",RDG!H37)","v":""},486.57439999999997,0,{"$f":"ROUND(RDG!I37,2)","v":36.28},{"$f":"ROUND(RDG!J37,2)","v":136.82}]
[null,null,null,"RDG",2,{"$f":"RDG!G38","v":158},{"$f":"IF(RDG!H38=0,\"\",RDG!H38)","v":""},0,0,{"$f":"ROUND(RDG!I38,2)","v":0},{"$f":"ROUND(RDG!J38,2)","v":0}]
[null,null,null,"RDG",2,{"$f":"RDG!G39","v":159},{"$f":"IF(RDG!H39=0,\"\",RDG!H39)","v":""},0,0,{"$f":"ROUND(RDG!I39,2)","v":0},{"$f":"ROUND(RDG!J39,2)","v":0}]
[null,null,null,"RDG",2,{"$f":"RDG!G40","v":160},{"$f":"IF(RDG!H40=0,\"\",RDG!H40)","v":""},0,0,{"$f":"ROUND(RDG!I40,2)","v":0},{"$f":"ROUND(RDG!J40,2)","v":0}]
[null,null,null,"RDG",2,{"$f":"RDG!G41","v":161},{"$f":"IF(RDG!H41=0,\"\",RDG!H41)","v":""},0,0,{"$f":"ROUND(RDG!I41,2)","v":0},{"$f":"ROUND(RDG!J41,2)","v":0}]
[null,null,null,"RDG",2,{"$f":"RDG!G42","v":162},{"$f":"IF(RDG!H42=0,\"\",RDG!H42)","v":""},0,0,{"$f":"ROUND(RDG!I42,2)","v":0},{"$f":"ROUND(RDG!J42,2)","v":0}]
[null,null,null,"RDG",2,{"$f":"RDG!G43","v":163},{"$f":"IF(RDG!H43=0,\"\",RDG!H43)","v":""},0,0,{"$f":"ROUND(RDG!I43,2)","v":0},{"$f":"ROUND(RDG!J43,2)","v":0}]
[null,null,null,"RDG",2,{"$f":"RDG!G44","v":164},{"$f":"IF(RDG!H44=0,\"\",RDG!H44)","v":""},263.30200000000002,0,{"$f":"ROUND(RDG!I44,2)","v":28.71},{"$f":"ROUND(RDG!J44,2)","v":65.92}]
[null,null,null,"RDG",2,{"$f":"RDG!G45","v":165},{"$f":"IF(RDG!H45=0,\"\",RDG!H45)","v":""},246.46050000000002,0,{"$f":"ROUND(RDG!I45,2)","v":7.57},{"$f":"ROUND(RDG!J45,2)","v":70.900000000000006}]
[null,null,null,"RDG",2,{"$f":"RDG!G46","v":166},{"$f":"IF(RDG!H46=0,\"\",RDG!H46)","v":""},0,0,{"$f":"ROUND(RDG!I46,2)","v":0},{"$f":"ROUND(RDG!J46,2)","v":0}]
[null,null,null,"RDG",2,{"$f":"RDG!G47","v":167},{"$f":"IF(RDG!H47=0,\"\",RDG!H47)","v":""},0,0,{"$f":"ROUND(RDG!I47,2)","v":0},{"$f":"ROUND(RDG!J47,2)","v":0}]
[null,null,null,"RDG",2,{"$f":"RDG!G48","v":168},{"$f":"IF(RDG!H48=0,\"\",RDG!H48)","v":""},459999.38880000007,0,{"$f":"ROUND(RDG!I48,2)","v":92376.66},{"$f":"ROUND(RDG!J48,2)","v":90716.25}]
[null,null,null,"RDG",2,{"$f":"RDG!G49","v":169},{"$f":"IF(RDG!H49=0,\"\",RDG!H49)","v":""},0,0,{"$f":"ROUND(RDG!I49,2)","v":0},{"$f":"ROUND(RDG!J49,2)","v":0}]
[null,null,null,"RDG",2,{"$f":"RDG!G50","v":170},{"$f":"IF(RDG!H50=0,\"\",RDG!H50)","v":""},0,0,{"$f":"ROUND(RDG!I50,2)","v":0},{"$f":"ROUND(RDG!J50,2)","v":0}]
[null,null,null,"RDG",2,{"$f":"RDG!G51","v":171},{"$f":"IF(RDG!H51=0,\"\",RDG!H51)","v":""},466556.51969999995,0,{"$f":"ROUND(RDG!I51,2)","v":92110.05},{"$f":"ROUND(RDG!J51,2)","v":90365.01}]
[null,null,null,"RDG",2,{"$f":"RDG!G52","v":172},{"$f":"IF(RDG!H52=0,\"\",RDG!H52)","v":""},1666.8348000000001,0,{"$f":"ROUND(RDG!I52,2)","v":266.61},{"$f":"ROUND(RDG!J52,2)","v":351.24}]
[null,null,null,"RDG",2,{"$f":"RDG!G53","v":173},{"$f":"IF(RDG!H53=0,\"\",RDG!H53)","v":""},0,0,{"$f":"ROUND(RDG!I53,2)","v":0},{"$f":"ROUND(RDG!J53,2)","v":0}]
[null,null,null,"RDG",2,{"$f":"RDG!G54","v":174},{"$f":"IF(RDG!H54=0,\"\",RDG!H54)","v":""},0,0,{"$f":"ROUND(RDG!I54,2)","v":0},{"$f":"ROUND(RDG!J54,2)","v":0}]
[null,null,null,"RDG",2,{"$f":"RDG!G55","v":175},{"$f":"IF(RDG!H55=0,\"\",RDG!H55)","v":""},0,0,{"$f":"ROUND(RDG!I55,2)","v":0},{"$f":"ROUND(RDG!J55,2)","v":0}]
[null,null,null,"RDG",2,{"$f":"RDG!G56","v":176},{"$f":"IF(RDG!H56=0,\"\",RDG!H56)","v":""},0,0,{"$f":"ROUND(RDG!I56,2)","v":0},{"$f":"ROUND(RDG!J56,2)","v":0}]
[null,null,null,"RDG",2,{"$f":"RDG!G57","v":177},{"$f":"IF(RDG!H57=0,\"\",RDG!H57)","v":""},0,0,{"$f":"ROUND(RDG!I57,2)","v":0},{"$f":"ROUND(RDG!J57,2)","v":0}]
[null,null,null,"RDG",2,{"$f":"RDG!G58","v":178},{"$f":"IF(RDG!H58=0,\"\",RDG!H58)","v":""},0,0,{"$f":"ROUND(RDG!I58,2)","v":0},{"$f":"ROUND(RDG!J58,2)","v":0}]
[null,null,null,"RDG",2,{"$f":"RDG!G59","v":179},{"$f":"IF(RDG!H59=0,\"\",RDG!H59)","v":""},0,0,{"$f":"ROUND(RDG!I59,2)","v":0},{"$f":"ROUND(RDG!J59,2)","v":0}]
[null,null,null,"RDG",2,{"$f":"RDG!G60","v":180},{"$f":"IF(RDG!H60=0,\"\",RDG!H60)","v":""},19067382.233999997,0,{"$f":"ROUND(RDG!I60,2)","v":2963934.17},{"$f":"ROUND(RDG!J60,2)","v":3814527.98}]
[null,null,null,"RDG",2,{"$f":"RDG!G61","v":181},{"$f":"IF(RDG!H61=0,\"\",RDG!H61)","v":""},19253900.828699999,0,{"$f":"ROUND(RDG!I61,2)","v":3683272.77},{"$f":"ROUND(RDG!J61,2)","v":3477120.75}]
[null,null,null,"RDG",2,{"$f":"RDG!G62","v":182},{"$f":"IF(RDG!H62=0,\"\",RDG!H62)","v":""},-81033.93479999993,0,{"$f":"ROUND(RDG!I62,2)","v":-719338.6},{"$f":"ROUND(RDG!J62,2)","v":337407.23}]
[null,null,null,"RDG",2,{"$f":"RDG!G63","v":183},{"$f":"IF(RDG!H63=0,\"\",RDG!H63)","v":""},1234910.4617999999,0,{"$f":"ROUND(RDG!I63,2)","v":0},{"$f":"ROUND(RDG!J63,2)","v":337407.23}]
[null,null,null,"RDG",2,{"$f":"RDG!G64","v":184},{"$f":"IF(RDG!H64=0,\"\",RDG!H64)","v":""},1323583.024,0,{"$f":"ROUND(RDG!I64,2)","v":719338.6},{"$f":"ROUND(RDG!J64,2)","v":0}]
[null,null,null,"RDG",2,{"$f":"RDG!G65","v":185},{"$f":"IF(RDG!H65=0,\"\",RDG!H65)","v":""},0,0,{"$f":"ROUND(RDG!I65,2)","v":0},{"$f":"ROUND(RDG!J65,2)","v":0}]
[null,null,null,"RDG",2,{"$f":"RDG!G66","v":186},{"$f":"IF(RDG!H66=0,\"\",RDG!H66)","v":""},-82814.900399999926,0,{"$f":"ROUND(RDG!I66,2)","v":-719338.6},{"$f":"ROUND(RDG!J66,2)","v":337407.23}]
[null,null,null,"RDG",2,{"$f":"RDG!G67","v":187},{"$f":"IF(RDG!H67=0,\"\",RDG!H67)","v":""},1261903.0401999999,0,{"$f":"ROUND(RDG!I67,2)","v":0},{"$f":"ROUND(RDG!J67,2)","v":337407.23}]
[null,null,null,"RDG",2,{"$f":"RDG!G68","v":188},{"$f":"IF(RDG!H68=0,\"\",RDG!H68)","v":""},1352356.568,0,{"$f":"ROUND(RDG!I68,2)","v":719338.6},{"$f":"ROUND(RDG!J68,2)","v":0}]
[null,null,null,"RDG",2,{"$f":"RDG!G70","v":189},{"$f":"IF(RDG!H70=0,\"\",RDG!H70)","v":""},0,0,{"$f":"ROUND(RDG!I70,2)","v":0},{"$f":"ROUND(RDG!J70,2)","v":0}]
[null,null,null,"RDG",2,{"$f":"RDG!G71","v":190},{"$f":"IF(RDG!H71=0,\"\",RDG!H71)","v":""},0,0,{"$f":"ROUND(RDG!I71,2)","v":0},{"$f":"ROUND(RDG!J71,2)","v":0}]
[null,null,null,"RDG",2,{"$f":"RDG!G72","v":191},{"$f":"IF(RDG!H72=0,\"\",RDG!H72)","v":""},0,0,{"$f":"ROUND(RDG!I72,2)","v":0},{"$f":"ROUND(RDG!J72,2)","v":0}]
[null,null,null,"RDG",2,{"$f":"RDG!G73","v":192},{"$f":"IF(RDG!H73=0,\"\",RDG!H73)","v":""},0,0,{"$f":"ROUND(RDG!I73,2)","v":0},{"$f":"ROUND(RDG!J73,2)","v":0}]
[null,null,null,"RDG",2,{"$f":"RDG!G74","v":193},{"$f":"IF(RDG!H74=0,\"\",RDG!H74)","v":""},{"$f":"J194/100*F194+2*K194/100*F194","v":0},0,{"$f":"ROUND(RDG!I74,2)","v":0},{"$f":"ROUND(RDG!J74,2)","v":0}]
[null,null,null,"RDG",2,{"$f":"RDG!G75","v":194},{"$f":"IF(RDG!H75=0,\"\",RDG!H75)","v":""},0,0,{"$f":"ROUND(RDG!I75,2)","v":0},{"$f":"ROUND(RDG!J75,2)","v":0}]
[null,null,null,"RDG",2,{"$f":"RDG!G77","v":195},{"$f":"IF(RDG!H77=0,\"\",RDG!H77)","v":""},0,0,{"$f":"ROUND(RDG!I77,2)","v":0},{"$f":"ROUND(RDG!J77,2)","v":0}]
[null,null,null,"RDG",2,{"$f":"RDG!G78","v":196},{"$f":"IF(RDG!H78=0,\"\",RDG!H78)","v":""},0,0,{"$f":"ROUND(RDG!I78,2)","v":0},{"$f":"ROUND(RDG!J78,2)","v":0}]
[null,null,null,"RDG",2,{"$f":"RDG!G79","v":197},{"$f":"IF(RDG!H79=0,\"\",RDG!H79)","v":""},0,0,{"$f":"ROUND(RDG!I79,2)","v":0},{"$f":"ROUND(RDG!J79,2)","v":0}]
[null,null,null,"RDG",2,{"$f":"RDG!G80","v":198},{"$f":"IF(RDG!H80=0,\"\",RDG!H80)","v":""},0,0,{"$f":"ROUND(RDG!I80,2)","v":0},{"$f":"ROUND(RDG!J80,2)","v":0}]
[null,null,null,"RDG",2,{"$f":"RDG!G81","v":199},{"$f":"IF(RDG!H81=0,\"\",RDG!H81)","v":""},0,0,{"$f":"ROUND(RDG!I81,2)","v":0},{"$f":"ROUND(RDG!J81,2)","v":0}]
[null,null,null,"RDG",2,{"$f":"RDG!G82","v":200},{"$f":"IF(RDG!H82=0,\"\",RDG!H82)","v":""},0,0,{"$f":"ROUND(RDG!I82,2)","v":0},{"$f":"ROUND(RDG!J82,2)","v":0}]
[null,null,null,"RDG",2,{"$f":"RDG!G83","v":201},{"$f":"IF(RDG!H83=0,\"\",RDG!H83)","v":""},0,0,{"$f":"ROUND(RDG!I83,2)","v":0},{"$f":"ROUND(RDG!J83,2)","v":0}]
[null,null,null,"RDG",2,{"$f":"RDG!G85","v":202},{"$f":"IF(RDG!H85=0,\"\",RDG!H85)","v":""},0,0,{"$f":"ROUND(RDG!I85,2)","v":0},{"$f":"ROUND(RDG!J85,2)","v":0}]
[null,null,null,"RDG",2,{"$f":"RDG!G86","v":203},{"$f":"IF(RDG!H86=0,\"\",RDG!H86)","v":""},0,0,{"$f":"ROUND(RDG!I86,2)","v":0},{"$f":"ROUND(RDG!J86,2)","v":0}]
[null,null,null,"RDG",2,{"$f":"RDG!G87","v":204},{"$f":"IF(RDG!H87=0,\"\",RDG!H87)","v":""},0,0,{"$f":"ROUND(RDG!I87,2)","v":0},{"$f":"ROUND(RDG!J87,2)","v":0}]
[null,null,null,"RDG",2,{"$f":"RDG!G89","v":205},{"$f":"IF(RDG!H89=0,\"\",RDG!H89)","v":""},-91274.486999999965,0,{"$f":"ROUND(RDG!I89,2)","v":-719338.6},{"$f":"ROUND(RDG!J89,2)","v":337407.23}]
[null,null,null,"RDG",2,{"$f":"RDG!G90","v":206},{"$f":"IF(RDG!H90=0,\"\",RDG!H90)","v":""},0,0,{"$f":"ROUND(RDG!I90,2)","v":0},{"$f":"ROUND(RDG!J90,2)","v":0}]
[null,null,null,"RDG",2,{"$f":"RDG!G91","v":207},{"$f":"IF(RDG!H91=0,\"\",RDG!H91)","v":""},0,0,{"$f":"ROUND(RDG!I91,2)","v":0},{"$f":"ROUND(RDG!J91,2)","v":0}]
[null,null,null,"RDG",2,{"$f":"RDG!G92","v":208},{"$f":"IF(RDG!H92=0,\"\",RDG!H92)","v":""},0,0,{"$f":"ROUND(RDG!I92,2)","v":0},{"$f":"ROUND(RDG!J92,2)","v":0}]
[null,null,null,"RDG",2,{"$f":"RDG!G93","v":209},{"$f":"IF(RDG!H93=0,\"\",RDG!H93)","v":""},0,0,{"$f":"ROUND(RDG!I93,2)","v":0},{"$f":"ROUND(RDG!J93,2)","v":0}]
[null,null,null,"RDG",2,{"$f":"RDG!G94","v":210},{"$f":"IF(RDG!H94=0,\"\",RDG!H94)","v":""},0,0,{"$f":"ROUND(RDG!I94,2)","v":0},{"$f":"ROUND(RDG!J94,2)","v":0}]
[null,null,null,"RDG",2,{"$f":"RDG!G95","v":211},{"$f":"IF(RDG!H95=0,\"\",RDG!H95)","v":""},0,0,{"$f":"ROUND(RDG!I95,2)","v":0},{"$f":"ROUND(RDG!J95,2)","v":0}]
[null,null,null,"RDG",2,{"$f":"RDG!G96","v":212},{"$f":"IF(RDG!H96=0,\"\",RDG!H96)","v":""},0,0,{"$f":"ROUND(RDG!I96,2)","v":0},{"$f":"ROUND(RDG!J96,2)","v":0}]
[null,null,null,"RDG",2,{"$f":"RDG!G97","v":213},{"$f":"IF(RDG!H97=0,\"\",RDG!H97)","v":""},0,0,{"$f":"ROUND(RDG!I97,2)","v":0},{"$f":"ROUND(RDG!J97,2)","v":0}]
[null,null,null,"RDG",2,{"$f":"RDG!G98","v":214},{"$f":"IF(RDG!H98=0,\"\",RDG!H98)","v":""},0,0,{"$f":"ROUND(RDG!I98,2)","v":0},{"$f":"ROUND(RDG!J98,2)","v":0}]
[null,null,null,"RDG",2,{"$f":"RDG!G99","v":215},{"$f":"IF(RDG!H99=0,\"\",RDG!H99)","v":""},0,0,{"$f":"ROUND(RDG!I99,2)","v":0},{"$f":"ROUND(RDG!J99,2)","v":0}]
[null,null,null,"RDG",2,{"$f":"RDG!G100","v":216},{"$f":"IF(RDG!H100=0,\"\",RDG!H100)","v":""},{"$f":"J217/100*F217+2*K217/100*F217","v":0},1,{"$f":"ROUND(RDG!I100,2)","v":0},{"$f":"ROUND(RDG!J100,2)","v":0}]
[null,null,null,"RDG",2,{"$f":"RDG!G101","v":217},{"$f":"IF(RDG!H101=0,\"\",RDG!H101)","v":""},0,0,{"$f":"ROUND(RDG!I101,2)","v":0},{"$f":"ROUND(RDG!J101,2)","v":0}]
[null,null,null,"RDG",2,{"$f":"RDG!G102","v":218},{"$f":"IF(RDG!H102=0,\"\",RDG!H102)","v":""},0,0,{"$f":"ROUND(RDG!I102,2)","v":0},{"$f":"ROUND(RDG!J102,2)","v":0}]
[null,null,null,"RDG",2,{"$f":"RDG!G103","v":219},{"$f":"IF(RDG!H103=0,\"\",RDG!H103)","v":""},0,0,{"$f":"ROUND(RDG!I103,2)","v":0},{"$f":"ROUND(RDG!J103,2)","v":0}]
[null,null,null,"RDG",2,{"$f":"RDG!G104","v":220},{"$f":"IF(RDG!H104=0,\"\",RDG!H104)","v":""},0,0,{"$f":"ROUND(RDG!I104,2)","v":0},{"$f":"ROUND(RDG!J104,2)","v":0}]
[null,null,null,"RDG",2,{"$f":"RDG!G105","v":221},{"$f":"IF(RDG!H105=0,\"\",RDG!H105)","v":""},0,0,{"$f":"ROUND(RDG!I105,2)","v":0},{"$f":"ROUND(RDG!J105,2)","v":0}]
[null,null,null,"RDG",2,{"$f":"RDG!G106","v":222},{"$f":"IF(RDG!H106=0,\"\",RDG!H106)","v":""},0,0,{"$f":"ROUND(RDG!I106,2)","v":0},{"$f":"ROUND(RDG!J106,2)","v":0}]
[null,null,null,"RDG",2,{"$f":"RDG!G107","v":223},{"$f":"IF(RDG!H107=0,\"\",RDG!H107)","v":""},0,0,{"$f":"ROUND(RDG!I107,2)","v":0},{"$f":"ROUND(RDG!J107,2)","v":0}]
[null,null,null,"RDG",2,{"$f":"RDG!G108","v":224},{"$f":"IF(RDG!H108=0,\"\",RDG!H108)","v":""},0,0,{"$f":"ROUND(RDG!I108,2)","v":0},{"$f":"ROUND(RDG!J108,2)","v":0}]
[null,null,null,"RDG",2,{"$f":"RDG!G109","v":225},{"$f":"IF(RDG!H109=0,\"\",RDG!H109)","v":""},0,0,{"$f":"ROUND(RDG!I109,2)","v":0},{"$f":"ROUND(RDG!J109,2)","v":0}]
[null,null,null,"RDG",2,{"$f":"RDG!G110","v":226},{"$f":"IF(RDG!H110=0,\"\",RDG!H110)","v":""},{"$f":"J227/100*F227+2*K227/100*F227","v":-100624.55639999988},0,{"$f":"ROUND(RDG!I110,2)","v":-719338.6},{"$f":"ROUND(RDG!J110,2)","v":337407.23}]
[null,null,null,"RDG",2,{"$f":"RDG!G112","v":227},{"$f":"IF(RDG!H112=0,\"\",RDG!H112)","v":""},0,0,{"$f":"ROUND(RDG!I112,2)","v":0},{"$f":"ROUND(RDG!J112,2)","v":0}]
[null,null,null,"RDG",2,{"$f":"RDG!G113","v":228},{"$f":"IF(RDG!H113=0,\"\",RDG!H113)","v":""},0,0,{"$f":"ROUND(RDG!I113,2)","v":0},{"$f":"ROUND(RDG!J113,2)","v":0}]
[null,null,null,"RDG",2,{"$f":"RDG!G114","v":229},{"$f":"IF(RDG!H114=0,\"\",RDG!H114)","v":""},0,0,{"$f":"ROUND(RDG!I114,2)","v":0},{"$f":"ROUND(RDG!J114,2)","v":0}]
[null,null,null,"DOD",3,{"$f":"Dodatni!H9","v":230},null,0,0,{"$f":"ROUND(Dodatni!I9,2)","v":0},{"$f":"ROUND(Dodatni!J9,2)","v":0}]
[null,null,null,"DOD",3,{"$f":"Dodatni!H10","v":231},null,0,0,{"$f":"ROUND(Dodatni!I10,2)","v":0},{"$f":"ROUND(Dodatni!J10,2)","v":0}]
[null,null,null,"DOD",3,{"$f":"Dodatni!H11","v":232},null,{"$f":"J233/100*F233+2*K233/100*F233","v":0},0,{"$f":"ROUND(Dodatni!I11,2)","v":0},{"$f":"ROUND(Dodatni!J11,2)","v":0}]
[null,null,null,"DOD",3,{"$f":"Dodatni!H12","v":233},null,0,0,{"$f":"ROUND(Dodatni!I12,2)","v":0},{"$f":"ROUND(Dodatni!J12,2)","v":0}]
[null,null,null,"DOD",3,{"$f":"Dodatni!H13","v":234},null,0,0,{"$f":"ROUND(Dodatni!I13,2)","v":0},{"$f":"ROUND(Dodatni!J13,2)","v":0}]
[null,null,null,"DOD",3,{"$f":"Dodatni!H14","v":235},null,0,0,{"$f":"ROUND(Dodatni!I14,2)","v":0},{"$f":"ROUND(Dodatni!J14,2)","v":0}]
[null,null,null,"DOD",3,{"$f":"Dodatni!H15","v":236},null,0,0,{"$f":"ROUND(Dodatni!I15,2)","v":0},{"$f":"ROUND(Dodatni!J15,2)","v":0}]
[null,null,null,"DOD",3,{"$f":"Dodatni!H17","v":237},null,0,0,{"$f":"ROUND(Dodatni!I17,2)","v":0},{"$f":"ROUND(Dodatni!J17,2)","v":0}]
[null,null,null,"DOD",3,{"$f":"Dodatni!H18","v":238},null,0,0,{"$f":"ROUND(Dodatni!I18,2)","v":0},{"$f":"ROUND(Dodatni!J18,2)","v":0}]
[null,null,null,"DOD",3,{"$f":"Dodatni!H19","v":239},null,0,0,{"$f":"ROUND(Dodatni!I19,2)","v":0},{"$f":"ROUND(Dodatni!J19,2)","v":0}]
[null,null,null,"DOD",3,{"$f":"Dodatni!H20","v":240},null,0,0,{"$f":"ROUND(Dodatni!I20,2)","v":0},{"$f":"ROUND(Dodatni!J20,2)","v":0}]
[null,null,null,"DOD",3,{"$f":"Dodatni!H21","v":241},null,0,0,{"$f":"ROUND(Dodatni!I21,2)","v":0},{"$f":"ROUND(Dodatni!J21,2)","v":0}]
[null,null,null,"DOD",3,{"$f":"Dodatni!H23","v":242},null,0,0,{"$f":"ROUND(Dodatni!I23,2)","v":0},{"$f":"ROUND(Dodatni!J23,2)","v":0}]
[null,null,null,"DOD",3,{"$f":"Dodatni!H25","v":243},null,0,0,{"$f":"ROUND(Dodatni!I25,2)","v":0},{"$f":"ROUND(Dodatni!J25,2)","v":0}]
[null,null,null,"DOD",3,{"$f":"Dodatni!H26","v":244},null,0,0,{"$f":"ROUND(Dodatni!I26,2)","v":0},{"$f":"ROUND(Dodatni!J26,2)","v":0}]
[null,null,null,"DOD",3,{"$f":"Dodatni!H27","v":245},null,0,0,{"$f":"ROUND(Dodatni!I27,2)","v":0},{"$f":"ROUND(Dodatni!J27,2)","v":0}]
[null,null,null,"DOD",3,{"$f":"Dodatni!H28","v":246},null,0,0,{"$f":"ROUND(Dodatni!I28,2)","v":0},{"$f":"ROUND(Dodatni!J28,2)","v":0}]
[null,null,null,"DOD",3,{"$f":"Dodatni!H29","v":247},null,0,0,{"$f":"ROUND(Dodatni!I29,2)","v":0},{"$f":"ROUND(Dodatni!J29,2)","v":0}]
[null,null,null,"DOD",3,{"$f":"Dodatni!H30","v":248},null,0,0,{"$f":"ROUND(Dodatni!I30,2)","v":0},{"$f":"ROUND(Dodatni!J30,2)","v":0}]
[null,null,null,"DOD",3,{"$f":"Dodatni!H31","v":249},null,0,0,{"$f":"ROUND(Dodatni!I31,2)","v":0},{"$f":"ROUND(Dodatni!J31,2)","v":0}]
[null,null,null,"DOD",3,{"$f":"Dodatni!H32","v":250},null,0,0,{"$f":"ROUND(Dodatni!I32,2)","v":0},{"$f":"ROUND(Dodatni!J32,2)","v":0}]
[null,null,null,"DOD",3,{"$f":"Dodatni!H33","v":251},null,0,0,{"$f":"ROUND(Dodatni!I33,2)","v":0},{"$f":"ROUND(Dodatni!J33,2)","v":0}]
[null,null,null,"DOD",3,{"$f":"Dodatni!H34","v":252},null,0,0,{"$f":"ROUND(Dodatni!I34,2)","v":0},{"$f":"ROUND(Dodatni!J34,2)","v":0}]
[null,null,null,"DOD",3,{"$f":"Dodatni!H35","v":253},null,0,0,{"$f":"ROUND(Dodatni!I35,2)","v":0},{"$f":"ROUND(Dodatni!J35,2)","v":0}]
[null,null,null,"DOD",3,{"$f":"Dodatni!H37","v":254},null,0,0,{"$f":"ROUND(Dodatni!I37,2)","v":0},{"$f":"ROUND(Dodatni!J37,2)","v":0}]
[null,null,null,"DOD",3,{"$f":"Dodatni!H38","v":255},null,0,0,{"$f":"ROUND(Dodatni!I38,2)","v":0},{"$f":"ROUND(Dodatni!J38,2)","v":0}]
[null,null,null,"DOD",3,{"$f":"Dodatni!H40","v":256},null,0,0,{"$f":"ROUND(Dodatni!I40,2)","v":0},{"$f":"ROUND(Dodatni!J40,2)","v":0}]
[null,null,null,"DOD",3,{"$f":"Dodatni!H42","v":257},null,0,0,{"$f":"ROUND(Dodatni!I42,2)","v":0},{"$f":"ROUND(Dodatni!J42,2)","v":0}]
[null,null,null,"DOD",3,{"$f":"Dodatni!H43","v":258},null,0,0,{"$f":"ROUND(Dodatni!I43,2)","v":0},{"$f":"ROUND(Dodatni!J43,2)","v":0}]
[null,null,null,"DOD",3,{"$f":"Dodatni!H44","v":259},null,0,0,{"$f":"ROUND(Dodatni!I44,2)","v":0},{"$f":"ROUND(Dodatni!J44,2)","v":0}]
[null,null,null,"DOD",3,{"$f":"Dodatni!H45","v":260},null,0,0,{"$f":"ROUND(Dodatni!I45,2)","v":0},{"$f":"ROUND(Dodatni!J45,2)","v":0}]
[null,null,null,"DOD",3,{"$f":"Dodatni!H46","v":261},null,0,0,{"$f":"ROUND(Dodatni!I46,2)","v":0},{"$f":"ROUND(Dodatni!J46,2)","v":0}]
[null,null,null,"DOD",3,{"$f":"Dodatni!H47","v":262},null,0,0,{"$f":"ROUND(Dodatni!I47,2)","v":0},{"$f":"ROUND(Dodatni!J47,2)","v":0}]
[null,null,null,"DOD",3,{"$f":"Dodatni!H49","v":263},null,0,0,{"$f":"ROUND(Dodatni!I49,2)","v":0},{"$f":"ROUND(Dodatni!J49,2)","v":0}]
[null,null,null,"DOD",3,{"$f":"Dodatni!H50","v":264},null,0,0,{"$f":"ROUND(Dodatni!I50,2)","v":0},{"$f":"ROUND(Dodatni!J50,2)","v":0}]
[null,null,null,"DOD",3,{"$f":"Dodatni!H51","v":265},null,0,0,{"$f":"ROUND(Dodatni!I51,2)","v":0},{"$f":"ROUND(Dodatni!J51,2)","v":0}]
[null,null,null,"DOD",3,{"$f":"Dodatni!H52","v":266},null,0,0,{"$f":"ROUND(Dodatni!I52,2)","v":0},{"$f":"ROUND(Dodatni!J52,2)","v":0}]
[null,null,null,"DOD",3,{"$f":"Dodatni!H53","v":267},null,0,0,{"$f":"ROUND(Dodatni!I53,2)","v":0},{"$f":"ROUND(Dodatni!J53,2)","v":0}]
[null,null,null,"DOD",3,{"$f":"Dodatni!H54","v":268},null,0,0,{"$f":"ROUND(Dodatni!I54,2)","v":0},{"$f":"ROUND(Dodatni!J54,2)","v":0}]
[null,null,null,"DOD",3,{"$f":"Dodatni!H55","v":269},null,0,0,{"$f":"ROUND(Dodatni!I55,2)","v":0},{"$f":"ROUND(Dodatni!J55,2)","v":0}]
[null,null,null,"DOD",3,{"$f":"Dodatni!H56","v":270},null,0,0,{"$f":"ROUND(Dodatni!I56,2)","v":0},{"$f":"ROUND(Dodatni!J56,2)","v":0}]
[null,null,null,"DOD",3,{"$f":"Dodatni!H57","v":271},null,0,0,{"$f":"ROUND(Dodatni!I57,2)","v":0},{"$f":"ROUND(Dodatni!J57,2)","v":0}]
[null,null,null,"DOD",3,{"$f":"Dodatni!H58","v":272},null,0,0,{"$f":"ROUND(Dodatni!I58,2)","v":0},{"$f":"ROUND(Dodatni!J58,2)","v":0}]
[null,null,null,"DOD",3,{"$f":"Dodatni!H59","v":273},null,0,0,{"$f":"ROUND(Dodatni!I59,2)","v":0},{"$f":"ROUND(Dodatni!J59,2)","v":0}]
[null,null,null,"DOD",3,{"$f":"Dodatni!H60","v":274},null,0,0,{"$f":"ROUND(Dodatni!I60,2)","v":0},{"$f":"ROUND(Dodatni!J60,2)","v":0}]
[null,null,null,"DOD",3,{"$f":"Dodatni!H61","v":275},null,0,0,{"$f":"ROUND(Dodatni!I61,2)","v":0},{"$f":"ROUND(Dodatni!J61,2)","v":0}]
[null,null,null,"DOD",3,{"$f":"Dodatni!H62","v":276},null,0,0,{"$f":"ROUND(Dodatni!I62,2)","v":0},{"$f":"ROUND(Dodatni!J62,2)","v":0}]
[null,null,null,"DOD",3,{"$f":"Dodatni!H63","v":277},null,0,0,{"$f":"ROUND(Dodatni!I63,2)","v":0},{"$f":"ROUND(Dodatni!J63,2)","v":0}]
[null,null,null,"DOD",3,{"$f":"Dodatni!H64","v":278},null,0,0,{"$f":"ROUND(Dodatni!I64,2)","v":0},{"$f":"ROUND(Dodatni!J64,2)","v":0}]
[null,null,null,"DOD",3,{"$f":"Dodatni!H65","v":279},null,0,0,{"$f":"ROUND(Dodatni!I65,2)","v":0},{"$f":"ROUND(Dodatni!J65,2)","v":0}]
[null,null,null,"DOD",3,{"$f":"Dodatni!H66","v":280},null,0,0,{"$f":"ROUND(Dodatni!I66,2)","v":0},{"$f":"ROUND(Dodatni!J66,2)","v":0}]
[null,null,null,"DOD",3,{"$f":"Dodatni!H67","v":281},null,0,0,{"$f":"ROUND(Dodatni!I67,2)","v":0},{"$f":"ROUND(Dodatni!J67,2)","v":0}]
[null,null,null,"DOD",3,{"$f":"Dodatni!H68","v":282},null,0,0,{"$f":"ROUND(Dodatni!I68,2)","v":0},{"$f":"ROUND(Dodatni!J68,2)","v":0}]
[null,null,null,"DOD",3,{"$f":"Dodatni!H69","v":283},null,0,0,{"$f":"ROUND(Dodatni!I69,2)","v":0},{"$f":"ROUND(Dodatni!J69,2)","v":0}]
[null,null,null,"DOD",3,{"$f":"Dodatni!H70","v":284},null,0,0,{"$f":"ROUND(Dodatni!I70,2)","v":0},{"$f":"ROUND(Dodatni!J70,2)","v":0}]
[null,null,null,"DOD",3,{"$f":"Dodatni!H71","v":285},null,0,0,{"$f":"ROUND(Dodatni!I71,2)","v":0},{"$f":"ROUND(Dodatni!J71,2)","v":0}]
[null,null,null,"DOD",3,{"$f":"Dodatni!H73","v":286},null,0,0,{"$f":"ROUND(Dodatni!I73,2)","v":0},{"$f":"ROUND(Dodatni!J73,2)","v":0}]
[null,null,null,"DOD",3,{"$f":"Dodatni!H74","v":287},null,0,0,{"$f":"ROUND(Dodatni!I74,2)","v":0},{"$f":"ROUND(Dodatni!J74,2)","v":0}]
[null,null,null,"DOD",3,{"$f":"Dodatni!H75","v":288},null,{"$f":"J289/100*F289+2*K289/100*F289","v":0},0,{"$f":"ROUND(Dodatni!I75,2)","v":0},{"$f":"ROUND(Dodatni!J75,2)","v":0}]
[null,null,null,"DOD",3,{"$f":"Dodatni!H76","v":289},null,{"$f":"J290/100*F290+2*K290/100*F290","v":0},0,{"$f":"ROUND(Dodatni!I76,2)","v":0},{"$f":"ROUND(Dodatni!J76,2)","v":0}]
[null,null,null,"DOD",3,{"$f":"Dodatni!H78","v":290},null,{"$f":"J291/100*F291+2*K291/100*F291","v":0},0,{"$f":"ROUND(Dodatni!I78,2)","v":0},{"$f":"ROUND(Dodatni!J78,2)","v":0}]
[null,null,null,"DOD",3,{"$f":"Dodatni!H79","v":291},null,{"$f":"J292/100*F292+2*K292/100*F292","v":0},0,{"$f":"ROUND(Dodatni!I79,2)","v":0},{"$f":"ROUND(Dodatni!J79,2)","v":0}]
[null,null,null,"DOD",3,{"$f":"Dodatni!H80","v":292},null,0,0,{"$f":"ROUND(Dodatni!I80,2)","v":0},{"$f":"ROUND(Dodatni!J80,2)","v":0}]
[null,null,null,"DOD",3,{"$f":"Dodatni!H81","v":293},null,0,0,{"$f":"ROUND(Dodatni!I81,2)","v":0},{"$f":"ROUND(Dodatni!J81,2)","v":0}]
[null,null,null,"DOD",3,{"$f":"Dodatni!H82","v":294},null,0,0,{"$f":"ROUND(Dodatni!I82,2)","v":0},{"$f":"ROUND(Dodatni!J82,2)","v":0}]
[null,null,null,"DOD",3,{"$f":"Dodatni!H83","v":295},null,0,0,{"$f":"ROUND(Dodatni!I83,2)","v":0},{"$f":"ROUND(Dodatni!J83,2)","v":0}]
[null,null,null,"DOD",3,{"$f":"Dodatni!H84","v":296},null,0,0,{"$f":"ROUND(Dodatni!I84,2)","v":0},{"$f":"ROUND(Dodatni!J84,2)","v":0}]
[null,null,null,"DOD",3,{"$f":"Dodatni!H85","v":297},null,0,0,{"$f":"ROUND(Dodatni!I85,2)","v":0},{"$f":"ROUND(Dodatni!J85,2)","v":0}]
[null,null,null,"DOD",3,{"$f":"Dodatni!H86","v":298},null,0,0,{"$f":"ROUND(Dodatni!I86,2)","v":0},{"$f":"ROUND(Dodatni!J86,2)","v":0}]
[null,null,null,"DOD",3,{"$f":"Dodatni!H88","v":299},null,0,0,{"$f":"ROUND(Dodatni!I88,2)","v":0},{"$f":"ROUND(Dodatni!J88,2)","v":0}]
[null,null,null,"NTI",4,{"$f":"NT_I!G9","v":1},{"$f":"IF(NT_I!H9<>\"\",NT_I!H9,\"\")","v":""},{"$f":"J301/100*F301+2*K301/100*F301","v":0},0,{"$f":"ROUND(NT_I!I9,2)","v":0},{"$f":"ROUND(NT_I!J9,2)","v":0}]
[null,null,null,"NTI",4,{"$f":"NT_I!G10","v":2},{"$f":"IF(NT_I!H10<>\"\",NT_I!H10,\"\")","v":""},{"$f":"J302/100*F302+2*K302/100*F302","v":0},0,{"$f":"ROUND(NT_I!I10,2)","v":0},{"$f":"ROUND(NT_I!J10,2)","v":0}]
[null,null,null,"NTI",4,{"$f":"NT_I!G11","v":3},{"$f":"IF(NT_I!H11<>\"\",NT_I!H11,\"\")","v":""},{"$f":"J303/100*F303+2*K303/100*F303","v":0},0,{"$f":"ROUND(NT_I!I11,2)","v":0},{"$f":"ROUND(NT_I!J11,2)","v":0}]
[null,null,null,"NTI",4,{"$f":"NT_I!G12","v":4},{"$f":"IF(NT_I!H12<>\"\",NT_I!H12,\"\")","v":""},0,0,{"$f":"ROUND(NT_I!I12,2)","v":0},{"$f":"ROUND(NT_I!J12,2)","v":0}]
[null,null,null,"NTI",4,{"$f":"NT_I!G13","v":5},{"$f":"IF(NT_I!H13<>\"\",NT_I!H13,\"\")","v":""},0,0,{"$f":"ROUND(NT_I!I13,2)","v":0},{"$f":"ROUND(NT_I!J13,2)","v":0}]
[null,null,null,"NTI",4,{"$f":"NT_I!G14","v":6},{"$f":"IF(NT_I!H14<>\"\",NT_I!H14,\"\")","v":""},0,0,{"$f":"ROUND(NT_I!I14,2)","v":0},{"$f":"ROUND(NT_I!J14,2)","v":0}]
[null,null,null,"NTI",4,{"$f":"NT_I!G15","v":7},{"$f":"IF(NT_I!H15<>\"\",NT_I!H15,\"\")","v":""},0,0,{"$f":"ROUND(NT_I!I15,2)","v":0},{"$f":"ROUND(NT_I!J15,2)","v":0}]
[null,null,null,"NTI",4,{"$f":"NT_I!G16","v":8},{"$f":"IF(NT_I!H16<>\"\",NT_I!H16,\"\")","v":""},0,0,{"$f":"ROUND(NT_I!I16,2)","v":0},{"$f":"ROUND(NT_I!J16,2)","v":0}]
[null,null,null,"NTI",4,{"$f":"NT_I!G17","v":9},{"$f":"IF(NT_I!H17<>\"\",NT_I!H17,\"\")","v":""},0,0,{"$f":"ROUND(NT_I!I17,2)","v":0},{"$f":"ROUND(NT_I!J17,2)","v":0}]
[null,null,null,"NTI",4,{"$f":"NT_I!G18","v":10},{"$f":"IF(NT_I!H18<>\"\",NT_I!H18,\"\")","v":""},0,0,{"$f":"ROUND(NT_I!I18,2)","v":0},{"$f":"ROUND(NT_I!J18,2)","v":0}]
[null,null,null,"NTI",4,{"$f":"NT_I!G19","v":11},{"$f":"IF(NT_I!H19<>\"\",NT_I!H19,\"\")","v":""},0,0,{"$f":"ROUND(NT_I!I19,2)","v":0},{"$f":"ROUND(NT_I!J19,2)","v":0}]
[null,null,null,"NTI",4,{"$f":"NT_I!G20","v":12},{"$f":"IF(NT_I!H20<>\"\",NT_I!H20,\"\")","v":""},0,0,{"$f":"ROUND(NT_I!I20,2)","v":0},{"$f":"ROUND(NT_I!J20,2)","v":0}]
[null,null,null,"NTI",4,{"$f":"NT_I!G21","v":13},{"$f":"IF(NT_I!H21<>\"\",NT_I!H21,\"\")","v":""},0,0,{"$f":"ROUND(NT_I!I21,2)","v":0},{"$f":"ROUND(NT_I!J21,2)","v":0}]
[null,null,null,"NTI",4,{"$f":"NT_I!G22","v":14},{"$f":"IF(NT_I!H22<>\"\",NT_I!H22,\"\")","v":""},0,0,{"$f":"ROUND(NT_I!I22,2)","v":0},{"$f":"ROUND(NT_I!J22,2)","v":0}]
[null,null,null,"NTI",4,{"$f":"NT_I!G23","v":15},{"$f":"IF(NT_I!H23<>\"\",NT_I!H23,\"\")","v":""},0,0,{"$f":"ROUND(NT_I!I23,2)","v":0},{"$f":"ROUND(NT_I!J23,2)","v":0}]
[null,null,null,"NTI",4,{"$f":"NT_I!G24","v":16},{"$f":"IF(NT_I!H24<>\"\",NT_I!H24,\"\")","v":""},0,0,{"$f":"ROUND(NT_I!I24,2)","v":0},{"$f":"ROUND(NT_I!J24,2)","v":0}]
[null,null,null,"NTI",4,{"$f":"NT_I!G25","v":17},{"$f":"IF(NT_I!H25<>\"\",NT_I!H25,\"\")","v":""},0,0,{"$f":"ROUND(NT_I!I25,2)","v":0},{"$f":"ROUND(NT_I!J25,2)","v":0}]
[null,null,null,"NTI",4,{"$f":"NT_I!G26","v":18},{"$f":"IF(NT_I!H26<>\"\",NT_I!H26,\"\")","v":""},0,0,{"$f":"ROUND(NT_I!I26,2)","v":0},{"$f":"ROUND(NT_I!J26,2)","v":0}]
[null,null,null,"NTI",4,{"$f":"NT_I!G27","v":19},{"$f":"IF(NT_I!H27<>\"\",NT_I!H27,\"\")","v":""},0,0,{"$f":"ROUND(NT_I!I27,2)","v":0},{"$f":"ROUND(NT_I!J27,2)","v":0}]
[null,null,null,"NTI",4,{"$f":"NT_I!G28","v":20},{"$f":"IF(NT_I!H28<>\"\",NT_I!H28,\"\")","v":""},0,0,{"$f":"ROUND(NT_I!I28,2)","v":0},{"$f":"ROUND(NT_I!J28,2)","v":0}]
[null,null,null,"NTI",4,{"$f":"NT_I!G30","v":21},{"$f":"IF(NT_I!H30<>\"\",NT_I!H30,\"\")","v":""},0,0,{"$f":"ROUND(NT_I!I30,2)","v":0},{"$f":"ROUND(NT_I!J30,2)","v":0}]
[null,null,null,"NTI",4,{"$f":"NT_I!G31","v":22},{"$f":"IF(NT_I!H31<>\"\",NT_I!H31,\"\")","v":""},0,0,{"$f":"ROUND(NT_I!I31,2)","v":0},{"$f":"ROUND(NT_I!J31,2)","v":0}]
[null,null,null,"NTI",4,{"$f":"NT_I!G32","v":23},{"$f":"IF(NT_I!H32<>\"\",NT_I!H32,\"\")","v":""},0,0,{"$f":"ROUND(NT_I!I32,2)","v":0},{"$f":"ROUND(NT_I!J32,2)","v":0}]
[null,null,null,"NTI",4,{"$f":"NT_I!G33","v":24},{"$f":"IF(NT_I!H33<>\"\",NT_I!H33,\"\")","v":""},0,0,{"$f":"ROUND(NT_I!I33,2)","v":0},{"$f":"ROUND(NT_I!J33,2)","v":0}]
[null,null,null,"NTI",4,{"$f":"NT_I!G34","v":25},{"$f":"IF(NT_I!H34<>\"\",NT_I!H34,\"\")","v":""},0,0,{"$f":"ROUND(NT_I!I34,2)","v":0},{"$f":"ROUND(NT_I!J34,2)","v":0}]
[null,null,null,"NTI",4,{"$f":"NT_I!G35","v":26},{"$f":"IF(NT_I!H35<>\"\",NT_I!H35,\"\")","v":""},0,0,{"$f":"ROUND(NT_I!I35,2)","v":0},{"$f":"ROUND(NT_I!J35,2)","v":0}]
[null,null,null,"NTI",4,{"$f":"NT_I!G36","v":27},{"$f":"IF(NT_I!H36<>\"\",NT_I!H36,\"\")","v":""},0,0,{"$f":"ROUND(NT_I!I36,2)","v":0},{"$f":"ROUND(NT_I!J36,2)","v":0}]
[null,null,null,"NTI",4,{"$f":"NT_I!G37","v":28},{"$f":"IF(NT_I!H37<>\"\",NT_I!H37,\"\")","v":""},0,0,{"$f":"ROUND(NT_I!I37,2)","v":0},{"$f":"ROUND(NT_I!J37,2)","v":0}]
[null,null,null,"NTI",4,{"$f":"NT_I!G38","v":29},{"$f":"IF(NT_I!H38<>\"\",NT_I!H38,\"\")","v":""},0,0,{"$f":"ROUND(NT_I!I38,2)","v":0},{"$f":"ROUND(NT_I!J38,2)","v":0}]
[null,null,null,"NTI",4,{"$f":"NT_I!G39","v":30},{"$f":"IF(NT_I!H39<>\"\",NT_I!H39,\"\")","v":""},0,0,{"$f":"ROUND(NT_I!I39,2)","v":0},{"$f":"ROUND(NT_I!J39,2)","v":0}]
[null,null,null,"NTI",4,{"$f":"NT_I!G40","v":31},{"$f":"IF(NT_I!H40<>\"\",NT_I!H40,\"\")","v":""},0,0,{"$f":"ROUND(NT_I!I40,2)","v":0},{"$f":"ROUND(NT_I!J40,2)","v":0}]
[null,null,null,"NTI",4,{"$f":"NT_I!G41","v":32},{"$f":"IF(NT_I!H41<>\"\",NT_I!H41,\"\")","v":""},0,0,{"$f":"ROUND(NT_I!I41,2)","v":0},{"$f":"ROUND(NT_I!J41,2)","v":0}]
[null,null,null,"NTI",4,{"$f":"NT_I!G42","v":33},{"$f":"IF(NT_I!H42<>\"\",NT_I!H42,\"\")","v":""},0,0,{"$f":"ROUND(NT_I!I42,2)","v":0},{"$f":"ROUND(NT_I!J42,2)","v":0}]
[null,null,null,"NTI",4,{"$f":"NT_I!G43","v":34},{"$f":"IF(NT_I!H43<>\"\",NT_I!H43,\"\")","v":""},0,0,{"$f":"ROUND(NT_I!I43,2)","v":0},{"$f":"ROUND(NT_I!J43,2)","v":0}]
[null,null,null,"NTI",4,{"$f":"NT_I!G45","v":35},{"$f":"IF(NT_I!H45<>\"\",NT_I!H45,\"\")","v":""},0,0,{"$f":"ROUND(NT_I!I45,2)","v":0},{"$f":"ROUND(NT_I!J45,2)","v":0}]
[null,null,null,"NTI",4,{"$f":"NT_I!G46","v":36},{"$f":"IF(NT_I!H46<>\"\",NT_I!H46,\"\")","v":""},0,0,{"$f":"ROUND(NT_I!I46,2)","v":0},{"$f":"ROUND(NT_I!J46,2)","v":0}]
[null,null,null,"NTI",4,{"$f":"NT_I!G47","v":37},{"$f":"IF(NT_I!H47<>\"\",NT_I!H47,\"\")","v":""},0,0,{"$f":"ROUND(NT_I!I47,2)","v":0},{"$f":"ROUND(NT_I!J47,2)","v":0}]
[null,null,null,"NTI",4,{"$f":"NT_I!G48","v":38},{"$f":"IF(NT_I!H48<>\"\",NT_I!H48,\"\")","v":""},0,0,{"$f":"ROUND(NT_I!I48,2)","v":0},{"$f":"ROUND(NT_I!J48,2)","v":0}]
[null,null,null,"NTI",4,{"$f":"NT_I!G49","v":39},{"$f":"IF(NT_I!H49<>\"\",NT_I!H49,\"\")","v":""},0,0,{"$f":"ROUND(NT_I!I49,2)","v":0},{"$f":"ROUND(NT_I!J49,2)","v":0}]
[null,null,null,"NTI",4,{"$f":"NT_I!G50","v":40},{"$f":"IF(NT_I!H50<>\"\",NT_I!H50,\"\")","v":""},0,0,{"$f":"ROUND(NT_I!I50,2)","v":0},{"$f":"ROUND(NT_I!J50,2)","v":0}]
[null,null,null,"NTI",4,{"$f":"NT_I!G51","v":41},{"$f":"IF(NT_I!H51<>\"\",NT_I!H51,\"\")","v":""},0,0,{"$f":"ROUND(NT_I!I51,2)","v":0},{"$f":"ROUND(NT_I!J51,2)","v":0}]
[null,null,null,"NTI",4,{"$f":"NT_I!G52","v":42},{"$f":"IF(NT_I!H52<>\"\",NT_I!H52,\"\")","v":""},0,0,{"$f":"ROUND(NT_I!I52,2)","v":0},{"$f":"ROUND(NT_I!J52,2)","v":0}]
[null,null,null,"NTI",4,{"$f":"NT_I!G53","v":43},{"$f":"IF(NT_I!H53<>\"\",NT_I!H53,\"\")","v":""},0,0,{"$f":"ROUND(NT_I!I53,2)","v":0},{"$f":"ROUND(NT_I!J53,2)","v":0}]
[null,null,null,"NTI",4,{"$f":"NT_I!G54","v":44},{"$f":"IF(NT_I!H54<>\"\",NT_I!H54,\"\")","v":""},0,0,{"$f":"ROUND(NT_I!I54,2)","v":0},{"$f":"ROUND(NT_I!J54,2)","v":0}]
[null,null,null,"NTI",4,{"$f":"NT_I!G55","v":45},{"$f":"IF(NT_I!H55<>\"\",NT_I!H55,\"\")","v":""},0,0,{"$f":"ROUND(NT_I!I55,2)","v":0},{"$f":"ROUND(NT_I!J55,2)","v":0}]
[null,null,null,"NTI",4,{"$f":"NT_I!G56","v":46},{"$f":"IF(NT_I!H56<>\"\",NT_I!H56,\"\")","v":""},0,0,{"$f":"ROUND(NT_I!I56,2)","v":0},{"$f":"ROUND(NT_I!J56,2)","v":0}]
[null,null,null,"NTI",4,{"$f":"NT_I!G57","v":47},{"$f":"IF(NT_I!H57<>\"\",NT_I!H57,\"\")","v":""},0,0,{"$f":"ROUND(NT_I!I57,2)","v":0},{"$f":"ROUND(NT_I!J57,2)","v":0}]
[null,null,null,"NTI",4,{"$f":"NT_I!G58","v":48},{"$f":"IF(NT_I!H58<>\"\",NT_I!H58,\"\")","v":""},0,0,{"$f":"ROUND(NT_I!I58,2)","v":0},{"$f":"ROUND(NT_I!J58,2)","v":0}]
[null,null,null,"NTI",4,{"$f":"NT_I!G59","v":49},{"$f":"IF(NT_I!H59<>\"\",NT_I!H59,\"\")","v":""},{"$f":"J349/100*F349+2*K349/100*F349","v":0},0,{"$f":"ROUND(NT_I!I59,2)","v":0},{"$f":"ROUND(NT_I!J59,2)","v":0}]
[null,null,null,"NTI",4,{"$f":"NT_I!G60","v":50},{"$f":"IF(NT_I!H60<>\"\",NT_I!H60,\"\")","v":""},{"$f":"J350/100*F350+2*K350/100*F350","v":0},0,{"$f":"ROUND(NT_I!I60,2)","v":0},{"$f":"ROUND(NT_I!J60,2)","v":0}]
[null,null,null,"NTD",5,{"$f":"NT_D!G9","v":1},{"$f":"IF(NT_D!H9<>\"\",NT_D!H9,\"\")","v":""},{"$f":"J351/100*F351+2*K351/100*F351","v":0},0,{"$f":"ROUND(NT_D!I9,2)","v":0},{"$f":"ROUND(NT_D!J9,2)","v":0}]
[null,null,null,"NTD",5,{"$f":"NT_D!G10","v":2},{"$f":"IF(NT_D!H10<>\"\",NT_D!H10,\"\")","v":""},{"$f":"J352/100*F352+2*K352/100*F352","v":0},0,{"$f":"ROUND(NT_D!I10,2)","v":0},{"$f":"ROUND(NT_D!J10,2)","v":0}]
[null,null,null,"NTD",5,{"$f":"NT_D!G11","v":3},{"$f":"IF(NT_D!H11<>\"\",NT_D!H11,\"\")","v":""},{"$f":"J353/100*F353+2*K353/100*F353","v":0},0,{"$f":"ROUND(NT_D!I11,2)","v":0},{"$f":"ROUND(NT_D!J11,2)","v":0}]
[null,null,null,"NTD",5,{"$f":"NT_D!G12","v":4},{"$f":"IF(NT_D!H12<>\"\",NT_D!H12,\"\")","v":""},0,0,{"$f":"ROUND(NT_D!I12,2)","v":0},{"$f":"ROUND(NT_D!J12,2)","v":0}]
[null,null,null,"NTD",5,{"$f":"NT_D!G13","v":5},{"$f":"IF(NT_D!H13<>\"\",NT_D!H13,\"\")","v":""},0,0,{"$f":"ROUND(NT_D!I13,2)","v":0},{"$f":"ROUND(NT_D!J13,2)","v":0}]
[null,null,null,"NTD",5,{"$f":"NT_D!G14","v":6},{"$f":"IF(NT_D!H14<>\"\",NT_D!H14,\"\")","v":""},0,0,{"$f":"ROUND(NT_D!I14,2)","v":0},{"$f":"ROUND(NT_D!J14,2)","v":0}]
[null,null,null,"NTD",5,{"$f":"NT_D!G15","v":7},{"$f":"IF(NT_D!H15<>\"\",NT_D!H15,\"\")","v":""},0,0,{"$f":"ROUND(NT_D!I15,2)","v":0},{"$f":"ROUND(NT_D!J15,2)","v":0}]
[null,null,null,"NTD",5,{"$f":"NT_D!G16","v":8},{"$f":"IF(NT_D!H16<>\"\",NT_D!H16,\"\")","v":""},0,0,{"$f":"ROUND(NT_D!I16,2)","v":0},{"$f":"ROUND(NT_D!J16,2)","v":0}]
[null,null,null,"NTD",5,{"$f":"NT_D!G17","v":9},{"$f":"IF(NT_D!H17<>\"\",NT_D!H17,\"\")","v":""},0,0,{"$f":"ROUND(NT_D!I17,2)","v":0},{"$f":"ROUND(NT_D!J17,2)","v":0}]
[null,null,null,"NTD",5,{"$f":"NT_D!G18","v":10},{"$f":"IF(NT_D!H18<>\"\",NT_D!H18,\"\")","v":""},0,0,{"$f":"ROUND(NT_D!I18,2)","v":0},{"$f":"ROUND(NT_D!J18,2)","v":0}]
[null,null,null,"NTD",5,{"$f":"NT_D!G19","v":11},{"$f":"IF(NT_D!H19<>\"\",NT_D!H19,\"\")","v":""},0,0,{"$f":"ROUND(NT_D!I19,2)","v":0},{"$f":"ROUND(NT_D!J19,2)","v":0}]
[null,null,null,"NTD",5,{"$f":"NT_D!G20","v":12},{"$f":"IF(NT_D!H20<>\"\",NT_D!H20,\"\")","v":""},0,0,{"$f":"ROUND(NT_D!I20,2)","v":0},{"$f":"ROUND(NT_D!J20,2)","v":0}]
[null,null,null,"NTD",5,{"$f":"NT_D!G21","v":13},{"$f":"IF(NT_D!H21<>\"\",NT_D!H21,\"\")","v":""},0,0,{"$f":"ROUND(NT_D!I21,2)","v":0},{"$f":"ROUND(NT_D!J21,2)","v":0}]
[null,null,null,"NTD",5,{"$f":"NT_D!G22","v":14},{"$f":"IF(NT_D!H22<>\"\",NT_D!H22,\"\")","v":""},0,0,{"$f":"ROUND(NT_D!I22,2)","v":0},{"$f":"ROUND(NT_D!J22,2)","v":0}]
[null,null,null,"NTD",5,{"$f":"NT_D!G24","v":15},{"$f":"IF(NT_D!H24<>\"\",NT_D!H24,\"\")","v":""},0,0,{"$f":"ROUND(NT_D!I24,2)","v":0},{"$f":"ROUND(NT_D!J24,2)","v":0}]
[null,null,null,"NTD",5,{"$f":"NT_D!G25","v":16},{"$f":"IF(NT_D!H25<>\"\",NT_D!H25,\"\")","v":""},0,0,{"$f":"ROUND(NT_D!I25,2)","v":0},{"$f":"ROUND(NT_D!J25,2)","v":0}]
[null,null,null,"NTD",5,{"$f":"NT_D!G26","v":17},{"$f":"IF(NT_D!H26<>\"\",NT_D!H26,\"\")","v":""},0,0,{"$f":"ROUND(NT_D!I26,2)","v":0},{"$f":"ROUND(NT_D!J26,2)","v":0}]
[null,null,null,"NTD",5,{"$f":"NT_D!G27","v":18},{"$f":"IF(NT_D!H27<>\"\",NT_D!H27,\"\")","v":""},0,0,{"$f":"ROUND(NT_D!I27,2)","v":0},{"$f":"ROUND(NT_D!J27,2)","v":0}]
[null,null,null,"NTD",5,{"$f":"NT_D!G28","v":19},{"$f":"IF(NT_D!H28<>\"\",NT_D!H28,\"\")","v":""},0,0,{"$f":"ROUND(NT_D!I28,2)","v":0},{"$f":"ROUND(NT_D!J28,2)","v":0}]
[null,null,null,"NTD",5,{"$f":"NT_D!G29","v":20},{"$f":"IF(NT_D!H29<>\"\",NT_D!H29,\"\")","v":""},0,0,{"$f":"ROUND(NT_D!I29,2)","v":0},{"$f":"ROUND(NT_D!J29,2)","v":0}]
[null,null,null,"NTD",5,{"$f":"NT_D!G30","v":21},{"$f":"IF(NT_D!H30<>\"\",NT_D!H30,\"\")","v":""},0,0,{"$f":"ROUND(NT_D!I30,2)","v":0},{"$f":"ROUND(NT_D!J30,2)","v":0}]
[null,null,null,"NTD",5,{"$f":"NT_D!G31","v":22},{"$f":"IF(NT_D!H31<>\"\",NT_D!H31,\"\")","v":""},0,0,{"$f":"ROUND(NT_D!I31,2)","v":0},{"$f":"ROUND(NT_D!J31,2)","v":0}]
[null,null,null,"NTD",5,{"$f":"NT_D!G32","v":23},{"$f":"IF(NT_D!H32<>\"\",NT_D!H32,\"\")","v":""},0,0,{"$f":"ROUND(NT_D!I32,2)","v":0},{"$f":"ROUND(NT_D!J32,2)","v":0}]
[null,null,null,"NTD",5,{"$f":"NT_D!G33","v":24},{"$f":"IF(NT_D!H33<>\"\",NT_D!H33,\"\")","v":""},0,0,{"$f":"ROUND(NT_D!I33,2)","v":0},{"$f":"ROUND(NT_D!J33,2)","v":0}]
[null,null,null,"NTD",5,{"$f":"NT_D!G34","v":25},{"$f":"IF(NT_D!H34<>\"\",NT_D!H34,\"\")","v":""},0,0,{"$f":"ROUND(NT_D!I34,2)","v":0},{"$f":"ROUND(NT_D!J34,2)","v":0}]
[null,null,null,"NTD",5,{"$f":"NT_D!G35","v":26},{"$f":"IF(NT_D!H35<>\"\",NT_D!H35,\"\")","v":""},0,0,{"$f":"ROUND(NT_D!I35,2)","v":0},{"$f":"ROUND(NT_D!J35,2)","v":0}]
[null,null,null,"NTD",5,{"$f":"NT_D!G36","v":27},{"$f":"IF(NT_D!H36<>\"\",NT_D!H36,\"\")","v":""},0,0,{"$f":"ROUND(NT_D!I36,2)","v":0},{"$f":"ROUND(NT_D!J36,2)","v":0}]
[null,null,null,"NTD",5,{"$f":"NT_D!G37","v":28},{"$f":"IF(NT_D!H37<>\"\",NT_D!H37,\"\")","v":""},0,0,{"$f":"ROUND(NT_D!I37,2)","v":0},{"$f":"ROUND(NT_D!J37,2)","v":0}]
[null,null,null,"NTD",5,{"$f":"NT_D!G39","v":29},{"$f":"IF(NT_D!H39<>\"\",NT_D!H39,\"\")","v":""},0,0,{"$f":"ROUND(NT_D!I39,2)","v":0},{"$f":"ROUND(NT_D!J39,2)","v":0}]
[null,null,null,"NTD",5,{"$f":"NT_D!G40","v":30},{"$f":"IF(NT_D!H40<>\"\",NT_D!H40,\"\")","v":""},0,0,{"$f":"ROUND(NT_D!I40,2)","v":0},{"$f":"ROUND(NT_D!J40,2)","v":0}]
[null,null,null,"NTD",5,{"$f":"NT_D!G41","v":31},{"$f":"IF(NT_D!H41<>\"\",NT_D!H41,\"\")","v":""},0,0,{"$f":"ROUND(NT_D!I41,2)","v":0},{"$f":"ROUND(NT_D!J41,2)","v":0}]
[null,null,null,"NTD",5,{"$f":"NT_D!G42","v":32},{"$f":"IF(NT_D!H42<>\"\",NT_D!H42,\"\")","v":""},0,0,{"$f":"ROUND(NT_D!I42,2)","v":0},{"$f":"ROUND(NT_D!J42,2)","v":0}]
[null,null,null,"NTD",5,{"$f":"NT_D!G43","v":33},{"$f":"IF(NT_D!H43<>\"\",NT_D!H43,\"\")","v":""},0,0,{"$f":"ROUND(NT_D!I43,2)","v":0},{"$f":"ROUND(NT_D!J43,2)","v":0}]
[null,null,null,"NTD",5,{"$f":"NT_D!G44","v":34},{"$f":"IF(NT_D!H44<>\"\",NT_D!H44,\"\")","v":""},0,0,{"$f":"ROUND(NT_D!I44,2)","v":0},{"$f":"ROUND(NT_D!J44,2)","v":0}]
[null,null,null,"NTD",5,{"$f":"NT_D!G45","v":35},{"$f":"IF(NT_D!H45<>\"\",NT_D!H45,\"\")","v":""},0,0,{"$f":"ROUND(NT_D!I45,2)","v":0},{"$f":"ROUND(NT_D!J45,2)","v":0}]
[null,null,null,"NTD",5,{"$f":"NT_D!G46","v":36},{"$f":"IF(NT_D!H46<>\"\",NT_D!H46,\"\")","v":""},0,0,{"$f":"ROUND(NT_D!I46,2)","v":0},{"$f":"ROUND(NT_D!J46,2)","v":0}]
[null,null,null,"NTD",5,{"$f":"NT_D!G47","v":37},{"$f":"IF(NT_D!H47<>\"\",NT_D!H47,\"\")","v":""},0,0,{"$f":"ROUND(NT_D!I47,2)","v":0},{"$f":"ROUND(NT_D!J47,2)","v":0}]
[null,null,null,"NTD",5,{"$f":"NT_D!G48","v":38},{"$f":"IF(NT_D!H48<>\"\",NT_D!H48,\"\")","v":""},0,0,{"$f":"ROUND(NT_D!I48,2)","v":0},{"$f":"ROUND(NT_D!J48,2)","v":0}]
[null,null,null,"NTD",5,{"$f":"NT_D!G49","v":39},{"$f":"IF(NT_D!H49<>\"\",NT_D!H49,\"\")","v":""},0,0,{"$f":"ROUND(NT_D!I49,2)","v":0},{"$f":"ROUND(NT_D!J49,2)","v":0}]
[null,null,null,"NTD",5,{"$f":"NT_D!G50","v":40},{"$f":"IF(NT_D!H50<>\"\",NT_D!H50,\"\")","v":""},0,0,{"$f":"ROUND(NT_D!I50,2)","v":0},{"$f":"ROUND(NT_D!J50,2)","v":0}]
[null,null,null,"NTD",5,{"$f":"NT_D!G51","v":41},{"$f":"IF(NT_D!H51<>\"\",NT_D!H51,\"\")","v":""},0,0,{"$f":"ROUND(NT_D!I51,2)","v":0},{"$f":"ROUND(NT_D!J51,2)","v":0}]
[null,null,null,"NTD",5,{"$f":"NT_D!G52","v":42},{"$f":"IF(NT_D!H52<>\"\",NT_D!H52,\"\")","v":""},0,0,{"$f":"ROUND(NT_D!I52,2)","v":0},{"$f":"ROUND(NT_D!J52,2)","v":0}]
[null,null,null,"NTD",5,{"$f":"NT_D!G53","v":43},{"$f":"IF(NT_D!H53<>\"\",NT_D!H53,\"\")","v":""},{"$f":"J393/100*F393+2*K393/100*F393","v":0},0,{"$f":"ROUND(NT_D!I53,2)","v":0},{"$f":"ROUND(NT_D!J53,2)","v":0}]
[null,null,null,"NTD",5,{"$f":"NT_D!G54","v":44},{"$f":"IF(NT_D!H54<>\"\",NT_D!H54,\"\")","v":""},{"$f":"J394/100*F394+2*K394/100*F394","v":0},0,{"$f":"ROUND(NT_D!I54,2)","v":0},{"$f":"ROUND(NT_D!J54,2)","v":0}]
[null,null,null,"PK",6,{"$f":"PK!G10","v":1},{"$f":"IF(PK!H10<>\"\",PK!H10,\"\")","v":""},{"$f":"J395/100*F395+2*K395/100*F395+3*L395/100+4*M395/100+5*N395/100+6*O395/100+7*P395/100+8*Q395/100+9*R395/100+10*S395/100+11*T395/100+12*U395/100+13*V395/100+14*W395/100+15*X395/100+16*Y395/100+17*Z395/100+18*AA395/100+19*AB395/100","v":0},0,{"$f":"ROUND(PK!I10,2)","v":0},{"$f":"ROUND(PK!J10,2)","v":0},{"$f":"ROUND(PK!K10,2)","v":0},{"$f":"ROUND(PK!L10,2)","v":0},{"$f":"ROUND(PK!M10,2)","v":0},{"$f":"ROUND(PK!N10,2)","v":0},{"$f":"ROUND(PK!O10,2)","v":0},{"$f":"ROUND(PK!P10,2)","v":0},{"$f":"ROUND(PK!Q10,2)","v":0},{"$f":"ROUND(PK!R10,2)","v":0},{"$f":"ROUND(PK!S10,2)","v":0},{"$f":"ROUND(PK!T10,2)","v":0},{"$f":"ROUND(PK!U10,2)","v":0},{"$f":"ROUND(PK!V10,2)","v":0},{"$f":"ROUND(PK!W10,2)","v":0},{"$f":"ROUND(PK!X10,2)","v":0},{"$f":"ROUND(PK!Y10,2)","v":0},{"$f":"ROUND(PK!Z10,2)","v":0},{"$f":"ROUND(PK!AA10,2)","v":0}]
[null,null,null,"PK",6,{"$f":"PK!G11","v":2},{"$f":"IF(PK!H11<>\"\",PK!H11,\"\")","v":""},{"$f":"J396/100*F396+2*K396/100*F396+3*L396/100+4*M396/100+5*N396/100+6*O396/100+7*P396/100+8*Q396/100+9*R396/100+10*S396/100+11*T396/100+12*U396/100+13*V396/100+14*W396/100+15*X396/100+16*Y396/100+17*Z396/100+18*AA396/100+19*AB396/100","v":0},0,{"$f":"ROUND(PK!I11,2)","v":0},{"$f":"ROUND(PK!J11,2)","v":0},{"$f":"ROUND(PK!K11,2)","v":0},{"$f":"ROUND(PK!L11,2)","v":0},{"$f":"ROUND(PK!M11,2)","v":0},{"$f":"ROUND(PK!N11,2)","v":0},{"$f":"ROUND(PK!O11,2)","v":0},{"$f":"ROUND(PK!P11,2)","v":0},{"$f":"ROUND(PK!Q11,2)","v":0},{"$f":"ROUND(PK!R11,2)","v":0},{"$f":"ROUND(PK!S11,2)","v":0},{"$f":"ROUND(PK!T11,2)","v":0},{"$f":"ROUND(PK!U11,2)","v":0},{"$f":"ROUND(PK!V11,2)","v":0},{"$f":"ROUND(PK!W11,2)","v":0},{"$f":"ROUND(PK!X11,2)","v":0},{"$f":"ROUND(PK!Y11,2)","v":0},{"$f":"ROUND(PK!Z11,2)","v":0},{"$f":"ROUND(PK!AA11,2)","v":0}]
[null,null,null,"PK",6,{"$f":"PK!G12","v":3},{"$f":"IF(PK!H12<>\"\",PK!H12,\"\")","v":""},{"$f":"J397/100*F397+2*K397/100*F397+3*L397/100+4*M397/100+5*N397/100+6*O397/100+7*P397/100+8*Q397/100+9*R397/100+10*S397/100+11*T397/100+12*U397/100+13*V397/100+14*W397/100+15*X397/100+16*Y397/100+17*Z397/100+18*AA397/100+19*AB397/100","v":0},0,{"$f":"ROUND(PK!I12,2)","v":0},{"$f":"ROUND(PK!J12,2)","v":0},{"$f":"ROUND(PK!K12,2)","v":0},{"$f":"ROUND(PK!L12,2)","v":0},{"$f":"ROUND(PK!M12,2)","v":0},{"$f":"ROUND(PK!N12,2)","v":0},{"$f":"ROUND(PK!O12,2)","v":0},{"$f":"ROUND(PK!P12,2)","v":0},{"$f":"ROUND(PK!Q12,2)","v":0},{"$f":"ROUND(PK!R12,2)","v":0},{"$f":"ROUND(PK!S12,2)","v":0},{"$f":"ROUND(PK!T12,2)","v":0},{"$f":"ROUND(PK!U12,2)","v":0},{"$f":"ROUND(PK!V12,2)","v":0},{"$f":"ROUND(PK!W12,2)","v":0},{"$f":"ROUND(PK!X12,2)","v":0},{"$f":"ROUND(PK!Y12,2)","v":0},{"$f":"ROUND(PK!Z12,2)","v":0},{"$f":"ROUND(PK!AA12,2)","v":0}]
[null,null,null,"PK",6,{"$f":"PK!G13","v":4},{"$f":"IF(PK!H13<>\"\",PK!H13,\"\")","v":""},0,0,{"$f":"ROUND(PK!I13,2)","v":0},{"$f":"ROUND(PK!J13,2)","v":0},{"$f":"ROUND(PK!K13,2)","v":0},{"$f":"ROUND(PK!L13,2)","v":0},{"$f":"ROUND(PK!M13,2)","v":0},{"$f":"ROUND(PK!N13,2)","v":0},{"$f":"ROUND(PK!O13,2)","v":0},{"$f":"ROUND(PK!P13,2)","v":0},{"$f":"ROUND(PK!Q13,2)","v":0},{"$f":"ROUND(PK!R13,2)","v":0},{"$f":"ROUND(PK!S13,2)","v":0},{"$f":"ROUND(PK!T13,2)","v":0},{"$f":"ROUND(PK!U13,2)","v":0},{"$f":"ROUND(PK!V13,2)","v":0},{"$f":"ROUND(PK!W13,2)","v":0},{"$f":"ROUND(PK!X13,2)","v":0},{"$f":"ROUND(PK!Y13,2)","v":0},{"$f":"ROUND(PK!Z13,2)","v":0},{"$f":"ROUND(PK!AA13,2)","v":0}]
[null,null,null,"PK",6,{"$f":"PK!G14","v":5},{"$f":"IF(PK!H14<>\"\",PK!H14,\"\")","v":""},0,0,{"$f":"ROUND(PK!I14,2)","v":0},{"$f":"ROUND(PK!J14,2)","v":0},{"$f":"ROUND(PK!K14,2)","v":0},{"$f":"ROUND(PK!L14,2)","v":0},{"$f":"ROUND(PK!M14,2)","v":0},{"$f":"ROUND(PK!N14,2)","v":0},{"$f":"ROUND(PK!O14,2)","v":0},{"$f":"ROUND(PK!P14,2)","v":0},{"$f":"ROUND(PK!Q14,2)","v":0},{"$f":"ROUND(PK!R14,2)","v":0},{"$f":"ROUND(PK!S14,2)","v":0},{"$f":"ROUND(PK!T14,2)","v":0},{"$f":"ROUND(PK!U14,2)","v":0},{"$f":"ROUND(PK!V14,2)","v":0},{"$f":"ROUND(PK!W14,2)","v":0},{"$f":"ROUND(PK!X14,2)","v":0},{"$f":"ROUND(PK!Y14,2)","v":0},{"$f":"ROUND(PK!Z14,2)","v":0},{"$f":"ROUND(PK!AA14,2)","v":0}]
[null,null,null,"PK",6,{"$f":"PK!G15","v":6},{"$f":"IF(PK!H15<>\"\",PK!H15,\"\")","v":""},0,0,{"$f":"ROUND(PK!I15,2)","v":0},{"$f":"ROUND(PK!J15,2)","v":0},{"$f":"ROUND(PK!K15,2)","v":0},{"$f":"ROUND(PK!L15,2)","v":0},{"$f":"ROUND(PK!M15,2)","v":0},{"$f":"ROUND(PK!N15,2)","v":0},{"$f":"ROUND(PK!O15,2)","v":0},{"$f":"ROUND(PK!P15,2)","v":0},{"$f":"ROUND(PK!Q15,2)","v":0},{"$f":"ROUND(PK!R15,2)","v":0},{"$f":"ROUND(PK!S15,2)","v":0},{"$f":"ROUND(PK!T15,2)","v":0},{"$f":"ROUND(PK!U15,2)","v":0},{"$f":"ROUND(PK!V15,2)","v":0},{"$f":"ROUND(PK!W15,2)","v":0},{"$f":"ROUND(PK!X15,2)","v":0},{"$f":"ROUND(PK!Y15,2)","v":0},{"$f":"ROUND(PK!Z15,2)","v":0},{"$f":"ROUND(PK!AA15,2)","v":0}]
[null,null,null,"PK",6,{"$f":"PK!G16","v":7},{"$f":"IF(PK!H16<>\"\",PK!H16,\"\")","v":""},0,0,{"$f":"ROUND(PK!I16,2)","v":0},{"$f":"ROUND(PK!J16,2)","v":0},{"$f":"ROUND(PK!K16,2)","v":0},{"$f":"ROUND(PK!L16,2)","v":0},{"$f":"ROUND(PK!M16,2)","v":0},{"$f":"ROUND(PK!N16,2)","v":0},{"$f":"ROUND(PK!O16,2)","v":0},{"$f":"ROUND(PK!P16,2)","v":0},{"$f":"ROUND(PK!Q16,2)","v":0},{"$f":"ROUND(PK!R16,2)","v":0},{"$f":"ROUND(PK!S16,2)","v":0},{"$f":"ROUND(PK!T16,2)","v":0},{"$f":"ROUND(PK!U16,2)","v":0},{"$f":"ROUND(PK!V16,2)","v":0},{"$f":"ROUND(PK!W16,2)","v":0},{"$f":"ROUND(PK!X16,2)","v":0},{"$f":"ROUND(PK!Y16,2)","v":0},{"$f":"ROUND(PK!Z16,2)","v":0},{"$f":"ROUND(PK!AA16,2)","v":0}]
[null,null,null,"PK",6,{"$f":"PK!G17","v":8},{"$f":"IF(PK!H17<>\"\",PK!H17,\"\")","v":""},0,0,{"$f":"ROUND(PK!I17,2)","v":0},{"$f":"ROUND(PK!J17,2)","v":0},{"$f":"ROUND(PK!K17,2)","v":0},{"$f":"ROUND(PK!L17,2)","v":0},{"$f":"ROUND(PK!M17,2)","v":0},{"$f":"ROUND(PK!N17,2)","v":0},{"$f":"ROUND(PK!O17,2)","v":0},{"$f":"ROUND(PK!P17,2)","v":0},{"$f":"ROUND(PK!Q17,2)","v":0},{"$f":"ROUND(PK!R17,2)","v":0},{"$f":"ROUND(PK!S17,2)","v":0},{"$f":"ROUND(PK!T17,2)","v":0},{"$f":"ROUND(PK!U17,2)","v":0},{"$f":"ROUND(PK!V17,2)","v":0},{"$f":"ROUND(PK!W17,2)","v":0},{"$f":"ROUND(PK!X17,2)","v":0},{"$f":"ROUND(PK!Y17,2)","v":0},{"$f":"ROUND(PK!Z17,2)","v":0},{"$f":"ROUND(PK!AA17,2)","v":0}]
[null,null,null,"PK",6,{"$f":"PK!G18","v":9},{"$f":"IF(PK!H18<>\"\",PK!H18,\"\")","v":""},0,0,{"$f":"ROUND(PK!I18,2)","v":0},{"$f":"ROUND(PK!J18,2)","v":0},{"$f":"ROUND(PK!K18,2)","v":0},{"$f":"ROUND(PK!L18,2)","v":0},{"$f":"ROUND(PK!M18,2)","v":0},{"$f":"ROUND(PK!N18,2)","v":0},{"$f":"ROUND(PK!O18,2)","v":0},{"$f":"ROUND(PK!P18,2)","v":0},{"$f":"ROUND(PK!Q18,2)","v":0},{"$f":"ROUND(PK!R18,2)","v":0},{"$f":"ROUND(PK!S18,2)","v":0},{"$f":"ROUND(PK!T18,2)","v":0},{"$f":"ROUND(PK!U18,2)","v":0},{"$f":"ROUND(PK!V18,2)","v":0},{"$f":"ROUND(PK!W18,2)","v":0},{"$f":"ROUND(PK!X18,2)","v":0},{"$f":"ROUND(PK!Y18,2)","v":0},{"$f":"ROUND(PK!Z18,2)","v":0},{"$f":"ROUND(PK!AA18,2)","v":0}]
[null,null,null,"PK",6,{"$f":"PK!G19","v":10},{"$f":"IF(PK!H19<>\"\",PK!H19,\"\")","v":""},0,0,{"$f":"ROUND(PK!I19,2)","v":0},{"$f":"ROUND(PK!J19,2)","v":0},{"$f":"ROUND(PK!K19,2)","v":0},{"$f":"ROUND(PK!L19,2)","v":0},{"$f":"ROUND(PK!M19,2)","v":0},{"$f":"ROUND(PK!N19,2)","v":0},{"$f":"ROUND(PK!O19,2)","v":0},{"$f":"ROUND(PK!P19,2)","v":0},{"$f":"ROUND(PK!Q19,2)","v":0},{"$f":"ROUND(PK!R19,2)","v":0},{"$f":"ROUND(PK!S19,2)","v":0},{"$f":"ROUND(PK!T19,2)","v":0},{"$f":"ROUND(PK!U19,2)","v":0},{"$f":"ROUND(PK!V19,2)","v":0},{"$f":"ROUND(PK!W19,2)","v":0},{"$f":"ROUND(PK!X19,2)","v":0},{"$f":"ROUND(PK!Y19,2)","v":0},{"$f":"ROUND(PK!Z19,2)","v":0},{"$f":"ROUND(PK!AA19,2)","v":0}]
[null,null,null,"PK",6,{"$f":"PK!G20","v":11},{"$f":"IF(PK!H20<>\"\",PK!H20,\"\")","v":""},0,0,{"$f":"ROUND(PK!I20,2)","v":0},{"$f":"ROUND(PK!J20,2)","v":0},{"$f":"ROUND(PK!K20,2)","v":0},{"$f":"ROUND(PK!L20,2)","v":0},{"$f":"ROUND(PK!M20,2)","v":0},{"$f":"ROUND(PK!N20,2)","v":0},{"$f":"ROUND(PK!O20,2)","v":0},{"$f":"ROUND(PK!P20,2)","v":0},{"$f":"ROUND(PK!Q20,2)","v":0},{"$f":"ROUND(PK!R20,2)","v":0},{"$f":"ROUND(PK!S20,2)","v":0},{"$f":"ROUND(PK!T20,2)","v":0},{"$f":"ROUND(PK!U20,2)","v":0},{"$f":"ROUND(PK!V20,2)","v":0},{"$f":"ROUND(PK!W20,2)","v":0},{"$f":"ROUND(PK!X20,2)","v":0},{"$f":"ROUND(PK!Y20,2)","v":0},{"$f":"ROUND(PK!Z20,2)","v":0},{"$f":"ROUND(PK!AA20,2)","v":0}]
[null,null,null,"PK",6,{"$f":"PK!G21","v":12},{"$f":"IF(PK!H21<>\"\",PK!H21,\"\")","v":""},0,0,{"$f":"ROUND(PK!I21,2)","v":0},{"$f":"ROUND(PK!J21,2)","v":0},{"$f":"ROUND(PK!K21,2)","v":0},{"$f":"ROUND(PK!L21,2)","v":0},{"$f":"ROUND(PK!M21,2)","v":0},{"$f":"ROUND(PK!N21,2)","v":0},{"$f":"ROUND(PK!O21,2)","v":0},{"$f":"ROUND(PK!P21,2)","v":0},{"$f":"ROUND(PK!Q21,2)","v":0},{"$f":"ROUND(PK!R21,2)","v":0},{"$f":"ROUND(PK!S21,2)","v":0},{"$f":"ROUND(PK!T21,2)","v":0},{"$f":"ROUND(PK!U21,2)","v":0},{"$f":"ROUND(PK!V21,2)","v":0},{"$f":"ROUND(PK!W21,2)","v":0},{"$f":"ROUND(PK!X21,2)","v":0},{"$f":"ROUND(PK!Y21,2)","v":0},{"$f":"ROUND(PK!Z21,2)","v":0},{"$f":"ROUND(PK!AA21,2)","v":0}]
[null,null,null,"PK",6,{"$f":"PK!G22","v":13},{"$f":"IF(PK!H22<>\"\",PK!H22,\"\")","v":""},0,0,{"$f":"ROUND(PK!I22,2)","v":0},{"$f":"ROUND(PK!J22,2)","v":0},{"$f":"ROUND(PK!K22,2)","v":0},{"$f":"ROUND(PK!L22,2)","v":0},{"$f":"ROUND(PK!M22,2)","v":0},{"$f":"ROUND(PK!N22,2)","v":0},{"$f":"ROUND(PK!O22,2)","v":0},{"$f":"ROUND(PK!P22,2)","v":0},{"$f":"ROUND(PK!Q22,2)","v":0},{"$f":"ROUND(PK!R22,2)","v":0},{"$f":"ROUND(PK!S22,2)","v":0},{"$f":"ROUND(PK!T22,2)","v":0},{"$f":"ROUND(PK!U22,2)","v":0},{"$f":"ROUND(PK!V22,2)","v":0},{"$f":"ROUND(PK!W22,2)","v":0},{"$f":"ROUND(PK!X22,2)","v":0},{"$f":"ROUND(PK!Y22,2)","v":0},{"$f":"ROUND(PK!Z22,2)","v":0},{"$f":"ROUND(PK!AA22,2)","v":0}]
[null,null,null,"PK",6,{"$f":"PK!G23","v":14},{"$f":"IF(PK!H23<>\"\",PK!H23,\"\")","v":""},0,0,{"$f":"ROUND(PK!I23,2)","v":0},{"$f":"ROUND(PK!J23,2)","v":0},{"$f":"ROUND(PK!K23,2)","v":0},{"$f":"ROUND(PK!L23,2)","v":0},{"$f":"ROUND(PK!M23,2)","v":0},{"$f":"ROUND(PK!N23,2)","v":0},{"$f":"ROUND(PK!O23,2)","v":0},{"$f":"ROUND(PK!P23,2)","v":0},{"$f":"ROUND(PK!Q23,2)","v":0},{"$f":"ROUND(PK!R23,2)","v":0},{"$f":"ROUND(PK!S23,2)","v":0},{"$f":"ROUND(PK!T23,2)","v":0},{"$f":"ROUND(PK!U23,2)","v":0},{"$f":"ROUND(PK!V23,2)","v":0},{"$f":"ROUND(PK!W23,2)","v":0},{"$f":"ROUND(PK!X23,2)","v":0},{"$f":"ROUND(PK!Y23,2)","v":0},{"$f":"ROUND(PK!Z23,2)","v":0},{"$f":"ROUND(PK!AA23,2)","v":0}]
[null,null,null,"PK",6,{"$f":"PK!G24","v":15},{"$f":"IF(PK!H24<>\"\",PK!H24,\"\")","v":""},0,0,{"$f":"ROUND(PK!I24,2)","v":0},{"$f":"ROUND(PK!J24,2)","v":0},{"$f":"ROUND(PK!K24,2)","v":0},{"$f":"ROUND(PK!L24,2)","v":0},{"$f":"ROUND(PK!M24,2)","v":0},{"$f":"ROUND(PK!N24,2)","v":0},{"$f":"ROUND(PK!O24,2)","v":0},{"$f":"ROUND(PK!P24,2)","v":0},{"$f":"ROUND(PK!Q24,2)","v":0},{"$f":"ROUND(PK!R24,2)","v":0},{"$f":"ROUND(PK!S24,2)","v":0},{"$f":"ROUND(PK!T24,2)","v":0},{"$f":"ROUND(PK!U24,2)","v":0},{"$f":"ROUND(PK!V24,2)","v":0},{"$f":"ROUND(PK!W24,2)","v":0},{"$f":"ROUND(PK!X24,2)","v":0},{"$f":"ROUND(PK!Y24,2)","v":0},{"$f":"ROUND(PK!Z24,2)","v":0},{"$f":"ROUND(PK!AA24,2)","v":0}]
[null,null,null,"PK",6,{"$f":"PK!G25","v":16},{"$f":"IF(PK!H25<>\"\",PK!H25,\"\")","v":""},0,0,{"$f":"ROUND(PK!I25,2)","v":0},{"$f":"ROUND(PK!J25,2)","v":0},{"$f":"ROUND(PK!K25,2)","v":0},{"$f":"ROUND(PK!L25,2)","v":0},{"$f":"ROUND(PK!M25,2)","v":0},{"$f":"ROUND(PK!N25,2)","v":0},{"$f":"ROUND(PK!O25,2)","v":0},{"$f":"ROUND(PK!P25,2)","v":0},{"$f":"ROUND(PK!Q25,2)","v":0},{"$f":"ROUND(PK!R25,2)","v":0},{"$f":"ROUND(PK!S25,2)","v":0},{"$f":"ROUND(PK!T25,2)","v":0},{"$f":"ROUND(PK!U25,2)","v":0},{"$f":"ROUND(PK!V25,2)","v":0},{"$f":"ROUND(PK!W25,2)","v":0},{"$f":"ROUND(PK!X25,2)","v":0},{"$f":"ROUND(PK!Y25,2)","v":0},{"$f":"ROUND(PK!Z25,2)","v":0},{"$f":"ROUND(PK!AA25,2)","v":0}]
[null,null,null,"PK",6,{"$f":"PK!G26","v":17},{"$f":"IF(PK!H26<>\"\",PK!H26,\"\")","v":""},0,0,{"$f":"ROUND(PK!I26,2)","v":0},{"$f":"ROUND(PK!J26,2)","v":0},{"$f":"ROUND(PK!K26,2)","v":0},{"$f":"ROUND(PK!L26,2)","v":0},{"$f":"ROUND(PK!M26,2)","v":0},{"$f":"ROUND(PK!N26,2)","v":0},{"$f":"ROUND(PK!O26,2)","v":0},{"$f":"ROUND(PK!P26,2)","v":0},{"$f":"ROUND(PK!Q26,2)","v":0},{"$f":"ROUND(PK!R26,2)","v":0},{"$f":"ROUND(PK!S26,2)","v":0},{"$f":"ROUND(PK!T26,2)","v":0},{"$f":"ROUND(PK!U26,2)","v":0},{"$f":"ROUND(PK!V26,2)","v":0},{"$f":"ROUND(PK!W26,2)","v":0},{"$f":"ROUND(PK!X26,2)","v":0},{"$f":"ROUND(PK!Y26,2)","v":0},{"$f":"ROUND(PK!Z26,2)","v":0},{"$f":"ROUND(PK!AA26,2)","v":0}]
[null,null,null,"PK",6,{"$f":"PK!G27","v":18},{"$f":"IF(PK!H27<>\"\",PK!H27,\"\")","v":""},0,0,{"$f":"ROUND(PK!I27,2)","v":0},{"$f":"ROUND(PK!J27,2)","v":0},{"$f":"ROUND(PK!K27,2)","v":0},{"$f":"ROUND(PK!L27,2)","v":0},{"$f":"ROUND(PK!M27,2)","v":0},{"$f":"ROUND(PK!N27,2)","v":0},{"$f":"ROUND(PK!O27,2)","v":0},{"$f":"ROUND(PK!P27,2)","v":0},{"$f":"ROUND(PK!Q27,2)","v":0},{"$f":"ROUND(PK!R27,2)","v":0},{"$f":"ROUND(PK!S27,2)","v":0},{"$f":"ROUND(PK!T27,2)","v":0},{"$f":"ROUND(PK!U27,2)","v":0},{"$f":"ROUND(PK!V27,2)","v":0},{"$f":"ROUND(PK!W27,2)","v":0},{"$f":"ROUND(PK!X27,2)","v":0},{"$f":"ROUND(PK!Y27,2)","v":0},{"$f":"ROUND(PK!Z27,2)","v":0},{"$f":"ROUND(PK!AA27,2)","v":0}]
[null,null,null,"PK",6,{"$f":"PK!G28","v":19},{"$f":"IF(PK!H28<>\"\",PK!H28,\"\")","v":""},0,0,{"$f":"ROUND(PK!I28,2)","v":0},{"$f":"ROUND(PK!J28,2)","v":0},{"$f":"ROUND(PK!K28,2)","v":0},{"$f":"ROUND(PK!L28,2)","v":0},{"$f":"ROUND(PK!M28,2)","v":0},{"$f":"ROUND(PK!N28,2)","v":0},{"$f":"ROUND(PK!O28,2)","v":0},{"$f":"ROUND(PK!P28,2)","v":0},{"$f":"ROUND(PK!Q28,2)","v":0},{"$f":"ROUND(PK!R28,2)","v":0},{"$f":"ROUND(PK!S28,2)","v":0},{"$f":"ROUND(PK!T28,2)","v":0},{"$f":"ROUND(PK!U28,2)","v":0},{"$f":"ROUND(PK!V28,2)","v":0},{"$f":"ROUND(PK!W28,2)","v":0},{"$f":"ROUND(PK!X28,2)","v":0},{"$f":"ROUND(PK!Y28,2)","v":0},{"$f":"ROUND(PK!Z28,2)","v":0},{"$f":"ROUND(PK!AA28,2)","v":0}]
[null,null,null,"PK",6,{"$f":"PK!G29","v":20},{"$f":"IF(PK!H29<>\"\",PK!H29,\"\")","v":""},0,0,{"$f":"ROUND(PK!I29,2)","v":0},{"$f":"ROUND(PK!J29,2)","v":0},{"$f":"ROUND(PK!K29,2)","v":0},{"$f":"ROUND(PK!L29,2)","v":0},{"$f":"ROUND(PK!M29,2)","v":0},{"$f":"ROUND(PK!N29,2)","v":0},{"$f":"ROUND(PK!O29,2)","v":0},{"$f":"ROUND(PK!P29,2)","v":0},{"$f":"ROUND(PK!Q29,2)","v":0},{"$f":"ROUND(PK!R29,2)","v":0},{"$f":"ROUND(PK!S29,2)","v":0},{"$f":"ROUND(PK!T29,2)","v":0},{"$f":"ROUND(PK!U29,2)","v":0},{"$f":"ROUND(PK!V29,2)","v":0},{"$f":"ROUND(PK!W29,2)","v":0},{"$f":"ROUND(PK!X29,2)","v":0},{"$f":"ROUND(PK!Y29,2)","v":0},{"$f":"ROUND(PK!Z29,2)","v":0},{"$f":"ROUND(PK!AA29,2)","v":0}]
[null,null,null,"PK",6,{"$f":"PK!G30","v":21},{"$f":"IF(PK!H30<>\"\",PK!H30,\"\")","v":""},0,0,{"$f":"ROUND(PK!I30,2)","v":0},{"$f":"ROUND(PK!J30,2)","v":0},{"$f":"ROUND(PK!K30,2)","v":0},{"$f":"ROUND(PK!L30,2)","v":0},{"$f":"ROUND(PK!M30,2)","v":0},{"$f":"ROUND(PK!N30,2)","v":0},{"$f":"ROUND(PK!O30,2)","v":0},{"$f":"ROUND(PK!P30,2)","v":0},{"$f":"ROUND(PK!Q30,2)","v":0},{"$f":"ROUND(PK!R30,2)","v":0},{"$f":"ROUND(PK!S30,2)","v":0},{"$f":"ROUND(PK!T30,2)","v":0},{"$f":"ROUND(PK!U30,2)","v":0},{"$f":"ROUND(PK!V30,2)","v":0},{"$f":"ROUND(PK!W30,2)","v":0},{"$f":"ROUND(PK!X30,2)","v":0},{"$f":"ROUND(PK!Y30,2)","v":0},{"$f":"ROUND(PK!Z30,2)","v":0},{"$f":"ROUND(PK!AA30,2)","v":0}]
[null,null,null,"PK",6,{"$f":"PK!G31","v":22},{"$f":"IF(PK!H31<>\"\",PK!H31,\"\")","v":""},0,0,{"$f":"ROUND(PK!I31,2)","v":0},{"$f":"ROUND(PK!J31,2)","v":0},{"$f":"ROUND(PK!K31,2)","v":0},{"$f":"ROUND(PK!L31,2)","v":0},{"$f":"ROUND(PK!M31,2)","v":0},{"$f":"ROUND(PK!N31,2)","v":0},{"$f":"ROUND(PK!O31,2)","v":0},{"$f":"ROUND(PK!P31,2)","v":0},{"$f":"ROUND(PK!Q31,2)","v":0},{"$f":"ROUND(PK!R31,2)","v":0},{"$f":"ROUND(PK!S31,2)","v":0},{"$f":"ROUND(PK!T31,2)","v":0},{"$f":"ROUND(PK!U31,2)","v":0},{"$f":"ROUND(PK!V31,2)","v":0},{"$f":"ROUND(PK!W31,2)","v":0},{"$f":"ROUND(PK!X31,2)","v":0},{"$f":"ROUND(PK!Y31,2)","v":0},{"$f":"ROUND(PK!Z31,2)","v":0},{"$f":"ROUND(PK!AA31,2)","v":0}]
[null,null,null,"PK",6,{"$f":"PK!G32","v":23},{"$f":"IF(PK!H32<>\"\",PK!H32,\"\")","v":""},0,0,{"$f":"ROUND(PK!I32,2)","v":0},{"$f":"ROUND(PK!J32,2)","v":0},{"$f":"ROUND(PK!K32,2)","v":0},{"$f":"ROUND(PK!L32,2)","v":0},{"$f":"ROUND(PK!M32,2)","v":0},{"$f":"ROUND(PK!N32,2)","v":0},{"$f":"ROUND(PK!O32,2)","v":0},{"$f":"ROUND(PK!P32,2)","v":0},{"$f":"ROUND(PK!Q32,2)","v":0},{"$f":"ROUND(PK!R32,2)","v":0},{"$f":"ROUND(PK!S32,2)","v":0},{"$f":"ROUND(PK!T32,2)","v":0},{"$f":"ROUND(PK!U32,2)","v":0},{"$f":"ROUND(PK!V32,2)","v":0},{"$f":"ROUND(PK!W32,2)","v":0},{"$f":"ROUND(PK!X32,2)","v":0},{"$f":"ROUND(PK!Y32,2)","v":0},{"$f":"ROUND(PK!Z32,2)","v":0},{"$f":"ROUND(PK!AA32,2)","v":0}]
[null,null,null,"PK",6,{"$f":"PK!G33","v":24},{"$f":"IF(PK!H33<>\"\",PK!H33,\"\")","v":""},0,0,{"$f":"ROUND(PK!I33,2)","v":0},{"$f":"ROUND(PK!J33,2)","v":0},{"$f":"ROUND(PK!K33,2)","v":0},{"$f":"ROUND(PK!L33,2)","v":0},{"$f":"ROUND(PK!M33,2)","v":0},{"$f":"ROUND(PK!N33,2)","v":0},{"$f":"ROUND(PK!O33,2)","v":0},{"$f":"ROUND(PK!P33,2)","v":0},{"$f":"ROUND(PK!Q33,2)","v":0},{"$f":"ROUND(PK!R33,2)","v":0},{"$f":"ROUND(PK!S33,2)","v":0},{"$f":"ROUND(PK!T33,2)","v":0},{"$f":"ROUND(PK!U33,2)","v":0},{"$f":"ROUND(PK!V33,2)","v":0},{"$f":"ROUND(PK!W33,2)","v":0},{"$f":"ROUND(PK!X33,2)","v":0},{"$f":"ROUND(PK!Y33,2)","v":0},{"$f":"ROUND(PK!Z33,2)","v":0},{"$f":"ROUND(PK!AA33,2)","v":0}]
[null,null,null,"PK",6,{"$f":"PK!G35","v":25},{"$f":"IF(PK!H35<>\"\",PK!H35,\"\")","v":""},0,0,{"$f":"ROUND(PK!I35,2)","v":0},{"$f":"ROUND(PK!J35,2)","v":0},{"$f":"ROUND(PK!K35,2)","v":0},{"$f":"ROUND(PK!L35,2)","v":0},{"$f":"ROUND(PK!M35,2)","v":0},{"$f":"ROUND(PK!N35,2)","v":0},{"$f":"ROUND(PK!O35,2)","v":0},{"$f":"ROUND(PK!P35,2)","v":0},{"$f":"ROUND(PK!Q35,2)","v":0},{"$f":"ROUND(PK!R35,2)","v":0},{"$f":"ROUND(PK!S35,2)","v":0},{"$f":"ROUND(PK!T35,2)","v":0},{"$f":"ROUND(PK!U35,2)","v":0},{"$f":"ROUND(PK!V35,2)","v":0},{"$f":"ROUND(PK!W35,2)","v":0},{"$f":"ROUND(PK!X35,2)","v":0},{"$f":"ROUND(PK!Y35,2)","v":0},{"$f":"ROUND(PK!Z35,2)","v":0},{"$f":"ROUND(PK!AA35,2)","v":0}]
[null,null,null,"PK",6,{"$f":"PK!G36","v":26},{"$f":"IF(PK!H36<>\"\",PK!H36,\"\")","v":""},0,0,{"$f":"ROUND(PK!I36,2)","v":0},{"$f":"ROUND(PK!J36,2)","v":0},{"$f":"ROUND(PK!K36,2)","v":0},{"$f":"ROUND(PK!L36,2)","v":0},{"$f":"ROUND(PK!M36,2)","v":0},{"$f":"ROUND(PK!N36,2)","v":0},{"$f":"ROUND(PK!O36,2)","v":0},{"$f":"ROUND(PK!P36,2)","v":0},{"$f":"ROUND(PK!Q36,2)","v":0},{"$f":"ROUND(PK!R36,2)","v":0},{"$f":"ROUND(PK!S36,2)","v":0},{"$f":"ROUND(PK!T36,2)","v":0},{"$f":"ROUND(PK!U36,2)","v":0},{"$f":"ROUND(PK!V36,2)","v":0},{"$f":"ROUND(PK!W36,2)","v":0},{"$f":"ROUND(PK!X36,2)","v":0},{"$f":"ROUND(PK!Y36,2)","v":0},{"$f":"ROUND(PK!Z36,2)","v":0},{"$f":"ROUND(PK!AA36,2)","v":0}]
[null,null,null,"PK",6,{"$f":"PK!G37","v":27},{"$f":"IF(PK!H37<>\"\",PK!H37,\"\")","v":""},0,0,{"$f":"ROUND(PK!I37,2)","v":0},{"$f":"ROUND(PK!J37,2)","v":0},{"$f":"ROUND(PK!K37,2)","v":0},{"$f":"ROUND(PK!L37,2)","v":0},{"$f":"ROUND(PK!M37,2)","v":0},{"$f":"ROUND(PK!N37,2)","v":0},{"$f":"ROUND(PK!O37,2)","v":0},{"$f":"ROUND(PK!P37,2)","v":0},{"$f":"ROUND(PK!Q37,2)","v":0},{"$f":"ROUND(PK!R37,2)","v":0},{"$f":"ROUND(PK!S37,2)","v":0},{"$f":"ROUND(PK!T37,2)","v":0},{"$f":"ROUND(PK!U37,2)","v":0},{"$f":"ROUND(PK!V37,2)","v":0},{"$f":"ROUND(PK!W37,2)","v":0},{"$f":"ROUND(PK!X37,2)","v":0},{"$f":"ROUND(PK!Y37,2)","v":0},{"$f":"ROUND(PK!Z37,2)","v":0},{"$f":"ROUND(PK!AA37,2)","v":0}]
[null,null,null,"PK",6,{"$f":"PK!G39","v":28},{"$f":"IF(PK!H39<>\"\",PK!H39,\"\")","v":""},0,0,{"$f":"ROUND(PK!I39,2)","v":0},{"$f":"ROUND(PK!J39,2)","v":0},{"$f":"ROUND(PK!K39,2)","v":0},{"$f":"ROUND(PK!L39,2)","v":0},{"$f":"ROUND(PK!M39,2)","v":0},{"$f":"ROUND(PK!N39,2)","v":0},{"$f":"ROUND(PK!O39,2)","v":0},{"$f":"ROUND(PK!P39,2)","v":0},{"$f":"ROUND(PK!Q39,2)","v":0},{"$f":"ROUND(PK!R39,2)","v":0},{"$f":"ROUND(PK!S39,2)","v":0},{"$f":"ROUND(PK!T39,2)","v":0},{"$f":"ROUND(PK!U39,2)","v":0},{"$f":"ROUND(PK!V39,2)","v":0},{"$f":"ROUND(PK!W39,2)","v":0},{"$f":"ROUND(PK!X39,2)","v":0},{"$f":"ROUND(PK!Y39,2)","v":0},{"$f":"ROUND(PK!Z39,2)","v":0},{"$f":"ROUND(PK!AA39,2)","v":0}]
[null,null,null,"PK",6,{"$f":"PK!G40","v":29},{"$f":"IF(PK!H40<>\"\",PK!H40,\"\")","v":""},0,0,{"$f":"ROUND(PK!I40,2)","v":0},{"$f":"ROUND(PK!J40,2)","v":0},{"$f":"ROUND(PK!K40,2)","v":0},{"$f":"ROUND(PK!L40,2)","v":0},{"$f":"ROUND(PK!M40,2)","v":0},{"$f":"ROUND(PK!N40,2)","v":0},{"$f":"ROUND(PK!O40,2)","v":0},{"$f":"ROUND(PK!P40,2)","v":0},{"$f":"ROUND(PK!Q40,2)","v":0},{"$f":"ROUND(PK!R40,2)","v":0},{"$f":"ROUND(PK!S40,2)","v":0},{"$f":"ROUND(PK!T40,2)","v":0},{"$f":"ROUND(PK!U40,2)","v":0},{"$f":"ROUND(PK!V40,2)","v":0},{"$f":"ROUND(PK!W40,2)","v":0},{"$f":"ROUND(PK!X40,2)","v":0},{"$f":"ROUND(PK!Y40,2)","v":0},{"$f":"ROUND(PK!Z40,2)","v":0},{"$f":"ROUND(PK!AA40,2)","v":0}]
[null,null,null,"PK",6,{"$f":"PK!G41","v":30},{"$f":"IF(PK!H41<>\"\",PK!H41,\"\")","v":""},0,0,{"$f":"ROUND(PK!I41,2)","v":0},{"$f":"ROUND(PK!J41,2)","v":0},{"$f":"ROUND(PK!K41,2)","v":0},{"$f":"ROUND(PK!L41,2)","v":0},{"$f":"ROUND(PK!M41,2)","v":0},{"$f":"ROUND(PK!N41,2)","v":0},{"$f":"ROUND(PK!O41,2)","v":0},{"$f":"ROUND(PK!P41,2)","v":0},{"$f":"ROUND(PK!Q41,2)","v":0},{"$f":"ROUND(PK!R41,2)","v":0},{"$f":"ROUND(PK!S41,2)","v":0},{"$f":"ROUND(PK!T41,2)","v":0},{"$f":"ROUND(PK!U41,2)","v":0},{"$f":"ROUND(PK!V41,2)","v":0},{"$f":"ROUND(PK!W41,2)","v":0},{"$f":"ROUND(PK!X41,2)","v":0},{"$f":"ROUND(PK!Y41,2)","v":0},{"$f":"ROUND(PK!Z41,2)","v":0},{"$f":"ROUND(PK!AA41,2)","v":0}]
[null,null,null,"PK",6,{"$f":"PK!G42","v":31},{"$f":"IF(PK!H42<>\"\",PK!H42,\"\")","v":""},0,0,{"$f":"ROUND(PK!I42,2)","v":0},{"$f":"ROUND(PK!J42,2)","v":0},{"$f":"ROUND(PK!K42,2)","v":0},{"$f":"ROUND(PK!L42,2)","v":0},{"$f":"ROUND(PK!M42,2)","v":0},{"$f":"ROUND(PK!N42,2)","v":0},{"$f":"ROUND(PK!O42,2)","v":0},{"$f":"ROUND(PK!P42,2)","v":0},{"$f":"ROUND(PK!Q42,2)","v":0},{"$f":"ROUND(PK!R42,2)","v":0},{"$f":"ROUND(PK!S42,2)","v":0},{"$f":"ROUND(PK!T42,2)","v":0},{"$f":"ROUND(PK!U42,2)","v":0},{"$f":"ROUND(PK!V42,2)","v":0},{"$f":"ROUND(PK!W42,2)","v":0},{"$f":"ROUND(PK!X42,2)","v":0},{"$f":"ROUND(PK!Y42,2)","v":0},{"$f":"ROUND(PK!Z42,2)","v":0},{"$f":"ROUND(PK!AA42,2)","v":0}]
[null,null,null,"PK",6,{"$f":"PK!G43","v":32},{"$f":"IF(PK!H43<>\"\",PK!H43,\"\")","v":""},0,0,{"$f":"ROUND(PK!I43,2)","v":0},{"$f":"ROUND(PK!J43,2)","v":0},{"$f":"ROUND(PK!K43,2)","v":0},{"$f":"ROUND(PK!L43,2)","v":0},{"$f":"ROUND(PK!M43,2)","v":0},{"$f":"ROUND(PK!N43,2)","v":0},{"$f":"ROUND(PK!O43,2)","v":0},{"$f":"ROUND(PK!P43,2)","v":0},{"$f":"ROUND(PK!Q43,2)","v":0},{"$f":"ROUND(PK!R43,2)","v":0},{"$f":"ROUND(PK!S43,2)","v":0},{"$f":"ROUND(PK!T43,2)","v":0},{"$f":"ROUND(PK!U43,2)","v":0},{"$f":"ROUND(PK!V43,2)","v":0},{"$f":"ROUND(PK!W43,2)","v":0},{"$f":"ROUND(PK!X43,2)","v":0},{"$f":"ROUND(PK!Y43,2)","v":0},{"$f":"ROUND(PK!Z43,2)","v":0},{"$f":"ROUND(PK!AA43,2)","v":0}]
[null,null,null,"PK",6,{"$f":"PK!G44","v":33},{"$f":"IF(PK!H44<>\"\",PK!H44,\"\")","v":""},0,0,{"$f":"ROUND(PK!I44,2)","v":0},{"$f":"ROUND(PK!J44,2)","v":0},{"$f":"ROUND(PK!K44,2)","v":0},{"$f":"ROUND(PK!L44,2)","v":0},{"$f":"ROUND(PK!M44,2)","v":0},{"$f":"ROUND(PK!N44,2)","v":0},{"$f":"ROUND(PK!O44,2)","v":0},{"$f":"ROUND(PK!P44,2)","v":0},{"$f":"ROUND(PK!Q44,2)","v":0},{"$f":"ROUND(PK!R44,2)","v":0},{"$f":"ROUND(PK!S44,2)","v":0},{"$f":"ROUND(PK!T44,2)","v":0},{"$f":"ROUND(PK!U44,2)","v":0},{"$f":"ROUND(PK!V44,2)","v":0},{"$f":"ROUND(PK!W44,2)","v":0},{"$f":"ROUND(PK!X44,2)","v":0},{"$f":"ROUND(PK!Y44,2)","v":0},{"$f":"ROUND(PK!Z44,2)","v":0},{"$f":"ROUND(PK!AA44,2)","v":0}]
[null,null,null,"PK",6,{"$f":"PK!G45","v":34},{"$f":"IF(PK!H45<>\"\",PK!H45,\"\")","v":""},0,0,{"$f":"ROUND(PK!I45,2)","v":0},{"$f":"ROUND(PK!J45,2)","v":0},{"$f":"ROUND(PK!K45,2)","v":0},{"$f":"ROUND(PK!L45,2)","v":0},{"$f":"ROUND(PK!M45,2)","v":0},{"$f":"ROUND(PK!N45,2)","v":0},{"$f":"ROUND(PK!O45,2)","v":0},{"$f":"ROUND(PK!P45,2)","v":0},{"$f":"ROUND(PK!Q45,2)","v":0},{"$f":"ROUND(PK!R45,2)","v":0},{"$f":"ROUND(PK!S45,2)","v":0},{"$f":"ROUND(PK!T45,2)","v":0},{"$f":"ROUND(PK!U45,2)","v":0},{"$f":"ROUND(PK!V45,2)","v":0},{"$f":"ROUND(PK!W45,2)","v":0},{"$f":"ROUND(PK!X45,2)","v":0},{"$f":"ROUND(PK!Y45,2)","v":0},{"$f":"ROUND(PK!Z45,2)","v":0},{"$f":"ROUND(PK!AA45,2)","v":0}]
[null,null,null,"PK",6,{"$f":"PK!G46","v":35},{"$f":"IF(PK!H46<>\"\",PK!H46,\"\")","v":""},0,0,{"$f":"ROUND(PK!I46,2)","v":0},{"$f":"ROUND(PK!J46,2)","v":0},{"$f":"ROUND(PK!K46,2)","v":0},{"$f":"ROUND(PK!L46,2)","v":0},{"$f":"ROUND(PK!M46,2)","v":0},{"$f":"ROUND(PK!N46,2)","v":0},{"$f":"ROUND(PK!O46,2)","v":0},{"$f":"ROUND(PK!P46,2)","v":0},{"$f":"ROUND(PK!Q46,2)","v":0},{"$f":"ROUND(PK!R46,2)","v":0},{"$f":"ROUND(PK!S46,2)","v":0},{"$f":"ROUND(PK!T46,2)","v":0},{"$f":"ROUND(PK!U46,2)","v":0},{"$f":"ROUND(PK!V46,2)","v":0},{"$f":"ROUND(PK!W46,2)","v":0},{"$f":"ROUND(PK!X46,2)","v":0},{"$f":"ROUND(PK!Y46,2)","v":0},{"$f":"ROUND(PK!Z46,2)","v":0},{"$f":"ROUND(PK!AA46,2)","v":0}]
[null,null,null,"PK",6,{"$f":"PK!G47","v":36},{"$f":"IF(PK!H47<>\"\",PK!H47,\"\")","v":""},0,0,{"$f":"ROUND(PK!I47,2)","v":0},{"$f":"ROUND(PK!J47,2)","v":0},{"$f":"ROUND(PK!K47,2)","v":0},{"$f":"ROUND(PK!L47,2)","v":0},{"$f":"ROUND(PK!M47,2)","v":0},{"$f":"ROUND(PK!N47,2)","v":0},{"$f":"ROUND(PK!O47,2)","v":0},{"$f":"ROUND(PK!P47,2)","v":0},{"$f":"ROUND(PK!Q47,2)","v":0},{"$f":"ROUND(PK!R47,2)","v":0},{"$f":"ROUND(PK!S47,2)","v":0},{"$f":"ROUND(PK!T47,2)","v":0},{"$f":"ROUND(PK!U47,2)","v":0},{"$f":"ROUND(PK!V47,2)","v":0},{"$f":"ROUND(PK!W47,2)","v":0},{"$f":"ROUND(PK!X47,2)","v":0},{"$f":"ROUND(PK!Y47,2)","v":0},{"$f":"ROUND(PK!Z47,2)","v":0},{"$f":"ROUND(PK!AA47,2)","v":0}]
[null,null,null,"PK",6,{"$f":"PK!G48","v":37},{"$f":"IF(PK!H48<>\"\",PK!H48,\"\")","v":""},0,0,{"$f":"ROUND(PK!I48,2)","v":0},{"$f":"ROUND(PK!J48,2)","v":0},{"$f":"ROUND(PK!K48,2)","v":0},{"$f":"ROUND(PK!L48,2)","v":0},{"$f":"ROUND(PK!M48,2)","v":0},{"$f":"ROUND(PK!N48,2)","v":0},{"$f":"ROUND(PK!O48,2)","v":0},{"$f":"ROUND(PK!P48,2)","v":0},{"$f":"ROUND(PK!Q48,2)","v":0},{"$f":"ROUND(PK!R48,2)","v":0},{"$f":"ROUND(PK!S48,2)","v":0},{"$f":"ROUND(PK!T48,2)","v":0},{"$f":"ROUND(PK!U48,2)","v":0},{"$f":"ROUND(PK!V48,2)","v":0},{"$f":"ROUND(PK!W48,2)","v":0},{"$f":"ROUND(PK!X48,2)","v":0},{"$f":"ROUND(PK!Y48,2)","v":0},{"$f":"ROUND(PK!Z48,2)","v":0},{"$f":"ROUND(PK!AA48,2)","v":0}]
[null,null,null,"PK",6,{"$f":"PK!G49","v":38},{"$f":"IF(PK!H49<>\"\",PK!H49,\"\")","v":""},0,0,{"$f":"ROUND(PK!I49,2)","v":0},{"$f":"ROUND(PK!J49,2)","v":0},{"$f":"ROUND(PK!K49,2)","v":0},{"$f":"ROUND(PK!L49,2)","v":0},{"$f":"ROUND(PK!M49,2)","v":0},{"$f":"ROUND(PK!N49,2)","v":0},{"$f":"ROUND(PK!O49,2)","v":0},{"$f":"ROUND(PK!P49,2)","v":0},{"$f":"ROUND(PK!Q49,2)","v":0},{"$f":"ROUND(PK!R49,2)","v":0},{"$f":"ROUND(PK!S49,2)","v":0},{"$f":"ROUND(PK!T49,2)","v":0},{"$f":"ROUND(PK!U49,2)","v":0},{"$f":"ROUND(PK!V49,2)","v":0},{"$f":"ROUND(PK!W49,2)","v":0},{"$f":"ROUND(PK!X49,2)","v":0},{"$f":"ROUND(PK!Y49,2)","v":0},{"$f":"ROUND(PK!Z49,2)","v":0},{"$f":"ROUND(PK!AA49,2)","v":0}]
[null,null,null,"PK",6,{"$f":"PK!G50","v":39},{"$f":"IF(PK!H50<>\"\",PK!H50,\"\")","v":""},0,0,{"$f":"ROUND(PK!I50,2)","v":0},{"$f":"ROUND(PK!J50,2)","v":0},{"$f":"ROUND(PK!K50,2)","v":0},{"$f":"ROUND(PK!L50,2)","v":0},{"$f":"ROUND(PK!M50,2)","v":0},{"$f":"ROUND(PK!N50,2)","v":0},{"$f":"ROUND(PK!O50,2)","v":0},{"$f":"ROUND(PK!P50,2)","v":0},{"$f":"ROUND(PK!Q50,2)","v":0},{"$f":"ROUND(PK!R50,2)","v":0},{"$f":"ROUND(PK!S50,2)","v":0},{"$f":"ROUND(PK!T50,2)","v":0},{"$f":"ROUND(PK!U50,2)","v":0},{"$f":"ROUND(PK!V50,2)","v":0},{"$f":"ROUND(PK!W50,2)","v":0},{"$f":"ROUND(PK!X50,2)","v":0},{"$f":"ROUND(PK!Y50,2)","v":0},{"$f":"ROUND(PK!Z50,2)","v":0},{"$f":"ROUND(PK!AA50,2)","v":0}]
[null,null,null,"PK",6,{"$f":"PK!G51","v":40},{"$f":"IF(PK!H51<>\"\",PK!H51,\"\")","v":""},0,0,{"$f":"ROUND(PK!I51,2)","v":0},{"$f":"ROUND(PK!J51,2)","v":0},{"$f":"ROUND(PK!K51,2)","v":0},{"$f":"ROUND(PK!L51,2)","v":0},{"$f":"ROUND(PK!M51,2)","v":0},{"$f":"ROUND(PK!N51,2)","v":0},{"$f":"ROUND(PK!O51,2)","v":0},{"$f":"ROUND(PK!P51,2)","v":0},{"$f":"ROUND(PK!Q51,2)","v":0},{"$f":"ROUND(PK!R51,2)","v":0},{"$f":"ROUND(PK!S51,2)","v":0},{"$f":"ROUND(PK!T51,2)","v":0},{"$f":"ROUND(PK!U51,2)","v":0},{"$f":"ROUND(PK!V51,2)","v":0},{"$f":"ROUND(PK!W51,2)","v":0},{"$f":"ROUND(PK!X51,2)","v":0},{"$f":"ROUND(PK!Y51,2)","v":0},{"$f":"ROUND(PK!Z51,2)","v":0},{"$f":"ROUND(PK!AA51,2)","v":0}]
[null,null,null,"PK",6,{"$f":"PK!G52","v":41},{"$f":"IF(PK!H52<>\"\",PK!H52,\"\")","v":""},0,0,{"$f":"ROUND(PK!I52,2)","v":0},{"$f":"ROUND(PK!J52,2)","v":0},{"$f":"ROUND(PK!K52,2)","v":0},{"$f":"ROUND(PK!L52,2)","v":0},{"$f":"ROUND(PK!M52,2)","v":0},{"$f":"ROUND(PK!N52,2)","v":0},{"$f":"ROUND(PK!O52,2)","v":0},{"$f":"ROUND(PK!P52,2)","v":0},{"$f":"ROUND(PK!Q52,2)","v":0},{"$f":"ROUND(PK!R52,2)","v":0},{"$f":"ROUND(PK!S52,2)","v":0},{"$f":"ROUND(PK!T52,2)","v":0},{"$f":"ROUND(PK!U52,2)","v":0},{"$f":"ROUND(PK!V52,2)","v":0},{"$f":"ROUND(PK!W52,2)","v":0},{"$f":"ROUND(PK!X52,2)","v":0},{"$f":"ROUND(PK!Y52,2)","v":0},{"$f":"ROUND(PK!Z52,2)","v":0},{"$f":"ROUND(PK!AA52,2)","v":0}]
[null,null,null,"PK",6,{"$f":"PK!G53","v":42},{"$f":"IF(PK!H53<>\"\",PK!H53,\"\")","v":""},0,0,{"$f":"ROUND(PK!I53,2)","v":0},{"$f":"ROUND(PK!J53,2)","v":0},{"$f":"ROUND(PK!K53,2)","v":0},{"$f":"ROUND(PK!L53,2)","v":0},{"$f":"ROUND(PK!M53,2)","v":0},{"$f":"ROUND(PK!N53,2)","v":0},{"$f":"ROUND(PK!O53,2)","v":0},{"$f":"ROUND(PK!P53,2)","v":0},{"$f":"ROUND(PK!Q53,2)","v":0},{"$f":"ROUND(PK!R53,2)","v":0},{"$f":"ROUND(PK!S53,2)","v":0},{"$f":"ROUND(PK!T53,2)","v":0},{"$f":"ROUND(PK!U53,2)","v":0},{"$f":"ROUND(PK!V53,2)","v":0},{"$f":"ROUND(PK!W53,2)","v":0},{"$f":"ROUND(PK!X53,2)","v":0},{"$f":"ROUND(PK!Y53,2)","v":0},{"$f":"ROUND(PK!Z53,2)","v":0},{"$f":"ROUND(PK!AA53,2)","v":0}]
[null,null,null,"PK",6,{"$f":"PK!G54","v":43},{"$f":"IF(PK!H54<>\"\",PK!H54,\"\")","v":""},0,0,{"$f":"ROUND(PK!I54,2)","v":0},{"$f":"ROUND(PK!J54,2)","v":0},{"$f":"ROUND(PK!K54,2)","v":0},{"$f":"ROUND(PK!L54,2)","v":0},{"$f":"ROUND(PK!M54,2)","v":0},{"$f":"ROUND(PK!N54,2)","v":0},{"$f":"ROUND(PK!O54,2)","v":0},{"$f":"ROUND(PK!P54,2)","v":0},{"$f":"ROUND(PK!Q54,2)","v":0},{"$f":"ROUND(PK!R54,2)","v":0},{"$f":"ROUND(PK!S54,2)","v":0},{"$f":"ROUND(PK!T54,2)","v":0},{"$f":"ROUND(PK!U54,2)","v":0},{"$f":"ROUND(PK!V54,2)","v":0},{"$f":"ROUND(PK!W54,2)","v":0},{"$f":"ROUND(PK!X54,2)","v":0},{"$f":"ROUND(PK!Y54,2)","v":0},{"$f":"ROUND(PK!Z54,2)","v":0},{"$f":"ROUND(PK!AA54,2)","v":0}]
[null,null,null,"PK",6,{"$f":"PK!G55","v":44},{"$f":"IF(PK!H55<>\"\",PK!H55,\"\")","v":""},0,0,{"$f":"ROUND(PK!I55,2)","v":0},{"$f":"ROUND(PK!J55,2)","v":0},{"$f":"ROUND(PK!K55,2)","v":0},{"$f":"ROUND(PK!L55,2)","v":0},{"$f":"ROUND(PK!M55,2)","v":0},{"$f":"ROUND(PK!N55,2)","v":0},{"$f":"ROUND(PK!O55,2)","v":0},{"$f":"ROUND(PK!P55,2)","v":0},{"$f":"ROUND(PK!Q55,2)","v":0},{"$f":"ROUND(PK!R55,2)","v":0},{"$f":"ROUND(PK!S55,2)","v":0},{"$f":"ROUND(PK!T55,2)","v":0},{"$f":"ROUND(PK!U55,2)","v":0},{"$f":"ROUND(PK!V55,2)","v":0},{"$f":"ROUND(PK!W55,2)","v":0},{"$f":"ROUND(PK!X55,2)","v":0},{"$f":"ROUND(PK!Y55,2)","v":0},{"$f":"ROUND(PK!Z55,2)","v":0},{"$f":"ROUND(PK!AA55,2)","v":0}]
[null,null,null,"PK",6,{"$f":"PK!G56","v":45},{"$f":"IF(PK!H56<>\"\",PK!H56,\"\")","v":""},0,0,{"$f":"ROUND(PK!I56,2)","v":0},{"$f":"ROUND(PK!J56,2)","v":0},{"$f":"ROUND(PK!K56,2)","v":0},{"$f":"ROUND(PK!L56,2)","v":0},{"$f":"ROUND(PK!M56,2)","v":0},{"$f":"ROUND(PK!N56,2)","v":0},{"$f":"ROUND(PK!O56,2)","v":0},{"$f":"ROUND(PK!P56,2)","v":0},{"$f":"ROUND(PK!Q56,2)","v":0},{"$f":"ROUND(PK!R56,2)","v":0},{"$f":"ROUND(PK!S56,2)","v":0},{"$f":"ROUND(PK!T56,2)","v":0},{"$f":"ROUND(PK!U56,2)","v":0},{"$f":"ROUND(PK!V56,2)","v":0},{"$f":"ROUND(PK!W56,2)","v":0},{"$f":"ROUND(PK!X56,2)","v":0},{"$f":"ROUND(PK!Y56,2)","v":0},{"$f":"ROUND(PK!Z56,2)","v":0},{"$f":"ROUND(PK!AA56,2)","v":0}]
[null,null,null,"PK",6,{"$f":"PK!G57","v":46},{"$f":"IF(PK!H57<>\"\",PK!H57,\"\")","v":""},0,0,{"$f":"ROUND(PK!I57,2)","v":0},{"$f":"ROUND(PK!J57,2)","v":0},{"$f":"ROUND(PK!K57,2)","v":0},{"$f":"ROUND(PK!L57,2)","v":0},{"$f":"ROUND(PK!M57,2)","v":0},{"$f":"ROUND(PK!N57,2)","v":0},{"$f":"ROUND(PK!O57,2)","v":0},{"$f":"ROUND(PK!P57,2)","v":0},{"$f":"ROUND(PK!Q57,2)","v":0},{"$f":"ROUND(PK!R57,2)","v":0},{"$f":"ROUND(PK!S57,2)","v":0},{"$f":"ROUND(PK!T57,2)","v":0},{"$f":"ROUND(PK!U57,2)","v":0},{"$f":"ROUND(PK!V57,2)","v":0},{"$f":"ROUND(PK!W57,2)","v":0},{"$f":"ROUND(PK!X57,2)","v":0},{"$f":"ROUND(PK!Y57,2)","v":0},{"$f":"ROUND(PK!Z57,2)","v":0},{"$f":"ROUND(PK!AA57,2)","v":0}]
[null,null,null,"PK",6,{"$f":"PK!G58","v":47},{"$f":"IF(PK!H58<>\"\",PK!H58,\"\")","v":""},0,0,{"$f":"ROUND(PK!I58,2)","v":0},{"$f":"ROUND(PK!J58,2)","v":0},{"$f":"ROUND(PK!K58,2)","v":0},{"$f":"ROUND(PK!L58,2)","v":0},{"$f":"ROUND(PK!M58,2)","v":0},{"$f":"ROUND(PK!N58,2)","v":0},{"$f":"ROUND(PK!O58,2)","v":0},{"$f":"ROUND(PK!P58,2)","v":0},{"$f":"ROUND(PK!Q58,2)","v":0},{"$f":"ROUND(PK!R58,2)","v":0},{"$f":"ROUND(PK!S58,2)","v":0},{"$f":"ROUND(PK!T58,2)","v":0},{"$f":"ROUND(PK!U58,2)","v":0},{"$f":"ROUND(PK!V58,2)","v":0},{"$f":"ROUND(PK!W58,2)","v":0},{"$f":"ROUND(PK!X58,2)","v":0},{"$f":"ROUND(PK!Y58,2)","v":0},{"$f":"ROUND(PK!Z58,2)","v":0},{"$f":"ROUND(PK!AA58,2)","v":0}]
[null,null,null,"PK",6,{"$f":"PK!G59","v":48},{"$f":"IF(PK!H59<>\"\",PK!H59,\"\")","v":""},0,0,{"$f":"ROUND(PK!I59,2)","v":0},{"$f":"ROUND(PK!J59,2)","v":0},{"$f":"ROUND(PK!K59,2)","v":0},{"$f":"ROUND(PK!L59,2)","v":0},{"$f":"ROUND(PK!M59,2)","v":0},{"$f":"ROUND(PK!N59,2)","v":0},{"$f":"ROUND(PK!O59,2)","v":0},{"$f":"ROUND(PK!P59,2)","v":0},{"$f":"ROUND(PK!Q59,2)","v":0},{"$f":"ROUND(PK!R59,2)","v":0},{"$f":"ROUND(PK!S59,2)","v":0},{"$f":"ROUND(PK!T59,2)","v":0},{"$f":"ROUND(PK!U59,2)","v":0},{"$f":"ROUND(PK!V59,2)","v":0},{"$f":"ROUND(PK!W59,2)","v":0},{"$f":"ROUND(PK!X59,2)","v":0},{"$f":"ROUND(PK!Y59,2)","v":0},{"$f":"ROUND(PK!Z59,2)","v":0},{"$f":"ROUND(PK!AA59,2)","v":0}]
[null,null,null,"PK",6,{"$f":"PK!G60","v":49},{"$f":"IF(PK!H60<>\"\",PK!H60,\"\")","v":""},0,0,{"$f":"ROUND(PK!I60,2)","v":0},{"$f":"ROUND(PK!J60,2)","v":0},{"$f":"ROUND(PK!K60,2)","v":0},{"$f":"ROUND(PK!L60,2)","v":0},{"$f":"ROUND(PK!M60,2)","v":0},{"$f":"ROUND(PK!N60,2)","v":0},{"$f":"ROUND(PK!O60,2)","v":0},{"$f":"ROUND(PK!P60,2)","v":0},{"$f":"ROUND(PK!Q60,2)","v":0},{"$f":"ROUND(PK!R60,2)","v":0},{"$f":"ROUND(PK!S60,2)","v":0},{"$f":"ROUND(PK!T60,2)","v":0},{"$f":"ROUND(PK!U60,2)","v":0},{"$f":"ROUND(PK!V60,2)","v":0},{"$f":"ROUND(PK!W60,2)","v":0},{"$f":"ROUND(PK!X60,2)","v":0},{"$f":"ROUND(PK!Y60,2)","v":0},{"$f":"ROUND(PK!Z60,2)","v":0},{"$f":"ROUND(PK!AA60,2)","v":0}]
[null,null,null,"PK",6,{"$f":"PK!G61","v":50},{"$f":"IF(PK!H61<>\"\",PK!H61,\"\")","v":""},0,0,{"$f":"ROUND(PK!I61,2)","v":0},{"$f":"ROUND(PK!J61,2)","v":0},{"$f":"ROUND(PK!K61,2)","v":0},{"$f":"ROUND(PK!L61,2)","v":0},{"$f":"ROUND(PK!M61,2)","v":0},{"$f":"ROUND(PK!N61,2)","v":0},{"$f":"ROUND(PK!O61,2)","v":0},{"$f":"ROUND(PK!P61,2)","v":0},{"$f":"ROUND(PK!Q61,2)","v":0},{"$f":"ROUND(PK!R61,2)","v":0},{"$f":"ROUND(PK!S61,2)","v":0},{"$f":"ROUND(PK!T61,2)","v":0},{"$f":"ROUND(PK!U61,2)","v":0},{"$f":"ROUND(PK!V61,2)","v":0},{"$f":"ROUND(PK!W61,2)","v":0},{"$f":"ROUND(PK!X61,2)","v":0},{"$f":"ROUND(PK!Y61,2)","v":0},{"$f":"ROUND(PK!Z61,2)","v":0},{"$f":"ROUND(PK!AA61,2)","v":0}]
[null,null,null,"PK",6,{"$f":"PK!G62","v":51},{"$f":"IF(PK!H62<>\"\",PK!H62,\"\")","v":""},0,0,{"$f":"ROUND(PK!I62,2)","v":0},{"$f":"ROUND(PK!J62,2)","v":0},{"$f":"ROUND(PK!K62,2)","v":0},{"$f":"ROUND(PK!L62,2)","v":0},{"$f":"ROUND(PK!M62,2)","v":0},{"$f":"ROUND(PK!N62,2)","v":0},{"$f":"ROUND(PK!O62,2)","v":0},{"$f":"ROUND(PK!P62,2)","v":0},{"$f":"ROUND(PK!Q62,2)","v":0},{"$f":"ROUND(PK!R62,2)","v":0},{"$f":"ROUND(PK!S62,2)","v":0},{"$f":"ROUND(PK!T62,2)","v":0},{"$f":"ROUND(PK!U62,2)","v":0},{"$f":"ROUND(PK!V62,2)","v":0},{"$f":"ROUND(PK!W62,2)","v":0},{"$f":"ROUND(PK!X62,2)","v":0},{"$f":"ROUND(PK!Y62,2)","v":0},{"$f":"ROUND(PK!Z62,2)","v":0},{"$f":"ROUND(PK!AA62,2)","v":0}]
[null,null,null,"PK",6,{"$f":"PK!G64","v":52},{"$f":"IF(PK!H64<>\"\",PK!H64,\"\")","v":""},0,0,{"$f":"ROUND(PK!I64,2)","v":0},{"$f":"ROUND(PK!J64,2)","v":0},{"$f":"ROUND(PK!K64,2)","v":0},{"$f":"ROUND(PK!L64,2)","v":0},{"$f":"ROUND(PK!M64,2)","v":0},{"$f":"ROUND(PK!N64,2)","v":0},{"$f":"ROUND(PK!O64,2)","v":0},{"$f":"ROUND(PK!P64,2)","v":0},{"$f":"ROUND(PK!Q64,2)","v":0},{"$f":"ROUND(PK!R64,2)","v":0},{"$f":"ROUND(PK!S64,2)","v":0},{"$f":"ROUND(PK!T64,2)","v":0},{"$f":"ROUND(PK!U64,2)","v":0},{"$f":"ROUND(PK!V64,2)","v":0},{"$f":"ROUND(PK!W64,2)","v":0},{"$f":"ROUND(PK!X64,2)","v":0},{"$f":"ROUND(PK!Y64,2)","v":0},{"$f":"ROUND(PK!Z64,2)","v":0},{"$f":"ROUND(PK!AA64,2)","v":0}]
[null,null,null,"PK",6,{"$f":"PK!G65","v":53},{"$f":"IF(PK!H65<>\"\",PK!H65,\"\")","v":""},0,0,{"$f":"ROUND(PK!I65,2)","v":0},{"$f":"ROUND(PK!J65,2)","v":0},{"$f":"ROUND(PK!K65,2)","v":0},{"$f":"ROUND(PK!L65,2)","v":0},{"$f":"ROUND(PK!M65,2)","v":0},{"$f":"ROUND(PK!N65,2)","v":0},{"$f":"ROUND(PK!O65,2)","v":0},{"$f":"ROUND(PK!P65,2)","v":0},{"$f":"ROUND(PK!Q65,2)","v":0},{"$f":"ROUND(PK!R65,2)","v":0},{"$f":"ROUND(PK!S65,2)","v":0},{"$f":"ROUND(PK!T65,2)","v":0},{"$f":"ROUND(PK!U65,2)","v":0},{"$f":"ROUND(PK!V65,2)","v":0},{"$f":"ROUND(PK!W65,2)","v":0},{"$f":"ROUND(PK!X65,2)","v":0},{"$f":"ROUND(PK!Y65,2)","v":0},{"$f":"ROUND(PK!Z65,2)","v":0},{"$f":"ROUND(PK!AA65,2)","v":0}]
[null,null,null,"PK",6,{"$f":"PK!G66","v":54},{"$f":"IF(PK!H66<>\"\",PK!H66,\"\")","v":""},0,0,{"$f":"ROUND(PK!I66,2)","v":0},{"$f":"ROUND(PK!J66,2)","v":0},{"$f":"ROUND(PK!K66,2)","v":0},{"$f":"ROUND(PK!L66,2)","v":0},{"$f":"ROUND(PK!M66,2)","v":0},{"$f":"ROUND(PK!N66,2)","v":0},{"$f":"ROUND(PK!O66,2)","v":0},{"$f":"ROUND(PK!P66,2)","v":0},{"$f":"ROUND(PK!Q66,2)","v":0},{"$f":"ROUND(PK!R66,2)","v":0},{"$f":"ROUND(PK!S66,2)","v":0},{"$f":"ROUND(PK!T66,2)","v":0},{"$f":"ROUND(PK!U66,2)","v":0},{"$f":"ROUND(PK!V66,2)","v":0},{"$f":"ROUND(PK!W66,2)","v":0},{"$f":"ROUND(PK!X66,2)","v":0},{"$f":"ROUND(PK!Y66,2)","v":0},{"$f":"ROUND(PK!Z66,2)","v":0},{"$f":"ROUND(PK!AA66,2)","v":0}]

{"sheet":"Naslovna","index":1,"n_rows":19,"n_cols":10,"rows_kept":19,"cut":false,"hidden":false,"merged":[[16,1,16,9],[1,0,1,9],[4,1,4,9],[5,1,5,9],[3,0,3,9],[2,3,2,9],[2,0,2,2],[7,1,7,9],[6,1,6,9],[17,1,17,9],[18,1,18,9],[9,1,9,9],[8,1,8,9],[10,1,10,9],[11,1,11,9],[12,1,12,9],[13,1,13,9],[14,1,14,9],[15,1,15,9]]}
["Navigacija","Naslovna","RefStr","Bilanca","RDG","Dodatni","NT_I","NT_D","PK","Kont"]
["Od 2024. godine izmijenjeni su struktura i sadržaj godišnjih financijskih izvještaja.\nDodana je pozicija u Bilancu,RDG te kolona u PK.\nObrazac Dodatni podaci je ostao neizmijenjen s time da su se promijenili samo brojevi AOP pozicija. \nNavigacija između radnih listova i dalje je omogućena kao i u prijašnjim Excel datotekama."]
["Link na stranicu obrasca i uputa:",null,null,"http://www.fina.hr/Default.aspx?sec=915"]
["U nastavku će biti navedene sve ispravke i promjene u odnosu na Inicijalnu verziju Excel datoteke 5.0.0."]
["Verzija","Promjene po verzijama"]
["3.0.0.","Prva verzija obrasca za 2016. godinu"]
["3.0.1.","Ispravke izgleda obrazaca: OIB se sa Referentne stranice prenosi na sve ostale radne listove pojedinačnih obrazaca, omogućen je odabir i oznake vlasništva 11, omogućen je i upis početnog datuma razdoblja prije 1.1.2016 (zbog obveznika koji predaju vrstu izvještaja 11 u svrhu javne objave),  korigirane su i kontrole 42 i 43 (pravila vrijede samo za oznakuk autonomnosti 1, ne više i za 10), kontrola 56 (oznaka primjene MSFI-a obvezna samo za velike pojedinačne, ne više i konsolidirane izvještaje), izvještaji koji imaju udio stranog kapitala veći od nule neće više javljati pogrešku kod učitavanja."]
["3.0.2.","Ispravljena je pogreška zbog koje se naziv knjigovodstvenog servisa i prezime i ime osobe za kontaktiranje nisu se učitavali u aplikaciju.Dodana kontrola na duljinu OIB-a revizora. "]
["3.0.3.","Ukinuta kontrola na vezu AOP-a 023 i 030 u PK obrascu. Ispravljen opis kontrola 89 do 92. Omogućen unos negativnih stavaka na AOP-ima 270 do 270 u Dodatnim podacima, te vezano s tim, promijenjena kontrola na negativne AOP-e u Dodatnim podacima. Ispravljena kontrola 63 i 90. Omogućen unos matičnog broja s početnim brojem 9 za trgovce pojedince. Izvještaj više ne javlja pogrešku kada se odabere oznaka vlasništva 13."]
["3.0.4.","Omogućen unos oznake obveznosti nefinancijskog izvjećša, dorađena kontrola u vezi njega. Omogućen unos \"datuma od\" razdoblja od 2005. godine nadalje zbog dugotrajnih likvidacija, broj mjeseci u likvidaciji omogućen najviše 132 umjesto dosadašnjih 60. Dorađeni opisi nekih AOP pozicija u Dodatnim podacima (smisao ostao isti, samo su opisi prošireni). Prosjek broja zaposlenih krajem razdoblja preimenovan u Prosjek broja zaposlenih tijekom razdoblja. Smisao broja zaposlenih i dalje isti, računa se kao prosjek stanja na datume: 1.1., 31.3., 30.6., 30.9. i 31.12. "]
["4.0.0.","Nova izmijenjena verzija obrasca za 2021. godinu"]
["4.0.1.","Ispravljena formula na AOP poziciji 223 koja je pogrešno zbrajala AOP oznaku 205 umjesto 206."]
["4.0.2.","Ispravljene formule na obrascu Promjene kapitala od stupca s oznakom 4 do 9 - formula nije uključivala oznaku primjene računovodstvenog standarda kod popunjavanja podataka u dodatku o Sveobuhvatnoj dobiti i u podacima za prethodnu i u podacima za tekuću godinu. U kontroli 34 ukinuo je pravilo da zadržana dobit i preneseni gubitak ne mogu biti popunjeni istovremeno."]
["4.0.3.","Omogućen unos u obrazac PK - AOP 016 i 033 stupac 15. Omogućeno predaja financijskog izvještaja i u EUR-ima i u kunama. Svaki financijski izvještaj čiji je datum kraja bilance 1. siječnja 2023. i kasnije mora biti u EUR-ima, a oni koji su predani za razdoblja prije 1. 1. 2023. u kunama."]
["4.0.4.","Kod popunjavanja podataka u EUR-ima sa centima povremeno Excel pokazuje pogrešku na zaokruživanju iznosa na zbrojnim pozicijama obrasca. U ovoj verziji je ta pogreška ispravljena."]
["4.0.5.","Problem sa zaokruživanjem brojeva popravljen na nekoliko novih mjesta. Ispravljene validacije nekih ćelija. Dodana opcija označavanja da se tvrtka briše sa zadnjim danom razdoblja izvještavanja kako kontrola ne bi javljala pogrešku ako je bilanca svedena na nulu kod postupka brisanja društva bez likvidacijskog postupka. Dodana oznaka neaktivnosti subjekta u stupcu prethodne godine kako kontrole ne bi javljale pogreške gdje ih iznimno ne bi trebalo biti. U kasnijim verzijama će se neke kontrole dorađivati prema ovim oznakama, trenutno nisu sve aplikacijski podržane."]
["4.0.6.","Dorađena kontrola ako je tvrtka bila poslovno neaktivna u prethodnoj godini (tj. ima popunjenu Bilancu, ali nije imala prihoda i rashoda pa nema podataka u računu dobiti i gubitka i u Dodatnim podacima). Kako bi se olakšala kontrola koja pozicija može, a koja ne može biti negativna AOP oznake pozicija koje mogu biti i negativne ili samo negativne obojane su drugom bojom. Značenje boja dano je u komentaru naslova \"AOP oznaka\". Dorada kontrole 63, dopušteno odstupanje je ostalo 1€ umjesto 1kn/0,14€. Ispravak kontrole 45, greškom nije bio dopušten minus na AOP oznakama 071 do 075."]
["5.0.0.","Nova izmijenjena verzija obrasca za 2024. godinu"]
["5.0.1.","Ispravak pogreške na radnom listu skriveni. Promijenjeni kriteriji za obveznost revizije prema novom Zakonu."]

{"sheet":"RefStr","index":2,"n_rows":1603,"n_cols":17,"rows_kept":1603,"cut":false,"hidden":false,"merged":[[53,0,53,1],[54,0,56,1],[34,2,34,8],[38,0,38,1],[38,7,38,8],[51,0,51,1],[20,11,20,13],[10,0,10,13],[13,5,13,7],[16,0,16,1],[13,0,13,2],[20,9,20,10],[18,3,19,7],[16,3,17,13],[18,8,18,12],[18,0,18,1],[74,0,74,4],[9,10,9,13],[9,0,9,1],[11,7,11,9],[14,0,14,2],[13,9,13,13],[11,5,11,6],[20,4,20,7],[45,12,45,13],[27,5,27,8],[3,5,3,6],[1,0,1,13],[6,0,6,1],[3,0,3,1],[3,7,3,13],[2,0,2,13],[3,2,3,3],[5,0,5,5],[75,9,75,13],[67,0,67,1],[69,0,69,1],[69,2,69,4],[71,0,71,1],[72,2,72,7],[75,0,75,4],[67,9,68,13],[71,2,71,7],[70,2,70,7],[57,3,57,4],[61,9,61,13],[49,8,49,10],[57,6,57,7],[55,3,55,4],[53,9,53,13],[55,9,55,13],[55,6,55,7],[34,9,34,10],[27,9,27,13],[34,11,34,13],[41,3,41,13],[38,3,38,6],[38,10,38,13],[36,2,36,8],[30,3,30,4],[30,5,30,11],[32,2,32,11],[63,9,63,13],[65,9,66,13],[59,9,59,13],[68,2,68,7],[66,2,66,7],[59,3,59,4],[59,6,59,7],[67,2,67,6],[61,0,61,2],[65,1,65,6],[59,0,59,1],[63,2,63,5],[22,3,23,13],[28,2,28,11],[26,12,26,13],[26,9,26,11],[26,5,26,6],[26,7,26,8],[26,2,26,4],[43,0,43,1],[20,0,20,1],[28,0,28,1],[30,0,30,1],[41,0,41,1],[22,0,23,1],[26,0,26,1],[34,0,34,1],[32,0,32,1],[36,0,36,1],[57,0,58,1],[49,3,49,7],[49,0,49,1],[43,3,43,13],[45,9,46,11],[45,3,45,8],[57,9,57,13],[51,3,51,7],[45,0,46,1],[51,9,51,13]]}
["Navigacija","Naslovna","RefStr","Bilanca","RDG","Dodatni","NT_I","NT_D","PK","Kont",null,null,null,null,null,null,{"$f":"IF(C4<>\"\",IF(YEAR(C4)<2021,2021,YEAR(C4)),\"\")","v":2024}]
["Razdoblje izvještavanja i vrsta poslovnog subjekta nisu dio standardnog obrasca GFI-POD izvještaja, ali ispunjavanjem ovih podataka osigurat ćete da Vas Excel datoteka preko kontrola upozori koju popratnu (nestandardnu) dokumentaciju ste dužni predati prilikom predaje GFI-POD izvještaja te će neke specifične kontrole raditi ispravno. Odaberete li krivu vrstu poslovnog subjekta, moguće je da obrazac - iako točan u Excelu - ne bude točan i potpun nakon učitavanja.",null,null,null,null,null,null,null,null,null,null,null,null,null,null,null,{"$f":"IF(F4<>\"\", YEAR(F4), \"\")","v":2024}]
[{"$f":" IF(ISERROR(Kont!J4),\"Postoje neke pogreške u Excel datoteci, takva neće moći biti učitana!!!\",IF(Kont!J4>0, \"Obrazac nije popunjen ili sadrži neke pogreške! Ako ste završili s popunjavanjem, provjerite radni list Kont. Broj pogreški: \" & Kont!J4,\"Sve kontrole su zadovoljene, obrazac je ispravan\"))","v":"Sve kontrole su zadovoljene, obrazac je ispravan"}]
["Razdoblje izvještavanja:",null,"2024-01-01",null,"do","2024-12-31",null,"(završni dan razdoblja je ujedno i datum stanja u Bilanci)"]
[]
["Subjekt se briše sa zadnjim danom razdoblja izvještavanja:",null,null,null,null,null,"NE",null,null,null,null,null,"Poslovna aktivnost u razdoblju izvještavanja:","DA"]
["Vrsta poslovnog subjekta:",null,1,{"$f":"IF(C7=\"\",\"Vrsta poslovnog subjekta nije upisana\",IF(ISNA(LOOKUP(C7,A91:A107,A91:A107)),\"Upisana je nepostojeća ili neprepoznatljiva vrsta poslovnog subjekta\",IF(LOOKUP(C7,A91:A107,A91:A107)<>C7,\"Upisana je nepostojeća ili neprepoznatljiva vrsta poslovnog subjekta\",LOOKUP(C7,A91:A107,B91:B107))))","v":"Javno trgovačko društvo"},null,null,null,null,null,null,null,null,"Poslovna aktivnost u prethodnoj godini:","DA"]
[]
[null,null,null,null,null,null,null,null,null,null,null,null,null,null,null,"DatOd",{"$f":"IF(C4<>\"\",YEAR(C4)/100+MONTH(C4)/2+DAY(C4),0)","v":21.74}]
["Referentna stranica",null,null,null,null,null,null,null,null,null,"Vrsta posla: 777",null,null,null,null,"DatDo",{"$f":"IF(F4<>\"\",YEAR(F4)/100+MONTH(F4)/2+DAY(F4),0)","v":57.239999999999995}]
["GODIŠNJI FINANCIJSKI IZVJEŠTAJ PODUZETNIKA",null,null,null,null,null,null,null,null,null,null,null,null,null,null,"VI",{"$f":"INT(VALUE(C17))","v":10}]
[null,null,null,null,"za",2024,null," . godinu",null,null,null,null,null,null,null,"MBS",{"$f":"INT(VALUE(H27))/10","v":336172.1}]
[null,null,null,null,null,null,null,null,null,null,null,null,null,null,null,"MBS",{"$f":"INT(VALUE(M27))/50","v":600531.57999999996}]
["Kontrolni broj",null,null,null,null,null,null,null,null,"Evidencijski broj (popunjava Registar)",null,null,null,null,null,"OIB",{"$f":"INT(VALUE(C27))/100","v":481884200.08999997}]
[{"$f":"Skriveni!B59","v":{"$error":"#REF!"}},null,null,null,null,null,null,null,null,null,null,null,null,null,null,"Naz",{"$f":"LEN(Skriveni!B9)","v":25}]
[null,null,null,null,null,null,null,null,null,null,null,null,null,null,null,"Posta",{"$f":"INT(VALUE(C31))/100","v":312.07}]
["Vrsta izvještaja:",null,10,{"$f":"IF(C17=\"\",\"Upišite vrstu izvještaja\",IF(ISNA(LOOKUP(C17,A142:A149,A142:A149)),\"Upisana je nepostojeća ili neprepoznatljiva vrsta izvještaja\",IF(LOOKUP(C17,A142:A149,A142:A149)<>C17,\"Upisana je nepostojeća ili neprepoznatljiva vrsta izvještaja\",LOOKUP(C17,A142:A149,B142:B149))))","v":"Izvještaj kojeg ispunjava obveznik kome je kalendarska godina jednaka poslovnoj godini i kod kojeg u godini za koju se izvještaj podnosi nije bilo statusnih promjena, stečaja ili likvidacije."},null,null,null,null,null,null,null,null,null,null,null,"MJ",{"$f":"LEN(Skriveni!B11)","v":5}]
[]
["Šifra svrhe predaje:",null,2,{"$f":"IF(C19=\"\",\"Upišite svrhu predaje\",IF(ISNA(LOOKUP(C19,A118:A120,A118:A120)),\"Nepostojeća ili neprepoznatljiva svrha predaje\",IF(LOOKUP(C19,A118:A120,A118:A120)<>C19,\"Nepostojeća ili neprepoznatljiva svrha predaje\",LOOKUP(C19,A118:A120,B118:B120))))","v":"Predaja samo u svrhu javne objave"},null,null,null,null,"Primjena računovodstvenih standarda:",null,null,null,null,"MSFI",null,"ADR",{"$f":"LEN(Skriveni!B12)","v":19}]
[]
["Izvještaj je konsolidiran:",null,"NE","(DA/NE)","Izvještaj je revidiran (DA/NE):",null,null,null,"DA","OIB revizora:",null,"39806187636",null,null,null,"OPC",{"$f":"INT(VALUE(C39))","v":312}]
[]
["Obveznost predaje nefinancijskog izvješća:",null,1,{"$f":"IF(C23=\"\",\"Upišite šifru obveznosti predaje nefinancijskog izvješća\",IF(ISNA(LOOKUP(C23,A111:A114,A111:A114)),\"Upisana je nepostojeća ili neprepoznatljiva šifra obveznosti\",IF(LOOKUP(C23,A111:A114,A111:A114)<>C23,\"Upisana je nepostojeća ili neprepoznatljiva šifra obveznosti\",LOOKUP(C23,A111:A114,B111:B114))))","v":"Poduzetnik nije obveznik izrade nefinancijskog izvješća"},null,null,null,null,null,null,null,null,null,null,null,"NKD",{"$f":"INT(VALUE(C42))","v":5223}]
[]
[]
[]
["OIB subjekta:",null,"48188420009",null,null,"Matični broj (MB):",null,"03361721",null,"Matični broj subjekta (MBS):",null,null,"030026579",null,null,"Kons",{"$f":"IF(C21=\"DA\", 1, 0)","v":0}]
[null,null,null,null,null,"(dodijeljen od DZS-a)",null,null,null,"(dodijeljen od nadležnog Trgovačkog suda)"]
["Naziv obveznika:",null,"Zračna luka Osijek d.o.o.",null,null,null,null,null,null,null,null,null,null,null,null,"Reviz",{"$f":"IF(I21=\"DA\",1,0)","v":1}]
[]
["Poštanski broj:",null,31207,"Naziv naselja:",null,"Klisa",null,null,null,null,null,null,null,null,null,"Svrha",{"$f":"INT(VALUE(C19))","v":2}]
[]
["Ulica i kućni broj:",null,"Vukovarska ulica 67",null,null,null,null,null,null,null,null,null,null,null,null,"VEL",{"$f":"INT(VALUE(Skriveni!B21))","v":1}]
[]
["Adresa e-pošte obveznika:",null,"info@osijek-airport.hr",null,null,null,null,null,null,"Telefon:",null,"031/514-402",null,null,null,"VLAST",{"$f":"INT(VALUE(C52))","v":11}]
[]
["Internet adresa:",null,"www.osijek-airport.hr",null,null,null,null,null,null,null,null,null,null,null,null,"POR_KAP",{"$f":"C54*2+F54","v":200}]
[]
["Šifra grada/općine:",null,312,{"$f":"IF(C39=\"\",\"Upišite šifru grada/općine\",IF(ISNA(LOOKUP(C39,A177:A732,A177:A732)),\"Šifra grada/općine ne postoji\",IF(LOOKUP(C39,A177:A732,A177:A732)<>C39,\"Šifra grada/općine ne postoji\",LOOKUP(C39,A177:A732,B177:B732))))","v":"Osijek"},null,null,null,"Županija:",null,{"$f":"IF(C39>0,LOOKUP(C39,A177:A732,C177:C732),\"\")","v":14},{"$f":"IF(J39=\"\",\"Upišite šifru grada/općine\",LOOKUP(J39,A153:A173,B153:B173))","v":"OSIJEČKO-BARANJSKA"},null,null,null,null,"ZAP",{"$f":"C56+2*F56+3*C58+4*F58","v":531}]
[]
[]
["Šifra NKD-a:",null,"5223",{"$f":"IF(C42=\"\",\"Upišite šifru razreda glavne djelatnosti\",IF(ISNA(LOOKUP(C42,A736:A1351,A736:A1351)),\"Šifra NKD-a ne postoji\",IF(LOOKUP(C42,A736:A1351,A736:A1351)<>C42,\"Šifra NKD-a ne postoji\",LOOKUP(C42,A736:A1351,B736:B1351))))","v":"Uslužne djelatnosti u vezi sa zračnim ..."},null,null,null,null,null,null,null,null,null,null,null,"MJESECI",{"$f":"C60*2+F60","v":36}]
[]
["Status autonomnosti:",null,1,{"$f":"IF(C44=\"\",\"Upišite šifru statusa autonomnosti\",IF(ISNA(LOOKUP(C44,A131:A138,A131:A138)),\"Upisana je nepostojeća ili neprepoznatljiva šifra statusa autonomnosti\",IF(LOOKUP(C44,A131:A138,A131:A138)<>C44,\"Upisana je nepostojeća ili neprepoznatljiva šifra statusa autonomnosti\",LOOKUP(C44,A131:A138,B131:B138))))","v":"Autonomno društvo, nije bilo član grupe u izvještajnom razdoblju "},null,null,null,null,null,null,null,null,null,null,null,"OVL_OSOBA",{"$f":"LEN(Skriveni!B43)","v":8}]
[]
["Zemlja sjedišta nadređenog matičnog društva:",null,null,{"$f":"IF(C46=\"\",\"\",IF(ISNA(LOOKUP(C46,A1355:A1603,A1355:A1603)),\"Šifra države nepostojeća\",IF(LOOKUP(C46,A1355:A1603,A1355:A1603)<>C46,\"Šifra države nepostojeća\",LOOKUP(C46,A1355:A1603,B1355:B1603))))","v":""},null,null,null,null,null,"Matični broj nadređenog matičnog društva:",null,null,null,null,null,"OIB_REV",{"$f":"INT(VALUE(L21))/100","v":398061876.36000001}]
[]
[]
[]
["Oznaka veličine:",null,2,{"$f":"IF(C50=\"\",\"Upišite oznaku veličine\",IF(ISNA(LOOKUP(C50,A124:A127,A124:A127)),\"Nepostojeća oznaka veličine\",IF(LOOKUP(C50,A124:A127,A124:A127)<>C50,\"Nepostojeća oznaka veličine\",LOOKUP(C50,A124:A127,B124:B127))))","v":"Mali poduzetnik"},null,null,null,null,"Popis dokumentacije",null,null,null,null,null,null,"POSL_AKT",{"$f":"IF(N6=\"DA\",1/10,IF(N6=\"NE\",2/10,0))","v":0.1}]
[]
["Oznaka vlasništva:",null,11,{"$f":"IF(C52=\"\",\"Upišite oznaku vlasništva\",IF(ISNA(LOOKUP(C52,A80:A87,A80:A87)),\"Nepostojeća oznaka vlasništva\",IF(LOOKUP(C52,A80:A87,A80:A87)<>C52,\"Nepostojeća oznaka vlasništva\",LOOKUP(C52,A80:A87,B80:B87))))","v":"Državno vlasništvo (javno, komunalno i slično)"},null,null,null,null,{"$f":"IF(OR(Bilanca!Q1=1,RDG!Q1=1,N6=\"NE\"),\"DA\",\"NE\")","v":"DA"},"Bilanca i Račun dobiti i gubitka",null,null,null,null,null,"STAND",{"$f":"IF(N19=\"HSFI\",1+1/10,IF(N19=\"MSFI\",1+2/10,0))","v":1.2}]
[]
["Porijeklo kapitala (%):",null,100,"(domaći)",null,0,"(strani)",null,{"$f":"IF(OR(Dodatni!Q1=1,AND(N6=\"NE\",C19<>2)),\"DA\",\"NE\")","v":"NE"},"Dodatni podaci",null,null,null,null,null,"AUTONOM",{"$f":"C44/10","v":0.1}]
["Prosjek broja zaposlenih tijekom razdoblja:"]
[null,null,50,"(prethodna godina)",null,57,"(tekuća godina)",null,"DA","Bilješke uz financijske izvještaje",null,null,null,null,null,"ZEMLJA",{"$f":"C46/20","v":0}]
[]
["Broj zaposlenih prema satima rada:",null,49,"(prethodna godina)",null,55,"(tekuća godina)",null,{"$f":"IF(OR(NT_I!Q1<>0,NT_D!Q1<>0),\"DA\", \"NE\")","v":"NE"},"Izvještaj o novčanim tokovima",null,null,null,null,null,"MB_NADR",{"$f":"IF(ISERROR(INT(M46)),LEN(TRIM(M46)),INT(M46)/100)","v":0}]
[]
["Broj mjeseci poslovanja:",null,12,"(prethodna godina)",null,12,"(tekuća godina)",null,{"$f":"IF(PK!AD1=1,\"DA\",\"NE\")","v":"NE"},"Izvještaj o promjenama kapitala",null,null,null,null,null,"NEFIN",{"$f":"C23/50","v":0.02}]
[]
["Knjigovodstveni servis/kontakt osoba:",null,null,null,null,null,null,null,"DA","Revizorsko izvješće"]
[]
["Matični broj:",null,"(matični broj servisa dodijeljen od DZS-a)",null,null,null,null,null,"NE","Godišnje izvješće"]
[]
["Naziv",null,null,null,null,null,null,null,"DA","Odluka o prijedlogu raspodjele dobiti ili pokriću gubitka"]
[]
["Osoba za kontaktiranje:",null,"Katarina Jelečević",null,null,null,null,null,"DA","Odluka o utvrđivanju godišnjeg financijskog izvještaja"]
[null,null,"(unosi se ime i prezime osobe za kontakt)"]
["Telefon za kontaktiranje:",null,"031/512-402"]
[null,null,"(unosi se broj telefona/mobitela osobe za kontaktiranje)"]
["Adresa e-pošte:",null,"katarina.jelecevic@osijek-airport.hr",null,null,null,null,null,null,null,null,null,null,{"$f":" \"Verzija Excel datoteke: \" & MID(Skriveni!B4,1,1) & \".\" & MID(Skriveni!B4,2,1) & \".\" & MID(Skriveni!B4,3,1) & \".\"","v":"Verzija Excel datoteke: 5.0.1."}]
[null,null,"(unosi se adresa e-pošte osobe za kontaktiranje)"]
[]
["KOS IVAN"]
["(Prezime i ime ovlaštene osobe)",null,null,null,null,null,null,null,null,"(potpis ovlaštene osobe)"]
[]
[{"$f":" IF(ISERROR(Kont!J4),\"Postoje neke pogreške u Excel datoteci, takva neće moći biti učitana!!!\",IF(Kont!J4>0, \"Obrazac nije popunjen ili sadrži neke pogreške! Broj pogreški: \" & Kont!J4,\"\"))","v":""}]
[]
[11,"Državno vlasništvo (javno, komunalno i slično)"]
[12,"Državno u procesu pretvorbe"]
[13,"Državno, pretvorba još nije započela"]
[21,"Privatno od osnivanja"]
[22,"Privatno nakon pretvorbe"]
[31,"Zadružno vlasništvo (zadruge)"]
[41,"Mješovito vlasništvo s preko 50% privatnog kapitala"]
[42,"Mješovito vlasništvo s preko 50% državnog kapitala"]
[]
[]
[]
[1,"Javno trgovačko društvo"]
[2,"Komanditno društvo"]
[3,"Gospodarsko interesno udruženje"]
[4,"Dioničko društvo"]
[5,"Društvo s ograničenom odgovornošću"]
[6,"Jednostavno društvo s ograničenom odgovornošću"]
[7,"Trgovac pojedinac"]
[8,"Ustanova"]
[9,"Zajednica ustanova"]
[10,"Zadruga"]
[11,"Druga osoba za koje je upis propisan zakonom"]
[12,"Inozemni osnivač"]
[13,"Obrtnik, obveznik poreza na dobit"]
[14,"Slobodno zanimanje"]
[15,"Obiteljsko gospodarstvo"]
[16,"Privatna osoba, obveznik poreza na dobit"]
[99,"Ostali nespomenuti obveznici poreza na dobit"]
[]
[]
[]
[1,{"$f":"IF(F12=2016,\"Obveza predaje nefinancijskog izvješća u primjeni tek od 2017. godine\", \"Poduzetnik nije obveznik izrade nefinancijskog izvješća\")","v":"Poduzetnik nije obveznik izrade nefinancijskog izvješća"}]
[2,"Poduzetnik je obveznik izrade nefinancijskog izvješća - sastavni je dio izvješća poslovodstva"]
[3,"Poduzetnik je obveznik izrade nefinancijskog izvješća - predaje ga kao prilog izvješću poslovodstva"]
[4,"Poduzetnik je obveznik izrade nefinancijskog izvješća - kreirano je kao poseban dokument i objavljeno na mrežnoj stranici poduzetnika"]
[]
[]
[]
[1,"Predaja samo u statističke svrhe"]
[2,"Predaja samo u svrhu javne objave"]
[3,"Predaja i za statističke svrhe i za javnu objavu"]
[]
[]
[]
[1,"Mikro poduzetnik"]
[2,"Mali poduzetnik"]
[3,"Srednji poduzetnik"]
[4,"Veliki poduzetnik"]
[]
[]
[]
[1,"Autonomno društvo, nije bilo član grupe u izvještajnom razdoblju "]
[2,"Ovisno društvo (nema kontrolu nad drugim društvima), sa maticom u RH "]
[3,"Ovisno društvo (nema kontrolu nad drugim društvima), sa maticom izvan RH"]
[5,"Matično društvo, i samo pod kontrolom nadređenog društva iz RH "]
[6,"Matično društvo, i samo pod kontrolom nadređenog društva izvan RH"]
[7,"Krajnje matično društvo u grupi (nema nadređeno društvo) "]
[9,"Autonomno društvo, bilo je u sastavu grupe u dijelu izvještajnog razdoblja"]
[10,"Ostali obveznici poreza na dobit"]
[]
[]
[]
[10,"Izvještaj kojeg ispunjava obveznik kome je kalendarska godina jednaka poslovnoj godini i kod kojeg u godini za koju se izvještaj podnosi nije bilo statusnih promjena, stečaja ili likvidacije."]
[11,"Izvještaj kojeg ispunjava obveznik kome se poslovna godina razlikuje od kalendarske."]
[20,"Izvještaj kojeg ispunjava obveznik u stečaju."]
[21,"Izvještaj kojeg sastavlja obveznik za razdoblje od početka godine do dana koji prethodi danu otvaranja stečajnog postupka."]
[30,"Izvještaj kojeg ispunjava obveznik u likvidaciji."]
[31,"Izvještaj kojeg sastavlja obveznik za razdoblje od početka godine do dana koji prethodi danu otvaranja likvidacijskog postupka."]
[40,"Izvještaj kojeg sastavlja obveznik koji zbog statusnih promjena gubi pravnu osobnost."]
[50,"Izvještaj kojeg sastavlja obveznik u godini kada mijenja datum početka i kraja poslovne godine, a za razdoblje od kraja stare poslovne godine do datuma koji prethodi početku nove poslovne godine."]
[]
[]
[]
[1,"ZAGREBAČKA"]
[2,"KRAPINSKO-ZAGORSKA"]
[3,"SISAČKO-MOSLAVAČKA"]
[4,"KARLOVAČKA"]
[5,"VARAŽDINSKA"]
[6,"KOPRIVNIČKO-KRIŽEVAČKA"]
[7,"BJELOVARSKO-BILOGORSKA"]
[8,"PRIMORSKO-GORANSKA"]
[9,"LIČKO-SENJSKA"]
[10,"VIROVITIČKO-PODRAVSKA"]
[11,"POŽEŠKO-SLAVONSKA"]
[12,"BRODSKO-POSAVSKA"]
[13,"ZADARSKA"]
[14,"OSIJEČKO-BARANJSKA"]
[15,"ŠIBENSKO-KNINSKA"]
[16,"VUKOVARSKO-SRIJEMSKA"]
[17,"SPLITSKO-DALMATINSKA"]
[18,"ISTARSKA"]
[19,"DUBROVAČKO-NERETVANSKA"]
[20,"MEĐIMURSKA"]
[21,"GRAD ZAGREB"]
[]
[]
[]
[1,"Andrijaševci",16]
[2,"Antunovac",14]
[3,"Babina Greda",16]
[4,"Bakar",8]
[5,"Bale",18]
[6,"Barban",18]
[7,"Barilovići",4]
[8,"Baška",8]
[9,"Baška Voda",17]
[10,"Bebrina",12]
[11,"Bedekovčina",2]
[12,"Bednja",5]
[13,"Beli Manastir",14]
[15,"Belica",20]
[16,"Belišće",14]
[17,"Benkovac",13]
[18,"Berek",7]
[19,"Beretinec",5]
[20,"Bibinje",13]
[21,"Bilje",14]
[22,"Biograd na Moru",13]
[23,"Bizovac",14]
[24,"Bjelovar",7]
[25,"Blato",19]
[26,"Bogdanovci",16]
[27,"Bol",17]
[29,"Borovo",16]
[30,"Bosiljevo",4]
[32,"Bošnjaci",16]
[33,"Brckovljani",1]
[34,"Brdovec",1]
[35,"Brestovac",11]
[36,"Breznica",5]
[37,"Brinje",9]
[38,"Brod Moravice",8]
[39,"Brodski Stupnik",12]
[40,"Brtonigla",18]
[41,"Budinščina",2]
[42,"Buje",18]
[43,"Buzet",18]
[44,"Cerna",16]
[46,"Cernik",12]
[47,"Cerovlje",18]
[48,"Cestica",5]
[49,"Cetingrad",4]
[50,"Cista Provo",17]
[51,"Civljane",15]
[52,"Cres",8]
[53,"Crikvenica",8]
[54,"Crnac",10]
[55,"Čabar",8]
[56,"Čačinci",10]
[57,"Čađavica",10]
[58,"Čaglin",11]
[60,"Čakovec",20]
[61,"Čavle",8]
[63,"Čazma",7]
[64,"Čeminac",14]
[65,"Čepin",14]
[66,"Darda",14]
[67,"Daruvar",7]
[68,"Davor",12]
[69,"Delnice",8]
[70,"Desinić",2]
[71,"Dežanovac",7]
[72,"Dicmo",17]
[74,"Dobrinj",8]
[75,"Domašinec",20]
[77,"Brela",17]
[78,"Donja Dubrava",20]
[79,"Donja Stubica",2]
[80,"Donja Voća",5]
[81,"Donji Andrijevci",12]
[82,"Donji Kraljevec",20]
[83,"Donji Kukuruzari",3]
[84,"Donji Lapac",9]
[85,"Martijanec",5]
[86,"Donji Miholjac",14]
[87,"Muć",17]
[88,"Proložac",17]
[89,"Donji Vidovec",20]
[90,"Draganić",4]
[91,"Draž",14]
[92,"Drenovci",16]
[94,"Drenje",14]
[95,"Drniš",15]
[96,"Drnje",6]
[97,"Dubrava",1]
[98,"Dubrovnik",19]
[99,"Duga Resa",4]
[100,"Dugi Rat",17]
[101,"Dugo Selo",1]
[102,"Dvor",3]
[103,"Đakovo",14]
[104,"Đelekovec",6]
[105,"Đulovac",7]
[106,"Đurđenovac",14]
[107,"Đurđevac",6]
[108,"Đurmanec",2]
[110,"Erdut",14]
[111,"Ernestinovo",14]
[113,"Ervenik",15]
[114,"Farkaševac",1]
[115,"Ferdinandovac",6]
[116,"Feričanci",14]
[117,"Fužine",8]
[118,"Garčin",12]
[119,"Garešnica",7]
[120,"Generalski Stol",4]
[121,"Glina",3]
[122,"Gola",6]
[123,"Goričan",20]
[124,"Gorjani",14]
[125,"Gornja Stubica",2]
[127,"Gornji Bogićevci",12]
[129,"Gornji Kneginec",5]
[130,"Gospić",9]
[131,"Gračac",13]
[132,"Gračišće",18]
[133,"Zagreb",21]
[134,"Gradac",17]
[135,"Gradec",1]
[136,"Gradina",10]
[137,"Gradište",16]
[138,"Grožnjan",18]
[139,"Grubišno Polje",7]
[140,"Gundinci",12]
[141,"Gunja",16]
[144,"Hercegovac",7]
[145,"Hlebine",6]
[146,"Hrašćina",2]
[148,"Hrvace",17]
[149,"Hrvatska Dubica",3]
[150,"Hrvatska Kostajnica",3]
[151,"Breznički Hum",5]
[152,"Hum na Sutli",2]
[153,"Hvar",17]
[154,"Ilok",16]
[155,"Imotski",17]
[156,"Ivanec",5]
[158,"Ivanić-Grad",1]
[159,"Ivankovo",16]
[161,"Ivanska",7]
[163,"Jakovlje",1]
[164,"Jakšić",11]
[165,"Jalžabet",5]
[166,"Jarmina",16]
[167,"Jasenice",13]
[168,"Jasenovac",3]
[169,"Jastrebarsko",1]
[170,"Jelenje",8]
[171,"Jelsa",17]
[172,"Josipdol",4]
[173,"Kali",13]
[175,"Kanfanar",18]
[176,"Kapela",7]
[177,"Kaptol",11]
[178,"Karlobag",9]
[179,"Karlovac",4]
[180,"Kastav",8]
[181,"Kaštela",17]
[183,"Kijevo",15]
[184,"Kistanje",15]
[185,"Klakar",12]
[186,"Klana",8]
[187,"Klanjec",2]
[189,"Klenovnik",5]
[190,"Klinča Sela",1]
[192,"Klis",17]
[193,"Kloštar Ivanić",1]
[194,"Kloštar Podravski",6]
[195,"Kneževi Vinogradi",14]
[196,"Knin",15]
[197,"Komiža",17]
[198,"Konavle",19]
[199,"Končanica",7]
[200,"Konjščina",2]
[201,"Koprivnica",6]
[202,"Koprivnički Bregi",6]
[203,"Koprivnički Ivanec",6]
[204,"Korčula",19]
[205,"Koška",14]
[206,"Kotoriba",20]
[208,"Kraljevec na Sutli",2]
[209,"Kraljevica",8]
[211,"Krapina",2]
[212,"Krapinske Toplice",2]
[213,"Križ",1]
[214,"Križevci",6]
[215,"Krk",8]
[216,"Krnjak",4]
[217,"Kršan",18]
[219,"Kula Norinska",19]
[220,"Kutina",3]
[221,"Kutjevo",11]
[222,"Labin",18]
[223,"Lanišće",18]
[225,"Lasinja",4]
[226,"Lastovo",19]
[227,"Legrad",6]
[228,"Lekenik",3]
[229,"Lepoglava",5]
[230,"Levanjska Varoš",14]
[231,"Lipik",11]
[232,"Lipovljani",3]
[234,"Lišane Ostrovičke",13]
[235,"Ližnjan",18]
[236,"Lobor",2]
[237,"Lokve",8]
[239,"Lovas",16]
[240,"Lovinac",9]
[242,"Lovran",8]
[243,"Lovreć",17]
[244,"Ludbreg",5]
[245,"Lukač",10]
[246,"Lupoglav",18]
[247,"Ljubešćica",5]
[248,"Mače",2]
[249,"Makarska",17]
[250,"Mala Subotica",20]
[251,"Mali Bukovec",5]
[252,"Mali Lošinj",8]
[253,"Malinska-Dubašnica",8]
[254,"Marčana",18]
[256,"Marija Bistrica",2]
[257,"Marijanci",14]
[258,"Marina",17]
[259,"Martinska Ves",3]
[260,"Maruševec",5]
[261,"Matulji",8]
[263,"Medulin",18]
[264,"Metković",19]
[265,"Mihovljan",2]
[266,"Mikleuš",10]
[267,"Milna",17]
[268,"Mljet",19]
[270,"Molve",6]
[271,"Podravska Moslavina",14]
[273,"Mošćenička Draga",8]
[274,"Motovun",18]
[275,"Mrkopalj",8]
[276,"Mursko Središće",20]
[278,"Našice",14]
[279,"Nedelišće",20]
[280,"Nerežišća",17]
[281,"Netretić",4]
[282,"Nin",13]
[283,"Nova Bukovica",10]
[284,"Nova Gradiška",12]
[285,"Nova Kapela",12]
[287,"Nova Rača",7]
[288,"Novalja",9]
[289,"Novi Marof",5]
[290,"Novi Vinodolski",8]
[291,"Novigrad-Cittanova",18]
[292,"Novigrad Podravski",6]
[293,"Novska",3]
[294,"Nuštar",16]
[295,"Nijemci",16]
[296,"Obrovac",13]
[297,"Ogulin",4]
[298,"Promina",15]
[299,"Okučani",12]
[300,"Omiš",17]
[301,"Omišalj",8]
[302,"Opatija",8]
[303,"Oprisavci",12]
[304,"Oprtalj",18]
[306,"Opuzen",19]
[307,"Orahovica",10]
[308,"Orebić",19]
[309,"Oriovac",12]
[310,"Biskupija",15]
[311,"Oroslavje",2]
[312,"Osijek",14]
[313,"Otočac",9]
[314,"Otok",17]
[315,"Ozalj",4]
[316,"Pag",13]
[317,"Pakoštane",13]
[318,"Pakrac",11]
[320,"Pašman",13]
[321,"Pazin",18]
[323,"Perušić",9]
[324,"Peteranec",6]
[325,"Petlovac",14]
[326,"Petrijanec",5]
[327,"Petrijevci",14]
[328,"Petrinja",3]
[329,"Petrovsko",2]
[330,"Pićan",18]
[331,"Pisarovina",1]
[332,"Pitomača",10]
[333,"Plaški",4]
[334,"Pleternica",11]
[335,"Ploče",19]
[337,"Podbablje",17]
[338,"Podcrkavlje",12]
[339,"Podgora",17]
[340,"Podgorač",14]
[341,"Podstrana",17]
[342,"Podturen",20]
[343,"Pojezerje",19]
[344,"Polača",13]
[345,"Poličnik",13]
[346,"Popovac",14]
[347,"Popovača",3]
[348,"Poreč",18]
[349,"Posedarje",13]
[350,"Postira",17]
[351,"Požega",11]
[352,"Pregrada",2]
[354,"Preko",13]
[355,"Prelog",20]
[356,"Preseka",1]
[357,"Primošten",15]
[358,"Pučišća",17]
[359,"Pula",18]
[360,"Punat",8]
[361,"Punitovci",14]
[362,"Pušća",1]
[363,"Rab",8]
[364,"Radoboj",2]
[365,"Rakovica",4]
[366,"Rasinja",6]
[368,"Raša",18]
[369,"Ravna Gora",8]
[371,"Ražanac",13]
[372,"Rešetari",12]
[373,"Rijeka",8]
[374,"Rovinj",18]
[375,"Rovišće",7]
[376,"Rugvica",1]
[377,"Ružić",15]
[378,"Saborsko",4]
[379,"Sali",13]
[380,"Samobor",1]
[381,"Satnica Đakovačka",14]
[382,"Seget",17]
[383,"Selca",17]
[385,"Selnica",20]
[386,"Semeljci",14]
[387,"Senj",9]
[388,"Sibinj",12]
[389,"Sinj",17]
[390,"Sirač",7]
[391,"Sisak",3]
[393,"Skrad",8]
[394,"Skradin",15]
[395,"Slatina",10]
[396,"Slavonski Brod",12]
[397,"Slavonski Šamac",12]
[399,"Slivno",19]
[400,"Slunj",4]
[402,"Smokvica",19]
[405,"Sokolovac",6]
[406,"Solin",17]
[407,"Sopje",10]
[409,"Split",17]
[410,"Sračinec",5]
[411,"Stankovci",13]
[412,"Stara Gradiška",12]
[413,"Stari Grad",17]
[414,"Stari Jankovci",16]
[415,"Stari Mikanovci",16]
[416,"Starigrad",13]
[418,"Staro Petrovo Selo",12]
[419,"Ston",19]
[421,"Strizivojna",14]
[422,"Stubičke Toplice",2]
[423,"Sućuraj",17]
[424,"Suhopolje",10]
[425,"Sukošan",13]
[426,"Sunja",3]
[427,"Supetar",17]
[428,"Sveti Filip i Jakov",13]
[429,"Sveti Ivan Zelina",1]
[430,"Sveti Križ Začretje",2]
[431,"Sveti Lovreč",18]
[432,"Sveta Nedelja (istarska)",18]
[433,"Sveti Petar u Šumi",18]
[435,"Svetvinčenat",18]
[436,"Sveta Nedelja (zagrebačka)",1]
[437,"Sveti Đurđ",5]
[438,"Sveti Ilija",5]
[439,"Sveti Ivan Žabno",6]
[440,"Sveti Juraj na Bregu",20]
[441,"Sveti Martin na Muri",20]
[442,"Sveti Petar Orehovec",6]
[443,"Šestanovac",17]
[444,"Šibenik",15]
[445,"Škabrnja",13]
[447,"Šolta",17]
[449,"Špišić Bukovica",10]
[450,"Štefanje",7]
[452,"Štrigova",20]
[453,"Tinjan",18]
[454,"Tisno",15]
[455,"Plitvička Jezera",9]
[456,"Tompojevci",16]
[457,"Topusko",3]
[458,"Tordinci",16]
[459,"Tovarnik",16]
[460,"Trilj",17]
[461,"Trnava",14]
[462,"Trnovec Bartolovečki",5]
[463,"Trogir",17]
[464,"Trpinja",16]
[466,"Tuhelj",2]
[467,"Udbina",9]
[468,"Umag",18]
[469,"Unešić",15]
[471,"Valpovo",14]
[472,"Varaždin",5]
[473,"Varaždinske Toplice",5]
[474,"Vela Luka",19]
[475,"Velika",11]
[476,"Velika Kopanica",12]
[477,"Velika Ludina",3]
[478,"Velika Pisanica",7]
[480,"Veliki Grđevac",7]
[481,"Veliko Trgovišće",2]
[483,"Veliko Trojstvo",7]
[484,"Vidovec",5]
[485,"Viljevo",14]
[486,"Vinica",5]
[487,"Vinkovci",16]
[488,"Vinodolska Općina",8]
[489,"Vir",13]
[490,"Virje",6]
[491,"Virovitica",10]
[492,"Vis",17]
[493,"Visoko",5]
[494,"Viškovci",14]
[495,"Viškovo",8]
[497,"Višnjan",18]
[498,"Vižinada",18]
[499,"Voćin",10]
[500,"Vodice",15]
[502,"Vodnjan",18]
[503,"Vojnić",4]
[504,"Vratišinec",20]
[505,"Vrbanja",16]
[506,"Vrbje",12]
[507,"Vrbnik",8]
[508,"Vrbovec",1]
[509,"Vrbovsko",8]
[510,"Gvozd",3]
[511,"Vrgorac",17]
[512,"Vrhovine",9]
[513,"Vrlika",17]
[514,"Vrpolje",12]
[516,"Vrsar",18]
[517,"Vuka",14]
[518,"Vukovar",16]
[519,"Zabok",2]
[520,"Zadar",13]
[521,"Zagorska Sela",2]
[522,"Zagvozd",17]
[523,"Zažablje",19]
[524,"Zdenci",10]
[525,"Zemunik Donji",13]
[526,"Zlatar",2]
[527,"Zlatar-Bistrica",2]
[528,"Zmijavci",17]
[530,"Žakanje",4]
[531,"Žminj",18]
[533,"Krašić",1]
[534,"Županja",16]
[535,"Otok (Vinkovci)",16]
[536,"Rakovec",1]
[537,"Novigrad (kraj Zadra)",13]
[538,"Kostrena",8]
[539,"Marija Gorica",1]
[540,"Žumberak",1]
[541,"Velika Gorica",1]
[542,"Orle",1]
[543,"Zaprešić",1]
[544,"Pokupsko",1]
[545,"Kravarsko",1]
[547,"Bistra",1]
[548,"Luka",1]
[549,"Dubravica",1]
[550,"Bedenica",1]
[551,"Stupnik",1]
[552,"Jesenje",2]
[553,"Kumrovec",2]
[554,"Novi Golubovec",2]
[555,"Majur",3]
[556,"Ribnik",4]
[557,"Tounj",4]
[558,"Veliki Bukovec",5]
[559,"Kalinovac",6]
[560,"Kalnik",6]
[561,"Novo Virje",6]
[562,"Severin",7]
[564,"Šandrovac",7]
[565,"Velika Trnovitica",7]
[566,"Zrinski Topolovac",7]
[567,"Bukovlje",12]
[568,"Dragalić",12]
[569,"Gornja Vrba",12]
[570,"Sikirevci",12]
[571,"Galovac",13]
[572,"Kukljica",13]
[573,"Povljana",13]
[574,"Privlaka (kraj Zadra)",13]
[575,"Tkon",13]
[576,"Donja Motičina",14]
[578,"Magadenovac",14]
[579,"Vladislavci",14]
[581,"Pirovac",15]
[582,"Rogoznica",15]
[583,"Privlaka (kraj Vinkovaca)",16]
[584,"Vođinci",16]
[585,"Dugopolje",17]
[586,"Lećevica",17]
[587,"Lokvičići",17]
[588,"Okrug",17]
[589,"Prgomet",17]
[590,"Primorski Dolac",17]
[591,"Runovići",17]
[592,"Sutivan",17]
[593,"Tučepi",17]
[595,"Zadvarje",17]
[596,"Karojba",18]
[597,"Kaštelir - Labinci",18]
[598,"Dubrovačko Primorje",19]
[599,"Janjina",19]
[600,"Lumbarda",19]
[601,"Trpanj",19]
[602,"Župa Dubrovačka",19]
[603,"Dekanovec",20]
[604,"Gornji Mihaljevec",20]
[605,"Orehovica",20]
[606,"Strahoninec",20]
[607,"Sveta Marija",20]
[608,"Šenkovec",20]
[609,"Jagodnjak",14]
[610,"Markušica",16]
[612,"Negoslavci",16]
[614,"Šodolovci",14]
[616,"Podravske Sesvete",6]
[617,"Murter",15]
[618,"Gornja Reka",6]
[619,"Fažana",18]
[620,"Pribislavec",20]
[621,"Bilice",15]
[622,"Kolan",13]
[623,"Kamanje",4]
[624,"Lopar",8]
[625,"Vrsi",13]
[626,"Tribunj",15]
[628,"Štitar",16]
[629,"Funtana",18]
[631,"Tar-Vabriga",18]
[]
[]
[]
["0000","Fizičke osobe bez djelatnosti"]
["0111","Uzgoj žitarica (osim riže), mahunarki ..."]
["0112","Uzgoj riže"]
["0113","Uzgoj povrća, dinja i lubenica, korjen..."]
["0114","Uzgoj šećerne trske"]
["0115","Uzgoj duhana"]
["0116","Uzgoj predivog bilja "]
["0119","Uzgoj ostalih jednogodišnjih usjeva "]
["0121","Uzgoj grožđa "]
["0122","Uzgoj tropskog i suptropskog voća"]
["0123","Uzgoj agruma"]
["0124","Uzgoj jezgričavog i koštuničavog voća"]
["0125","Uzgoj bobičastog, orašastog i ostalog ..."]
["0126","Uzgoj uljanih plodova"]
["0127","Uzgoj usjeva za pripremanje napitaka"]
["0128","Uzgoj bilja za uporabu u farmaciji, ar..."]
["0129","Uzgoj ostalih višegodišnjih usjeva "]
["0130","Uzgoj sadnog materijala i ukrasnog bilja"]
["0141","Uzgoj muznih krava"]
["0142","Uzgoj ostalih goveda i bivola"]
["0143","Uzgoj konja, magaraca, mula i mazgi"]
["0144","Uzgoj deva i ljama"]
["0145","Uzgoj ovaca i koza"]
["0146","Uzgoj svinja"]
["0147","Uzgoj peradi"]
["0149","Uzgoj ostalih životinja"]
["0150","Mješovita proizvodnja"]
["0161","Pomoćne djelatnosti za uzgoj usjeva"]
["0162","Pomoćne djelatnosti za uzgoj životinja"]
["0163","Djelatnosti koje se obavljaju nakon že..."]
["0164","Dorada sjemena za sjemenski materijal"]
["0170","Lov, stupičarenje i uslužne djelatnost..."]
["0210","Uzgoj šuma i ostale djelatnosti u šuma..."]
["0220","Sječa drva "]
["0230","Skupljanje šumskih plodova i proizvoda..."]
["0240","Pomoćne usluge u šumarstvu"]
["0311","Morski ribolov"]
["0312","Slatkovodni ribolov"]
["0321","Morska akvakultura"]
["0322","Slatkovodna akvakultura"]
["0510","Vađenje kamenog ugljena"]
["0520","Vađenje lignita"]
["0610","Vađenje sirove nafte "]
["0620","Vađenje prirodnog plina"]
["0710","Vađenje željeznih ruda"]
["0721","Vađenje uranovih i torijevih ruda"]
["0729","Vađenje ostalih ruda obojenih metala"]
["0811","Vađenje ukrasnoga kamena i kamena za g..."]
["0812","Djelatnosti šljunčara i pješčara; vađe..."]
["0891","Vađenje minerala za kemikalije i gnojiva"]
["0892","Vađenje treseta"]
["0893","Vađenje soli"]
["0899","Vađenje ostalih ruda i kamena, d. n."]
["0910","Pomoćne djelatnosti za vađenje nafte i..."]
["0990","Pomoćne djelatnosti za ostalo rudarstv..."]
["1011","Prerada i konzerviranje mesa"]
["1012","Prerada i konzerviranje mesa peradi"]
["1013","Proizvodnja proizvoda od mesa i mesa p..."]
["1020","Prerada i konzerviranje riba, rakova i..."]
["1031","Prerada i konzerviranje krumpira"]
["1032","Proizvodnja sokova od voća i povrća"]
["1039","Ostala prerada i konzerviranje voća i ..."]
["1041","Proizvodnja ulja i masti"]
["1042","Proizvodnja margarina i sličnih jestiv..."]
["1051","Djelatnosti mljekara i proizvođača sira"]
["1052","Proizvodnja sladoleda"]
["1061","Proizvodnja mlinskih proizvoda"]
["1062","Proizvodnja škroba i škrobnih proizvoda"]
["1071","Proizvodnja kruha; proizvodnja svježih..."]
["1072","Proizvodnja dvopeka, keksa i srodnih p..."]
["1073","Proizvodnja makarona, njoka, kuskusa i..."]
["1081","Proizvodnja šećera"]
["1082","Proizvodnja kakao, čokoladnih i bombon..."]
["1083","Prerada čaja i kave"]
["1084","Proizvodnja začina i drugih dodataka h..."]
["1085","Proizvodnja gotove hrane i jela"]
["1086","Proizvodnja homogeniziranih prehramben..."]
["1089","Proizvodnja ostalih prehrambenih proiz..."]
["1091","Proizvodnja pripremljene stočne hrane"]
["1092","Proizvodnja pripremljene hrane za kućn..."]
["1101","Destiliranje, pročišćavanje i miješanj..."]
["1102","Proizvodnja vina od grožđa"]
["1103","Proizvodnja jabukovače i ostalih voćni..."]
["1104","Proizvodnja ostalih nedestiliranih fer..."]
["1105","Proizvodnja piva"]
["1106","Proizvodnja slada"]
["1107","Proizvodnja osvježavajućih napitaka; p..."]
["1200","Proizvodnja duhanskih proizvoda"]
["1310","Priprema i predenje tekstilnih vlakana"]
["1320","Tkanje tekstila"]
["1330","Dovršavanje tekstila"]
["1391","Proizvodnja pletenih i kukičanih tkanina"]
["1392","Proizvodnja gotovih tekstilnih proizvo..."]
["1393","Proizvodnja tepiha i sagova "]
["1394","Proizvodnja užadi, konopaca, upletenog..."]
["1395","Proizvodnja netkanog tekstila i proizv..."]
["1396","Proizvodnja ostaloga tehničkog i indus..."]
["1399","Proizvodnja ostalog tekstila, d. n."]
["1411","Proizvodnja kožne odjeće"]
["1412","Proizvodnja radne odjeće "]
["1413","Proizvodnja ostale vanjske odjeće"]
["1414","Proizvodnja rublja"]
["1419","Proizvodnja ostale odjeće i pribora za..."]
["1420","Proizvodnja proizvoda od krzna"]
["1431","Proizvodnja pletenih i kukičanih čarapa"]
["1439","Proizvodnja ostale pletene i kukičane ..."]
["1511","Štavljenje i obrada kože; dorada i boj..."]
["1512","Proizvodnja putnih i ručnih torba i sl..."]
["1520","Proizvodnja obuće"]
["1610","Piljenje i blanjanje drva"]
["1621","Proizvodnja furnira i ostalih ploča od..."]
["1622","Proizvodnja sastavljenog parketa"]
["1623","Proizvodnja ostale građevne stolarije ..."]
["1624","Proizvodnja ambalaže od drva"]
["1629","Proizvodnja ostalih proizvoda od drva,..."]
["1711","Proizvodnja celuloze"]
["1712","Proizvodnja papira i kartona"]
["1721","Proizvodnja valovitog papira i kartona..."]
["1722","Proizvodnja robe za kućanstvo i higije..."]
["1723","Proizvodnja uredskog materijala od pap..."]
["1724","Proizvodnja zidnih tapeta"]
["1729","Proizvodnja ostalih proizvoda od papir..."]
["1811","Tiskanje novina"]
["1812","Ostalo tiskanje "]
["1813","Usluge pripreme za tisak i objavljivanje"]
["1814","Knjigoveške i srodne usluge "]
["1820","Umnožavanje snimljenih zapisa"]
["1910","Proizvodnja proizvoda koksnih peći"]
["1920","Proizvodnja rafiniranih naftnih proizv..."]
["2011","Proizvodnja industrijskih plinova"]
["2012","Proizvodnja koloranata i pigmenata"]
["2013","Proizvodnja ostalih anorganskih osnovn..."]
["2014","Proizvodnja ostalih organskih osnovnih..."]
["2015","Proizvodnja gnojiva i dušičnih spojeva"]
["2016","Proizvodnja plastike u primarnim oblic..."]
["2017","Proizvodnja sintetičkoga kaučuka u pri..."]
["2020","Proizvodnja pesticida i drugih agrokem..."]
["2030","Proizvodnja boja, lakova i sličnih pre..."]
["2041","Proizvodnja sapuna i deterdženata, sre..."]
["2042","Proizvodnja parfema i toaletno-kozmeti..."]
["2051","Proizvodnja eksploziva"]
["2052","Proizvodnja ljepila "]
["2053","Proizvodnja eteričnih ulja"]
["2059","Proizvodnja ostalih kemijskih proizvod..."]
["2060","Proizvodnja umjetnih vlakana"]
["2110","Proizvodnja osnovnih farmaceutskih pro..."]
["2120","Proizvodnja farmaceutskih pripravaka"]
["2211","Proizvodnja vanjskih i unutrašnjih gum..."]
["2219","Proizvodnja ostalih proizvoda od gume"]
["2221","Proizvodnja ploča, listova, cijevi i p..."]
["2222","Proizvodnja ambalaže od plastike"]
["2223","Proizvodnja proizvoda od plastike za g..."]
["2229","Proizvodnja ostalih proizvoda od plast..."]
["2311","Proizvodnja ravnog stakla"]
["2312","Oblikovanje i obrada ravnog stakla"]
["2313","Proizvodnja šupljeg stakla"]
["2314","Proizvodnja staklenih vlakana"]
["2319","Proizvodnja i obrada ostalog stakla uk..."]
["2320","Proizvodnja vatrostalnih proizvoda"]
["2331","Proizvodnja keramičkih pločica i ploča"]
["2332","Proizvodnja opeke, crijepa i ostalih p..."]
["2341","Proizvodnja keramičkih proizvoda za ku..."]
["2342","Proizvodnja sanitarne keramike "]
["2343","Proizvodnja keramičkih izolatora i izo..."]
["2344","Proizvodnja ostalih tehničkih proizvod..."]
["2349","Proizvodnja ostalih proizvoda od keram..."]
["2351","Proizvodnja cementa"]
["2352","Proizvodnja vapna i gipsa "]
["2361","Proizvodnja proizvoda od betona za gra..."]
["2362","Proizvodnja proizvoda od gipsa za građ..."]
["2363","Proizvodnja gotove betonske smjese"]
["2364","Proizvodnja žbuke"]
["2365","Proizvodnja fibro-cementa"]
["2369","Proizvodnja ostalih proizvoda od beton..."]
["2370","Rezanje, oblikovanje i obrada kamena"]
["2391","Proizvodnja brusnih proizvoda"]
["2399","Proizvodnja ostalih nemetalnih mineral..."]
["2410","Proizvodnja sirovog željeza, čelika i ..."]
["2420","Proizvodnja čeličnih cijevi i pribora"]
["2431","Hladno vučenje šipki"]
["2432","Hladno valjanje uskih vrpci"]
["2433","Hladno oblikovanje i profiliranje "]
["2434","Hladno vučenje žice"]
["2441","Proizvodnja plemenitih metala"]
["2442","Proizvodnja aluminija"]
["2443","Proizvodnja olova, cinka i kositra"]
["2444","Proizvodnja bakra"]
["2445","Proizvodnja ostalih obojenih metala"]
["2446","Obrada nuklearnoga goriva"]
["2451","Lijevanje željeza"]
["2452","Lijevanje čelika"]
["2453","Lijevanje lakih metala"]
["2454","Lijevanje ostalih obojenih metala"]
["2511","Proizvodnja metalnih konstrukcija i nj..."]
["2512","Proizvodnja vrata i prozora od metala"]
["2521","Proizvodnja radijatora i kotlova za ce..."]
["2529","Proizvodnja ostalih metalnih cisterni,..."]
["2530","Proizvodnja parnih kotlova, osim kotlo..."]
["2540","Proizvodnja oružja i streljiva"]
["2550","Kovanje, prešanje, štancanje i valjanj..."]
["2561","Obrada i prevlačenje metala"]
["2562","Strojna obrada metala"]
["2571","Proizvodnja sječiva"]
["2572","Proizvodnja brava i okova"]
["2573","Proizvodnja alata"]
["2591","Proizvodnja čeličnih bačava i sličnih ..."]
["2592","Proizvodnja ambalaže od lakih metala"]
["2593","Proizvodnja proizvoda od žice, lanaca ..."]
["2594","Proizvodnja zakovica i vijčane robe"]
["2599","Proizvodnja ostalih gotovih proizvoda ..."]
["2611","Proizvodnja elektroničkih komponenata "]
["2612","Proizvodnja punih elektroničkih ploča"]
["2620","Proizvodnja računala i periferne opreme"]
["2630","Proizvodnja komunikacijske opreme"]
["2640","Proizvodnja elektroničkih uređaja za š..."]
["2651","Proizvodnja instrumenata i aparata za ..."]
["2652","Proizvodnja satova "]
["2660","Proizvodnja opreme za zračenje, elektr..."]
["2670","Proizvodnja optičkih instrumenata i fo..."]
["2680","Proizvodnja magnetskih i optičkih medija"]
["2711","Proizvodnja elektromotora, generatora ..."]
["2712","Proizvodnja uređaja za distribuciju i ..."]
["2720","Proizvodnja baterija i akumulatora"]
["2731","Proizvodnja kablova od optičkih vlakana"]
["2732","Proizvodnja ostalih elektroničkih i el..."]
["2733","Proizvodnja elektroinstalacijskog mate..."]
["2740","Proizvodnja električne opreme za rasvj..."]
["2751","Proizvodnja električnih aparata za kuć..."]
["2752","Proizvodnja neelektričnih aparata za k..."]
["2790","Proizvodnja ostale električne opreme"]
["2811","Proizvodnja motora i turbina, osim mot..."]
["2812","Proizvodnja hidrauličnih pogonskih ure..."]
["2813","Proizvodnja ostalih crpki i kompresora"]
["2814","Proizvodnja ostalih slavina i ventila"]
["2815","Proizvodnja ležajeva, prijenosnika te ..."]
["2821","Proizvodnja peći i plamenika"]
["2822","Proizvodnja uređaja za dizanje i preno..."]
["2823","Proizvodnja uredskih strojeva i opreme..."]
["2824","Proizvodnja mehaniziranoga ručnog alata"]
["2825","Proizvodnja rashladne i ventilacijske ..."]
["2829","Proizvodnja ostalih strojeva za opće n..."]
["2830","Proizvodnja strojeva za poljoprivredu ..."]
["2841","Proizvodnja strojeva za obradu metala"]
["2849","Proizvodnja ostalih alatnih strojeva"]
["2891","Proizvodnja strojeva za metalurgiju"]
["2892","Proizvodnja strojeva za rudnike, kamen..."]
["2893","Proizvodnja strojeva za industriju hra..."]
["2894","Proizvodnja strojeva za industriju tek..."]
["2895","Proizvodnja strojeva za industriju pap..."]
["2896","Proizvodnja strojeva za plastiku i gumu"]
["2899","Proizvodnja ostalih strojeva za posebn..."]
["2910","Proizvodnja motornih vozila"]
["2920","Proizvodnja karoserija za motorna vozi..."]
["2931","Proizvodnja električne i elektroničke ..."]
["2932","Proizvodnja ostalih dijelova i pribora..."]
["3011","Gradnja brodova i plutajućih objekata"]
["3012","Gradnja čamaca za razonodu i sportskih..."]
["3020","Proizvodnja željezničkih lokomotiva i ..."]
["3030","Proizvodnja zrakoplova i svemirskih le..."]
["3040","Proizvodnja vojnih borbenih vozila"]
["3091","Proizvodnja motocikala"]
["3092","Proizvodnja bicikala i invalidskih kol..."]
["3099","Proizvodnja ostalih prijevoznih sredst..."]
["3101","Proizvodnja namještaja za poslovne i p..."]
["3102","Proizvodnja kuhinjskog namještaja"]
["3103","Proizvodnja madraca"]
["3109","Proizvodnja ostalog namještaja"]
["3211","Proizvodnja novca"]
["3212","Proizvodnja nakita i srodnih proizvoda"]
["3213","Proizvodnja imitacije nakita (bižuteri..."]
["3220","Proizvodnja glazbenih instrumenata"]
["3230","Proizvodnja sportske opreme"]
["3240","Proizvodnja igara i igračaka"]
["3250","Proizvodnja medicinskih i stomatološki..."]
["3291","Proizvodnja metla i četaka"]
["3299","Ostala prerađivačka industrija, d. n. "]
["3311","Popravak proizvoda od metala"]
["3312","Popravak strojeva"]
["3313","Popravak elektroničke i optičke opreme"]
["3314","Popravak električne opreme"]
["3315","Popravak i održavanje brodova i čamaca"]
["3316","Popravak i održavanje zrakoplova i sve..."]
["3317","Popravak i održavanje ostalih prijevoz..."]
["3319","Popravak ostale opreme"]
["3320","Instaliranje industrijskih strojeva i ..."]
["3511","Proizvodnja električne energije"]
["3512","Prijenos električne energije"]
["3513","Distribucija električne energije"]
["3514","Trgovina električnom energijom"]
["3521","Proizvodnja plina"]
["3522","Distribucija plinovitih goriva distrib..."]
["3523","Trgovina plinom distribucijskom mrežom"]
["3530","Opskrba parom i klimatizacija"]
["3600","Skupljanje, pročišćavanje i opskrba vo..."]
["3700","Uklanjanje otpadnih voda"]
["3811","Skupljanje neopasnog otpada"]
["3812","Skupljanje opasnog otpada"]
["3821","Obrada i zbrinjavanje neopasnog otpada"]
["3822","Obrada i zbrinjavanje opasnog otpada"]
["3831","Rastavljanje olupina"]
["3832","Oporaba posebno izdvojenih materijala"]
["3900","Djelatnosti sanacije okoliša te ostale..."]
["4110","Organizacija izvedbe projekata za zgrade"]
["4120","Gradnja stambenih i nestambenih zgrada"]
["4211","Gradnja cesta i autocesta"]
["4212","Gradnja željezničkih pruga i podzemnih..."]
["4213","Gradnja mostova i tunela"]
["4221","Gradnja cjevovoda za tekućine i plinove"]
["4222","Gradnja vodova za električnu struju i ..."]
["4291","Gradnja vodnih građevina"]
["4299","Gradnja ostalih građevina niskogradnje..."]
["4311","Uklanjanje građevina"]
["4312","Pripremni radovi na gradilištu"]
["4313","Pokusno bušenje i sondiranje terena za..."]
["4321","Elektroinstalacijski radovi"]
["4322","Uvođenje instalacija vodovoda, kanaliz..."]
["4329","Ostali građevinski instalacijski radovi"]
["4331","Fasadni i štukaturski radovi"]
["4332","Ugradnja stolarije"]
["4333","Postavljanje podnih i zidnih obloga"]
["4334","Soboslikarski i staklarski radovi"]
["4339","Ostali završni građevinski radovi"]
["4391","Radovi na krovištu"]
["4399","Ostale specijalizirane građevinske dje..."]
["4511","Trgovina automobilima i motornim vozil..."]
["4519","Trgovina ostalim motornim vozilima"]
["4520","Održavanje i popravak motornih vozila"]
["4531","Trgovina na veliko dijelovima i pribor..."]
["4532","Trgovina na malo dijelovima i priborom..."]
["4540","Trgovina motociklima, dijelovima i pri..."]
["4611","Posredovanje u trgovini poljoprivredni..."]
["4612","Posredovanje u trgovini gorivima, ruda..."]
["4613","Posredovanje u trgovini drvom i građev..."]
["4614","Posredovanje u trgovini strojevima, in..."]
["4615","Posredovanje u trgovini namještajem, p..."]
["4616","Posredovanje u trgovini tekstilom, odj..."]
["4617","Posredovanje u trgovini hranom, pićima..."]
["4618","Posredovanje u trgovini specijaliziran..."]
["4619","Posredovanje u trgovini raznovrsnim pr..."]
["4621","Trgovina na veliko žitaricama, sirovim..."]
["4622","Trgovina na veliko cvijećem i sadnicama"]
["4623","Trgovina na veliko živom stokom"]
["4624","Trgovina na veliko sirovim i štavljeni..."]
["4631","Trgovina na veliko voćem i povrćem"]
["4632","Trgovina na veliko mesom i mesnim proi..."]
["4633","Trgovina na veliko mlijekom, mliječnim..."]
["4634","Trgovina na veliko pićima"]
["4635","Trgovina na veliko duhanskim proizvodima"]
["4636","Trgovina na veliko šećerom, čokoladom ..."]
["4637","Trgovina na veliko kavom, čajem, kakao..."]
["4638","Trgovina na veliko ostalom hranom uklj..."]
["4639","Nespecijalizirana trgovina na veliko h..."]
["4641","Trgovina na veliko tekstilom"]
["4642","Trgovina na veliko odjećom i obućom"]
["4643","Trgovina na veliko električnim aparati..."]
["4644","Trgovina na veliko porculanom, staklom..."]
["4645","Trgovina na veliko parfemima i kozmeti..."]
["4646","Trgovina na veliko farmaceutskim proiz..."]
["4647","Trgovina na veliko namještajem, sagovi..."]
["4648","Trgovina na veliko satovima i nakitom"]
["4649","Trgovina na veliko ostalim proizvodima..."]
["4651","Trgovina na veliko računalima, perifer..."]
["4652","Trgovina na veliko elektroničkim i tel..."]
["4661","Trgovina na veliko poljoprivrednim str..."]
["4662","Trgovina na veliko alatnim strojevima"]
["4663","Trgovina na veliko strojevima za rudni..."]
["4664","Trgovina na veliko strojevima za tekst..."]
["4665","Trgovina na veliko uredskim namještajem"]
["4666","Trgovina na veliko ostalim uredskim st..."]
["4669","Trgovina na veliko ostalim strojevima ..."]
["4671","Trgovina na veliko krutim, tekućim i p..."]
["4672","Trgovina na veliko metalima i metalnim..."]
["4673","Trgovina na veliko drvom, građevinskim..."]
["4674","Trgovina na veliko željeznom robom, in..."]
["4675","Trgovina na veliko kemijskim proizvodima"]
["4676","Trgovina na veliko ostalim poluproizvo..."]
["4677","Trgovina na veliko ostacima i otpacima"]
["4690","Nespecijalizirana trgovina na veliko "]
["4711","Trgovina na malo u nespecijaliziranim ..."]
["4719","Ostala trgovina na malo u nespecijaliz..."]
["4721","Trgovina na malo voćem i povrćem u spe..."]
["4722","Trgovina na malo mesom i mesnim proizv..."]
["4723","Trgovina na malo ribama, rakovima i šk..."]
["4724","Trgovina na malo kruhom, pecivom, kola..."]
["4725","Trgovina na malo pićima u specijalizir..."]
["4726","Trgovina na malo duhanskim proizvodima..."]
["4729","Ostala trgovina na malo prehrambenim p..."]
["4730","Trgovina na malo motornim gorivima i m..."]
["4741","Trgovina na malo računalima, periferni..."]
["4742","Trgovina na malo telekomunikacijskom o..."]
["4743","Trgovina na malo audio i videoopremom ..."]
["4751","Trgovina na malo tekstilom u specijali..."]
["4752","Trgovina na malo željeznom robom, boja..."]
["4753","Trgovina na malo sagovima i prostirači..."]
["4754","Trgovina na malo električnim aparatima..."]
["4759","Trgovina na malo namještajem, opremom ..."]
["4761","Trgovina na malo knjigama u specijaliz..."]
["4762","Trgovina na malo novinama, papirnatom ..."]
["4763","Trgovina na malo glazbenim i videozapi..."]
["4764","Trgovina na malo sportskom opremom u s..."]
["4765","Trgovina na malo igrama i igračkama u ..."]
["4771","Trgovina na malo odjećom u specijalizi..."]
["4772","Trgovina na malo obućom i proizvodima ..."]
["4773","Ljekarne "]
["4774","Trgovina na malo medicinskim pripravci..."]
["4775","Trgovina na malo kozmetičkim i toaletn..."]
["4776","Trgovina na malo cvijećem, sadnicama, ..."]
["4777","Trgovina na malo satovima i nakitom u ..."]
["4778","Ostala trgovina na malo novom robom u ..."]
["4779","Trgovina na malo rabljenom robom u spe..."]
["4781","Trgovina na malo hranom, pićima i duha..."]
["4782","Trgovina na malo tekstilom, odjećom i ..."]
["4789","Trgovina na malo ostalom robom na štan..."]
["4791","Trgovina na malo preko pošte ili inter..."]
["4799","Ostala trgovina na malo izvan prodavao..."]
["4910","Željeznički prijevoz putnika, međugrad..."]
["4920","Željeznički prijevoz robe"]
["4931","Gradski i prigradski kopneni prijevoz ..."]
["4932","Taksi služba"]
["4939","Ostali kopneni prijevoz putnika, d. n."]
["4941","Cestovni prijevoz robe"]
["4942","Usluge preseljenja"]
["4950","Cjevovodni transport"]
["5010","Pomorski i obalni prijevoz putnika"]
["5020","Pomorski i obalni prijevoz robe"]
["5030","Prijevoz putnika unutrašnjim vodenim p..."]
["5040","Prijevoz robe unutrašnjim vodenim puto..."]
["5110","Zračni prijevoz putnika"]
["5121","Zračni prijevoz robe"]
["5122","Svemirski prijevoz"]
["5210","Skladištenje robe"]
["5221","Uslužne djelatnosti u vezi s kopnenim ..."]
["5222","Uslužne djelatnosti u vezi s vodenim p..."]
["5223","Uslužne djelatnosti u vezi sa zračnim ..."]
["5224","Prekrcaj tereta"]
["5229","Ostale prateće djelatnosti u prijevozu"]
["5310","Djelatnosti pružanja univerzalnih pošt..."]
["5320","Djelatnosti pružanja ostalih poštanski..."]
["5510","Hoteli i sličan smještaj"]
["5520","Odmarališta i slični objekti za kraći ..."]
["5530","Kampovi i prostori za kampiranje"]
["5590","Ostali smještaj"]
["5610","Djelatnosti restorana i ostalih objeka..."]
["5621","Djelatnosti keteringa"]
["5629","Ostale djelatnosti pripreme i usluživa..."]
["5630","Djelatnosti pripreme i usluživanja pića"]
["5811","Izdavanje knjiga"]
["5812","Izdavanje imenika i popisa korisničkih..."]
["5813","Izdavanje novina"]
["5814","Izdavanje časopisa i periodičnih publi..."]
["5819","Ostala izdavačka djelatnost"]
["5821","Izdavanje računalnih igara"]
["5829","Izdavanje ostalog softvera"]
["5911","Proizvodnja filmova, videofilmova i te..."]
["5912","Djelatnosti koje slijede nakon proizvo..."]
["5913","Distribucija filmova, videofilmova i t..."]
["5914","Djelatnosti prikazivanja filmova"]
["5920","Djelatnosti snimanja zvučnih zapisa i ..."]
["6010","Emitiranje radijskog programa"]
["6020","Emitiranje televizijskog programa"]
["6110","Djelatnosti žičane telekomunikacije"]
["6120","Djelatnosti bežične telekomunikacije"]
["6130","Djelatnosti satelitske telekomunikacije"]
["6190","Ostale telekomunikacijske djelatnosti"]
["6201","Računalno programiranje"]
["6202","Savjetovanje u vezi s računalima"]
["6203","Upravljanje računalnom opremom i susta..."]
["6209","Ostale uslužne djelatnosti u vezi s in..."]
["6311","Obrada podataka, usluge poslužitelja i..."]
["6312","Internetski portali"]
["6391","Djelatnosti novinskih agencija"]
["6399","Ostale informacijske uslužne djelatnos..."]
["6411","Središnje bankarstvo"]
["6419","Ostalo novčarsko posredovanje"]
["6420","Djelatnosti holding-društava"]
["6430","Uzajamni fondovi (trustovi), ostali fo..."]
["6491","Financijski leasing"]
["6492","Ostalo kreditno posredovanje"]
["6499","Ostale financijske uslužne djelatnosti..."]
["6511","Životno osiguranje"]
["6512","Ostalo osiguranje"]
["6520","Reosiguranje"]
["6530","Mirovinski fondovi"]
["6611","Poslovanje financijskih tržišta"]
["6612","Djelatnosti posredovanja u poslovanju ..."]
["6619","Ostale pomoćne djelatnosti kod financi..."]
["6621","Procjena rizika i štete"]
["6622","Djelatnosti agenata i posrednika osigu..."]
["6629","Ostale pomoćne djelatnosti u osiguranj..."]
["6630","Djelatnosti upravljanja fondovima"]
["6810","Kupnja i prodaja vlastitih nekretnina"]
["6820","Iznajmljivanje i upravljanje vlastitim..."]
["6831","Agencije za poslovanje nekretninama"]
["6832","Upravljanje nekretninama uz naplatu il..."]
["6910","Pravne djelatnosti"]
["6920","Računovodstvene, knjigovodstvene i rev..."]
["7010","Upravljačke djelatnosti"]
["7021","Odnosi s javnošću i djelatnosti priopć..."]
["7022","Savjetovanje u vezi s poslovanjem i os..."]
["7111","Arhitektonske djelatnosti"]
["7112","Inženjerstvo i s njim povezano tehničk..."]
["7120","Tehničko ispitivanje i analiza"]
["7211","Istraživanje i eksperimentalni razvoj ..."]
["7219","Ostalo istraživanje i eksperimentalni ..."]
["7220","Istraživanje i eksperimentalni razvoj ..."]
["7311","Agencije za promidžbu (reklamu i propa..."]
["7312","Oglašavanje preko medija"]
["7320","Istraživanje tržišta i ispitivanje jav..."]
["7410","Specijalizirane dizajnerske djelatnosti"]
["7420","Fotografske djelatnosti"]
["7430","Prevoditeljske djelatnosti i usluge tu..."]
["7490","Ostale stručne, znanstvene i tehničke ..."]
["7500","Veterinarske djelatnosti"]
["7711","Iznajmljivanje i davanje u zakup (leas..."]
["7712","Iznajmljivanje i davanje u zakup (leas..."]
["7721","Iznajmljivanje i davanje u zakup (lea­..."]
["7722","Iznajmljivanje videokaseta i diskova"]
["7729","Iznajmljivanje i davanje u zakup (leas..."]
["7731","Iznajmljivanje i davanje u zakup (leas..."]
["7732","Iznajmljivanje i davanje u zakup (leas..."]
["7733","Iznajmljivanje i davanje u zakup (leas..."]
["7734","Iznajmljivanje i davanje u zakup (leas..."]
["7735","Iznajmljivanje i davanje u zakup (leas..."]
["7739","Iznajmljivanje i davanje u zakup (leas..."]
["7740","Davanje u zakup (leasing) prava na upo..."]
["7810","Djelatnosti agencija za zapošljavanje"]
["7820","Djelatnosti agencija za privremeno zap..."]
["7830","Ostalo ustupanje ljudskih resursa"]
["7911","Djelatnosti putničkih agencija"]
["7912","Djelatnosti organizatora putovanja (tu..."]
["7990","Ostale rezervacijske usluge i djelatno..."]
["8010","Djelatnosti privatne zaštite"]
["8020","Usluge zaštite uz pomoć sigurnosnih su..."]
["8030","Istražne djelatnosti"]
["8110","Upravljanje zgradama"]
["8121","Osnovno čišćenje zgrada"]
["8122","Ostale djelatnosti čišćenja zgrada i o..."]
["8129","Ostale djelatnosti čišćenja"]
["8130","Uslužne djelatnosti uređenja i održava..."]
["8211","Kombinirane uredske administrativne us..."]
["8219","Fotokopiranje, priprema dokumenata i o..."]
["8220","Djelatnosti pozivnih centara"]
["8230","Organizacija sastanaka i poslovnih saj..."]
["8291","Djelatnosti agencija za prikupljanje i..."]
["8292","Djelatnosti pakiranja"]
["8299","Ostale poslovne pomoćne uslužne djelat..."]
["8411","Opće djelatnosti javne uprave"]
["8412","Reguliranje djelatnosti subjekata koji..."]
["8413","Reguliranje i poboljšavanje poslovanja..."]
["8421","Vanjski poslovi"]
["8422","Poslovi obrane"]
["8423","Sudske i pravosudne djelatnosti"]
["8424","Poslovi javnog reda i sigurnosti"]
["8425","Djelatnosti vatrogasne službe"]
["8430","Djelatnosti obveznoga socijalnog osigu..."]
["8510","Predškolsko obrazovanje"]
["8520","Osnovno obrazovanje"]
["8531","Opće srednje obrazovanje"]
["8532","Tehničko i strukovno srednje obrazovanje"]
["8541","Obrazovanje nakon srednjeg koje nije v..."]
["8542","Visoko obrazovanje "]
["8551","Obrazovanje i poučavanje u području sp..."]
["8552","Obrazovanje i poučavanje u području ku..."]
["8553","Djelatnosti vozačkih škola"]
["8559","Ostalo obrazovanje i poučavanje, d. n."]
["8560","Pomoćne uslužne djelatnosti u obrazova..."]
["8610","Djelatnosti bolnica"]
["8621","Djelatnosti opće medicinske prakse"]
["8622","Djelatnosti specijalističke medicinske..."]
["8623","Djelatnosti stomatološke prakse"]
["8690","Ostale djelatnosti zdravstvene zaštite"]
["8710","Djelatnosti ustanova za njegu"]
["8720","Djelatnosti socijalne skrbi sa smješta..."]
["8730","Djelatnosti socijalne skrbi sa smješta..."]
["8790","Ostale djelatnosti socijalne skrbi sa ..."]
["8810","Djelatnosti socijalne skrbi bez smješt..."]
["8891","Djelatnosti dnevne skrbi o djeci"]
["8899","Ostale djelatnosti socijalne skrbi bez..."]
["9001","Izvođačka umjetnost"]
["9002","Pomoćne djelatnosti u izvođačkoj umjet..."]
["9003","Umjetničko stvaralaštvo"]
["9004","Rad umjetničkih objekata"]
["9101","Djelatnosti knjižnica i arhiva"]
["9102","Djelatnosti muzeja"]
["9103","Rad povijesnih mjesta i građevina te s..."]
["9104","Djelatnosti botaničkih i zooloških vrt..."]
["9200","Djelatnosti kockanja i klađenja"]
["9311","Rad sportskih objekata"]
["9312","Djelatnosti sportskih klubova"]
["9313","Fitnes centri"]
["9319","Ostale sportske djelatnosti"]
["9321","Djelatnosti zabavnih i tematskih parkova"]
["9329","Ostale zabavne i rekreacijske djelatno..."]
["9411","Djelatnosti poslovnih organizacija i o..."]
["9412","Djelatnosti strukovnih članskih organi..."]
["9420","Djelatnosti sindikata"]
["9491","Djelatnosti vjerskih organizacija"]
["9492","Djelatnosti političkih organizacija"]
["9499","Djelatnosti ostalih članskih organizac..."]
["9511","Popravak računala i periferne opreme"]
["9512","Popravak komunikacijske opreme"]
["9521","Popravak elektroničkih uređaja za širo..."]
["9522","Popravak aparata za kućanstvo te oprem..."]
["9523","Popravak obuće i proizvoda od kože"]
["9524","Popravak namještaja i pokućstva"]
["9525","Popravak satova i nakita"]
["9529","Popravak ostalih predmeta za osobnu up..."]
["9601","Pranje i kemijsko čišćenje tekstila i ..."]
["9602","Frizerski saloni i saloni za uljepšava..."]
["9603","Pogrebne i srodne djelatnosti"]
["9604","Djelatnosti za njegu i održavanje tijela"]
["9609","Ostale osobne uslužne djelatnosti, d. n."]
["9700","Djelatnosti kućanstava koja zapošljava..."]
["9810","Djelatnosti privatnih kućanstava koja ..."]
["9820","Djelatnosti privatnih kućanstava koja ..."]
["9900","Djelatnosti izvanteritorijalnih organi..."]
[]
[]
[]
[4,"Afganistan"]
[8,"Albanija"]
[10,"Antarktika"]
[12,"Alžir"]
[16,"Američka Samoa"]
[20,"Andora"]
[24,"Angola"]
[28,"Antigva i Barbuda"]
[31,"Azerbajdžan"]
[32,"Argentina"]
[36,"Australija"]
[40,"Austrija"]
[44,"Bahami"]
[48,"Bahrein"]
[50,"Bangladeš"]
[51,"Armenija"]
[52,"Barbados"]
[56,"Belgija"]
[60,"Bermudi"]
[64,"Butan"]
[68,"Bolivija, Plurinacionalna Država"]
[70,"Bosna i Hercegovina"]
[72,"Bocvana"]
[74,"Otok Bouvet"]
[76,"Brazil"]
[84,"Belize"]
[86,"Britanski Indijskooceanski Teritorij"]
[90,"Solomonski Otoci"]
[92,"Britanski Djevičanski Otoci"]
[95,"Kosovo"]
[96,"Brunej"]
[100,"Bugarska"]
[104,"Mijanmar"]
[108,"Burundi"]
[112,"Bjelorusija"]
[116,"Kambodža"]
[120,"Kamerun"]
[124,"Kanada"]
[132,"Zelenortska Republika"]
[136,"Kajmanski Otoci"]
[140,"Srednjoafrička Republika"]
[144,"Šri Lanka"]
[148,"Čad"]
[152,"Čile"]
[156,"Kina"]
[158,"Tajvan, Kineska Provincija"]
[162,"Božićni Otok"]
[166,"Kokosovi Otoci (Keeling)"]
[170,"Kolumbija"]
[174,"Komori"]
[175,"Mayotte"]
[178,"Kongo"]
[180,"Kongo, Demokratska Republika"]
[184,"Kukovi Otoci"]
[188,"Kostarika"]
[192,"Kuba"]
[196,"Cipar"]
[203,"Češka"]
[204,"Benin"]
[208,"Danska"]
[212,"Dominika"]
[214,"Dominikanska Republika"]
[218,"Ekvador"]
[222,"Salvador"]
[226,"Ekvatorska Gvineja"]
[231,"Etiopija"]
[232,"Eritreja"]
[233,"Estonija"]
[234,"Ferojski (Ovčji) Otoci"]
[238,"Falklandi (Malvini)"]
[239,"Južna Džordžija i Otoci Južni Sendvič"]
[242,"Fidži"]
[246,"Finska"]
[248,"Otoci Aland"]
[250,"Francuska"]
[254,"Francuska Gvajana"]
[258,"Francuska Polinezija"]
[260,"Francuski Južni Teritoriji"]
[262,"Džibuti"]
[266,"Gabon"]
[268,"Gruzija"]
[270,"Gambija"]
[275,"Palestina, država"]
[276,"Njemačka"]
[288,"Gana"]
[292,"Gibraltar"]
[296,"Kiribati"]
[300,"Grčka"]
[304,"Grenland"]
[308,"Grenada"]
[312,"Guadeloupe"]
[316,"Guam"]
[320,"Gvatemala"]
[324,"Gvineja"]
[328,"Gvajana"]
[332,"Haiti"]
[334,"Otok Heard i Otoci McDonald"]
[336,"Sveta Stolica (Država Vatikanskog Grada)"]
[340,"Honduras"]
[344,"Hong Kong"]
[348,"Mađarska"]
[352,"Island"]
[356,"Indija"]
[360,"Indonezija"]
[364,"Iran, Islamska Republika"]
[368,"Irak"]
[372,"Irska"]
[376,"Izrael"]
[380,"Italija"]
[384,"Bjelokosna Obala"]
[388,"Jamajka"]
[392,"Japan"]
[398,"Kazahstan"]
[400,"Jordan"]
[404,"Kenija"]
[408,"Koreja, Demokratska Narodna Republika"]
[410,"Koreja, Republika"]
[414,"Kuvajt"]
[417,"Kirgistan"]
[418,"Laos, Narodna Demokratska Republika"]
[422,"Libanon"]
[426,"Lesoto"]
[428,"Letonija"]
[430,"Liberija"]
[434,"Libija"]
[438,"Lihtenštajn"]
[440,"Litva"]
[442,"Luksemburg"]
[446,"Makao"]
[450,"Madagaskar"]
[454,"Malavi"]
[458,"Malezija"]
[462,"Maldivi"]
[466,"Mali"]
[470,"Malta"]
[474,"Martinique"]
[478,"Mauritanija"]
[480,"Mauricijus"]
[484,"Meksiko"]
[492,"Monako"]
[496,"Mongolija"]
[498,"Moldavija, Republika"]
[499,"Crna Gora"]
[500,"Montserrat"]
[504,"Maroko"]
[508,"Mozambik"]
[512,"Oman"]
[516,"Namibija"]
[520,"Nauru"]
[524,"Nepal"]
[528,"Nizozemska"]
[531,"Curaçao"]
[533,"Aruba"]
[534,"Sveti Martin (nizozemski dio)"]
[535,"Bonaire, Sint Eustatius i Saba"]
[540,"Nova Kaledonija"]
[548,"Vanuatu"]
[554,"Novi Zeland"]
[558,"Nikaragva"]
[562,"Niger"]
[566,"Nigerija"]
[570,"Niue"]
[574,"Otok Norfolk"]
[578,"Norveška"]
[580,"Sjeverni Marijanski Otoci"]
[581,"Ujedinjene Države Manjih Pacifičkih Otoka"]
[583,"Mikronezija, Savezne Države"]
[584,"Maršalovi Otoci"]
[585,"Palau"]
[586,"Pakistan"]
[591,"Panama"]
[598,"Papua Nova Gvineja"]
[600,"Paragvaj"]
[604,"Peru"]
[608,"Filipini"]
[612,"Pitcairn"]
[616,"Poljska"]
[620,"Portugal"]
[624,"Gvineja Bisau"]
[626,"Timor Leste"]
[630,"Portoriko"]
[634,"Katar"]
[638,"Réunion"]
[642,"Rumunjska"]
[643,"Rusija"]
[646,"Ruanda"]
[652,"Sveti Bartolomej"]
[654,"Sveta Helena, Ascension i Tristan da Cunha"]
[659,"Sveti Kristofor i Nevis"]
[660,"Anguilla"]
[662,"Sveta Lucija"]
[663,"Sveti Martin"]
[666,"Sveti Petar i Mikelon"]
[670,"Sveti Vincent i Grenadini"]
[674,"San Marino"]
[678,"Sveti Toma i Prinsipe"]
[682,"Saudijska Arabija"]
[686,"Senegal"]
[688,"Srbija"]
[690,"Sejšeli"]
[694,"Sijera Leone"]
[702,"Singapur"]
[703,"Slovačka"]
[704,"Vijetnam"]
[705,"Slovenija"]
[706,"Somalija"]
[710,"Južnoafrička Republika"]
[716,"Zimbabve"]
[724,"Španjolska"]
[728,"Južni Sudan"]
[729,"Sudan"]
[732,"Zapadna Sahara"]
[740,"Surinam"]
[744,"Svalbard i Jan Mayen"]
[748,"Svazi"]
[752,"Švedska"]
[756,"Švicarska"]
[760,"Sirija"]
[762,"Tadžikistan"]
[764,"Tajland"]
[768,"Togo"]
[772,"Tokelau"]
[776,"Tonga"]
[780,"Trinidad i Tobago"]
[784,"Ujedinjeni Arapski Emirati"]
[788,"Tunis"]
[792,"Turska"]
[795,"Turkmenistan"]
[796,"Otoci Turks i Caicos"]
[798,"Tuvalu"]
[800,"Uganda"]
[804,"Ukrajina"]
[807,"Makedonija"]
[818,"Egipat"]
[826,"Velika Britanija"]
[831,"Guernsey"]
[832,"Jersey"]
[833,"Otok Man"]
[834,"Tanzanija, Ujedinjena Republika"]
[840,"SAD"]
[850,"Američki Djevičanski Otoci"]
[854,"Burkina Faso"]
[858,"Urugvaj"]
[860,"Uzbekistan"]
[862,"Venezuela, Bolivarijanska Republika"]
[876,"Wallis i Futuna"]
[882,"Samoa"]
[887,"Jemen"]
[894,"Zambija"]

{"sheet":"Bilanca","index":3,"n_rows":136,"n_cols":18,"rows_kept":136,"cut":false,"hidden":false,"merged":[[4,0,4,7],[4,8,4,9],[135,0,135,5],[128,0,128,5],[129,0,129,5],[130,0,130,5],[131,0,131,5],[132,0,132,5],[133,0,133,5],[120,0,120,5],[121,0,121,5],[122,0,122,5],[91,0,91,5],[119,0,119,5],[106,0,106,5],[113,0,113,5],[107,0,107,5],[112,0,112,5],[111,0,111,5],[101,0,101,5],[134,0,134,5],[114,0,114,5],[115,0,115,5],[116,0,116,5],[127,0,127,5],[117,0,117,5],[118,0,118,5],[125,0,125,5],[126,0,126,5],[124,0,124,5],[109,0,109,5],[104,0,104,5],[105,0,105,5],[102,0,102,5],[103,0,103,5],[100,0,100,5],[84,0,84,5],[80,0,80,5],[82,0,82,5],[83,0,83,5],[78,0,78,5],[79,0,79,5],[81,0,81,5],[123,0,123,5],[110,0,110,5],[15,0,15,5],[24,0,24,5],[25,0,25,5],[95,0,95,5],[97,0,97,5],[96,0,96,5],[89,0,89,5],[86,0,86,5],[12,0,12,5],[7,0,7,9],[13,0,13,5],[14,0,14,5],[8,0,8,5],[9,0,9,5],[10,0,10,5],[11,0,11,5],[1,9,2,9],[1,0,1,8],[2,0,2,8],[68,0,68,5],[5,0,5,5],[6,0,6,5],[18,0,18,5],[19,0,19,5],[26,0,26,5],[27,0,27,5],[87,0,87,5],[98,0,98,5],[108,0,108,5],[90,0,90,5],[99,0,99,5],[88,0,88,5],[92,0,92,5],[93,0,93,5],[94,0,94,5],[16,0,16,5],[17,0,17,5],[41,0,41,5],[20,0,20,5],[21,0,21,5],[33,0,33,5],[34,0,34,5],[40,0,40,5],[22,0,22,5],[39,0,39,5],[58,0,58,5],[47,0,47,5],[30,0,30,5],[31,0,31,5],[57,0,57,5],[56,0,56,5],[45,0,45,5],[32,0,32,5],[46,0,46,5],[55,0,55,5],[50,0,50,5],[51,0,51,5],[23,0,23,5],[28,0,28,5],[29,0,29,5],[36,0,36,5],[35,0,35,5],[37,0,37,5],[43,0,43,5],[38,0,38,5],[42,0,42,5],[85,0,85,5],[44,0,44,5],[52,0,52,5],[53,0,53,5],[54,0,54,5],[48,0,48,5],[49,0,49,5],[65,0,65,5],[73,0,73,5],[63,0,63,5],[64,0,64,5],[66,0,66,5],[59,0,59,5],[60,0,60,5],[61,0,61,5],[62,0,62,5],[76,0,76,5],[77,0,77,5],[67,0,67,5],[74,0,74,9],[71,0,71,5],[72,0,72,5],[69,0,69,5],[70,0,70,5],[75,0,75,5]]}
["Navigacija","Naslovna","RefStr","Bilanca","RDG","Dodatni","NT_I","NT_D","PK","Kont",null,null,null,null,null,null,{"$f":"MAX(Q2:Q3)","v":1},"- ako je bilo koji AOP različit od nule 1 u suprotnom 0"]
["BILANCA",null,null,null,null,null,null,null,null,"Obrazac\nPOD-BIL",null,null,null,null,null,null,{"$f":"IF(OR(MIN(I9:I136)<0,MAX(I9:I136)>0),1,0)","v":1},"- ako je upisan bilo koji AOP u koloni prethodne godine, 1 u suprotnom 0"]
[{"$f":" \"stanje na dan \" & IF(RefStr!F4<>\"\", TEXT(RefStr!F4, \"DD.MM.YYYY.\"),\"__.__.____.\")","v":"stanje na dan 31.12.2024."},null,null,null,null,null,null,null,null,null,null,null,null,null,null,null,{"$f":"IF(OR(MIN(J9:J136)<0,MAX(J9:J136)>0),1,0)","v":1},"- ako je upisan bilo koji AOP u koloni tekuće godine 1 u suprotnom 0"]
[]
[{"$f":"\"Obveznik: \"&IF(RefStr!C27<>\"\",RefStr!C27,\"________\") & \"; \" & IF(RefStr!C29<>\"\",RefStr!C29,\"_________________\"&\"; \"&IF(RefStr!F31<>\"\",RefStr!F31,\"_______________\"))","v":"Obveznik: 48188420009; Zračna luka Osijek d.o.o."},null,null,null,null,null,null,null,"Iznosi u eurima i centima",null,null,null,null,null,null,null,{"$f":"IF(I99<>0,1,0)","v":0}," - ako je bilo što upisano u konsolidirana polja u kolonu prethodne godine 1, u suprotnom nula"]
["Naziv pozicije",null,null,null,null,null,"AOP\noznaka","Rbr. \nbilješke","Prethodna godina\n(neto)","Tekuća godina\n(neto)",null,null,null,null,null,null,{"$f":"IF(J99<>0,1,0)","v":0},"- ako je bilo što upisano u konsolidirana polja u kolonu tekuće godine 1, u suprotnom nula"]
[1,null,null,null,null,null,2,3,4,5]
["AKTIVA"]
["A)  POTRAŽIVANJA ZA UPISANI A NEUPLAĆENI KAPITAL",null,null,null,null,null,1,null,null,null,null,"+"]
["B)  DUGOTRAJNA IMOVINA (AOP 003+010+020+031+036)",null,null,null,null,null,2,null,{"$f":"ROUND(I11+I18+I28+I39+I44,2)","v":13185733.119999999},{"$f":"ROUND(J11+J18+J28+J39+J44,2)","v":13933876.75},null,"+"]
["I. NEMATERIJALNA IMOVINA (AOP 004 do 009)",null,null,null,null,null,3,null,{"$f":"ROUND(SUM(I12:I17),2)","v":213753.07},{"$f":"ROUND(SUM(J12:J17),2)","v":161966.67000000001},null,"+"]
["    1. Izdaci za razvoj",null,null,null,null,null,4,null,null,null,null,"+"]
["    2. Koncesije, patenti, licencije, robne i uslužne marke, softver\n        i ostala prava",null,null,null,null,null,5,null,213753.07,161966.67000000001,null,"+"]
["    3. Goodwill",null,null,null,null,null,6,null,null,null,null,"+"]
["    4. Predujmovi za nabavu nematerijalne imovine",null,null,null,null,null,7,null,null,null,null,"+"]
["    5. Nematerijalna imovina u pripremi",null,null,null,null,null,8,null,null,null,null,"+"]
["    6. Ostala nematerijalna imovina",null,null,null,null,null,9,null,null,null,null,"+"]
["II. MATERIJALNA IMOVINA (AOP 011 do 019)",null,null,null,null,null,10,null,{"$f":"ROUND(SUM(I19:I27),2)","v":12957889.09},{"$f":"ROUND(SUM(J19:J27),2)","v":13757819.119999999},null,"+"]
["    1. Zemljište",null,null,null,null,null,11,null,2033855.94,2033675.41,null,"+"]
["    2. Građevinski objekti",null,null,null,null,null,12,null,8124824.6799999997,8177749.5,null,"+"]
["    3. Postrojenja i oprema ",null,null,null,null,null,13,null,671411.7,653630.99,null,"+"]
["    4. Alati, pogonski inventar i transportna imovina",null,null,null,null,null,14,null,419900.94,364871.63,null,"+"]
["    5. Biološka imovina",null,null,null,null,null,15,null,null,null,null,"+"]
["    6. Predujmovi za materijalnu imovinu",null,null,null,null,null,16,null,905945,796417.62,null,"+"]
["    7. Materijalna imovina u pripremi",null,null,null,null,null,17,null,784552.17,1714142.95,null,"+"]
["    8. Ostala materijalna imovina",null,null,null,null,null,18,null,17398.66,17331.02,null,"+"]
["    9. Ulaganje u nekretnine",null,null,null,null,null,19,null,null,null,null,"+"]
["III. DUGOTRAJNA FINANCIJSKA IMOVINA (AOP 021 do 030)",null,null,null,null,null,20,null,{"$f":"ROUND(SUM(I29:I38),2)","v":14090.96},{"$f":"ROUND(SUM(J29:J38),2)","v":14090.96},null,"+"]
["     1. Ulaganja u udjele (dionice) poduzetnika unutar grupe",null,null,null,null,null,21,null,null,null,null,"+"]
["     2. Ulaganja u ostale vrijednosne papire poduzetnika unutar grupe",null,null,null,null,null,22,null,null,null,null,"+"]
["     3. Dani zajmovi, depoziti i slično poduzetnicima unutar grupe",null,null,null,null,null,23,null,null,null,null,"+"]
["     4.Ulaganja u udjele (dionice) društava povezanih sudjelujućim\n         interesom",null,null,null,null,null,24,null,null,null,null,"+"]
["     5. Ulaganja u ostale vrijednosne papire društava povezanih\n         sudjelujućim interesom",null,null,null,null,null,25,null,9210.9599999999991,9210.9599999999991,null,"+"]
["     6. Dani zajmovi, depoziti i slično društvima povezanim\n         sudjelujućim interesom",null,null,null,null,null,26,null,null,null,null,"+"]
["     7. Ulaganja u vrijednosne papire",null,null,null,null,null,27,null,null,null,null,"+"]
["     8. Dani zajmovi, depoziti i slično",null,null,null,null,null,28,null,4880,4880,null,"+"]
["     9. Ostala ulaganja koja se obračunavaju metodom udjela",null,null,null,null,null,29,null,null,null,null,"+"]
["   10.  Ostala dugotrajna financijska imovina",null,null,null,null,null,30,null,null,null,null,"+"]
["IV. POTRAŽIVANJA (AOP 032 do 035)",null,null,null,null,null,31,null,{"$f":"ROUND(SUM(I40:I43),2)","v":0},{"$f":"ROUND(SUM(J40:J43),2)","v":0},null,"+"]
["     1. Potraživanja od poduzetnika unutar grupe ",null,null,null,null,null,32,null,null,null,null,"+"]
["     2. Potraživanja od društava povezanih sudjelujućim interesom ",null,null,null,null,null,33,null,null,null,null,"+"]
["     3. Potraživanja od kupaca ",null,null,null,null,null,34,null,null,null,null,"+"]
["     4. Ostala potraživanja",null,null,null,null,null,35,null,null,null,null,"+"]
["V. ODGOĐENA POREZNA IMOVINA",null,null,null,null,null,36,null,null,null,null,"+"]
["C)  KRATKOTRAJNA IMOVINA (AOP 038+046+053+063)",null,null,null,null,null,37,null,{"$f":"ROUND(I46+I54+I61+I71,2)","v":309542.53000000003},{"$f":"ROUND(J46+J54+J61+J71,2)","v":707761.76},null,"+"]
["I. ZALIHE (AOP 039 do 045)",null,null,null,null,null,38,null,{"$f":"ROUND(SUM(I47:I53),2)","v":25755.93},{"$f":"ROUND(SUM(J47:J53),2)","v":33484.17},null,"+"]
["    1. Sirovine i materijal",null,null,null,null,null,39,null,20129,22377.86,null,"+"]
["    2. Proizvodnja u tijeku",null,null,null,null,null,40,null,null,null,null,"+"]
["    3. Gotovi proizvodi",null,null,null,null,null,41,null,null,null,null,"+"]
["    4. Trgovačka roba",null,null,null,null,null,42,null,5626.93,11106.31,null,"+"]
["    5. Predujmovi za zalihe",null,null,null,null,null,43,null,null,null,null,"+"]
["    6. Dugotrajna imovina namijenjena prodaji",null,null,null,null,null,44,null,null,null,null,"+"]
["    7. Biološka imovina",null,null,null,null,null,45,null,null,null,null,"+"]
["II. POTRAŽIVANJA (AOP 047 do 052)",null,null,null,null,null,46,null,{"$f":"ROUND(SUM(I55:I60),2)","v":232882.22},{"$f":"ROUND(SUM(J55:J60),2)","v":314734.90999999997},null,"+"]
["    1. Potraživanja od poduzetnika unutar grupe ",null,null,null,null,null,47,null,null,null,null,"+"]
["    2. Potraživanja od društava povezanih sudjelujućim interesom",null,null,null,null,null,48,null,null,null,null,"+"]
["    3. Potraživanja od kupaca",null,null,null,null,null,49,null,189519.47,257518.11,null,"+"]
["    4. Potraživanja od zaposlenika i članova poduzetnika",null,null,null,null,null,50,null,null,null,null,"+"]
["    5. Potraživanja od države i drugih institucija",null,null,null,null,null,51,null,37092.46,47020.05,null,"+"]
["    6. Ostala potraživanja",null,null,null,null,null,52,null,6270.29,10196.75,null,"+"]
["III. KRATKOTRAJNA FINANCIJSKA IMOVINA (AOP 054 do 062)",null,null,null,null,null,53,null,{"$f":"ROUND(SUM(I62:I70),2)","v":0},{"$f":"ROUND(SUM(J62:J70),2)","v":0},null,"+"]
["     1. Ulaganja u udjele (dionice) poduzetnika unutar grupe",null,null,null,null,null,54,null,null,null,null,"+"]
["     2. Ulaganja u ostale vrijednosne papire poduzetnika unutar grupe",null,null,null,null,null,55,null,null,null,null,"+"]
["     3. Dani zajmovi, depoziti i slično poduzetnicima unutar grupe",null,null,null,null,null,56,null,null,null,null,"+"]
["     4. Ulaganja u udjele (dionice) društava povezanih\n         sudjelujućim interesom",null,null,null,null,null,57,null,null,null,null,"+"]
["     5. Ulaganja u ostale vrijednosne papire društava povezanih\n         sudjelujućim interesom",null,null,null,null,null,58,null,null,null,null,"+"]
["     6. Dani zajmovi, depoziti i slično društvima povezanim\n         sudjelujućim interesom",null,null,null,null,null,59,null,null,null,null,"+"]
["     7. Ulaganja u vrijednosne papire",null,null,null,null,null,60,null,null,null,null,"+"]
["     8. Dani zajmovi, depoziti i slično",null,null,null,null,null,61,null,null,null,null,"+"]
["     9. Ostala financijska imovina",null,null,null,null,null,62,null,null,null,null,"+"]
["IV. NOVAC U BANCI I BLAGAJNI",null,null,null,null,null,63,null,50904.38,359542.68,null,"+"]
["D)  PLAĆENI TROŠKOVI BUDUĆEG RAZDOBLJA I OBRAČUNATI\n      PRIHODI",null,null,null,null,null,64,null,104844.53,26109.43,null,"+"]
["E)  UKUPNO AKTIVA (AOP 001+002+037+064)",null,null,null,null,null,65,null,{"$f":"ROUND(I9+I10+I45+I72,2)","v":13600120.18},{"$f":"ROUND(J9+J10+J45+J72,2)","v":14667747.939999999},null,"+"]
["F)  IZVANBILANČNI ZAPISI",null,null,null,null,null,66,null,null,null,null,"+"]
["PASIVA"]
["A)  KAPITAL I REZERVE (AOP 068 do 070+076+077+084+087+090)",null,null,null,null,null,67,null,{"$f":"ROUND(I77+I78+I79+I85+I86+I93+I96+I99,2)","v":812816.6},{"$f":"ROUND(J77+J78+J79+J85+J86+J93+J96+J99,2)","v":1150223.83},null,"="]
["I. TEMELJNI (UPISANI) KAPITAL",null,null,null,null,null,68,null,3478000,3478000,null,"+"]
["II. KAPITALNE REZERVE",null,null,null,null,null,69,null,null,null,null,"="]
["III. REZERVE IZ DOBITI (AOP 071+072-073+074+075)",null,null,null,null,null,70,null,{"$f":"ROUND(I80+I81-I82+I83+I84,2)","v":0},{"$f":"ROUND(J80+J81-J82+J83+J84,2)","v":0},null,"="]
["     1. Zakonske rezerve",null,null,null,null,null,71,null,null,null,null,"="]
["     2. Rezerve za vlastite dionice",null,null,null,null,null,72,null,null,null,null,"="]
["     3. Vlastite dionice i udjeli (odbitna stavka)",null,null,null,null,null,73,null,null,null,null,"="]
["     4. Statutarne rezerve",null,null,null,null,null,74,null,null,null,null,"="]
["     5. Ostale rezerve",null,null,null,null,null,75,null,null,null,null,"="]
["IV. REVALORIZACIJSKE REZERVE",null,null,null,null,null,76,null,null,null,null,"="]
[" V. REZERVE FER VRIJEDNOSTI I OSTALO (AOP 078 do 083)",null,null,null,null,null,77,null,{"$f":"ROUND(SUM(I87:I92),2)","v":0},{"$f":"ROUND(SUM(J87:J92),2)","v":0},null,"="]
["     1. Fer vrijednost financijske imovine kroz ostalu sveobuhvatnu\n         dobit (odnosno raspoložive za prodaju)",null,null,null,null,null,78,null,null,null,null,"="]
["     2. Učinkoviti dio zaštite novčanih tokova",null,null,null,null,null,79,null,null,null,null,"="]
["     3. Učinkoviti dio zaštite neto ulaganja u inozemstvu",null,null,null,null,null,80,null,null,null,null,"="]
["     4. Ostale rezerve fer vrijednosti",null,null,null,null,null,81,null,null,null,null,"="]
["     5. Tečajne razlike iz preračuna inozemnog poslovanja\n          (konsolidacija)",null,null,null,null,null,82,null,null,null,null,"="]
["     6. Tečajne razlike zbog preračuna u prezentacijsku valutu",null,null,null,null,null,83,null,null,null,null,"="]
["VI. ZADRŽANA DOBIT ILI PRENESENI GUBITAK (AOP 085-086)",null,null,null,null,null,84,null,{"$f":"ROUND(I94-I95,2)","v":-1945844.8},{"$f":"ROUND(J94-J95,2)","v":-2665183.4},null,"="]
["     1. Zadržana dobit",null,null,null,null,null,85,null,null,null,null,"+"]
["     2. Preneseni gubitak",null,null,null,null,null,86,null,1945844.8,2665183.4,null,"+"]
["VII. DOBIT ILI GUBITAK POSLOVNE GODINE (AOP 088-089)",null,null,null,null,null,87,null,{"$f":"ROUND(I97-I98,2)","v":-719338.6},{"$f":"ROUND(J97-J98,2)","v":337407.23},null,"="]
["     1. Dobit poslovne godine",null,null,null,null,null,88,null,null,337407.23,null,"+"]
["     2. Gubitak poslovne godine",null,null,null,null,null,89,null,719338.6,null,null,"+"]
["VIII. MANJINSKI (NEKONTROLIRAJUĆI) INTERES",null,null,null,null,null,90,null,0,null,null,"="]
["B)  REZERVIRANJA (AOP 092 do 097)",null,null,null,null,null,91,null,{"$f":"ROUND(SUM(I101:I106),2)","v":22102.959999999999},{"$f":"ROUND(SUM(J101:J106),2)","v":21650.41},null,"+"]
["     1. Rezerviranja za mirovine, otpremnine i slične obveze",null,null,null,null,null,92,null,null,null,null,"+"]
["     2. Rezerviranja za porezne obveze",null,null,null,null,null,93,null,null,null,null,"+"]
["     3. Rezerviranja za započete sudske sporove",null,null,null,null,null,94,null,22102.959999999999,21650.41,null,"+"]
["     4. Rezerviranja za troškove obnavljanja prirodnih bogatstava",null,null,null,null,null,95,null,null,null,null,"+"]
["     5. Rezerviranja za troškove u jamstvenim rokovima",null,null,null,null,null,96,null,null,null,null,"+"]
["     6. Druga rezerviranja",null,null,null,null,null,97,null,null,null,null,"+"]
["C)  DUGOROČNE OBVEZE (AOP 099 do 109)",null,null,null,null,null,98,null,{"$f":"ROUND(SUM(I108:I118),2)","v":2959653.22},{"$f":"ROUND(SUM(J108:J118),2)","v":2722386.1},null,"+"]
["     1. Obveze prema poduzetnicima unutar grupe ",null,null,null,null,null,99,null,null,null,null,"+"]
["     2. Obveze za zajmove, depozite i slično poduzetnika unutar grupe",null,null,null,null,null,100,null,null,null,null,"+"]
["     3. Obveze prema društvima povezanim sudjelujućim interesom ",null,null,null,null,null,101,null,null,null,null,"+"]
["     4. Obveze za zajmove, depozite i slično društava povezanih\n         sudjelujućim interesom",null,null,null,null,null,102,null,null,null,null,"+"]
["     5. Obveze za zajmove, depozite i slično",null,null,null,null,null,103,null,null,null,null,"+"]
["     6. Obveze prema bankama i drugim financijskim institucijama",null,null,null,null,null,104,null,2936317.59,2710718.29,null,"+"]
["     7. Obveze za predujmove",null,null,null,null,null,105,null,null,null,null,"+"]
["     8. Obveze prema dobavljačima",null,null,null,null,null,106,null,null,null,null,"+"]
["     9. Obveze po vrijednosnim papirima",null,null,null,null,null,107,null,null,null,null,"+"]
["   10. Ostale dugoročne obveze",null,null,null,null,null,108,null,23335.63,11667.81,null,"+"]
["   11. Odgođena porezna obveza",null,null,null,null,null,109,null,null,null,null,"+"]
["D)  KRATKOROČNE OBVEZE (AOP 111 do 124)",null,null,null,null,null,110,null,{"$f":"ROUND(SUM(I120:I133),2)","v":417850.17},{"$f":"ROUND(SUM(J120:J133),2)","v":673692.45},null,"+"]
["     1. Obveze prema poduzetnicima unutar grupe ",null,null,null,null,null,111,null,null,null,null,"+"]
["     2. Obveze za zajmove, depozite i slično poduzetnika unutar grupe",null,null,null,null,null,112,null,null,null,null,"+"]
["     3. Obveze prema društvima povezanim sudjelujućim interesom ",null,null,null,null,null,113,null,null,null,null,"+"]
["     4. Obveze za zajmove, depozite i slično društava povezanih\n         sudjelujućim interesom",null,null,null,null,null,114,null,null,null,null,"+"]
["     5. Obveze za zajmove, depozite i slično",null,null,null,null,null,115,null,null,null,null,"+"]
["     6. Obveze prema bankama i drugim financijskim institucijama",null,null,null,null,null,116,null,38792.22,244295.76,null,"+"]
["     7. Obveze za predujmove",null,null,null,null,null,117,null,8623.52,11748.85,null,"+"]
["     8. Obveze prema dobavljačima",null,null,null,null,null,118,null,129118.78,133656.24,null,"+"]
["     9. Obveze po vrijednosnim papirima",null,null,null,null,null,119,null,null,null,null,"+"]
["   10. Obveze prema zaposlenicima",null,null,null,null,null,120,null,52081.83,76820.88,null,"+"]
["   11. Obveze  za poreze, doprinose i slična davanja",null,null,null,null,null,121,null,28200.06,36733.769999999997,null,"+"]
["   12. Obveze s osnove udjela u rezultatu",null,null,null,null,null,122,null,null,null,null,"+"]
["   13. Obveze po osnovi dugotrajne imovine namijenjene prodaji",null,null,null,null,null,123,null,null,null,null,"+"]
["   14. Ostale kratkoročne obveze",null,null,null,null,null,124,null,161033.76,170436.95,null,"+"]
["E) ODGOĐENO PLAĆANJE TROŠKOVA I PRIHOD BUDUĆEGA\n     RAZDOBLJA",null,null,null,null,null,125,null,9387697.2300000004,10099795.15,null,"+"]
["F) UKUPNO – PASIVA (AOP 067+091+098+110+125)",null,null,null,null,null,126,null,{"$f":"ROUND(I76+I100+I107+I119+I134,2)","v":13600120.18},{"$f":"ROUND(J76+J100+J107+J119+J134,2)","v":14667747.939999999},null,"+"]
["G)  IZVANBILANČNI ZAPISI",null,null,null,null,null,127,null,null,null,null,"+"]

{"sheet":"RDG","index":4,"n_rows":114,"n_cols":18,"rows_kept":114,"cut":false,"hidden":false,"merged":[[101,0,101,5],[92,0,92,5],[96,0,96,5],[97,0,97,5],[95,0,95,5],[99,0,99,5],[98,0,98,5],[94,0,94,5],[91,0,91,5],[85,0,85,5],[89,0,89,5],[90,0,90,5],[88,0,88,5],[100,0,100,5],[75,0,75,9],[73,0,73,5],[74,0,74,5],[93,0,93,5],[76,0,76,5],[77,0,77,5],[78,0,78,5],[84,0,84,5],[83,0,83,9],[87,0,87,9],[64,0,64,5],[65,0,65,5],[106,0,106,5],[79,0,79,5],[81,0,81,5],[82,0,82,5],[80,0,80,5],[86,0,86,5],[104,0,104,5],[105,0,105,5],[18,0,18,5],[25,0,25,5],[16,0,16,5],[20,0,20,5],[24,0,24,5],[22,0,22,5],[72,0,72,5],[68,0,68,9],[71,0,71,5],[67,0,67,5],[13,0,13,5],[14,0,14,5],[63,0,63,5],[61,0,61,5],[21,0,21,5],[27,0,27,5],[66,0,66,5],[2,0,2,8],[6,0,6,5],[15,0,15,5],[7,0,7,5],[34,0,34,5],[29,0,29,5],[30,0,30,5],[10,0,10,5],[17,0,17,5],[26,0,26,5],[1,9,2,9],[12,0,12,5],[8,0,8,5],[5,0,5,5],[1,0,1,8],[9,0,9,5],[11,0,11,5],[4,0,4,7],[4,8,4,9],[31,0,31,5],[32,0,32,5],[37,0,37,5],[28,0,28,5],[35,0,35,5],[33,0,33,5],[36,0,36,5],[50,0,50,5],[42,0,42,5],[44,0,44,5],[23,0,23,5],[19,0,19,5],[40,0,40,5],[43,0,43,5],[41,0,41,5],[38,0,38,5],[39,0,39,5],[54,0,54,5],[55,0,55,5],[47,0,47,5],[45,0,45,5],[46,0,46,5],[48,0,48,5],[53,0,53,5],[51,0,51,5],[52,0,52,5],[49,0,49,5],[102,0,102,5],[103,0,103,5],[62,0,62,5],[56,0,56,5],[57,0,57,5],[58,0,58,5],[59,0,59,5],[60,0,60,5],[69,0,69,5],[70,0,70,5],[113,0,113,5],[107,0,107,5],[108,0,108,5],[109,0,109,5],[111,0,111,5],[110,0,110,9],[112,0,112,5]]}
["Navigacija","Naslovna","RefStr","Bilanca","RDG","Dodatni","NT_I","NT_D","PK","Kont",null," ",null,null,null,null,{"$f":"MAX(Q2:Q3)","v":1},"- ako je bilo koji AOP različit od nule 1 u suprotnom 0"]
["RAČUN DOBITI I GUBITKA",null,null,null,null,null,null,null,null,"Obrazac\nPOD-RDG",null,null,null,null,null,null,{"$f":"IF(OR(MIN(I8:I114)<0,MAX(I8:I114)>0),1,0)","v":1},"- ako je upisan bilo koji AOP u koloni prethodne godine, 1 u suprotnom 0"]
[{"$f":" \"za razdoblje \" & IF(RefStr!C4<>\"\", TEXT(RefStr!C4, \"DD.MM.YYYY.\"), \"__.__.____.\") & \" do \" & IF(RefStr!F4<>\"\", TEXT(RefStr!F4, \"DD.MM.YYYY.\"),\"__.__.____.\")","v":"za razdoblje 01.01.2024. do 31.12.2024."},null,null,null,null,null,null,null,null,null,null,null,null,null,null,null,{"$f":"IF(OR(MIN(J8:J114)<0,MAX(J8:J114)>0),1,0)","v":1},"- ako je upisan bilo koji AOP u koloni tekuće godine 1 u suprotnom 0"]
[]
[{"$f":"\"Obveznik: \"&IF(RefStr!C27<>\"\",RefStr!C27,\"________\") & \"; \" & IF(RefStr!C29<>\"\",RefStr!C29,\"_________________\"&\"; \"&IF(RefStr!F31<>\"\",RefStr!F31,\"_______________\"))","v":"Obveznik: 48188420009; Zračna luka Osijek d.o.o."},null,null,null,null,null,null,null,"Iznosi u eurima i centima",null,null,null,null,null,null,null,{"$f":"IF(OR(MIN(I85:I87,I112:I114)<0,MAX(I85:I87,I112:I114)>0),1,0)","v":0}," - ako je bilo što upisano u konsolidirana polja u kolonu prethodne godine 1, u suprotnom nula"]
["Naziv pozicije",null,null,null,null,null,"AOP\noznaka","Rbr. \nbilješke","Prethodna godina","Tekuća godina",null,null,null,null,null,null,{"$f":"IF(OR(MIN(J85:J87,J112:J114)<0,MAX(J85:J87,J112:J114)>0),1,0)","v":0},"- ako je bilo što upisano u konsolidirana polja u kolonu tekuće godine 1, u suprotnom nula"]
[1,null,null,null,null,null,2,3,4,5,null,null,null,null,null,null,{"$f":"IF(OR(MIN(RDG!I89:J110)<0,MAX(RDG!I89:J110)>0),1,0)","v":1},"- ako je bilo što upisano u izvještaj o sveobuhvatnoj dobiti 1, u suprotnom 0"]
["I. POSLOVNI PRIHODI (AOP 129 do 133)",null,null,null,null,null,128,null,{"$f":"ROUND(SUM(I9:I13),2)","v":2963897.89},{"$f":"ROUND(SUM(J9:J13),2)","v":3814391.16},null,"+",null,null,null,null,{"$f":"IF(OR(MIN(I70:J75)<>0,MAX(I70:J75)<>0),1,0)","v":0},"- ako je bilo što upisano u prekinuto poslovanje 1, u suprotnom 0"]
["    1. Prihodi od prodaje s poduzetnicima unutar grupe",null,null,null,null,null,129,null,null,null,null,"+"]
["    2. Prihodi od prodaje (izvan grupe)",null,null,null,null,null,130,null,1087059.73,1297798.1000000001,null,"+"]
["    3. Prihodi na temelju upotrebe vlastitih proizvoda, robe i usluga",null,null,null,null,null,131,null,null,null,null,"+"]
["    4. Ostali poslovni prihodi s poduzetnicima unutar grupe",null,null,null,null,null,132,null,null,null,null,"+"]
["    5. Ostali poslovni prihodi (izvan grupe)",null,null,null,null,null,133,null,1876838.16,2516593.06,null,"+"]
["II. POSLOVNI RASHODI (AOP 135+136+140+144 do 146+149+156)",null,null,null,null,null,134,null,{"$f":"ROUND(I15+I16+I20+I24+I25+I26+I29+I36,2)","v":3590896.11},{"$f":"ROUND(J15+J16+J20+J24+J25+J26+J29+J36,2)","v":3386404.5},null,"+"]
["    1. Promjene vrijednosti zaliha proizvodnje u tijeku i gotovih proizvoda",null,null,null,null,null,135,null,null,null,null,"="]
["    2. Materijalni troškovi (AOP 137 do 139)",null,null,null,null,null,136,null,{"$f":"ROUND(SUM(I17:I19),2)","v":2032806.65},{"$f":"ROUND(SUM(J17:J19),2)","v":1512563.46},null,"+"]
["        a) Troškovi sirovina i materijala ",null,null,null,null,null,137,null,422993.64,259191.02,null,"+"]
["        b) Troškovi prodane robe ",null,null,null,null,null,138,null,52898.99,80118.350000000006,null,"+"]
["        c) Ostali vanjski troškovi ",null,null,null,null,null,139,null,1556914.02,1173254.0900000001,null,"+"]
["   3. Troškovi osoblja (AOP 141 do 143)",null,null,null,null,null,140,null,{"$f":"ROUND(SUM(I21:I23),2)","v":838818.61},{"$f":"ROUND(SUM(J21:J23),2)","v":1117044.22},null,"+"]
["        a) Neto plaće i nadnice",null,null,null,null,null,141,null,533627.11,715830.16,null,"+"]
["        b) Troškovi poreza i doprinosa iz plaća",null,null,null,null,null,142,null,193377.05,256871,null,"+"]
["        c) Doprinosi na plaće",null,null,null,null,null,143,null,111814.45,144343.06,null,"+"]
["   4. Amortizacija",null,null,null,null,null,144,null,366921.41,372131.26,null,"+"]
["   5. Ostali troškovi",null,null,null,null,null,145,null,249909.36,292257.42,null,"+"]
["   6. Vrijednosna usklađenja (AOP 147+148)",null,null,null,null,null,146,null,{"$f":"ROUND(SUM(I27:I28),2)","v":0},{"$f":"ROUND(SUM(J27:J28),2)","v":0},null,"="]
["       a) dugotrajne imovine osim financijske imovine",null,null,null,null,null,147,null,null,null,null,"="]
["       b) kratkotrajne imovine osim financijske imovine",null,null,null,null,null,148,null,null,null,null,"="]
["   7. Rezerviranja (AOP 150 do 155)",null,null,null,null,null,149,null,{"$f":"ROUND(SUM(I30:I35),2)","v":65429.75},{"$f":"ROUND(SUM(J30:J35),2)","v":85139.85},null,"="]
["       a) Rezerviranja za mirovine, otpremnine i slične obveze",null,null,null,null,null,150,null,null,null,null,"="]
["       b) Rezerviranja za porezne obveze",null,null,null,null,null,151,null,null,null,null,"="]
["       c) Rezerviranja za započete sudske sporove",null,null,null,null,null,152,null,null,null,null,"="]
["       d) Rezerviranja za troškove obnavljanja prirodnih bogatstava",null,null,null,null,null,153,null,null,null,null,"="]
["       e) Rezerviranja za troškove u jamstvenim rokovima",null,null,null,null,null,154,null,null,null,null,"="]
["       f) Druga rezerviranja",null,null,null,null,null,155,null,65429.75,85139.85,null,"="]
["   8. Ostali poslovni rashodi",null,null,null,null,null,156,null,37010.33,7268.29,null,"+"]
["III. FINANCIJSKI PRIHODI (AOP 158 do 167)",null,null,null,null,null,157,null,{"$f":"ROUND(SUM(I38:I47),2)","v":36.28},{"$f":"ROUND(SUM(J38:J47),2)","v":136.82},null,"+"]
["     1. Prihodi od ulaganja u udjele (dionice) poduzetnika unutar grupe",null,null,null,null,null,158,null,null,null,null,"+"]
["     2. Prihodi od ulaganja u udjele (dionice) društava povezanih\n         sudjelujućim interesima",null,null,null,null,null,159,null,null,null,null,"+"]
["     3. Prihodi od ostalih dugotrajnih financijskih ulaganja i zajmova\n         poduzetnicima unutar grupe",null,null,null,null,null,160,null,null,null,null,"+"]
["     4. Ostali prihodi s osnove kamata iz odnosa s poduzetnicima unutar grupe",null,null,null,null,null,161,null,null,null,null,"+"]
["     5. Tečajne razlike i ostali financijski prihodi iz odnosa s\n         poduzetnicima unutar grupe",null,null,null,null,null,162,null,null,null,null,"+"]
["     6. Prihodi od ostalih dugotrajnih financijskih ulaganja i zajmova",null,null,null,null,null,163,null,null,null,null,"+"]
["     7. Ostali prihodi s osnove kamata",null,null,null,null,null,164,null,28.71,65.92,null,"+"]
["     8. Tečajne razlike i ostali financijski prihodi",null,null,null,null,null,165,null,7.57,70.900000000000006,null,"+"]
["     9. Nerealizirani dobici (prihodi) od financijske imovine",null,null,null,null,null,166,null,null,null,null,"+"]
["   10. Ostali financijski prihodi",null,null,null,null,null,167,null,null,null,null,"+"]
["IV. FINANCIJSKI RASHODI (AOP 169 do 175)",null,null,null,null,null,168,null,{"$f":"ROUND(SUM(I49:I55),2)","v":92376.66},{"$f":"ROUND(SUM(J49:J55),2)","v":90716.25},null,"+"]
["    1. Rashodi s osnove kamata i slični rashodi s poduzetnicima unutar grupe",null,null,null,null,null,169,null,null,null,null,"+"]
["2. Tečajne razlike i drugi rashodi s poduzetnicima unutar grupe",null,null,null,null,null,170,null,null,null,null,"+"]
["3. Rashodi s osnove kamata i slični rashodi",null,null,null,null,null,171,null,92110.05,90365.01,null,"+"]
["4. Tečajne razlike i drugi rashodi",null,null,null,null,null,172,null,266.61,351.24,null,"+"]
["5. Nerealizirani gubici (rashodi) od financijske imovine",null,null,null,null,null,173,null,null,null,null,"+"]
["6. Vrijednosna usklađenja financijske imovine (neto)",null,null,null,null,null,174,null,null,null,null,"="]
["7. Ostali financijski rashodi",null,null,null,null,null,175,null,null,null,null,"+"]
["V.    UDIO U DOBITI OD DRUŠTAVA POVEZANIH SUDJELUJUĆIM\n        INTERESOM",null,null,null,null,null,176,null,null,null,null,"+"]
["VI.   UDIO U DOBITI OD  ZAJEDNIČKIH POTHVATA",null,null,null,null,null,177,null,null,null,null,"+"]
["VII.  UDIO U GUBITKU OD DRUŠTAVA POVEZANIH SUDJELUJUĆIM\n        INTERESOM",null,null,null,null,null,178,null,null,null,null,"+"]
["VIII. UDIO U GUBITKU OD ZAJEDNIČKIH POTHVATA",null,null,null,null,null,179,null,null,null,null,"+"]
["IX.   UKUPNI PRIHODI (AOP 128+157+176 + 177)",null,null,null,null,null,180,null,{"$f":"ROUND(I8+I37+I56+I57,2)","v":2963934.17},{"$f":"ROUND(J8+J37+J56+J57,2)","v":3814527.98},null,"+"]
["X.    UKUPNI RASHODI (AOP 134+168+178 + 179)",null,null,null,null,null,181,null,{"$f":"ROUND(I14+I48+I58+I59,2)","v":3683272.77},{"$f":"ROUND(J14+J48+J58+J59,2)","v":3477120.75},null,"+"]
["XI.   DOBIT ILI GUBITAK PRIJE OPOREZIVANJA (AOP 180-181)",null,null,null,null,null,182,null,{"$f":"ROUND(I60-I61,2)","v":-719338.6},{"$f":"ROUND(J60-J61,2)","v":337407.23},null,"="]
["   1. Dobit prije oporezivanja (AOP 180-181)",null,null,null,null,null,183,null,{"$f":"IF(I60>I61,ROUND(I60-I61,2),0)","v":0},{"$f":"IF(J60>J61,ROUND(J60-J61,2),0)","v":337407.23},null,"+"]
["   2. Gubitak prije oporezivanja (AOP 181-180)",null,null,null,null,null,184,null,{"$f":"IF(I61>I60,ROUND(I61-I60,2),0)","v":719338.6},{"$f":"IF(J61>J60,ROUND(J61-J60,2),0)","v":0},null,"+"]
["XII.  POREZ NA DOBIT",null,null,null,null,null,185,null,null,null,null,"="]
["XIII. DOBIT ILI GUBITAK RAZDOBLJA (AOP 182-185)",null,null,null,null,null,186,null,{"$f":"ROUND(I62-I65,2)","v":-719338.6},{"$f":"ROUND(J62-J65,2)","v":337407.23},null,"="]
["  1. Dobit razdoblja (AOP 182-185)",null,null,null,null,null,187,null,{"$f":"IF(I66>0,ROUND(I66,2),0)","v":0},{"$f":"IF(J66>0,ROUND(J66,2),0)","v":337407.23},null,"+"]
["  2. Gubitak razdoblja (AOP 185-182)",null,null,null,null,null,188,null,{"$f":"IF(I66<0,ROUND(-I66,2),0)","v":719338.6},{"$f":"IF(J66<0,ROUND(-J66,2),0)","v":0},null,"+"]
["PREKINUTO POSLOVANJE (popunjava poduzetnik obveznika MSFI-a samo ako ima prekinuto poslovanje)"]
["XIV. DOBIT ILI GUBITAK PREKINUTOG POSLOVANJA PRIJE\n        OPOREZIVANJA (AOP 190-191)",null,null,null,null,null,189,null,{"$f":"ROUND(I71-I72,2)","v":0},{"$f":"ROUND(J71-J72,2)","v":0},null,"="]
[" 1. Dobit prekinutog poslovanja prije oporezivanja",null,null,null,null,null,190,null,null,null,null,"+"]
[" 2. Gubitak prekinutog poslovanja prije oporezivanja",null,null,null,null,null,191,null,null,null,null,"+"]
["XV. POREZ NA DOBIT PREKINUTOG POSLOVANJA",null,null,null,null,null,192,null,null,null,null,"="]
[" 1. Dobit prekinutog poslovanja za razdoblje (AOP 189-192)",null,null,null,null,null,193,null,{"$f":"IF(I70-I73>0,ROUND(I70-I73,2),0)","v":0},{"$f":"IF(J70-J73>0,ROUND(J70-J73,2),0)","v":0},null,"+"]
[" 2. Gubitak prekinutog poslovanja za razdoblje (AOP 192-189)",null,null,null,null,null,194,null,{"$f":"IF(I73-I70>0,ROUND(I73-I70,2),0)","v":0},{"$f":"IF(J73-J70>0,ROUND(J73-J70,2),0)","v":0},null,"+"]
["UKUPNO POSLOVANJE (popunjava samo poduzetnik obveznik MSFI-a koji ima prekinuto poslovanje)"]
["XVI. DOBIT ILI GUBITAK PRIJE OPOREZIVANJA (AOP 182+189)",null,null,null,null,null,195,null,{"$f":"ROUND((I62+I70)*$Q$8,2)","v":0},{"$f":"ROUND((J62+J70)*$Q$8,2)","v":0},null,"="]
[" 1. Dobit prije oporezivanja (AOP 195)",null,null,null,null,null,196,null,{"$f":"IF(I77>0,ROUND(I77,2),0)","v":0},{"$f":"IF(J77>0,ROUND(J77,2),0)","v":0},null,"+"]
[" 2. Gubitak prije oporezivanja (AOP 195)",null,null,null,null,null,197,null,{"$f":"IF(I77<0,ROUND(-I77,2),0)","v":0},{"$f":"IF(J77<0,ROUND(-J77,2),0)","v":0},null,"+"]
["XVII. POREZ NA DOBIT (AOP 185+192)",null,null,null,null,null,198,null,{"$f":"ROUND((I73+I65)*$Q$8,2)","v":0},{"$f":"ROUND((J73+J65)*$Q$8,2)","v":0},null,"="]
["XVIII. DOBIT ILI GUBITAK RAZDOBLJA (AOP 195-198)",null,null,null,null,null,199,null,{"$f":"ROUND(I82-I83,2)","v":0},{"$f":"ROUND(J82-J83,2)","v":0},null,"="]
[" 1. Dobit razdoblja (AOP 195-198)",null,null,null,null,null,200,null,{"$f":"IF(I77-I80>0,ROUND(I77-I80,2),0)","v":0},{"$f":"IF(J77-J80>0,ROUND(J77-J80,2),0)","v":0},null,"+"]
[" 2. Gubitak razdoblja (AOP 198-195)",null,null,null,null,null,201,null,{"$f":"IF(I77-I80<0,ROUND(I80-I77,2),0)","v":0},{"$f":"IF(J77-J80<0,ROUND(J80-J77,2),0)","v":0},null,"+"]
["DODATAK RDG-u (popunjava poduzetnik koji sastavlja konsolidirani godišnji financijski izvještaj)"]
["XIX. DOBIT ILI GUBITAK RAZDOBLJA (AOP 203+204)",null,null,null,null,null,202,null,{"$f":"ROUND(SUM(I86:I87),2)","v":0},{"$f":"ROUND(SUM(J86:J87),2)","v":0},null,"="]
[" 1. Pripisana imateljima kapitala matice",null,null,null,null,null,203,null,null,null,null,"="]
[" 2. Pripisana manjinskom (nekontrolirajućem) interesu",null,null,null,null,null,204,null,null,null,null,"="]
["IZVJEŠTAJ O OSTALOJ SVEOBUHVATNOJ DOBITI (popunjava poduzetnik obveznik primjene MSFI-a)"]
["   I. Dobit ili gubitak razdoblja",null,null,null,null,null,205,null,-719338.6,337407.23,null,"="]
["  II. Ostala sveobuhvatna dobit / gubitak prije poreza\n      (AOP 208 do 212 + 215 do 223)",null,null,null,null,null,206,null,{"$f":"ROUND(SUM(I92:I96)+SUM(I99:I107),2)","v":0},{"$f":"ROUND(SUM(J92:J96)+SUM(J99:J107),2)","v":0},null,"="]
["III. Stavke koje neće biti reklasificirane u dobit ili gubitak (AOP 208 do 213)",null,null,null,null,null,207,null,{"$f":"ROUND(SUM(I92:I97),2)","v":0},{"$f":"ROUND(SUM(J92:J97),2)","v":0},null,"="]
["     1. Promjene revalorizacijskih rezervi dugotrajne materijalne i\n         nematerijalne imovine",null,null,null,null,null,208,null,null,null,null,"="]
["     2. Dobitak ili gubitak s osnove naknadnog vrednovanja vlasničkih\n         vrijednosnih papira po fer vrijednosti kroz ostalu sveobuhvatnu dobit ",null,null,null,null,null,209,null,null,null,null,"="]
["     3. Promjene fer vrijednosti financijske obveze po fer vrijednosti kroz račun \n         dobiti i gubitka koja se može pripisati promjenama kreditnog rizika obveze",null,null,null,null,null,210,null,null,null,null,"="]
["     4. Aktuarski dobici/gubici po planovima definiranih primanja",null,null,null,null,null,211,null,null,null,null,"="]
["     5. Ostale stavke koje neće biti reklasificirane",null,null,null,null,null,212,null,null,null,null,"="]
["     6. Porez na dobit koji se odnosi na stavke koje neće biti reklasificirane",null,null,null,null,null,213,null,null,null,null,"="]
["IV. Stavke koje je moguće reklasificirati u dobit ili gubitak (AOP 215 do 224)",null,null,null,null,null,214,null,{"$f":"ROUND(SUM(I99:I108),2)","v":0},{"$f":"ROUND(SUM(J99:J108),2)","v":0},null,"="]
["     1. Tečajne razlike iz preračuna inozemnog poslovanja",null,null,null,null,null,215,null,null,null,null,"="]
["     2. Tečajne razlike zbog preračuna u prezentacijsku valutu",null,null,null,null,null,216,null,null,null,null,"="]
["     3. Dobitak ili gubitak s osnove naknadnog vrednovanja dužničkih\n          vrijednosnih papira po fer vrijednosti kroz ostalu sveobuhvatnu dobit",null,null,null,null,null,217,null,null,null,null,"="]
["     4. Dobit ili gubitak s osnove učinkovite zaštite novčanih tokova",null,null,null,null,null,218,null,null,null,null,"="]
["     5. Dobit ili gubitak s osnove učinkovite zaštite neto ulaganja u inozemstvu",null,null,null,null,null,219,null,null,null,null,"="]
["     6. Udio u ostaloj sveobuhvatnoj dobiti/gubitku društava povezanih\n         sudjelujućim  interesom",null,null,null,null,null,220,null,null,null,null,"="]
["     7. Promjene fer vrijednosti vremenske vrijednosti opcije",null,null,null,null,null,221,null,null,null,null,"="]
["     8. Promjene fer vrijednosti terminskih elemenata terminskih ugovora",null,null,null,null,null,222,null,null,null,null,"="]
["     9. Ostale stavke koje je moguće reklasificirati u dobit ili gubitak",null,null,null,null,null,223,null,null,null,null,"="]
["   10. Porez na dobit koji se odnosi na stavke koje je moguće reklasificirati\n         u dobit ili gubitak",null,null,null,null,null,224,null,null,null,null,"="]
[" V. Neto ostala sveobuhvatna dobit ili gubitak (AOP 207+214)",null,null,null,null,null,225,null,{"$f":"ROUND(SUM(I91+I98),2)","v":0},{"$f":"ROUND(SUM(J91+J98),2)","v":0},null,"="]
["VI. Ukupna sveobuhvatna dobit ili gubitak razdoblja (AOP 205+225)",null,null,null,null,null,226,null,{"$f":"ROUND(SUM(I89+I109),2)","v":-719338.6},{"$f":"ROUND(SUM(J89+J109),2)","v":337407.23},null,"="]
["DODATAK Izvještaju o  ostaloj sveobuhvatnoj dobiti (popunjava poduzetnik koji sastavlja konsolidirani izvještaj)"]
["VI. Sveobuhvatna dobit ili gubitak razdoblja (AOP 228+229)",null,null,null,null,null,227,null,{"$f":"ROUND(SUM(I113:I114),2)","v":0},{"$f":"ROUND(SUM(J113:J114),2)","v":0},null,"="]
["1. Pripisana imateljima kapitala matice",null,null,null,null,null,228,null,null,null,null,"="]
["2. Pripisana manjinskom (nekontrolirajućem) interesu",null,null,null,null,null,229,null,null,null,null,"="]

{"sheet":"Dodatni","index":5,"n_rows":88,"n_cols":18,"rows_kept":88,"cut":false,"hidden":false,"merged":[[16,0,16,6],[11,0,11,6],[12,0,12,6],[10,0,10,6],[7,0,7,9],[8,0,8,6],[9,0,9,6],[15,0,15,9],[24,0,24,6],[17,0,17,6],[20,0,20,6],[18,0,18,6],[19,0,19,6],[22,0,22,6],[23,0,23,9],[21,0,21,9],[1,0,1,8],[2,0,2,8],[14,0,14,6],[1,9,2,9],[6,0,6,6],[5,0,5,6],[13,0,13,6],[4,0,4,7],[4,8,4,9],[29,0,29,6],[30,0,30,6],[41,0,41,6],[39,0,39,6],[40,0,40,9],[33,0,33,6],[34,0,34,6],[50,0,50,6],[56,0,56,6],[57,0,57,6],[54,0,54,6],[44,0,44,6],[26,0,26,6],[27,0,27,6],[28,0,28,6],[31,0,31,6],[32,0,32,6],[46,0,46,6],[48,0,48,6],[47,0,47,9],[35,0,35,9],[38,0,38,9],[36,0,36,6],[37,0,37,6],[42,0,42,6],[45,0,45,6],[43,0,43,6],[84,0,84,6],[25,0,25,6],[85,0,85,6],[65,0,65,6],[58,0,58,6],[59,0,59,6],[74,0,74,6],[72,0,72,6],[60,0,60,6],[55,0,55,6],[87,0,87,6],[70,0,70,6],[78,0,78,6],[79,0,79,6],[77,0,77,6],[75,0,75,6],[71,0,71,9],[73,0,73,6],[83,0,83,6],[86,0,86,9],[49,0,49,6],[53,0,53,6],[68,0,68,6],[69,0,69,6],[63,0,63,6],[67,0,67,6],[66,0,66,6],[61,0,61,6],[51,0,51,6],[52,0,52,6],[62,0,62,6],[76,0,76,9],[82,0,82,6],[64,0,64,6],[80,0,80,6],[81,0,81,6]]}
["Navigacija","Naslovna","RefStr","Bilanca","RDG","Dodatni","NT_I","NT_D","PK","Kont",null,null,null,null,null,null,{"$f":"MAX(Q2:Q3)","v":0},"- ako je bilo koji AOP različit od nule 1 u suprotnom 0"]
["DODATNI PODACI",null,null,null,null,null,null,null,null,"Obrazac\nPOD-DOP",null,null,null,null,null,null,{"$f":"IF(MAX(I9:I88)>0,1,0)","v":0},"- ako je upisan bilo koji AOP u koloni prethodne godine, 1 u suprotnom 0"]
[{"$f":" \"za razdoblje \" & IF(RefStr!C4<>\"\", TEXT(RefStr!C4, \"DD.MM.YYYY.\"), \"__.__.____.\") & \" do \" & IF(RefStr!F4<>\"\", TEXT(RefStr!F4, \"DD.MM.YYYY.\"),\"__.__.____.\")","v":"za razdoblje 01.01.2024. do 31.12.2024."},null,null,null,null,null,null,null,null,null,null,null,null,null,null,null,{"$f":"IF(MAX(J9:J88)>0,1,0)","v":0},"- ako je upisan bilo koji AOP u koloni tekuće godine 1 u suprotnom 0"]
[]
[{"$f":"\"Obveznik: \"&IF(RefStr!C27<>\"\",RefStr!C27,\"________\") & \"; \" & IF(RefStr!C29<>\"\",RefStr!C29,\"_________________\"&\"; \"&IF(RefStr!F31<>\"\",RefStr!F31,\"_______________\"))","v":"Obveznik: 48188420009; Zračna luka Osijek d.o.o."},null,null,null,null,null,null,null,"Iznosi u eurima i centima"]
["Naziv pozicije",null,null,null,null,null,null,"AOP\noznaka","Prethodna godina","Tekuća godina"]
[1,null,null,null,null,null,null,2,3,4]
["Bilanca - aktiva"]
["  1. Zalihe energetskih proizvoda (ugljen, nafta, derivati, plin i dr.) - bruto",null,null,null,null,null,null,230,null,null,null,"+"]
["  2. Zajmovi dani kućanstvima i obrtima",null,null,null,null,null,null,231,null,null,null,"+"]
["  3. Zajmovi dani nefinancijskim poduzećima",null,null,null,null,null,null,232,null,null,null,"+"]
["  4. Zajmovi dani nerezidentima",null,null,null,null,null,null,233,null,null,null,"+"]
["  5. Trgovački krediti i predujmovi dani kućanstvima i obrtima",null,null,null,null,null,null,234,null,null,null,"+"]
["  6. Trgovački krediti i predujmovi dani nefinancijskim poduzećima",null,null,null,null,null,null,235,null,null,null,"+"]
["  7. Trgovački krediti i predujmovi dani nerezidentima",null,null,null,null,null,null,236,null,null,null,"+"]
["Bilanca - pasiva"]
["  8. Krediti i zajmovi primljeni od nerezidenata",null,null,null,null,null,null,237,null,null,null,"+"]
["  9. Zajmovi primljeni od kućanstva i obrta",null,null,null,null,null,null,238,null,null,null,"+"]
["10. Zajmovi primljeni od nefinancijskih poduzeća",null,null,null,null,null,null,239,null,null,null,"+"]
["11. Trgovački krediti i predujmovi primljeni od kućanstva i obrta",null,null,null,null,null,null,240,null,null,null,"+"]
["12. Trgovački krediti i predujmovi primljeni od nefinancijskih poduzeća",null,null,null,null,null,null,241,null,null,null,"+"]
["Račun dobiti i gubitka - poslovni prihodi"]
["13. Prihodi od prodaje s poduzetnicima unutar grupe, rezidentima RH ",null,null,null,null,null,null,242,null,null,null,"+"]
["Prihodi od prodaje prema djelatnostima"]
["14. Prihod od industrijskih djelatnosti",null,null,null,null,null,null,243,null,null,null,"+"]
["15. Prihod od trgovine (prodaje roba i usluga nabavljenih isključivo\n       za daljnju prodaju i trgovačkih usluga) - ukupni",null,null,null,null,null,null,244,null,null,null,"+"]
["16. Prihod od trgovine ostvaren s poduzetnicima unutar grupe, rezidentima RH ",null,null,null,null,null,null,245,null,null,null,"+"]
["17. Prihod od posredništva (provizija od posredovanja)",null,null,null,null,null,null,246,null,null,null,"+"]
["18. Prihod od građevinske djelatnosti - radova na zgradama",null,null,null,null,null,null,247,null,null,null,"+"]
["19. Prihod od građevinske djelatnosti - radova na ostalim građevinama",null,null,null,null,null,null,248,null,null,null,"+"]
["20. Prihod od građevinske djelatnosti kao podugovaratelj (podizvođač)",null,null,null,null,null,null,249,null,null,null,"+"]
["21. Prihod od poljoprivrede, šumarstva i ribarstva",null,null,null,null,null,null,250,null,null,null,"+"]
["22. Prihodi od djelatnosti pružanja smještaja te pripreme i usluživanja\n       hrane i pića",null,null,null,null,null,null,251,null,null,null,"+"]
["23. Prihod od djelatnosti prijevoza i skladištenja, izdavačkih, filmskih,\n       telekomunikacijskih, informacijskih i djelatnosti računalnog programiranja\n       te emitiranja programa",null,null,null,null,null,null,252,null,null,null,"+"]
["24. Prihod od ostalih djelatnosti (financija, osiguranja, nekretnina, inženjerstva,\n       znanosti, promidžbe, putničkih agencija, obrazovanja, zdravstva, umjetnosti\n       i dr. prema uputama)",null,null,null,null,null,null,253,null,null,null,"+"]
["Prihodi od prodaje prema rezidentnosti kupca"]
["25. Prihodi od prodaje u zemlji",null,null,null,null,null,null,254,null,null,null,"+"]
["26. Prihodi od prodaje u inozemstvu ",null,null,null,null,null,null,255,null,null,null,"+"]
["Prihodi na temelju upotrebe vlastitih proizvoda, robe i usluga"]
["27. Kapitalizirana proizvodnja za vlastite potrebe ",null,null,null,null,null,null,256,null,null,null,"+"]
["Ostali poslovni prihodi"]
["28. Ostali poslovni prihodi ostvareni s poduzetnicima unutar grupe,\n      rezidentima RH ",null,null,null,null,null,null,257,null,null,null,"+"]
["29. Prihodi od subvencija ukupno",null,null,null,null,null,null,258,null,null,null,"+"]
["  29.1. u tome: subvencije na proizvode",null,null,null,null,null,null,259,null,null,null,"+"]
["30. Prihodi od poslovnog najma nekretnina, opreme i slično",null,null,null,null,null,null,260,null,null,null,"+"]
["31. Prihodi od najma zemljišta i prihodi od tantijema za iskorištavanje nafte, \n       plina i drugih prirodnih dobara",null,null,null,null,null,null,261,null,null,null,"+"]
["32. Prihodi od ukidanja dugoročnih rezerviranja ",null,null,null,null,null,null,262,null,null,null,"+"]
["Poslovni rashodi"]
["33. Troškovi prodane robe s poduzetnicima unutar grupe, rezidentima RH ",null,null,null,null,null,null,263,null,null,null,"+"]
["34. Troškovi energije",null,null,null,null,null,null,264,null,null,null,"+"]
["35. Tekući izdaci za odvoz i zbrinjavanje otpada, odvodnju i tretman \n       otpadnih voda te ostali tekući izdaci za zaštitu okoliša",null,null,null,null,null,null,265,null,null,null,"+"]
["36. Troškovi robe i usluga nabavljenih za daljnju prodaju, a uključenih u \n       vlastite proizvode i/ili usluge",null,null,null,null,null,null,266,null,null,null,"+"]
["37. Troškovi usluga podugovaratelja za industrijsku robu i usluge",null,null,null,null,null,null,267,null,null,null,"+"]
["38. Troškovi usluga podugovaratelja (podizvođača) za građevinske radove",null,null,null,null,null,null,268,null,null,null,"+"]
["39. Troškovi usluga investicijskog održavanja",null,null,null,null,null,null,269,null,null,null,"+"]
["40. Troškovi usluga dugoročnog i operativnog leasinga materijalne imovine",null,null,null,null,null,null,270,null,null,null,"+"]
["41. Izdaci za bruto autorske honorare i ugovore o djelu samo za fizičke osobe\n       koje nemaju registriranu djelatnost",null,null,null,null,null,null,271,null,null,null,"+"]
["42. Izdaci za rad ostvaren preko studentskih i učeničkih servisa",null,null,null,null,null,null,272,null,null,null,"+"]
["43. Troškovi agencijskih radnika",null,null,null,null,null,null,273,null,null,null,"+"]
["44. Premije osiguranja (bruto)",null,null,null,null,null,null,274,null,null,null,"+"]
["  44.1. u tome: premije neživotnog osiguranja (bruto)",null,null,null,null,null,null,275,null,null,null,"+"]
["45. Porezi koji ne ovise o dobitku i pristojbe",null,null,null,null,null,null,276,null,null,null,"+"]
["46. Stipendije",null,null,null,null,null,null,277,null,null,null,"+"]
["47. Nadoknade članovima uprave",null,null,null,null,null,null,278,null,null,null,"+"]
["48. Nadoknade troškova, darovi i potpore zaposlenicima i primici u naravi",null,null,null,null,null,null,279,null,null,null,"+"]
["  48.1. u tome: otpremnine",null,null,null,null,null,null,280,null,null,null,"+"]
["49. Troškovi od najma zemljišta i plaćeni tantijemi za iskorištavanje nafte,\n       plina i drugih prirodnih dobara",null,null,null,null,null,null,281,null,null,null,"+"]
["50. Vrijednosno usklađivanje zaliha sirovina i materijala",null,null,null,null,null,null,282,null,null,null,"="]
["51. Vrijednosno usklađivanje predujmova za zalihe",null,null,null,null,null,null,283,null,null,null,"="]
["52. Vrijednosno usklađivanje zaliha trgovačke robe (robe i usluga nabavljenih\n       za daljnju prodaju)",null,null,null,null,null,null,284,null,null,null,"="]
["53. Uvoz (uključuje i stjecanje) u razdoblju",null,null,null,null,null,null,285,null,null,null,"+"]
["Financijski prihodi i rashodi"]
["54. Prihodi s osnove kamata ",null,null,null,null,null,null,286,null,null,null,"+"]
["55. Prihodi od dividendi",null,null,null,null,null,null,287,null,null,null,"+"]
["56. Prihodi od udjela u dobiti",null,null,null,null,null,null,288,null,null,null,"+"]
["57. Rashodi s osnove kamata ",null,null,null,null,null,null,289,null,null,null,"+"]
["Investicije (samo ulaganje u izvještajnoj godini)"]
["58. Bruto investicije u dugotrajnu materijalnu i nematerijalnu imovinu - ukupno\n       (AOP 291 do 294)",null,null,null,null,null,null,290,{"$f":"ROUND(SUM(I79:I82),2)","v":0},{"$f":"ROUND(SUM(J79:J82),2)","v":0},null,"+"]
["59. Bruto investicije u građevine",null,null,null,null,null,null,291,null,null,null,"+"]
["60. Bruto investicije u strojeve i opremu",null,null,null,null,null,null,292,null,null,null,"+"]
["61. Bruto investicije u prijevozna sredstva",null,null,null,null,null,null,293,null,null,null,"+"]
["62. Bruto investicije u ostalu materijalnu imovinu i nematerijalnu imovinu\n       (biološka imovina, investicije u istraživanje i razvoj, softver, baze podataka \n       i druga nematerijalna imovina)",null,null,null,null,null,null,294,null,null,null,"+"]
["63. Nabava zemljišta ukupno (građevinskog i negrađevinskog)",null,null,null,null,null,null,295,null,null,null,"+"]
["64. Bruto investicije samo u novu dugotrajnu imovinu",null,null,null,null,null,null,296,null,null,null,"+"]
["65. Bruto investicije u opremu, tehnologije, pogone i procese povezane sa\n       zaštitom okoliša (za prevenciju, tretman i kontrolu zagađenja)",null,null,null,null,null,null,297,null,null,null,"+"]
["66. Bruto investicije u dugotrajnu materijalnu i nematerijalnu imovinu,\n       stečenu od poduzetnika unutar grupe, rezidenata RH",null,null,null,null,null,null,298,null,null,null,"+"]
["Podaci o zaposlenima"]
["67. Broj neplaćenih osoba (neplaćeni obiteljski radnici, vlasnici bez ugovora \n       o radu, volonteri, privremeno odsutne osobe kojima naknadu ne osigurava\n       poslodavac i drugi prema uputama)",null,null,null,null,null,null,299,null,null,null,"+"]

{"sheet":"NT_I","index":6,"n_rows":60,"n_cols":18,"rows_kept":60,"cut":false,"hidden":false,"merged":[[46,0,46,5],[59,0,59,5],[51,0,51,5],[52,0,52,5],[54,0,54,5],[58,0,58,5],[55,0,55,5],[57,0,57,5],[56,0,56,5],[53,0,53,5],[37,0,37,5],[45,0,45,5],[35,0,35,5],[40,0,40,5],[36,0,36,5],[39,0,39,5],[41,0,41,5],[44,0,44,5],[22,0,22,5],[23,0,23,5],[24,0,24,5],[25,0,25,5],[27,0,27,5],[29,0,29,5],[28,0,28,9],[50,0,50,5],[38,0,38,5],[31,0,31,5],[34,0,34,5],[32,0,32,5],[33,0,33,5],[47,0,47,5],[43,0,43,9],[42,0,42,5],[49,0,49,5],[48,0,48,5],[9,0,9,5],[17,0,17,5],[18,0,18,5],[13,0,13,5],[20,0,20,5],[21,0,21,5],[19,0,19,5],[30,0,30,5],[26,0,26,5],[8,0,8,5],[14,0,14,5],[15,0,15,5],[16,0,16,5],[10,0,10,5],[11,0,11,5],[12,0,12,5],[1,9,2,9],[1,0,1,8],[2,0,2,8],[7,0,7,9],[5,0,5,5],[6,0,6,5],[4,0,4,7],[4,8,4,9]]}
["Navigacija","Naslovna","RefStr","Bilanca","RDG","Dodatni","NT_I","NT_D","PK","Kont",null,null,null,null,null,null,{"$f":"IF(OR(MIN(I8:J60)<0,MAX(I8:J60)>0),1,0)","v":0},"- ako je bilo koji AOP različit od nule 1 u suprotnom 0"]
["IZVJEŠTAJ O NOVČANIM TOKOVIMA - Indirektna metoda",null,null,null,null,null,null,null,null,"Obrazac\nPOD-NTI",null,null,null,null,null,null,{"$f":"IF(OR(MIN(I8:I60)<0,MAX(I8:I60)>0),1,0)","v":0},"- ako je upisan bilo koji AOP u koloni prethodne godine, 1 u suprotnom 0"]
[{"$f":" \"u razdoblju \" & IF(RefStr!C4<>\"\", TEXT(RefStr!C4, \"DD.MM.YYYY.\"), \"__.__.____.\") & \" do \" & IF(RefStr!F4<>\"\", TEXT(RefStr!F4, \"DD.MM.YYYY.\"),\"__.__.____.\")","v":"u razdoblju 01.01.2024. do 31.12.2024."},null,null,null,null,null,null,null,null,null,null,null,null,null,null,null,{"$f":"IF(OR(MIN(J8:J60)<0,MAX(J8:J60)>0),1,0)","v":0},"- ako je upisan bilo koji AOP u koloni tekuće godine 1 u suprotnom 0"]
[]
[{"$f":"\"Obveznik: \"&IF(RefStr!C27<>\"\",RefStr!C27,\"________\") & \"; \" & IF(RefStr!C29<>\"\",RefStr!C29,\"_________________\"&\"; \"&IF(RefStr!F31<>\"\",RefStr!F31,\"_______________\"))","v":"Obveznik: 48188420009; Zračna luka Osijek d.o.o."},null,null,null,null,null,null,null,"Iznosi u eurima i centima"]
["Naziv pozicije",null,null,null,null,null,"AOP\noznaka","Rbr. \nbilješke","Prethodna godina","Tekuća godina"]
[1,null,null,null,null,null,2,3,4,5]
["Novčani tokovi od poslovnih aktivnosti"]
["1. Dobit prije oporezivanja",null,null,null,null,null,1,null,null,null,null,"="]
["2. Usklađenja (AOP 003 do 010):",null,null,null,null,null,2,null,{"$f":"ROUND(SUM(I11:I18),2)","v":0},{"$f":"ROUND(SUM(J11:J18),2)","v":0},null,"="]
[" a) Amortizacija",null,null,null,null,null,3,null,null,null,null,"+"]
[" b) Dobici i gubici od prodaje i vrijednosna usklađenja dugotrajne materijalne i\n      nematerijalne imovine",null,null,null,null,null,4,null,null,null,null,"="]
[" c) Dobici i gubici od prodaje i nerealizirani dobici i gubici i vrijednosno usklađenje\n      financijske imovine",null,null,null,null,null,5,null,null,null,null,"="]
[" d) Prihodi od kamata i dividendi",null,null,null,null,null,6,null,null,null,null,"-"]
[" e) Rashodi od kamata",null,null,null,null,null,7,null,null,null,null,"+"]
[" f) Rezerviranja",null,null,null,null,null,8,null,null,null,null,"="]
[" g) Tečajne razlike (nerealizirane)",null,null,null,null,null,9,null,null,null,null,"="]
[" h) Ostala usklađenja za nenovčane transakcije i nerealizirane dobitke i gubitke",null,null,null,null,null,10,null,null,null,null,"="]
["I.  Povećanje ili smanjenje novčanih tokova prije promjena u radnom kapitalu\n    (AOP 001+002)",null,null,null,null,null,11,null,{"$f":"ROUND(I9+I10,2)","v":0},{"$f":"ROUND(J9+J10,2)","v":0},null,"="]
["3. Promjene u radnom kapitalu (AOP 013 do 016)",null,null,null,null,null,12,null,{"$f":"ROUND(SUM(I21:I24),2)","v":0},{"$f":"ROUND(SUM(J21:J24),2)","v":0},null,"="]
[" a) Povećanje ili smanjenje kratkoročnih obveza",null,null,null,null,null,13,null,null,null,null,"="]
[" b) Povećanje ili smanjenje kratkotrajnih potraživanja",null,null,null,null,null,14,null,null,null,null,"="]
[" c) Povećanje ili smanjenje zaliha",null,null,null,null,null,15,null,null,null,null,"="]
[" d) Ostala povećanja ili smanjenja radnog kapitala",null,null,null,null,null,16,null,null,null,null,"="]
["II. Novac iz poslovanja (AOP 011+012)",null,null,null,null,null,17,null,{"$f":"ROUND(I19+I20,2)","v":0},{"$f":"ROUND(J19+J20,2)","v":0},null,"="]
["4. Novčani izdaci za kamate",null,null,null,null,null,18,null,null,null,null,"-"]
["5. Plaćeni porez na dobit",null,null,null,null,null,19,null,null,null,null,"="]
["A) NETO NOVČANI TOKOVI OD POSLOVNIH AKTIVNOSTI (AOP 017 do 019)",null,null,null,null,null,20,null,{"$f":"ROUND(SUM(I25:I27),2)","v":0},{"$f":"ROUND(SUM(J25:J27),2)","v":0},null,"="]
["Novčani tokovi od investicijskih aktivnosti"]
["1. Novčani primici od prodaje dugotrajne materijalne i nematerijalne imovine",null,null,null,null,null,21,null,null,null,null,"+"]
["2. Novčani primici od prodaje financijskih instrumenata",null,null,null,null,null,22,null,null,null,null,"+"]
["3. Novčani primici od kamata",null,null,null,null,null,23,null,null,null,null,"+"]
["4. Novčani primici od dividendi",null,null,null,null,null,24,null,null,null,null,"+"]
["5. Novčani primici s osnove povrata danih zajmova i štednih uloga",null,null,null,null,null,25,null,null,null,null,"+"]
["6. Ostali novčani primici od investicijskih aktivnosti",null,null,null,null,null,26,null,null,null,null,"+"]
["III. Ukupno novčani primici od investicijskih aktivnosti (AOP 021 do 026)",null,null,null,null,null,27,null,{"$f":"ROUND(SUM(I30:I35),2)","v":0},{"$f":"ROUND(SUM(J30:J35),2)","v":0},null,"+"]
["1. Novčani izdaci za kupnju dugotrajne materijalne i nematerijalne imovine",null,null,null,null,null,28,null,null,null,null,"-"]
["2. Novčani izdaci za stjecanje financijskih instrumenata",null,null,null,null,null,29,null,null,null,null,"-"]
["3. Novčani izdaci s osnove danih zajmova i štednih uloga za razdoblje",null,null,null,null,null,30,null,null,null,null,"-"]
["4. Stjecanje ovisnog društva, umanjeno za stečeni novac",null,null,null,null,null,31,null,null,null,null,"="]
["5. Ostali novčani izdaci od investicijskih aktivnosti",null,null,null,null,null,32,null,null,null,null,"-"]
["IV. Ukupno novčani izdaci od investicijskih aktivnosti (AOP 028 do 032)",null,null,null,null,null,33,null,{"$f":"ROUND(SUM(I37:I41),2)","v":0},{"$f":"ROUND(SUM(J37:J41),2)","v":0},null,"="]
["B) NETO NOVČANI TOKOVI OD INVESTICIJSKIH AKTIVNOSTI (AOP 027+033)",null,null,null,null,null,34,null,{"$f":"ROUND(I36+I42,2)","v":0},{"$f":"ROUND(J36+J42,2)","v":0},null,"="]
["Novčani tokovi od financijskih aktivnosti"]
["1. Novčani primici od povećanja temeljnog (upisanog) kapitala",null,null,null,null,null,35,null,null,null,null,"+"]
["2. Novčani primici od izdavanja vlasničkih i dužničkih financijskih instrumenata",null,null,null,null,null,36,null,null,null,null,"+"]
["3. Novčani primici od glavnice kredita, pozajmica i drugih posudbi",null,null,null,null,null,37,null,null,null,null,"+"]
["4. Ostali novčani primici od financijskih aktivnosti",null,null,null,null,null,38,null,null,null,null,"+"]
["V. Ukupno novčani primici od financijskih aktivnosti (AOP 035 do 038)",null,null,null,null,null,39,null,{"$f":"ROUND(SUM(I45:I48),2)","v":0},{"$f":"ROUND(SUM(J45:J48),2)","v":0},null,"+"]
["1. Novčani izdaci za otplatu glavnice kredita, pozajmica i drugih posudbi i dužničkih\n     financijskih instrumenata",null,null,null,null,null,40,null,null,null,null,"-"]
["2. Novčani izdaci za isplatu dividendi",null,null,null,null,null,41,null,null,null,null,"-"]
["3. Novčani izdaci za financijski najam ",null,null,null,null,null,42,null,null,null,null,"-"]
["4. Novčani izdaci za otkup vlastitih dionica i smanjenje temeljnog (upisanog) kapitala",null,null,null,null,null,43,null,null,null,null,"-"]
["5. Ostali novčani izdaci od financijskih aktivnosti",null,null,null,null,null,44,null,null,null,null,"-"]
["VI. Ukupno novčani izdaci od financijskih aktivnosti (AOP 040 do 044)",null,null,null,null,null,45,null,{"$f":"ROUND(SUM(I50:I54),2)","v":0},{"$f":"ROUND(SUM(J50:J54),2)","v":0},null,"-"]
["C) NETO NOVČANI TOKOVI OD FINANCIJSKIH AKTIVNOSTI (AOP 039+045)",null,null,null,null,null,46,null,{"$f":"ROUND(I49+I55,2)","v":0},{"$f":"ROUND(J49+J55,2)","v":0},null,"="]
["1. Nerealizirane tečajne razlike po novcu i novčanim ekvivalentima",null,null,null,null,null,47,null,null,null,null,"="]
["D) NETO POVEĆANJE ILI SMANJENJE NOVČANIH TOKOVA (AOP 020+034+046+047)",null,null,null,null,null,48,null,{"$f":"ROUND(I28+I43+I56+I57,2)","v":0},{"$f":"ROUND(J28+J43+J56+J57,2)","v":0},null,"="]
["E) NOVAC I NOVČANI EKVIVALENTI NA POČETKU RAZDOBLJA",null,null,null,null,null,49,null,null,null,null,"+"]
["F) NOVAC I NOVČANI EKVIVALENTI NA KRAJU RAZDOBLJA (AOP 048+049)",null,null,null,null,null,50,null,{"$f":"ROUND(I59+I58,2)","v":0},{"$f":"ROUND(J59+J58,2)","v":0},null,"+"]

{"sheet":"NT_D","index":7,"n_rows":54,"n_cols":18,"rows_kept":54,"cut":false,"hidden":false,"merged":[[14,0,14,5],[4,8,4,9],[11,0,11,5],[12,0,12,5],[13,0,13,5],[10,0,10,5],[7,0,7,9],[8,0,8,5],[9,0,9,5],[1,9,2,9],[2,0,2,8],[5,0,5,5],[6,0,6,5],[1,0,1,8],[4,0,4,7],[15,0,15,5],[16,0,16,5],[26,0,26,5],[24,0,24,5],[25,0,25,5],[21,0,21,5],[22,0,22,9],[19,0,19,5],[23,0,23,5],[20,0,20,5],[17,0,17,5],[53,0,53,5],[52,0,52,5],[49,0,49,5],[47,0,47,5],[50,0,50,5],[18,0,18,5],[29,0,29,5],[30,0,30,5],[27,0,27,5],[28,0,28,5],[51,0,51,5],[48,0,48,5],[46,0,46,5],[44,0,44,5],[42,0,42,5],[45,0,45,5],[43,0,43,5],[31,0,31,5],[32,0,32,5],[33,0,33,5],[34,0,34,5],[40,0,40,5],[41,0,41,5],[35,0,35,5],[36,0,36,5],[38,0,38,5],[37,0,37,9],[39,0,39,5]]}
["Navigacija","Naslovna","RefStr","Bilanca","RDG","Dodatni","NT_I","NT_D","PK","Kont",null,null,null,null,null,null,{"$f":"IF(OR(MIN(I8:J54)<0,MAX(I8:J54)>0),1,0)","v":0},"- ako je bilo koji AOP različit od nule 1 u suprotnom 0"]
["IZVJEŠTAJ O NOVČANIM TOKOVIMA - Direktna metoda",null,null,null,null,null,null,null,null,"Obrazac\nPOD-NTD",null,null,null,null,null,null,{"$f":"IF(OR(MIN(I8:I54)<0,MAX(I8:I54)>0),1,0)","v":0},"- ako je upisan bilo koji AOP u koloni prethodne godine, 1 u suprotnom 0"]
[{"$f":" \"u razdoblju \" & IF(RefStr!C4<>\"\", TEXT(RefStr!C4, \"DD.MM.YYYY.\"), \"__.__.____.\") & \" do \" & IF(RefStr!F4<>\"\", TEXT(RefStr!F4, \"DD.MM.YYYY.\"),\"__.__.____.\")","v":"u razdoblju 01.01.2024. do 31.12.2024."},null,null,null,null,null,null,null,null,null,null,null,null,null,null,null,{"$f":"IF(OR(MIN(J8:J54)<0,MAX(J8:J54)>0),1,0)","v":0},"- ako je upisan bilo koji AOP u koloni tekuće godine 1 u suprotnom 0"]
[]
[{"$f":"\"Obveznik: \"&IF(RefStr!C27<>\"\",RefStr!C27,\"________\") & \"; \" & IF(RefStr!C29<>\"\",RefStr!C29,\"_________________\"&\"; \"&IF(RefStr!F31<>\"\",RefStr!F31,\"_______________\"))","v":"Obveznik: 48188420009; Zračna luka Osijek d.o.o."},null,null,null,null,null,null,null,"Iznosi u eurima i centima"]
["Naziv pozicije",null,null,null,null,null,"AOP\noznaka","Rbr. \nbilješke","Prethodna godina","Tekuća godina"]
[1,null,null,null,null,null,2,3,4,5]
["Novčani tokovi od poslovnih aktivnosti"]
["    1. Novčani primici od kupaca",null,null,null,null,null,1,null,null,null,null,"+"]
["    2. Novčani primici od tantijema, naknada, provizija i sl.",null,null,null,null,null,2,null,null,null,null,"+"]
["    3. Novčani primici od osiguranja za naknadu šteta",null,null,null,null,null,3,null,null,null,null,"+"]
["    4. Novčani primici s osnove povrata poreza",null,null,null,null,null,4,null,null,null,null,"+"]
["    5. Ostali novčani primici od poslovnih aktivnosti",null,null,null,null,null,5,null,null,null,null,"+"]
[" I. Ukupno novčani primici od poslovnih aktivnosti (AOP 001 do 005)",null,null,null,null,null,6,null,{"$f":"ROUND(SUM(I9:I13),2)","v":0},{"$f":"ROUND(SUM(J9:J13),2)","v":0},null,"+"]
["    1. Novčani izdaci dobavljačima",null,null,null,null,null,7,null,null,null,null,"-"]
["    2. Novčani izdaci za zaposlene",null,null,null,null,null,8,null,null,null,null,"-"]
["    3. Novčani izdaci za osiguranje za naknade šteta",null,null,null,null,null,9,null,null,null,null,"-"]
["    4. Novčani izdaci za kamate",null,null,null,null,null,10,null,null,null,null,"-"]
["    5. Plaćeni porez na dobit",null,null,null,null,null,11,null,null,null,null,"-"]
["    6. Ostali novčani  izdaci od poslovnih aktivnosti",null,null,null,null,null,12,null,null,null,null,"-"]
["II. Ukupno novčani izdaci od poslovnih aktivnosti (AOP 007 do 012)",null,null,null,null,null,13,null,{"$f":"ROUND(SUM(I15:I20),2)","v":0},{"$f":"ROUND(SUM(J15:J20),2)","v":0},null,"-"]
["A) NETO NOVČANI TOKOVI OD POSLOVNIH AKTIVNOSTI (AOP 006 + 013)",null,null,null,null,null,14,null,{"$f":"ROUND(I14+I21,2)","v":0},{"$f":"ROUND(J14+J21,2)","v":0},null,"="]
["Novčani tokovi od investicijskih aktivnosti"]
[" 1. Novčani primici od prodaje dugotrajne materijalne i nematerijalne imovine",null,null,null,null,null,15,null,null,null,null,"+"]
[" 2. Novčani primici od prodaje financijskih instrumenata",null,null,null,null,null,16,null,null,null,null,"+"]
[" 3. Novčani primici od kamata",null,null,null,null,null,17,null,null,null,null,"+"]
[" 4. Novčani primici od dividendi",null,null,null,null,null,18,null,null,null,null,"+"]
[" 5. Novčani primici s osnove povrata danih zajmova i štednih uloga",null,null,null,null,null,19,null,null,null,null,"+"]
[" 6. Ostali novčani primici od investicijskih aktivnosti",null,null,null,null,null,20,null,null,null,null,"+"]
["II. Ukupno novčani primici od investicijskih aktivnosti (AOP 015 do 020)",null,null,null,null,null,21,null,{"$f":"ROUND(SUM(I24:I29),2)","v":0},{"$f":"ROUND(SUM(J24:J29),2)","v":0},null,"+"]
[" 1. Novčani izdaci za kupnju dugotrajne materijalne i nematerijalne imovine",null,null,null,null,null,22,null,null,null,null,"-"]
[" 2. Novčani izdaci za stjecanje financijskih instrumenata",null,null,null,null,null,23,null,null,null,null,"-"]
[" 3. Novčani izdaci s osnove danih zajmova i štednih uloga",null,null,null,null,null,24,null,null,null,null,"-"]
[" 4. Stjecanje ovisnog društva, umanjeno za stečeni novac",null,null,null,null,null,25,null,null,null,null,"="]
[" 5. Ostali novčani izdaci od investicijskih aktivnosti",null,null,null,null,null,26,null,null,null,null,"-"]
["III. Ukupno novčani izdaci od investicijskih aktivnosti (AOP 022 do 026)",null,null,null,null,null,27,null,{"$f":"ROUND(SUM(I31:I35),2)","v":0},{"$f":"ROUND(SUM(J31:J35),2)","v":0},null,"-"]
["B) NETO NOVČANI TOKOVI OD INVESTICIJSKIH AKTIVNOSTI (AOP 021 + 027)",null,null,null,null,null,28,null,{"$f":"ROUND(I30+I36,2)","v":0},{"$f":"ROUND(J30+J36,2)","v":0},null,"="]
["Novčani tokovi od financijskih aktivnosti",null,null,null,null,null,0]
["     1. Novčani primici od povećanja temeljnog (upisanog) kapitala",null,null,null,null,null,29,null,null,null,null,"+"]
["     2. Novčani primici od izdavanja vlasničkih i dužničkih financijskih\n         instrumenata",null,null,null,null,null,30,null,null,null,null,"+"]
["     3. Novčani primici od glavnice kredita, pozajmica i drugih posudbi",null,null,null,null,null,31,null,null,null,null,"+"]
["     4. Ostali novčani primici od financijskih aktivnosti",null,null,null,null,null,32,null,null,null,null,"+"]
["IV. Ukupno novčani primici od financijskih aktivnosti (AOP 029 do 032)",null,null,null,null,null,33,null,{"$f":"ROUND(SUM(I39:I42),2)","v":0},{"$f":"ROUND(SUM(J39:J42),2)","v":0},null,"+"]
["     1. Novčani izdaci za otplatu glavnice kredita, pozajmica i drugih\n         posudbi i dužničkih financijskih instrumenata",null,null,null,null,null,34,null,null,null,null,"-"]
["     2. Novčani izdaci za isplatu dividendi",null,null,null,null,null,35,null,null,null,null,"-"]
["     3. Novčani izdaci za financijski najam ",null,null,null,null,null,36,null,null,null,null,"-"]
["     4. Novčani izdaci za otkup vlastitih dionica i smanjenje temeljnog\n         (upisanog) kapitala",null,null,null,null,null,37,null,null,null,null,"-"]
["     5. Ostali novčani izdaci od financijskih aktivnosti",null,null,null,null,null,38,null,null,null,null,"-"]
["V. Ukupno novčani izdaci od financijskih aktivnosti (AOP 034 do 038)",null,null,null,null,null,39,null,{"$f":"ROUND(SUM(I44:I48),2)","v":0},{"$f":"ROUND(SUM(J44:J48),2)","v":0},null,"-"]
["C) NETO NOVČANI TOKOVI OD FINANCIJSKIH AKTIVNOSTI (AOP 033+039)",null,null,null,null,null,40,null,{"$f":"ROUND(I43+I49,2)","v":0},{"$f":"ROUND(J43+J49,2)","v":0},null,"="]
["  1. Nerealizirane tečajne razlike po novcu i novčanim ekvivalentima",null,null,null,null,null,41,null,null,null,null,"="]
["D) NETO POVEĆANJE ILI SMANJENJE NOVČANIH TOKOVA\n     (AOP 014 + 028 + 040 + 041)",null,null,null,null,null,42,null,{"$f":"ROUND(I22+I37+I50+I51,2)","v":0},{"$f":"ROUND(J22+J37+J50+J51,2)","v":0},null,"="]
["E) NOVAC I NOVČANI EKVIVALENTI NA POČETKU RAZDOBLJA",null,null,null,null,null,43,null,null,null,null,"+"]
["F) NOVAC I NOVČANI EKVIVALENTI NA KRAJU RAZDOBLJA (AOP 042+043)",null,null,null,null,null,44,null,{"$f":"ROUND(I52+I53,2)","v":0},{"$f":"ROUND(J52+J53,2)","v":0},null,"+"]

{"sheet":"PK","index":8,"n_rows":66,"n_cols":31,"rows_kept":66,"cut":false,"hidden":false,"merged":[[55,0,55,5],[62,0,62,26],[59,0,59,5],[58,0,58,5],[57,0,57,5],[56,0,56,5],[54,0,54,5],[43,0,43,5],[41,0,41,5],[33,0,33,26],[45,0,45,5],[49,0,49,5],[50,0,50,5],[51,0,51,5],[52,0,52,5],[53,0,53,5],[65,0,65,5],[60,0,60,5],[61,0,61,5],[63,0,63,5],[64,0,64,5],[26,0,26,5],[40,0,40,5],[37,0,37,26],[39,0,39,5],[48,0,48,5],[8,0,8,26],[21,0,21,5],[15,0,15,5],[16,0,16,5],[9,0,9,5],[19,0,19,5],[20,0,20,5],[10,0,10,5],[11,0,11,5],[17,0,17,5],[28,0,28,5],[29,0,29,5],[42,0,42,5],[25,0,25,5],[36,0,36,5],[38,0,38,5],[35,0,35,5],[18,0,18,5],[47,0,47,5],[46,0,46,5],[44,0,44,5],[22,0,22,5],[30,0,30,5],[23,0,23,5],[31,0,31,5],[32,0,32,5],[34,0,34,5],[1,26,2,26],[1,17,2,17],[1,0,1,7],[5,26,6,26],[2,0,2,7],[4,0,4,13],[5,7,6,7],[24,0,24,5],[27,0,27,5],[5,8,5,24],[5,25,6,25],[5,0,6,5],[5,6,6,6],[12,0,12,5],[13,0,13,5],[7,0,7,5],[14,0,14,5]]}
["Navigacija","Naslovna","RefStr","Bilanca","RDG","Dodatni","NT_I","NT_D","PK","Kont",null,null,null,null,null,null,null,null,null,null,null,null,null,null,null,null,null,null,null,{"$f":"MAX(AD2:AD3)","v":0},"- ako je bilo koji AOP različit od nule 1 u suprotnom 0"]
["Izvještaj o promjenama kapitala",null,null,null,null,null,null,null,null,null,null,null,null,null,null,null,null,"Obrazac\nPOD-PK",null,null,null,null,null,null,null,null,"Obrazac\nPOD-PK",null,null,{"$f":"IF(OR(MAX(H10:AA33)<>0,MIN(H10:AA33)<>0),1,0)","v":0},"- ako je upisan bilo koji AOP u koloni prethodne godine, 1 u suprotnom 0"]
[{"$f":" \"za razdoblje od \" & IF(RefStr!C4<>\"\", TEXT(RefStr!C4, \"DD.MM.YYYY.\"), \"__.__.____.\") & \" do \" & IF(RefStr!F4<>\"\", TEXT(RefStr!F4, \"DD.MM.YYYY.\"),\"__.__.____.\")","v":"za razdoblje od 01.01.2024. do 31.12.2024."},null,null,null,null,null,null,null,null,null,null,null,null,null,null,null,null,null,null,null,null,null,null,null,null,null,null,null,null,{"$f":"IF(OR(MAX(H39:AA62)<>0,MIN(H39:AA62)<>0),1,0)","v":0},"- ako je upisan bilo koji AOP u koloni tekuće godine 1 u suprotnom 0"]
[]
[{"$f":"\"Obveznik: \"&IF(RefStr!C27<>\"\",RefStr!C27,\"________\") & \"; \" & IF(RefStr!C29<>\"\",RefStr!C29,\"________________________________________\"&\"; \"&IF(RefStr!F31<>\"\",RefStr!F31,\"_______________\"))","v":"Obveznik: 48188420009; Zračna luka Osijek d.o.o."},null,null,null,null,null,null,null,null,null,null,null,null,null,null,null,null,"Iznosi u eurima i centima",null,null,null,null,null,null,null,null,"Iznosi u eurima i centima",null,null,null," - ako je bilo što upisano u konsolidirana polja u kolonu prethodne godine 1, u suprotnom nula"]
["Opis pozicije",null,null,null,null,null,"AOP\noznaka","Rbr. \nbilješke","Raspodjeljivo imateljima kapitala matice",null,null,null,null,null,null,null,null,null,null,null,null,null,null,null,null,"Manjinski (nekontrolirajući)\n interes","Ukupno kapital i rezerve",null,null,{"$f":"IF(OR(MAX(Z39:Z62)<>0,MIN(Z39:Z62)<>0),1,0)","v":0},"- ako je bilo što upisano u konsolidirana polja u kolonu tekuće godine 1, u suprotnom nula"]
[null,null,null,null,null,null,null,null,"Temeljni (upisani) kapital","Kapitalne rezerve","Zakonske rezerve","Rezerve za vlastite dionice","Vlastite dionice i udjeli (odbitna stavka)","Statutarne rezerve","Ostale rezerve","Revalorizacijske rezerve","Fer vrijednost financijske imovine kroz ostalu sveobuhvatnu dobit ( raspoloživa za prodaju)","Učinkoviti dio zaštite novčanih tokova","Učinkoviti dio zaštite neto ulaganja u inozemstvo","Ostale rezerve fer vrijednosti","Tečajne razlike iz preračuna inozemnog poslovanja","Tečajne razlike zbog preračuna u prezentacijsku valutu","Zadržana dobit / preneseni gubitak","Dobit / gubitak poslovne godine","Ukupno raspodjeljivo imateljima kapitala matice",null,null,null,null,{"$f":"IF(RefStr!N19=\"MSFI\",1,0)","v":1},"- da li je MSFI"]
[1,null,null,null,null,null,2,3,4,5,6,7,8,9,10,11,12,13,14,15,16,"17","18","19","20 (4 do 7 - 8\n + 9 do 19)","21","22 (20+21)"]
["Prethodno razdoblje"]
["  1.  Stanje na prvi dan prethodnog razdoblja",null,null,null,null,null,1,null,null,null,null,null,null,null,null,null,null,null,null,null,null,null,null,null,{"$f":"ROUND(SUM(I10:L10)-M10+SUM(N10:X10),2)","v":0},null,{"$f":"ROUND(Z10+Y10,2)","v":0}]
["  2. Promjene računovodstvenih politika",null,null,null,null,null,2,null,null,null,null,null,null,null,null,null,null,null,null,null,null,null,null,null,{"$f":"ROUND(SUM(I11:L11)-M11+SUM(N11:X11),2)","v":0},null,{"$f":"ROUND(Z11+Y11,2)","v":0}]
["  3. Ispravak pogreški",null,null,null,null,null,3,null,null,null,null,null,null,null,null,null,null,null,null,null,null,null,null,null,0,null,0]
["  4. Stanje na prvi dan prethodnog razdoblja (AOP 01 do 03) ",null,null,null,null,null,4,null,{"$f":"ROUND(SUM(I10:I12),2)","v":0},{"$f":"ROUND(SUM(J10:J12),2)","v":0},0,0,0,0,0,0,0,0,0,0,0,0,0,0,0,0,0]
["  5. Dobit/gubitak razdoblja",null,null,null,null,null,5,null,null,null,null,null,null,null,null,null,null,null,null,null,null,null,null,null,0,null,0]
["  6. Tečajne razlike iz preračuna inozemnog poslovanja",null,null,null,null,null,6,null,null,null,null,null,null,null,null,null,null,null,null,null,null,null,null,null,0,null,0]
["  7. Promjene revalorizacijskih rezervi dugotrajne materijalne i \n      nematerijalne imovine",null,null,null,null,null,7,null,null,null,null,null,null,null,null,null,null,null,null,null,null,null,null,null,0,null,0]
["  8. Dobitak ili gubitak s osnove naknadnog vrednovanja financijske\n      imovine prema fer vrijednosti kroz ostalu sveobuhvatnu dobit\n      (raspoloživa za prodaju)",null,null,null,null,null,8,null,null,null,null,null,null,null,null,null,null,null,null,null,null,null,null,null,0,null,0]
["  9. Dobitak ili gubitak s osnove učinkovite zaštite novčanog toka",null,null,null,null,null,9,null,null,null,null,null,null,null,null,null,null,null,null,null,null,null,null,null,0,null,0]
["10. Dobitak ili gubitak s osnove učinkovite zaštite neto ulaganja\n      u inozemstvu",null,null,null,null,null,10,null,null,null,null,null,null,null,null,null,null,null,null,null,null,null,null,null,0,null,0]
["11. Udio u ostaloj sveobuhvatnoj dobiti/gubitku društava \n       povezanih sudjelujućim interesom",null,null,null,null,null,11,null,null,null,null,null,null,null,null,null,null,null,null,null,null,null,null,null,0,null,0]
["12. Aktuarski dobici/gubici po planovima definiranih primanja",null,null,null,null,null,12,null,null,null,null,null,null,null,null,null,null,null,null,null,null,null,null,null,0,null,0]
["13. Ostale nevlasničke promjene kapitala",null,null,null,null,null,13,null,null,null,null,null,null,null,null,null,null,null,null,null,null,null,null,null,0,null,0]
["14. Porez na transakcije priznate direktno u kapitalu",null,null,null,null,null,14,null,null,null,null,null,null,null,null,null,null,null,null,null,null,null,null,null,0,null,0]
["15. Smanjenje temeljnog (upisanog) kapitala (osim u postupku\n       predstečajne nagodbe i nastalog reinvestiranjem dobiti)",null,null,null,null,null,15,null,null,null,null,null,null,null,null,null,null,null,null,null,null,null,null,null,0,null,0]
["16. Smanjenje temeljnog (upisanog) kapitala u postupku \n       predstečajne nagodbe",null,null,null,null,null,16,null,null,null,null,null,null,null,null,null,null,null,null,null,null,null,null,null,0,null,0]
["17. Smanjenje temeljnog (upisanog) kapitala nastalog \n       reinvestiranjem dobiti",null,null,null,null,null,17,null,null,null,null,null,null,null,null,null,null,null,null,null,null,null,null,null,0,null,0]
["18. Otkup vlastitih dionica/udjela",null,null,null,null,null,18,null,null,null,null,null,null,null,null,null,null,null,null,null,null,null,null,null,0,null,0]
["19. Uplate članova/dioničara",null,null,null,null,null,19,null,null,null,null,null,null,null,null,null,null,null,null,null,null,null,null,null,0,null,0]
["20. Isplata udjela u dobiti/dividende",null,null,null,null,null,20,null,null,null,null,null,null,null,null,null,null,null,null,null,null,null,null,null,0,null,0]
["21.  Ostale raspodjele i isplate članovima/dioničarima",null,null,null,null,null,21,null,null,null,null,null,null,null,null,null,null,null,null,null,null,null,null,null,0,null,0]
["22. Prijenos po godišnjem rasporedu",null,null,null,null,null,22,null,null,null,null,null,null,null,null,null,null,null,null,null,null,null,null,null,0,null,0]
["23. Povećanje rezervi u postupku predstečajne nagodbe",null,null,null,null,null,23,null,null,null,null,null,null,null,null,null,null,null,null,null,null,null,null,null,0,null,0]
["24. Stanje na zadnji dan prethodnog razdoblja (AOP 04 do 23)",null,null,null,null,null,24,null,{"$f":"ROUND(SUM(I13:I32),2)","v":0},{"$f":"ROUND(SUM(J13:J32),2)","v":0},0,0,0,0,0,0,0,0,0,0,0,0,0,0,0,0,0]
["DODATAK IZVJEŠTAJU O PROMJENAMA KAPITALA (popunjava poduzetnik obveznik primjene MSFI-a)"]
["   I. OSTALA SVEOBUHVATNA DOBIT PRETHODNOG \n      RAZDOBLJA, UMANJENO ZA POREZE (AOP 06 do 14)",null,null,null,null,null,25,null,{"$f":"ROUND(SUM(I15:I23)*$AD$7,2)","v":0},{"$f":"ROUND(SUM(J15:J23)*$AD$7,2)","v":0},0,0,0,0,0,0,0,0,0,0,0,{"$f":"ROUND(SUM(V15:V23)*$AD$7,2)","v":0},0,0,0,{"$f":"ROUND(SUM(Z15:Z23)*$AD$7,2)","v":0},0]
["  II. SVEOBUHVATNA DOBIT ILI GUBITAK PRETHODNOG\n      RAZDOBLJA (AOP 05+25)",null,null,null,null,null,26,null,{"$f":"ROUND((I14+I35)*$AD$7,2)","v":0},{"$f":"ROUND((J14+J35)*$AD$7,2)","v":0},0,0,0,0,0,0,0,0,0,0,0,0,0,0,0,0,0]
["III. TRANSAKCIJE S VLASNICIMA PRETHODNOG RAZDOBLJA\n      PRIZNATE DIREKTNO U KAPITALU (AOP 15 do 23)",null,null,null,null,null,27,null,{"$f":"ROUND(SUM(I24:I32)*$AD$7,2)","v":0},{"$f":"ROUND(SUM(J24:J32)*$AD$7,2)","v":0},0,0,0,0,0,0,0,0,0,0,0,{"$f":"ROUND(SUM(V24:V32)*$AD$7,2)","v":0},0,0,0,0,0]
["Tekuće razdoblje"]
["  1. Stanje na prvi dan tekućeg razdoblja",null,null,null,null,null,28,null,null,null,null,null,null,null,null,null,null,null,null,null,null,null,null,null,{"$f":"ROUND(SUM(I39:L39)-M39+SUM(N39:X39),2)","v":0},null,{"$f":"ROUND(Z39+Y39,2)","v":0}]
["  2. Promjene računovodstvenih politika",null,null,null,null,null,29,null,null,null,null,null,null,null,null,null,null,null,null,null,null,null,null,null,0,null,0]
["  3. Ispravak pogreški",null,null,null,null,null,30,null,null,null,null,null,null,null,null,null,null,null,null,null,null,null,null,null,0,null,0]
["  4. Stanje na prvi dan tekućeg razdoblja (AOP 28 do 30)",null,null,null,null,null,31,null,{"$f":"SUM(I39:I41)","v":0},0,0,0,0,0,0,0,0,0,0,{"$f":"SUM(T39:T41)","v":0},{"$f":"SUM(U39:U41)","v":0},{"$f":"SUM(V39:V41)","v":0},0,0,0,{"$f":"SUM(Z39:Z41)","v":0},0]
["  5. Dobit/gubitak razdoblja",null,null,null,null,null,32,null,null,null,null,null,null,null,null,null,null,null,null,null,null,null,null,null,0,null,0]
["  6. Tečajne razlike iz preračuna inozemnog poslovanja",null,null,null,null,null,33,null,null,null,null,null,null,null,null,null,null,null,null,null,null,null,null,null,0,null,0]
["  7. Promjene revalorizacijskih rezervi dugotrajne materijalne i\n      nematerijalne imovine",null,null,null,null,null,34,null,null,null,null,null,null,null,null,null,null,null,null,null,null,null,null,null,0,null,0]
["  8. Dobitak ili gubitak s osnove naknadnog vrednovanja financijske\n      imovine prema fer vrijednosti kroz ostalu sveobuhvatnu dobit\n      (raspoloživa za prodaju)",null,null,null,null,null,35,null,null,null,null,null,null,null,null,null,null,null,null,null,null,null,null,null,0,null,0]
["  9. Dobitak ili gubitak s osnove učinkovite zaštite novčanog toka",null,null,null,null,null,36,null,null,null,null,null,null,null,null,null,null,null,null,null,null,null,null,null,0,null,0]
["10. Dobitak ili gubitak s osnove učinkovite zaštite neto ulaganja\n      u inozemstvu",null,null,null,null,null,37,null,null,null,null,null,null,null,null,null,null,null,null,null,null,null,null,null,0,null,0]
["11. Udio u ostaloj sveobuhvatnoj dobiti/gubitku društava\n       povezanih sudjelujućim interesom",null,null,null,null,null,38,null,null,null,null,null,null,null,null,null,null,null,null,null,null,null,null,null,0,null,0]
["12. Aktuarski dobici/gubici po planovima definiranih primanja",null,null,null,null,null,39,null,null,null,null,null,null,null,null,null,null,null,null,null,null,null,null,null,0,null,0]
["13. Ostale nevlasničke promjene kapitala",null,null,null,null,null,40,null,null,null,null,null,null,null,null,null,null,null,null,null,null,null,null,null,0,null,0]
["14. Porez na transakcije priznate direktno u kapitalu",null,null,null,null,null,41,null,null,null,null,null,null,null,null,null,null,null,null,null,null,null,null,null,0,null,0]
["15. Smanjenje temeljnog (upisanog) kapitala (osim u postupku\n       predstečajne nagodbe i nastalog reinvestiranjem dobiti)",null,null,null,null,null,42,null,null,null,null,null,null,null,null,null,null,null,null,null,null,null,null,null,0,null,0]
["16. Smanjenje temeljnog (upisanog) kapitala u postupku\n       predstečajne nagodbe",null,null,null,null,null,43,null,null,null,null,null,null,null,null,null,null,null,null,null,null,null,null,null,0,null,0]
["17. Smanjenje temeljnog (upisanog) kapitala nastalog\n       reinvestiranjem dobiti",null,null,null,null,null,44,null,null,null,null,null,null,null,null,null,null,null,null,null,null,null,null,null,0,null,0]
["18. Otkup vlastitih dionica/udjela",null,null,null,null,null,45,null,null,null,null,null,null,null,null,null,null,null,null,null,null,null,null,null,0,null,0]
["19. Uplate članova/dioničara",null,null,null,null,null,46,null,null,null,null,null,null,null,null,null,null,null,null,null,null,null,null,null,0,null,0]
["20. Isplata udjela u dobiti/dividende  ",null,null,null,null,null,47,null,null,null,null,null,null,null,null,null,null,null,null,null,null,null,null,null,0,null,0]
["21. Ostale raspodjele i isplate članovima/dioničarima",null,null,null,null,null,48,null,null,null,null,null,null,null,null,null,null,null,null,null,null,null,null,null,0,null,0]
["22. Prijenosi po godišnjem rasporedu",null,null,null,null,null,49,null,null,null,null,null,null,null,null,null,null,null,null,null,null,null,null,null,0,null,0]
["23. Povećanje rezervi u postupku predstečajne nagodbe",null,null,null,null,null,50,null,null,null,null,null,null,null,null,null,null,null,null,null,null,null,null,null,0,null,0]
["24. Stanje na zadnji dan tekućeg razdoblja (AOP 32 do 50)",null,null,null,null,null,51,null,{"$f":"SUM(I42:I61)","v":0},0,0,0,0,0,0,0,0,0,0,{"$f":"SUM(T42:T61)","v":0},{"$f":"SUM(U42:U61)","v":0},{"$f":"SUM(V42:V61)","v":0},0,0,0,{"$f":"SUM(Z42:Z61)","v":0},0]
["DODATAK IZVJEŠTAJU O PROMJENAMA KAPITALA (popunjava poduzetnik obveznik primjene MSFI-a)"]
["   I. OSTALA SVEOBUHVATNA DOBIT TEKUĆEG \n      RAZDOBLJA, UMANJENO ZA POREZE (AOP 33 do 41)",null,null,null,null,null,52,null,{"$f":"ROUND(SUM(I44:I52)*$AD$7,2)","v":0},{"$f":"ROUND(SUM(J44:J52)*$AD$7,2)","v":0},0,0,0,0,0,0,0,0,0,0,0,{"$f":"ROUND(SUM(V44:V52)*$AD$7,2)","v":0},0,0,{"$f":"ROUND(SUM(I64:L64)-M64+SUM(N64:X64),2)","v":0},0,{"$f":"ROUND(Z64+Y64,2)","v":0}]
["  II. SVEOBUHVATNA DOBIT ILI GUBITAK TEKUĆEG\n      RAZDOBLJA (AOP 32 + 52)",null,null,null,null,null,53,null,{"$f":"ROUND((I43+I64)*$AD$7,2)","v":0},{"$f":"ROUND((J43+J64)*$AD$7,2)","v":0},0,0,0,0,0,0,0,0,0,0,0,0,0,0,{"$f":"ROUND(SUM(I65:L65)-M65+SUM(N65:X65),2)","v":0},0,{"$f":"ROUND(Z65+Y65,2)","v":0}]
["III. TRANSAKCIJE S VLASNICIMA TEKUĆEG RAZDOBLJA \n      PRIZNATE DIREKTNO U KAPITALU (AOP 42 do 50)",null,null,null,null,null,54,null,{"$f":"ROUND(SUM(I53:I61)*$AD$7,2)","v":0},{"$f":"ROUND(SUM(J53:J61)*$AD$7,2)","v":0},0,0,0,0,0,0,0,0,0,0,0,{"$f":"ROUND(SUM(V53:V61)*$AD$7,2)","v":0},0,0,{"$f":"ROUND(SUM(I66:L66)-M66+SUM(N66:X66),2)","v":0},0,{"$f":"ROUND(Z66+Y66,2)","v":0}]

{"sheet":"Kont","index":9,"n_rows":122,"n_cols":61,"rows_kept":122,"cut":false,"hidden":false,"merged":[[63,2,63,9],[64,2,64,9],[78,2,78,9],[87,2,87,9],[67,2,67,9],[85,2,85,9],[72,0,72,9],[70,2,70,9],[76,2,76,9],[80,2,80,9],[52,2,52,9],[62,2,62,9],[59,2,59,9],[60,2,60,9],[61,2,61,9],[90,2,90,9],[84,2,84,9],[75,2,75,9],[79,2,79,9],[83,2,83,9],[96,2,96,9],[50,2,50,9],[56,2,56,9],[94,2,94,9],[58,2,58,9],[55,2,55,9],[53,2,53,9],[54,2,54,9],[51,2,51,9],[57,2,57,9],[105,2,105,9],[106,2,106,9],[101,2,101,9],[103,2,103,9],[102,2,102,9],[104,2,104,9],[100,2,100,9],[77,2,77,9],[32,2,32,9],[33,2,33,9],[43,2,43,9],[42,0,42,9],[44,2,44,9],[46,2,46,9],[99,2,99,9],[48,2,48,9],[45,2,45,9],[49,2,49,9],[27,2,27,9],[47,2,47,9],[41,2,41,9],[29,2,29,9],[38,2,38,9],[36,2,36,9],[26,2,26,9],[40,2,40,9],[31,2,31,9],[28,2,28,9],[30,2,30,9],[35,2,35,9],[37,2,37,9],[34,2,34,9],[39,2,39,9],[25,2,25,9],[11,2,11,9],[12,2,12,9],[8,2,9,9],[16,2,16,9],[14,2,14,9],[2,0,7,7],[7,8,7,9],[2,8,2,9],[4,8,4,9],[5,8,5,9],[20,2,20,9],[10,0,10,9],[8,0,9,1],[95,2,95,9],[86,2,86,9],[92,2,92,9],[89,2,89,9],[88,2,88,9],[82,2,82,9],[93,2,93,9],[91,2,91,9],[120,2,120,9],[119,2,119,9],[109,2,109,9],[111,2,111,9],[110,2,110,9],[118,2,118,9],[117,2,117,9],[81,2,81,9],[107,2,107,9],[116,2,116,9],[108,0,108,9],[115,2,115,9],[112,2,112,9],[113,2,113,9],[114,2,114,9],[98,2,98,9],[97,2,97,9],[74,2,74,9],[69,2,69,9],[66,2,66,9],[68,2,68,9],[73,2,73,9],[71,2,71,9],[65,2,65,9],[19,2,19,9],[24,2,24,9],[13,2,13,9],[21,2,21,9],[22,2,22,9],[23,2,23,9],[18,2,18,9],[15,2,15,9],[17,2,17,9]]}
[null,null,null,null,null,null,null,null,null,null,null,null,null,null,"Obrazac","Prethodna","Tekuća","Polje","Vrijednost","Polje","Vrijednost","Polje","Vrijednost","Polje","Vrijednost","Polje","Vrijednost"]
["Navigacija","Naslovna","RefStr","Bilanca","RDG","Dodatni","NT_I","NT_D","PK","Kont",null,"GR","UPO","BIL",{"$f":"Bilanca!Q1","v":1},{"$f":"Bilanca!Q2","v":1},{"$f":"Bilanca!Q3","v":1},"VI",{"$f":"IF(RefStr!C17<>\"\",IF(ISERROR(INT(RefStr!C17)),0,RefStr!C17),0)","v":10},"REV",{"$f":"RefStr!I21","v":"DA"},"NAZIV",{"$f":"RefStr!C29","v":"Zračna luka Osijek d.o.o."},"KAP_DOM",{"$f":"IF(RefStr!C54<>\"\",RefStr!C54,\"\")","v":100},"SERVIS_MB",{"$f":"IF(RefStr!B64=\"\",\"\",RefStr!B64)","v":""},"ODSTUPANJE",{"$f":"IF(YEAR(RefStr!F4)>2022,0.14,1)","v":0.14000000000000001}]
["Nepopunjen obrazac javit će mnoštvo pogrešaka zbog same nepopunjenosti. Tek nakon što popunite Referentnu stranicu i sve pripadajuće obrasce, provjerite status kontrola. Pogreške se moraju ispraviti da bi obrazac bio ispravan, a kod upozorenja provjerite jeste li ispravno upisali podatak na koji kontrola upozorava te ako je upisani podatak neupitno ispravan, upozorenje zanemarite.",null,null,null,null,null,null,null,null,null,null,null,null,"RDG",{"$f":"RDG!Q1","v":1},{"$f":"RDG!Q2","v":1},{"$f":"RDG!Q3","v":1},"VEL",{"$f":"IF(RefStr!C50<>\"\",IF(ISERROR(INT(RefStr!C50)),0,RefStr!C50),0)","v":2},"REV_OIB",{"$f":"RefStr!L21","v":"39806187636"},"POSTA",{"$f":"RefStr!C31","v":31207},"KAP_INO",{"$f":"IF(RefStr!F54<>\"\",RefStr!F54,\"\")","v":0},"SERVIS_NZ",{"$f":"IF(RefStr!B66=\"\",\"\",RefStr!B66)","v":""},"VALUTA",{"$f":"Skriveni!B71","v":"EUR"}]
[null,null,null,null,null,null,null,null,"Broj pogrešaka:",{"$f":"SUM(L12:L121)","v":0},null,null,null,"DOD",{"$f":"Dodatni!Q1","v":0},{"$f":"Dodatni!Q2","v":0},{"$f":"Dodatni!Q3","v":0},"VLAST",{"$f":"IF(RefStr!C52<>\"\",IF(ISERROR(INT(RefStr!C52)),0,RefStr!C52),0)","v":11},"OIB",{"$f":"RefStr!C27","v":"48188420009"},"MJESTO",{"$f":"RefStr!F31","v":"Klisa"},"Odluka_Utvr",{"$f":"RefStr!I68","v":"DA"},"STANDARD",{"$f":"RefStr!N19","v":"MSFI"},"NEAKT_PR",{"$f":"IF(RefStr!N7=\"NE\",\"DA\",IF(RefStr!N7=\"DA\",\"NE\",RefStr!N7))","v":"NE"}]
[null,null,null,null,null,null,null,null,null,null,null,null,null,"NTI",{"$f":"NT_I!Q1","v":0},{"$f":"NT_I!Q2","v":0},{"$f":"NT_I!Q3","v":0},"SVRHA",{"$f":"IF(RefStr!C19<>\"\",IF(ISERROR(INT(RefStr!C19)),0,RefStr!C19),0)","v":2},"MB",{"$f":"RefStr!H27","v":"03361721"},"ADRESA",{"$f":"RefStr!C33","v":"Vukovarska ulica 67"},"Revizorsko",{"$f":"RefStr!I62","v":"DA"},"MB_MATICE",{"$f":"RefStr!M46","v":0},"NEAKT_TK",{"$f":"IF(RefStr!N6=\"NE\",\"DA\",IF(RefStr!N6=\"DA\",\"NE\",RefStr!N6))","v":"NE"}]
[null,null,null,null,null,null,null,null,null,null,null,null,null,"NTD",{"$f":"NT_D!Q1","v":0},{"$f":"NT_D!Q2","v":0},{"$f":"NT_D!Q3","v":0},"KONS",{"$f":"RefStr!C21","v":"NE"},"MBS",{"$f":"RefStr!M27","v":"030026579"},"TELEFON",{"$f":"RefStr!L35","v":"031/514-402"},"Kont_OS",{"$f":"RefStr!C68","v":"Katarina Jelečević"},"DRZAVA_S",{"$f":"RefStr!C46","v":0},"BRISAN",{"$f":"RefStr!G6","v":"NE"}]
[null,null,null,null,null,null,null,null,"Broj upozorenja:",{"$f":"SUM(M12:M121)","v":0},null,null,null,"PK",{"$f":"PK!AD1","v":0},{"$f":"PK!AD2","v":0},{"$f":"PK!AD3","v":0},"AUTONOM",{"$f":"IF(RefStr!C44<>\"\",IF(ISERROR(INT(RefStr!C44)),0,RefStr!C44),0)","v":1},"VR_SUBJ",{"$f":"RefStr!C7","v":1},"E_MAIL",{"$f":"TRIM(UPPER(RefStr!C35))","v":"INFO@OSIJEK-AIRPORT.HR"},"Kont_TEL",{"$f":"RefStr!C70","v":"031/512-402"},"DRZAVA_T",{"$f":"RefStr!D46","v":""}]
[null,null,null,null,null,null,null,null,null,null,null,null,null,"NEAKT / MJES POSL",{"$f":"IF(RefStr!N6=\"NE\",\"DA\",IF(RefStr!N6=\"DA\",\"NE\",RefStr!N6))","v":"NE"},{"$f":"RefStr!C60","v":12},{"$f":"RefStr!F60","v":12},"DAT_OD",{"$f":"IF(RefStr!C4<>\"\",RefStr!C4,0)","v":45292},"VR_SUBJT",{"$f":"RefStr!D7","v":"Javno trgovačko društvo"},"NKD2007",{"$f":"RefStr!C42","v":"5223"},"Kont_MAIL",{"$f":"TRIM(UPPER(RefStr!C72))","v":"KATARINA.JELECEVIC@OSIJEK-AIRPORT.HR"},"Biljeske",{"$f":"RefStr!I56","v":"DA"}]
["Redni broj i rezultat kontrole",null,"Opis koja polja kontrola provjerava i koji podatak treba popraviti ako kontrola javlja pogrešku",null,null,null,null,null,null,null,null,null,null,null,"ZAPSATI",{"$f":"RefStr!C58","v":49},{"$f":"RefStr!F58","v":55},"DAT_DO",{"$f":"IF(RefStr!F4<>\"\",RefStr!F4,0)","v":45657},"OPC",{"$f":"RefStr!C39","v":312},"NKDOpis",{"$f":"RefStr!D42","v":"Uslužne djelatnosti u vezi sa zračnim ..."},"OdlukaRasp",{"$f":"RefStr!I66","v":"DA"},"GodIzvj",{"$f":"RefStr!I64","v":"NE"}]
[null,null,null,null,null,null,null,null,null,null,null,null,null,null,"ZAP_PROSJEK",{"$f":"RefStr!C56","v":50},{"$f":"RefStr!F56","v":57},"NEFIN",{"$f":"RefStr!C23","v":1},"OPC_TXT",{"$f":"RefStr!D39","v":"Osijek"},"GOD",{"$f":"YEAR(RefStr!F4)","v":2024},"Godina",{"$f":"RefStr!F12","v":2024},"POTPISNIK",{"$f":"RefStr!A75","v":"KOS IVAN"}]
["Kontrole popunjenosti i ispravnosti upisanih podataka na Referentnoj stranici"]
[1,{"$f":"IF(L12=1,\"Pogreška\", IF(M12=1, \"Provjera\",\"OK\"))","v":"OK"},"Pogreška signalizira da Datum Od i/ili Datum Do izvještajnog razdoblja nisu popunjeni ili nisu ispravno popunjeni.",null,null,null,null,null,null,null,null,{"$f":"MAX(N12:R12)","v":0},null,{"$f":"IF(OR(S8=0,S9=0,S8>=S9),1,0)","v":0},{"$f":"IF(AND(S9-S8>366,OR(S2<>30,S5=1)),1,0)","v":0}]
[{"$f":"A12+1","v":2},"OK","Pogreška signalizira da oznaka primjene MSFI/HSFI, Vrste poslovnog subjekta ili oznaka poslovne aktivnosti nije ispravno popunjena.",null,null,null,null,null,null,null,null,0,null,{"$f":"IF(OR(U7=\"\",U7=0,AND(O8<>\"DA\",O8<>\"NE\"),AND(AA4<>\"HSFI\",AA4<>\"MSFI\"),U8=\"\",U8=0,W2=\"Upisana je nepostojeća ili neprepoznatljiva vrsta poslovnog subjekta\"),1,0)","v":0}]
[{"$f":"A13+1","v":3},"OK","Pogreška signalizira da Vrsta izvještaja nije popunjena ili je pogrešno popunjena",null,null,null,null,null,null,null,null,0,null,{"$f":"IF(AND(S2<>10,S2<>11,S2<>20,S2<>21,S2<>30,S2<>31,S2<>40,S2<>50),1,0)","v":0}]
[4,{"$f":"IF(L15=1,\"Pogreška\", IF(M15=1, \"Provjera\",\"OK\"))","v":"OK"},"Pogreška signalizira da oznaka konsolidacije nije upisana (DA ili NE) ili da je označeno da je izvještaj konsolidiran, a vrsta poslovnog subjekta je takva da ne može imati konsolidaciju. Konsolidirani izvještaj se ne predaje za statističke potrebe, može imati samo šifru svrhe predaje 2 (javna objava).",null,null,null,null,null,null,null,null,0,null,{"$f":"IF(AND(S6<>\"DA\",S6<>\"NE\"),1,0)","v":0},{"$f":"IF(AND(S6=\"DA\",S5<>2),1,0)","v":0}]
[{"$f":"A15+1","v":5},{"$f":"IF(L16=1,\"Pogreška\", IF(M16=1, \"Provjera\",\"OK\"))","v":"OK"},"Pogreška signalizira da Šifra svrhe predaje nije popunjena ili je pogrešno popunjena. Kontrola također javlja grešku ako je odabrana javna objava za vrstu subjekta koji ne može imati javnu objavu. U tom slučaju ispravite svrhu ili ispravite vrstu subjekta.",null,null,null,null,null,null,null,null,0,null,{"$f":"IF(AND(S5<>1,S5<>2,S5<>3),1,0)","v":0},{"$f":"IF(AND(S5>1,U7>7,U7<>12),1,0)","v":0}]
[{"$f":"A16+1","v":6},{"$f":"IF(L17=1,\"Pogreška\", IF(M17=1, \"Provjera\",\"OK\"))","v":"OK"},"Ako se predaje izvještaj u likvidaciji (vrsta izvještaja 30) - nije moguće predaja izvještaja sa svrhom predaje 3 (statistika i javna objava). Za društva u likvidaciji za statističke i druge potrebe financijski izvještaj predaje se za svaku kalendarsku godinu, a u svrhu javne objave vrsta izvještaja 30 predaje se za razdoblje od datuma početka do datuma kraja likvidacije - bez obzira koliko dugo ona trajala. S obzirom da ta dva razdoblja ne mogu po definiciji biti ista - nije moguća predaja izvještaja sa svrhom 3. Isto tako, za izvještaj u likvidaciji koji se predaje u svrhu javne objave, s obzirom da stupac \"tekuća\" godina predstavlja ukupno razdoblje likvidacije, a ne samo tekuću godinu - podaci za prehtodnu godinu se ne unose pa će u slučaju da kod takvog izvještaja popunite prethodnu godinu kontrola javiti pogrešku. S obzirom da likvidacija u pravilu ne počinje 1.1. i ne završava 31.12. kontrola će upozoriti ako je takav datum početka ili datum kraja razdoblja kod javne objave.",null,null,null,null,null,null,null,null,{"$f":"MAX(N17:R17)","v":0},{"$f":"MAX(T17:Y17)","v":0},{"$f":"IF(AND(S2=30,S5=3),1,0)","v":0},{"$f":"IF(AND(S2=30,S5=2,P8>0),1,0)","v":0},null,null,null,null,{"$f":"IF(AND(S2=30,S5=2,MONTH(S8)=1,DAY(S8)=1),1,0)","v":0},{"$f":"IF(AND(S2=30,S5=2,MONTH(S9)=12,DAY(S9)=31),1,0)","v":0}]
[{"$f":"A17+1","v":7},{"$f":"IF(L18=1,\"Pogreška\", IF(M18=1, \"Provjera\",\"OK\"))","v":"OK"},"Pogreška signalizira da polje Obveznost predaje nefinancijskog izvješća nije popunjena ili je pogrešno popunjena. Obveznost predaje nefinancijskog izvješća različitu od 1 mogu imati samo trgovačka društva pod uvjetom da su veliki, da imaju više od 500 zaposlenih u prethodnoj godini i da spadaju u grupu od posebnog državnog interesa. Ako obveznik koji nije trgovačko društvo ili obveznik koji nije veliki i nema 500 zaposlenih označi nešto drugo osim 1, kontrola javlja pogrešku. Kontrola će također javiti i upozorenje ako je obveznik veliki, ima više od 500 zaposlenih, a nije označio da je obveznik predaje nefinancijskog izvješća.",null,null,null,null,null,null,null,null,0,{"$f":"MAX(T18:Y18)","v":0},{"$f":"IF(AND(S10<>1,U7<>1,U7<>2,U7<>3, U7<>4, U7<> 5, U7<> 6, U7<>7,U7<>12),1,0)","v":0},{"$f":"IF(AND(S10<>1,S3<>4),1,0)","v":0},{"$f":"IF(AND(S10<>1,P10<500),1,0)","v":0},null,null,null,{"$f":"IF(AND(S10=1,P10>500,S3>3,OR(U7=1,U7=2,U7=3, U7=4, U7= 5, U7= 6, U7=7,U7=12)),1,0)","v":0}]
[8,"OK","Pogreška signalizira da Oznaka revizije i/ili OIB revizora nisu popunjeni ili su pogrešno popunjeni (ako je izvještaj revidiran mora biti popunjen i OIB revizora, a ako nije revidiran polje OIB revizora mora biti prazan). Ako je predaja samo u statističke svrhe, ne predaje se revidiran izvještaj pa se u oznaku revizije i pored Revizorskog izvješća na popisu dokumentacije obavezno upisuje \"NE\".",null,null,null,null,null,null,null,null,0,null,{"$f":"IF(AND(U2<>\"DA\",U2<>\"NE\"),1,0)","v":0},{"$f":"IF(AND(U2=\"NE\",AND(U3<>\"\",U3<>0)),1,0)","v":0},{"$f":"IF(AND(U2=\"DA\",OR(U3=\"\",U3=0)),1,0)","v":0},{"$f":"IF(AND(S5=1,U2=\"DA\"),1,0)","v":0},{"$f":"IF(U2<>Y5,1,0)","v":0}]
[{"$f":"A19+1","v":9},{"$f":"IF(L20=1,\"Pogreška\", IF(M20=1, \"Provjera\",\"OK\"))","v":"OK"},"Pogreška signalizira da OIB nije upisan ili je pogrešna duljina OIB-a.",null,null,null,null,null,null,null,null,0,null,{"$f":"IF(ISNUMBER(VALUE(U4)),0,1)","v":0},{"$f":"IF(U4=0,1,0)","v":0},{"$f":"IF(LEN(U4)>11,1,0)","v":0}]
[10,"OK","Pogreška signalizira da Matični broj nije upisan ili je pogrešan. Moguće je da je pogrešno odabrana i Vrsta poslovnog subjekta (privatne osobe bez djelatnosti nemaju matični broj, obrtnici moraju imati matični koji počinje s brojem 9, slobodna zanimanja s brojem 8, a OPG-ovi s brojem 5.",null,null,null,null,null,null,null,null,{"$f":"MAX(N21:S21)","v":0},null,{"$f":"IF(AND(INT(VALUE(U5))<123455,U7<>16),1,0)","v":0},{"$f":"IF(AND(INT(VALUE(U5))>0,U7=16),1,0)","v":0},{"$f":"IF(AND(OR(INT(VALUE(U5))<50000000,INT(VALUE(U5))>59999999),U7=15),1,0)","v":0},{"$f":"IF(AND(OR(INT(VALUE(U5))<80000000,INT(VALUE(U5))>89999999),U7=14),1,0)","v":0},{"$f":"IF(AND(OR(INT(VALUE(U5))<90000000,INT(VALUE(U5))>99999999),U7=13),1,0)","v":0},{"$f":"IF(AND(U7<>13,U7<>14,U7<>15,U7<>16,U7<>7,INT(VALUE(U5)>10000000)),1,0)","v":0}]
[11,"OK","Pogreška signalizira da Matični broj subjekta nije upisan ili je pogrešno označena Vrsta poslovnog subjekta (ako je Trgovački sud registarsko tijelo mora biti upisan u suprotnom polje mora biti prazno)",null,null,null,null,null,null,null,null,{"$f":"MAX(N22:R22)","v":0},null,{"$f":"IF(ISNUMBER(VALUE(U6)),0,1)","v":0},{"$f":"IF(AND(U6=0,U7<13),1,0)","v":0},{"$f":"IF(LEN(U6)>9,1,0)","v":0},{"$f":"IF(AND(U7>12,U6>0),1,0)","v":0}]
[12,"OK","Pogreška signalizira da Naziv poslovnog subjekta nije popunjen ili je pogrešno popunjen",null,null,null,null,null,null,null,null,{"$f":"MAX(N23:R23)","v":0},null,{"$f":"IF(OR(LEN(W2)<3,W2=0),1,0)","v":0}]
[13,"OK","Pogreška signalizira da Poštanski broj i/ili mjesto nisu popunjeni ili su pogrešno popunjeni. Broj pošte je zasebno polje i upisuje se tamo, ne smije se upisivati u naziv naselja.",null,null,null,null,null,null,null,null,{"$f":"MAX(N24:R24)","v":0},null,{"$f":"IF(OR(W3=0,W4=0),1,0)","v":0},{"$f":"IF(LEN(W4)<2,1,0)","v":0},{"$f":"IF(OR(W3<10000,W3>54000),1,0)","v":0},{"$f":"IF(OR(MID(W4,1,1)=\"1\",MID(W4,1,1)=\"2\",MID(W4,1,1)=\"3\",MID(W4,1,1)=\"4\",MID(W4,1,1)=\"5\"),1,0)","v":0}]
[14,"OK","Pogreška signalizira da adresa (ulica i broj) ili telefon poduzetnika nisu popunjeni ili nisu ispravno popunjeni.",null,null,null,null,null,null,null,null,{"$f":"MAX(N25:R25)","v":0},null,{"$f":"IF(OR(W5=0,W6=0),1,0)","v":0},{"$f":"IF(LEN(W5)<4,1,0)","v":0},{"$f":"IF(LEN(W6)<6,1,0)","v":0}]
[15,"OK","Pogreška signalizira da adresa e-pošte obveznika nije popunjena ili je pogrešno popunjena, a to znači da sadrži razmak ili neki specijalni znak koji adresa e-pošte ne bi smjela sadržavati. U polje adrese e-pošte upišite samo jednu adresu.",null,null,null,null,null,null,null,null,{"$f":"MAX(N26:BH26)","v":0},null,{"$f":"IF(LEN(W7)<6,1,0)","v":0},{"$f":"IF(ISERROR(FIND(\"@\",W7,1)),1,0)","v":0},{"$f":"IF(ISERROR(FIND(\"@\",W7,1)),1,0)","v":0},{"$f":"IF(ISERROR(FIND(\".\",W7,1)),1,0)","v":0},{"$f":"IF(ISERROR(FIND(\".\",W7,1)),1,0)","v":0},{"$f":"IF(ISERROR(FIND(\"Č\",W7,1)),0,1)","v":0},{"$f":"IF(ISERROR(FIND(\"Č\",W7,1)),0,1)","v":0},{"$f":"IF(ISERROR(FIND(\"Ć\",W7,1)),0,1)","v":0},{"$f":"IF(ISERROR(FIND(\"Ć\",W7,1)),0,1)","v":0},{"$f":"IF(ISERROR(FIND(\"Š\",W7,1)),0,1)","v":0},{"$f":"IF(ISERROR(FIND(\"Š\",W7,1)),0,1)","v":0},{"$f":"IF(ISERROR(FIND(\"Ž\",W7,1)),0,1)","v":0},{"$f":"IF(ISERROR(FIND(\"Ž\",W7,1)),0,1)","v":0},{"$f":"IF(ISERROR(FIND(\"Đ\",W7,1)),0,1)","v":0},{"$f":"IF(ISERROR(FIND(\"Đ\",W7,1)),0,1)","v":0},{"$f":"IF(ISERROR(FIND(\"\"\"\",W7,1)),0,1)","v":0},{"$f":"IF(ISERROR(FIND(\"\"\"\",W7,1)),0,1)","v":0},{"$f":"IF(ISERROR(FIND(\",\",W7,1)),0,1)","v":0},{"$f":"IF(ISERROR(FIND(\",\",W7,1)),0,1)","v":0},{"$f":"IF(ISERROR(FIND(\";\",W7,1)),0,1)","v":0},{"$f":"IF(ISERROR(FIND(\";\",W7,1)),0,1)","v":0},{"$f":"IF(ISERROR(FIND(\":\",$W7,1)),0,1)","v":0},{"$f":"IF(ISERROR(FIND(\":\",$W7,1)),0,1)","v":0},{"$f":"IF(ISERROR(FIND(\"?\",$W7,1)),0,1)","v":0},{"$f":"IF(ISERROR(FIND(\"?\",$W7,1)),0,1)","v":0},{"$f":"IF(ISERROR(FIND(\"!\",$W7,1)),0,1)","v":0},{"$f":"IF(ISERROR(FIND(\"!\",$W7,1)),0,1)","v":0},{"$f":"IF(ISERROR(FIND(\"#\",$W7,1)),0,1)","v":0},{"$f":"IF(ISERROR(FIND(\"#\",$W7,1)),0,1)","v":0},{"$f":"IF(ISERROR(FIND(\"$\",$W7,1)),0,1)","v":0},{"$f":"IF(ISERROR(FIND(\"$\",$W7,1)),0,1)","v":0},{"$f":"IF(ISERROR(FIND(\"%\",$W7,1)),0,1)","v":0},{"$f":"IF(ISERROR(FIND(\"%\",$W7,1)),0,1)","v":0},{"$f":"IF(ISERROR(FIND(\"&\",$W7,1)),0,1)","v":0},{"$f":"IF(ISERROR(FIND(\"&\",$W7,1)),0,1)","v":0},{"$f":"IF(ISERROR(FIND(\"/\",$W7,1)),0,1)","v":0},{"$f":"IF(ISERROR(FIND(\"/\",$W7,1)),0,1)","v":0},{"$f":"IF(ISERROR(FIND(\"=\",$W7,1)),0,1)","v":0},{"$f":"IF(ISERROR(FIND(\"=\",$W7,1)),0,1)","v":0},{"$f":"IF(ISERROR(FIND(\"(\",$W7,1)),0,1)","v":0},{"$f":"IF(ISERROR(FIND(\"(\",$W7,1)),0,1)","v":0},{"$f":"IF(ISERROR(FIND(\")\",$W7,1)),0,1)","v":0},{"$f":"IF(ISERROR(FIND(\")\",$W7,1)),0,1)","v":0},{"$f":"IF(ISERROR(FIND(\" \",$W7,1)),0,1)","v":0},{"$f":"IF(ISERROR(FIND(\" \",$W7,1)),0,1)","v":0},{"$f":"IF(RIGHT(W7,1)=\".\",1,0)","v":0},{"$f":"IF(RIGHT(W7,1)=\".\",1,0)","v":0}]
[16,"OK","Pogreška signalizira da šifra grada/općine nije upisana ili je pogrešno upisana",null,null,null,null,null,null,null,null,{"$f":"MAX(N27:R27)","v":0},null,{"$f":"IF(OR(U9<1,U9>631),1,0)","v":0},{"$f":"IF(U10=\"Šifra grada/općine ne postoji\",1,0)","v":0}]
[17,"OK","Pogreška signalizira da šifra Statusa autonomnosti nije upisana ili je upisana nepostojeća šifra.",null,null,null,null,null,null,null,null,{"$f":"MAX(N28:T28)","v":0},null,{"$f":"IF(AND(S7<>1,S7<>2,S7<>3,S7<>5,S7<>6,S7<>7,S7<>9,S7<>10),1,0)","v":0}]
[18,{"$f":"IF(L29=1,\"Pogreška\", IF(M29=1, \"Provjera\",\"OK\"))","v":"OK"},"Kontrola uspoređuje vrstu subjekta u zaglavlju referentne stranice i šifru autonomnosti. Samo trgovačka društva mogu imati autonomnost različitu od 10. Obrtnici, slobodna zanimanja, zadruge, ustanove i ostali obveznici poreza na dobit mogu imati samo šifru autonomnosti 10. Ako ova kontrola javlja pogrešku pogrešno je upisana vrstu subjekta ili šifra autonomnosti.",null,null,null,null,null,null,null,null,{"$f":"MAX(N29:T29)","v":0},null,{"$f":"IF(AND(S7=10,OR(U7<8,U7=12)),1,0)","v":0},{"$f":"IF(AND(S7<10,OR(U7=9,U7=10, U7 = 11,U7>12)),1,0)","v":0}]
[19,"OK","Kontrola provjerava da li je za ovisna društva pod kontrolom matice izvan RH (šifra autonomnosti 3 ili 6) upisana postojeća šifra zemlje sjedišta nadređenog društva. Isto tako kontrola javlja pogrešku ako je šifra autonomnosti drugačija od 3 ili 6, a upisana je šifra zemlje sjedišta nadređenog društva. ",null,null,null,null,null,null,null,null,{"$f":"MAX(N30:S30)","v":0},null,{"$f":"IF(AND(OR(S7=3,S7=6),OR(AA6=0,AA6=\"\")),1,0)","v":0},{"$f":"IF(AND(AND(S7<>3,S7<>6),AND(AA6<>0,AA6<>\"\")),1,0)","v":0}]
[20,"OK","Matični broj nadređenog društva (odnosno dostupni identifikator za nadređena društva iz inozemstva) može biti upisan samo kod šifri autonomnosti 2, 3, 5 i 6. Kontrola javlja pogrešku ako je matični broj nadređenog društva upisan, a šifra autonomnosti je različita od ove četiri. Isto tako, kontrola javlja pogrešku ako je šifra autonomnosti jedna od navedenih, a matični broj nadređenog društva nije upisan. Matični broj nadređenog društva (ako je upisan) mora biti različit od matičnog broja poslovnog subjekta za koji se izvještaj predaje.",null,null,null,null,null,null,null,null,{"$f":"MAX(N31:Q31)","v":0},null,{"$f":"IF(AND(AND(AA5<>0,AA5<>\"\"),S7<>2,S7<>3,S7<>5,S7<>6),1,0)","v":0},{"$f":"IF(AND(OR(AA5=0,AA5=\"\"),OR(S7=2,S7=3,S7=5,S7=6)),1,0)","v":0},{"$f":"IF(AND(U5<>0,U5<>\"\",U5=AA5),1,0)","v":0}]
[{"$f":"A31+1","v":21},"OK","Ova kontrola javlja pogrešku ako je izvještaj konsolidiran, a upisan je oznaka autonomnosti uz koju se ne popunjava konsolidirani izvještaj (obveznik nije matično društvo u grupi).",null,null,null,null,null,null,null,null,{"$f":"MAX(N32:R32)","v":0},null,{"$f":"IF(AND(S6=\"DA\",OR(S7=1,S7=2,S7=3,S7=9,S7=10)),1,0)","v":0}]
[22,"OK","Status autonomnosti različit od 10 mogu imati samo poduzetnici koji su obveznici javne objave. Svi ostali obveznici poreza na dobit (obrtnici, slobodna zanimanja, OPG-ovi, zadruge, ustanove...) moraju imati status autonomnosti 10. Pogreška na ovoj kontroli znači da je upisana ili pogrešna šifra autonomnosti ili je odabrana pogrešna vrsta poslovnog subjekta. ",null,null,null,null,null,null,null,null,0,null,{"$f":"IF(AND(S7<10,OR(U7>12,U7=8,U7=9,U7=10)),1,0)","v":0}]
[23,"OK","Ova pogreška signalizira da je upisana nepostojeća šifra države nadređenog (matičnog) društva ako je upisana.",null,null,null,null,null,null,null,null,0,null,{"$f":"IF(AA7=\"Šifra države nepostojeća\",1,0)","v":0}]
[24,"OK","Pogreška signalizira da šifra djelatnosti nije upisana ili je upisana pogrešna (ili je upisana za vrstu subjekta koji je nema)",null,null,null,null,null,null,null,null,0,null,{"$f":"IF(AND(OR(W8=0,W8=\"\"),U7<>16),1,0)","v":0},{"$f":"IF(W9=\"Šifra NKD-a ne postoji\",1,0)","v":0}]
[25,{"$f":"IF(L36=1,\"Pogreška\", IF(M36=1, \"Provjera\",\"OK\"))","v":"OK"},"Pogreška signalizira da oznaka veličine nije upisana ili je upisana nepostojeća šifra.",null,null,null,null,null,null,null,null,0,null,{"$f":"IF(AND(S3<>1,S3<>2,S3<>3,S3<>4),1,0)","v":0},{"$f":"IF(AND(S6=\"DA\",S3=1),1,0)","v":0}]
[26,{"$f":"IF(L37=1,\"Pogreška\", IF(M37=1, \"Provjera\",\"OK\"))","v":"OK"},"Pogreška signalizira da oznaka vlasništva nije upisana ili je upisana nepostojeća šifra.",null,null,null,null,null,null,null,null,0,null,{"$f":"IF(AND(S4<>11,S4<>12,S4<>13,S4<>21,S4<>22,S4<>31,S4<>41,S4<>42),1,0)","v":0}]
[27,{"$f":"IF(L38=1,\"Pogreška\", IF(M38=1, \"Provjera\",\"OK\"))","v":"OK"},"Pogreška signalizira da postotak domaćeg i stranog kapitala nije dobro popunjen. Zbrojno moraju dati 100 i moraju biti upisani cijeli brojevi.",null,null,null,null,null,null,null,null,0,null,{"$f":"IF(ISERROR(Y2+Y3),1,IF(Y2+Y3<>100,1,0))","v":0},{"$f":"IF(ISERROR(INT(Y2)),1,IF(ROUND(Y2,0)<>Y2,1,0))","v":0},{"$f":"IF(ISERROR(INT(Y3)),1,IF(ROUND(INT(Y3),0)<>INT(Y3),1,0))","v":0}]
[28,"OK","Pogreška signalizira da je broj mjeseci poslovanja izvan granica dopuštenog ili nije upisan za onaj stupac podataka za koji su upisani neki podaci u Bilanci.",null,null,null,null,null,null,null,null,0,null,{"$f":"IF(AND(P2>0,P8=0),1,0)","v":0},{"$f":"IF(Q8=0,1,0)","v":0},{"$f":"IF(OR(P8>12,AND(Q8>12,P8>0)),1,0)","v":0},{"$f":"IF(AND(Q8>12,OR(S5<>2,S2<>30)),1,0)","v":0}]
[29,{"$f":"IF(L40=1,\"Pogreška\", IF(M40=1, \"Provjera\",\"OK\"))","v":"OK"},"Pogreška signalizira da nije popunjen ili je pogrešno popunjen podataka o osobi za kontaktiranje, telefonu, adresa e-pošte. Kod adrese e-pošte osobe za kontakt provjerava se ispravnost adrese (ne smije imati razmake, slova čžšđ, specijalne znakove itd.)",null,null,null,null,null,null,null,null,{"$f":"MAX(N40:BI40)","v":0},null,{"$f":"IF(OR(LEN(Y6)<5,LEN(Y6)<8,LEN(Y8)<6),1,0)","v":0},{"$f":"IF(LEN(Y8)<6,1,0)","v":0},{"$f":"IF(ISERROR(FIND(\"@\",Y8,1)),1,0)","v":0},{"$f":"IF(ISERROR(FIND(\"@\",Y8,1)),1,0)","v":0},{"$f":"IF(ISERROR(FIND(\".\",Y8,1)),1,0)","v":0},{"$f":"IF(ISERROR(FIND(\".\",Y8,1)),1,0)","v":0},{"$f":"IF(ISERROR(FIND(\"Č\",Y8,1)),0,1)","v":0},{"$f":"IF(ISERROR(FIND(\"Č\",Y8,1)),0,1)","v":0},{"$f":"IF(ISERROR(FIND(\"Ć\",Y8,1)),0,1)","v":0},{"$f":"IF(ISERROR(FIND(\"Ć\",Y8,1)),0,1)","v":0},{"$f":"IF(ISERROR(FIND(\"Š\",Y8,1)),0,1)","v":0},{"$f":"IF(ISERROR(FIND(\"Š\",Y8,1)),0,1)","v":0},{"$f":"IF(ISERROR(FIND(\"Ž\",Y8,1)),0,1)","v":0},{"$f":"IF(ISERROR(FIND(\"Ž\",Y8,1)),0,1)","v":0},{"$f":"IF(ISERROR(FIND(\"Đ\",Y8,1)),0,1)","v":0},{"$f":"IF(ISERROR(FIND(\"Đ\",Y8,1)),0,1)","v":0},{"$f":"IF(ISERROR(FIND(\"\"\"\",Y8,1)),0,1)","v":0},{"$f":"IF(ISERROR(FIND(\"\"\"\",Y8,1)),0,1)","v":0},{"$f":"IF(ISERROR(FIND(\",\",Y8,1)),0,1)","v":0},{"$f":"IF(ISERROR(FIND(\",\",Y8,1)),0,1)","v":0},{"$f":"IF(ISERROR(FIND(\";\",Y8,1)),0,1)","v":0},{"$f":"IF(ISERROR(FIND(\";\",Y8,1)),0,1)","v":0},{"$f":"IF(ISERROR(FIND(\":\",$W18,1)),0,1)","v":0},{"$f":"IF(ISERROR(FIND(\":\",$W18,1)),0,1)","v":0},{"$f":"IF(ISERROR(FIND(\"?\",$W18,1)),0,1)","v":0},{"$f":"IF(ISERROR(FIND(\"?\",$W18,1)),0,1)","v":0},{"$f":"IF(ISERROR(FIND(\"!\",$W18,1)),0,1)","v":0},{"$f":"IF(ISERROR(FIND(\"!\",$W18,1)),0,1)","v":0},{"$f":"IF(ISERROR(FIND(\"#\",$W18,1)),0,1)","v":0},{"$f":"IF(ISERROR(FIND(\"#\",$W18,1)),0,1)","v":0},{"$f":"IF(ISERROR(FIND(\"$\",$W18,1)),0,1)","v":0},{"$f":"IF(ISERROR(FIND(\"$\",$W18,1)),0,1)","v":0},{"$f":"IF(ISERROR(FIND(\"%\",$W18,1)),0,1)","v":0},{"$f":"IF(ISERROR(FIND(\"%\",$W18,1)),0,1)","v":0},{"$f":"IF(ISERROR(FIND(\"&\",$W18,1)),0,1)","v":0},{"$f":"IF(ISERROR(FIND(\"&\",$W18,1)),0,1)","v":0},{"$f":"IF(ISERROR(FIND(\"/\",$W18,1)),0,1)","v":0},{"$f":"IF(ISERROR(FIND(\"/\",$W18,1)),0,1)","v":0},{"$f":"IF(ISERROR(FIND(\"=\",$W18,1)),0,1)","v":0},{"$f":"IF(ISERROR(FIND(\"=\",$W18,1)),0,1)","v":0},{"$f":"IF(ISERROR(FIND(\"(\",$W18,1)),0,1)","v":0},{"$f":"IF(ISERROR(FIND(\"(\",$W18,1)),0,1)","v":0},{"$f":"IF(ISERROR(FIND(\")\",$W18,1)),0,1)","v":0},{"$f":"IF(ISERROR(FIND(\")\",$W18,1)),0,1)","v":0},{"$f":"IF(ISERROR(FIND(\" \",$W18,1)),0,1)","v":0},{"$f":"IF(ISERROR(FIND(\" \",$W18,1)),0,1)","v":0},{"$f":"IF(RIGHT(Y8,1)=\".\",1,0)","v":0},{"$f":"IF(RIGHT(Y8,1)=\".\",1,0)","v":0}]
[30,"OK","Matični broj i naziv knjigovodstvenog servisa unose se samo ako je vanjski servis sastavio financijski izvještaj, ako je izvještaj sastavljen u računovodstvu obveznika, ova polja se ne popunjavaju. Ako postoji servis, adresa e-pošte obveznika i e-pošte za kontakt ne može biti isti. Obje adrese e-pošte su obvezne zbog komunikacije i zbog slanja potvrde o predaji putem web-a.",null,null,null,null,null,null,null,null,{"$f":"MAX(N41:Q41)","v":0},null,{"$f":"IF(OR(AND(AA2=\"\",AA3<>\"\"),AND(AA2<>\"\",AA3=\"\")),1,0)","v":0},{"$f":"IF(AND(RefStr!H27=RefStr!B64,RefStr!H27<>\"\"),1,0)","v":0},{"$f":"IF(AND(AA2<>\"\",Y8=W7),1,0)","v":0}]
[31,"OK","Ime i prezime osobe ovlaštene za zastupanje mora biti upisano u za to predviđeno polje na Referentnoj stranici.",null,null,null,null,null,null,null,null,{"$f":"MAX(N42:R42)","v":0},null,{"$f":"IF(LEN(AA10)<5,1,0)","v":0}]
["Matematičko - logičke obvezne kontrole (kontrole koje u svim uvjetima moraju biti zadovoljene)",null,null,null,null,null,null,null,null,null,null,0]
[{"$f":"A42+1","v":32},{"$f":"IF(L44=1,\"Pogreška\", IF(M44=1, \"Provjera\",\"OK\"))","v":"OK"},"Pozicije ukupno aktiva (AOP 065) i ukupno pasiva (AOP 126) moraju biti jednake uz dopušteno odstupanje od 0,14€ zbog zaokruživanja i veće od nule u svakoj godini u kojoj je poslovni subjekt poslovao, tj. gdje je broj mjeseci poslovanja veći od nule. Ukupno aktiva i ukupno pasiva mogu biti nula samo kod završne likvidacijske bilance za javnu objavu (svrha predaje 2 i vrsta izvještaja 30) ili ako je označeno da se tvrka briiše po skraćenom postupku bez likvidacije (Polje \"Subjekt se briše sa zadnjim danom razdoblja izvještavanja..",null,null,null,null,null,null,null,null,0,null,{"$f":"IF(ABS(Bilanca!I73-Bilanca!I135)>$AC$2,1,0)","v":0},{"$f":"IF(ABS(Bilanca!J73-Bilanca!J135)>$AC$2,1,0)","v":0},{"$f":"IF(AND(Bilanca!J73=0,OR(S5<>2,S2<>30),AC6=\"NE\"),1,0)","v":0},{"$f":"IF(AND(Bilanca!I73=0,P8>0,OR(S5<>2,S2<>30)),1,0)","v":0}]
[{"$f":"A44+1","v":33},{"$f":"IF(L45=1,\"Pogreška\", IF(M45=1, \"Provjera\",\"OK\"))","v":"OK"},"Pozicije izvanbilančni zapisi u aktivi (AOP 066) moraju biti jednaki izvanbilančnim zapisima u pasivi (AOP 127) u oba stupca podataka - tekuća godina i prethodna godina. Zbog zaokruživanja iznosa, kontrola dozvoljava razliku od 0,14€.",null,null,null,null,null,null,null,null,0,null,{"$f":"IF(ABS(Bilanca!I74-Bilanca!I136)>$AC$2,1,0)","v":0},{"$f":"IF(ABS(Bilanca!J74-Bilanca!J136)>$AC$2,1,0)","v":0}]
[{"$f":"A45+1","v":34},{"$f":"IF(L46=1,\"Pogreška\", IF(M46=1, \"Provjera\",\"OK\"))","v":"OK"},"Stavka Dobit poslovne godine (AOP 088) i Gubitak poslovne godine (AOP 089) ne mogu biti istovremeno popunjene u stupcu prethodne ili tekuće godine.",null,null,null,null,null,null,null,null,0,null,{"$f":"IF(AND(Bilanca!I97<>0,Bilanca!I98<>0),1,0)","v":0},{"$f":"IF(AND(Bilanca!J97<>0,Bilanca!J98<>0),1,0)","v":0}]
[35,{"$f":"IF(L47=1,\"Pogreška\", IF(M47=1, \"Provjera\",\"OK\"))","v":"OK"},"Stavka Dobit poslovne godine (AOP 088) u i Gubitak poslovne godine (AOP 089) u Bilanci moraju biti jednake stavkama Dobit razdoblja  (AOP 187) i Gubitak razdoblja (AOP 188) u Računu dobiti i gubitka. Iznimka su obveznici primjene MSFI-a koji su imali prekinuto poslovanje. Kod njih vrijedi da AOP 087 mora biti jednak AOP-u 200, a AOP 089 mora biti jednak AOP-u 201. Zbog zaokruživanja iznosa dopušteno je odstupanje od 0,14€. Ova kontrola ne vrijedi kod konsolidiranih izvještaja.",null,null,null,null,null,null,null,null,{"$f":"MAX(N47:V47)","v":0},null,{"$f":"IF(AND($S$6<>\"DA\", ABS(Bilanca!I97-RDG!I67)>$AC$2,MIN(RDG!I70:I83)=0,MAX(RDG!I70:I83)=0),1,0)","v":0},{"$f":"IF(AND($S$6<>\"DA\", ABS(Bilanca!J97-RDG!J67)>$AC$2,MIN(RDG!J70:J83)=0,MAX(RDG!J70:J83)=0),1,0)","v":0},{"$f":"IF(AND($S$6<>\"DA\", ABS(Bilanca!I98-RDG!I68)>$AC$2,MIN(RDG!I70:I83)=0,MAX(RDG!I70:I83)=0),1,0)","v":0},{"$f":"IF(AND($S$6<>\"DA\", ABS(Bilanca!J98-RDG!J68)>$AC$2,MIN(RDG!J70:J83)=0,MAX(RDG!J70:J83)=0),1,0)","v":0},{"$f":"IF(AND($S$6<>\"DA\", ABS(Bilanca!I97-RDG!I82)>$AC$2,OR(MIN(RDG!I70:I83)<>0,MAX(RDG!I70:I83)<>0),$AA$4=\"MSFI\"),1,0)","v":0},{"$f":"IF(AND($S$6<>\"DA\", ABS(Bilanca!J97-RDG!J82)>$AC$2,OR(MIN(RDG!J70:J83)<>0,MAX(RDG!J70:J83)<>0),$AA$4=\"MSFI\"),1,0)","v":0},{"$f":"IF(AND($S$6<>\"DA\", ABS(Bilanca!K97-RDG!K82)>$AC$2,OR(MIN(RDG!K70:K83)<>0,MAX(RDG!K70:K83)<>0),$AA$4=\"MSFI\"),1,0)","v":0},{"$f":"IF(AND($S$6<>\"DA\", ABS(Bilanca!J98-RDG!J83)>$AC$2,OR(MIN(RDG!J70:J83)<>0,MAX(RDG!J70:J83)<>0),$AA$4=\"MSFI\"),1,0)","v":0},{"$f":"IF(AND($S$6<>\"DA\", ABS(Bilanca!K98-RDG!K83)>$AC$2,OR(MIN(RDG!K70:K83)<>0,MAX(RDG!K70:K83)<>0),$AA$4=\"MSFI\"),1,0)","v":0}]
[36,{"$f":"IF(L48=1,\"Pogreška\", IF(M48=1, \"Provjera\",\"OK\"))","v":"OK"},"Kod obveznika organizacijskog oblika d.d., d.o.o ili j.d.o.o. AOP oznaka 068 mora biti veća od nule za svaki stupac u kojem je broj mjeseci poslovanja veći od nula (za godine u kojima je subjekt poslovao). Ako ova kontrola javlja pogrešku, moguće je da je krivo označena vrsta obveznika na Referentnoj stranici ili podaci nisu upisani.",null,null,null,null,null,null,null,null,0,null,{"$f":"IF(AND(OR(RefStr!$C$7=4,RefStr!$C$7=5,RefStr!$C$7=6),P8>0,Bilanca!I77=0),1,0)","v":0},{"$f":"IF(AND(OR(RefStr!$C$7=4,RefStr!$C$7=5,RefStr!$C$7=6),Q8>0,Bilanca!J77=0),1,0)","v":0}]
[37,"OK","AOP 090 u Bilanci se popunjava samo u konsolidiranom izvještaju. Kontrola javlja pogrešku ako je ova AOP oznaka popunjena, a izvještaj nije konsolidiran, a upozorenje ako izvještaj jeste konsolidiran, a ova stavka je jednaka nuli. Provjeravaju se podaci u oba stupca podataka ako je u oba broj mjeseci poslovanja veći od nule.",null,null,null,null,null,null,null,null,0,{"$f":"MAX(S49:V49)","v":0},{"$f":"IF(AND(S6=\"NE\",OR(Bilanca!I99<>0,Bilanca!J99<>0)),1,0)","v":0},null,null,null,null,{"$f":"IF(AND(S6=\"DA\",AND(Bilanca!I99=0,P8>0)),1,0)","v":0},{"$f":"IF(AND(S6=\"DA\",AND(Bilanca!J99=0,Q8>0)),1,0)","v":0},null,null,null,null,null,null,null,null,null,null,null,null,null,null,null,null,null,null,null,null,null,null,"AKTIVA1","AKTIVA2","AKTIVA3","PRIHOD1","PRIHOD2","PRIHOD3"]
[38,"OK",{"$f":"\"Oznaka veličine može biti: 1-mikro, 2-mali, 3-srednji i 4-veliki. Ova kontrola javlja pogrešku ako se izračunata i upisana veličina ne slažu. \"&\"Uvjeti veličine za konsolidirane grupe su isti kao za pojedinačne izvještaje, razlika je samo u tome da konsolidirana grupa po definiciji ne može imati veličinu mikro.\"&\" Ako izračunata veličina nije jednaka upisanoj ili oznaka veličine nije upisana u opće podatke ova kontrola javlja pogrešku. Prema upisanim podacima, izračunata veličina je \"&N50&IF(OR(S3=\"\",S3=\"\"),\", ali u opće podatke veličina nije ni upisana.\",\", a upisana veličina je \"&S3 & \".\")","v":"Oznaka veličine može biti: 1-mikro, 2-mali, 3-srednji i 4-veliki. Ova kontrola javlja pogrešku ako se izračunata i upisana veličina ne slažu. Uvjeti veličine za konsolidirane grupe su isti kao za pojedinačne izvještaje, razlika je samo u tome da konsolidirana grupa po definiciji ne može imati veličinu mikro. Ako izračunata veličina nije jednaka upisanoj ili oznaka veličine nije upisana u opće podatke ova kontrola javlja pogrešku. Prema upisanim podacima, izračunata veličina je 2, a upisana veličina je 2."},null,null,null,null,null,null,null,null,{"$f":"IF(N50<>S3,1,0)","v":0},null,{"$f":"IF(P8>0,O50,AC50)","v":2},{"$f":"IF(SUM(Y50:AA50)>1,4,IF(SUM(U50:W50)>1,3,IF(SUM(Q50:S50)>1,2,IF(S6=\"DA\",2,1))))","v":2},"Mali",{"$f":"IF(Bilanca!I73>AQ50,1,0)","v":1},{"$f":"IF(RDG!I60>AT50,1,0)","v":1},{"$f":"IF(P10>10,1,0)","v":1},"Srednji",{"$f":"IF(Bilanca!I73>AR50,1,0)","v":1},{"$f":"IF(RDG!I60>AU50,1,0)","v":0},{"$f":"IF(P10>50,1,0)","v":0},"Veliki",{"$f":"IF(Bilanca!I73>AS50,1,0)","v":0},{"$f":"IF(RDG!I60>AV50,1,0)","v":0},{"$f":"IF(P10>250,1,0)","v":0},null,{"$f":"IF(SUM(AM50:AO50)>1,4,IF(SUM(AI50:AK50)>1,3,IF(SUM(AE50:AG50)>1,2,IF(S6=\"DA\",2,1))))","v":3},"Mali",{"$f":"IF(Bilanca!J73>AQ50,1,0)","v":1},{"$f":"IF(S9>S8,IF(RDG!J60*365/(S9-S8)>AT50,1,0),0)","v":1},{"$f":"IF(Q10>10,1,0)","v":1},"Srednji",{"$f":"IF(Bilanca!J73>AR50,1,0)","v":1},{"$f":"IF(S9>S8,IF(RDG!J60*365/(S9-S8)>AU50,1,0),0)","v":0},{"$f":"IF(Q10>50,1,0)","v":1},"Veliki",{"$f":"IF(Bilanca!J73>AS50,1,0)","v":0},{"$f":"IF(S9>S8,IF(RDG!J60*365/(S9-S8)>AV50,1,0),0)","v":0},{"$f":"IF(Q10>250,1,0)","v":0},null,{"$f":"IF(W10<2023,2600000,350000)","v":350000},{"$f":"IF(W10<2023,30000000,4000000)","v":4000000},{"$f":"IF(W10<2023,150000000,20000000)","v":20000000},{"$f":"IF(W10<2023,5200000,700000)","v":700000},{"$f":"IF(W10<2023,60000000,8000000)","v":8000000},{"$f":"IF(W10<2023,300000000,40000000)","v":40000000}]
[39,"OK","Samo neaktivni poduzetnik može imati nepopunjen RDG i PodDop za stupac prethodne ili tekuće godine, a istovremeno imati broj mjeseci poslovanja veći od nule u istom tom stupcu. Aktivni poduzetnik mora imati podatke u svakom stupcu u kojem je broj mjeseci poslovanja veći od nule. Ako obveznik ima podatke u RDG-u i/ili Dodatnim podacima, ne može biti poslovno neaktivan.",null,null,null,null,null,null,null,null,{"$f":"MAX(N51:R51)","v":0},null,{"$f":"IF(AND(P8>0,P3=0,AC4<>\"DA\"),1,0)","v":0},{"$f":"IF(AND(Q8>0,Q3=0,O8<>\"DA\"),1,0)","v":0},{"$f":"IF(AND(P8>0,P4=0,AC4<>\"DA\",S5<>2),1,0)","v":0},{"$f":"IF(AND(Q8>0,Q4=0,O8<>\"DA\",S5<>2),1,0)","v":0},{"$f":"IF(AND(O8=\"DA\", OR(Q3>0,Q4>0)),1,0)","v":0}]
[40,"OK","Pogreška u ovoj kontroli signalizira da je obveznik uz izvještaj obvezan predati i revizorsko izvješće jer je obveznik revizije. Kontrola upozorava ako je označeno da je poduzetnik podnio revizorsko izvješće a nije obveznik što je dopušteno iz razloga što može biti obveznik iz nekih razloga koji se ne odnose na ovaj izvještaj (npr. obveznik od državnog interesa). Revizorsko izvješće obavezno je uz vrste izvještaja 10 i 11.",null,null,null,null,null,null,null,null,{"$f":"MAX(N52:R52)","v":0},null,{"$f":"IF(AND(S5>1,S3>2,OR(S2=10,S2=11),U2<>\"DA\"),1,0)","v":0},{"$f":"IF(AND(S5>1,Z52>0,OR(S2=10,S2=11),U2<>\"DA\"),1,0)","v":0},{"$f":"IF(AND(S5=1,U2=\"DA\"),1,0)","v":0},null,null,null,null,null,null,null,null,null,{"$f":"IF(AND(OR(U7=2,U7=4,U7=5),SUM(AA52:AC52)>1),1,0)","v":0},{"$f":"IF(Bilanca!I73>AF52,1,0)","v":1},{"$f":"IF(RDG!I9+RDG!I10>AG52,1,0)","v":0},{"$f":"IF(P10>=25,1,0)","v":1},null,null,2500000,5000000]
[41,"OK","Samo vrste izvještaja 10, 11, 20 i 30 mogu biti konsolidirane. Kontrola javlja pogrešku ako je označeno da je neka druga vrsta izvještaja konsolidirana. Konsolidirani izvještaj može se predati samo za javnu objavu.",null,null,null,null,null,null,null,null,{"$f":"MAX(N53:R53)","v":0},null,{"$f":"IF(AND(S6=\"DA\",AND(S2<>10,S2<>11,S2<>20,S2<>30)),1,0)","v":0},{"$f":"IF(AND(S5<>2,S6=\"DA\"),1,0)","v":0}]
[42,"OK","Kod obveznika koji imaju šifru autonomnosti 1 ne smiju biti popunjene AOP oznake RDG-a koje se odnose na pozicije vezane uz grupu, tj. AOP oznake: 129,132,158,160,161,162,169 i 170 u stupcu tekućeg razdoblja.",null,null,null,null,null,null,null,null,{"$f":"MAX(N54:R54)","v":0},null,{"$f":"IF(AND(S7=1,MAX(RDG!J9,RDG!J12,RDG!J38,RDG!J40:J42,RDG!J49:J50)>0),1,0)","v":0},{"$f":"IF(AND(S7=1,MIN(RDG!J9,RDG!J12,RDG!J38,RDG!J40:J42,RDG!J49:J50)<0),1,0)","v":0}]
[43,"OK","Kod obveznika koji imaju šifru autonomnosti 1 ne smiju biti popunjene AOP oznake Dodatnih podataka koje se odnose na pozicije vezane uz grupu, tj. AOP oznake: 22,245,263 i 298 u stupcu tekućeg razdoblja.",null,null,null,null,null,null,null,null,{"$f":"MAX(N55:P55)","v":0},null,{"$f":"IF(AND(S7=1,MAX(Dodatni!J23,Dodatni!J27,Dodatni!J49,Dodatni!J86)>0),1,0)","v":0},{"$f":"IF(AND(S7=1,MAX(Dodatni!J23,Dodatni!J27,Dodatni!J49,Dodatni!J86)>0),1,0)","v":0}]
[44,"OK","Broj zaposlenih ne može biti veći od 30.000 (u konsolidaciji 65.000). Isto tako, kontrola upozorava ako je broj zaposlenih u bilo kojem polju veći od 1000.",null,null,null,null,null,null,null,null,{"$f":"MAX(N56:O56)","v":0},{"$f":"MAX(P56)","v":0},{"$f":"IF(AND(S6<>\"DA\",OR(P9>30000,Q9>30000,P10>30000,Q10>30000)),1,0)","v":0},{"$f":"IF(AND(S6=\"DA\",OR(P9>65000,Q9>65000,P10>65000,Q10>65000)),1,0)","v":0},{"$f":"IF(OR(P9>1000,Q9>1000,P10>1000,Q10>1000),1,0)","v":0}]
[{"$f":"A56+1","v":45},{"$f":"IF(L57=1,\"Pogreška\", IF(M57=1, \"Provjera\",\"OK\"))","v":"OK"},"U Bilanci samo AOP oznake 067, 069 do 084, 087 i 090 mogu biti negativne. Kontrola javlja pogrešku ako je bilo koja druga AOP oznaka osim ovih negativna.",null,null,null,null,null,null,null,null,{"$f":"MAX(N57:Q57)","v":0},null,{"$f":"IF(MIN(Bilanca!I9:J74,Bilanca!I77:J77,Bilanca!I94:J95,Bilanca!I97:J98,Bilanca!I100:J136)<0,1,0)","v":0}]
[46,"OK","U Računu dobiti i gubitka samo AOP oznake 135, 146 do 155, 174, 182, 185, 186, 189, 192, 195, 198, 199, 202 do 229  mogu biti negativne. Kontrola javlja pogrešku ako je bilo koja druga AOP oznaka negativna.",null,null,null,null,null,null,null,null,0,null,{"$f":"IF(MIN(RDG!I8:J14,RDG!I16:J25,RDG!I36:J53,RDG!I55:J61,RDG!I63:J64,RDG!I67:J68,RDG!I71:J72,RDG!I74:J75,RDG!I78:J79,RDG!I82:J83)<0,1,0)","v":0}]
[{"$f":"A58+1","v":47},{"$f":"IF(L59=1,\"Pogreška\", IF(M59=1, \"Provjera\",\"OK\"))","v":"OK"},"U Izvještaju o novčanim tokovima po indirektnoj metodi AOP oznake 003, 007, 021 do 027, 035 do 039, 049 i 050 mogu biti nula ili pozitivne. Kontrola će javiti pogrešku ako je u neku od ovih AOP oznaka upisan negativan podatak.",null,null,null,null,null,null,null,null,{"$f":"MAX(N59:Q59)","v":0},null,{"$f":"IF(MIN(NT_I!I11:J11,NT_I!I15:J15,NT_I!I30:J36,NT_I!I59:J60)<0,1,0)","v":0}]
[48,"OK","U Izvještaju o novčanim tokovima po indirektnoj metodi AOP oznake  006, 018, 028 do 030, 032, 040 do 045  mogu biti nula ili negativne. Kontrola javlja pogrešku ako je u neku od ovih AOP oznaka upisana pozitivna vrijednost.",null,null,null,null,null,null,null,null,{"$f":"MAX(N60:Q60)","v":0},null,{"$f":"IF(MAX(NT_I!I14:J14,NT_I!I26:J26,NT_I!I37:J39,NT_I!I41:J41,NT_I!I50:J55)>0,1,0)","v":0}]
[{"$f":"A60+1","v":49},{"$f":"IF(L61=1,\"Pogreška\", IF(M61=1, \"Provjera\",\"OK\"))","v":"OK"},"U Izvještaju o novčanim tokovima po direktnoj metodi AOP oznake 001 do 006, 015 do 021, 029 do 033, 043 i 044 mogu biti nula ili pozitivne. Kontrola će javiti pogrešku ako je u neku od ovih AOP oznaka upisan negativan podatak.",null,null,null,null,null,null,null,null,{"$f":"MAX(N61:Q61)","v":0},null,{"$f":"IF(MIN(NT_D!I9:J14,NT_D!I24:J30,NT_D!I39:J43,NT_D!I53:J54)<0,1,0)","v":0}]
[{"$f":"A61+1","v":50},{"$f":"IF(L62=1,\"Pogreška\", IF(M62=1, \"Provjera\",\"OK\"))","v":"OK"},"U Izvještaju o novčanim tokovima po direktnoj metodi AOP oznake 007 do 013, 022 do 024, 026, 027 i 034 do 039 mogu biti nula ili negativne. Kontrola će javiti pogrešku ako je u neku od ovih AOP oznaka upisan pozitivan podatak.",null,null,null,null,null,null,null,null,{"$f":"MAX(N62:Q62)","v":0},null,{"$f":"IF(MAX(NT_D!I15:J21,NT_D!I31:J33,NT_D!I35:J36,NT_D!I44:J49)>0,1,0)","v":0}]
[{"$f":"A62+1","v":51},{"$f":"IF(L63=1,\"Pogreška\", IF(M63=1, \"Provjera\",\"OK\"))","v":"OK"},"Ako je izvještaj konsolidiran, AOP oznaka 186 u obrascu Račun dobiti i gubitka mora biti jednaka AOP oznaci 202 uz dopušteno odstupanje od 0,14€ zbog zaokruživanja iznosa. Kod obveznika MSFI-a koji su imali prekinuto poslovanje AOP 199 mora biti jednak AOP oznaci 202 uz dopušteno odstupanje od 0,14€.",null,null,null,null,null,null,null,null,{"$f":"MAX(N63:Q63)","v":0},null,{"$f":"IF(AND($S$6=\"DA\",ABS(RDG!I66-RDG!I85)>$AC$2,AND(MIN(RDG!I70:I75)=0,MAX(RDG!I70:I75)=0)),1,0)","v":0},{"$f":"IF(AND($S$6=\"DA\",ABS(RDG!J66-RDG!J85)>$AC$2,AND(MIN(RDG!J70:J75)=0,MAX(RDG!J70:J75)=0)),1,0)","v":0},{"$f":"IF(AND($S$6=\"DA\",ABS(RDG!I81-RDG!I85)>$AC$2,OR(MIN(RDG!I70:I75)<>0,MAX(RDG!I70:I75)<>0),$AA$4=\"MSFI\"),1,0)","v":0},{"$f":"IF(AND($S$6=\"DA\",ABS(RDG!J81-RDG!J85)>$AC$2,OR(MIN(RDG!J70:J75)<>0,MAX(RDG!J70:J75)<>0),$AA$4=\"MSFI\"),1,0)","v":0}]
[52,"OK","AOP oznaka 186 u obrascu Račun dobiti i gubitka mora biti jednaka AOP oznaci 205 kod obveznika primjene MSFI-a, uz dopušteno odstupanje od 0,14€ zbog zaokruživanja iznosa. Ako je subjekt obveznik MSFI-a i ima prekinuto poslovanje tada AOP 199 mora biti jednak AOP-u 205 uz dopušteno odstupanje od 0,14€.",null,null,null,null,null,null,null,null,0,null,{"$f":"IF(AND($AA$4=\"MSFI\",ABS(RDG!I89-RDG!I66)>$AC$2,AND(MIN(RDG!I70:I75)=0,MAX(RDG!I70:I75)=0)),1,0)","v":0},{"$f":"IF(AND($AA$4=\"MSFI\",ABS(RDG!J89-RDG!J66)>$AC$2,AND(MIN(RDG!J70:J75)=0,MAX(RDG!J70:J75)=0)),1,0)","v":0},{"$f":"IF(AND($AA$4=\"MSFI\",ABS(RDG!I89-RDG!I81)>$AC$2,OR(MIN(RDG!I70:I75)<>0,MAX(RDG!I70:I75)<>0)),1,0)","v":0},{"$f":"IF(AND($AA$4=\"MSFI\",ABS(RDG!J89-RDG!J81)>$AC$2,OR(MIN(RDG!J70:J75)<>0,MAX(RDG!J70:J75)<>0)),1,0)","v":0}]
[53,"OK","AOP oznaka 226 u obrascu Račun dobiti i gubitka mora biti jednaka AOP oznaci 227 u konsolidiranom izvještaju obveznika primjene MSFI-a, uz dopušteno odstupanje od 0,14€ zbog zaokruživanja iznosa.",null,null,null,null,null,null,null,null,0,null,{"$f":"IF(AND(AA4=\"MSFI\",S6=\"DA\",ABS(RDG!I110-RDG!I112)>$AC$2),1,0)","v":0},{"$f":"IF(AND(AA4=\"MSFI\",S6=\"DA\",ABS(RDG!J110-RDG!J112)>$AC$2),1,0)","v":0}]
[54,"OK","U konsolidiranom izvještaju svi obveznici moraju imati popunjenu AOP oznaku 202 (a obveznici primjene MSFI standarda i AOP 227)  u stupcu svake godine u kojoj je poslovni subjekt poslovao (broj mjeseci poslovanja veći od nula).",null,null,null,null,null,null,null,null,{"$f":"MAX(N66:U66)","v":0},null,{"$f":"IF(AND(S6=\"DA\",P8>0,RDG!I85=0),1,0)","v":0},{"$f":"IF(AND(S6=\"DA\",Q8>0,RDG!J85=0),1,0)","v":0},{"$f":"IF(AND(S6=\"DA\",P8>0,AA4=\"MSFI\",RDG!I112=0),1,0)","v":0},{"$f":"IF(AND(S6=\"DA\",Q8>0,AA4=\"MSFI\",RDG!J112=0),1,0)","v":0},{"$f":"IF(AND(S6=\"DA\",P8>0,AA4=\"HSFI\",RDG!I112<>0),1,0)","v":0},{"$f":"IF(AND(S6=\"DA\",Q8>0,AA4=\"HSFI\",RDG!J112<>0),1,0)","v":0},{"$f":"IF(AND(S6=\"NE\",MIN(RDG!I85:J85,RDG!I112:J112)<>0),1,0)","v":0},{"$f":"IF(AND(S6=\"NE\",MAX(RDG!I85:J85,RDG!I112:J112)<>0),1,0)","v":0}]
[55,"OK","Svi obveznici primjene MSFI-a moraju popuniti i izvještaj o Sveobuhvatnoj dobiti tj. moraju popuniti AOP oznake 205 do 226. Obveznici primjene HSFI-a ne mogu popuniti ovaj izvještaj. ",null,null,null,null,null,null,null,null,{"$f":"MAX(N67:Q67)","v":0},null,{"$f":"IF(AND(P8>0,AND(MIN(RDG!I89:I110)=0,MAX(RDG!I89:I110)=0),AA4=\"MSFI\"),1,0)","v":0},{"$f":"IF(AND(Q8>0,AND(MIN(RDG!J89:J110)=0,MAX(RDG!J89:J110)=0,Q3>0),AA4=\"MSFI\"),1,0)","v":0},{"$f":"IF(AND(P8>0,OR(MIN(RDG!I89:I110)<>0,MAX(RDG!I89:I110)<>0),AA4<>\"MSFI\"),1,0)","v":0},{"$f":"IF(AND(Q8>0,OR(MIN(RDG!J89:J110)<>0,MAX(RDG!J89:J110)<>0),AA4<>\"MSFI\"),1,0)","v":0}]
[56,{"$f":"IF(L68=1,\"Pogreška\", IF(M68=1, \"Provjera\",\"OK\"))","v":"OK"},"Veliki poduzetnici su obveznici primjene MSFI-a, ne mogu odabrati primjenu HSFI-a na Referentnoj stranici, osim ako je konsolidirani izještaj, tada i za izvještaj velike grupe može označiti i HSFI.",null,null,null,null,null,null,null,null,{"$f":"MAX(N68:Q68)","v":0},null,{"$f":"IF(AND(S3=4,AA4<>\"MSFI\",S6<>\"DA\"),1,0)","v":0}]
[57,"OK","Podatke koji se odnose na prekinuto poslovanje mogu popuniti samo obveznici primjene MSFI-a. Ova pogreška se javlja ako je obveznik primjene HSFI-a popunio bilo koju od AOP oznaka 189 do 201.",null,null,null,null,null,null,null,null,{"$f":"MAX(N69:Q69)","v":0},null,{"$f":"IF(AND(OR(MIN(RDG!I70:J83)<>0,MAX(RDG!I70:J83)<>0),AA4<>\"MSFI\"),1,0)","v":0}]
[58,{"$f":"IF(L70=1,\"Pogreška\", IF(M70=1, \"Provjera\",\"OK\"))","v":"OK"},"Ako je popunjen izvještaj o novčanim tokovima po indirektnoj metodi tada AOP oznaka 001 mora biti jednaka AOP oznaci 182 u Računu dobiti i gubitka, a AOP oznaka 003 mora biti jednaka AOP oznaci 144 u Računu dobiti i gubitka. Dopuštena je razlika od 0,14€ zbog zaokruživanja iznosa. Kontrola javlja pogrešku ako je razlika u bilo kojem stupcu veća od dopuštene.",null,null,null,null,null,null,null,null,{"$f":"MAX(N70:Q70)","v":0},null,{"$f":"IF(AND(O5<>0,OR(ABS(NT_I!I9-RDG!I62)>$AC$2,ABS(NT_I!J9-RDG!J62)>$AC$2,ABS(NT_I!I11-RDG!I24)>$AC$2,ABS(NT_I!J11-RDG!J24)>$AC$2)),1,0)","v":0}]
[59,{"$f":"IF(L71=1,\"Pogreška\", IF(M71=1, \"Provjera\",\"OK\"))","v":"OK"},"Ako je obrazac Promjene Kapitala popunjen, vrijednost upisanih podataka u obrascu Promjene kapitala mora i u prethodnoj i u tekućoj godini odgovarati istovrsnim pozicijama u Bilanci. U obrascu Promjene kapitala AOP oznaka 24 za podatke iz stupca prethodne godine, a AOP 51 za podatke iz stupca tekuće godine stupci 4 do 16, moraju odgovarati AOP oznakama Bilance (redom): 068, 069, 071, 072, 073, 074, 075, 076, 078, 079, 080, 081, 082, 083, 084, 087 a stupac 21 mora odgovarati AOP oznaci 090. Dopušteno je odstupanje od 0,14€ zbog zaokruživanja.",null,null,null,null,null,null,null,null,{"$f":"MAX(N71:AD71)","v":0},null,{"$f":"IF(AND($O$7=1,OR(ABS(Bilanca!I76-PK!AA33)>$AC$2, ABS(Bilanca!J76-PK!AA62)>$AC$2)),1,0)","v":0},{"$f":"IF(AND($O$7=1,OR(ABS(Bilanca!I77-PK!I33)>$AC$2, ABS(Bilanca!J77-PK!I62)>$AC$2)),1,0)","v":0},{"$f":"IF(AND($O$7=1,OR(ABS(Bilanca!I78-PK!J33)>$AC$2, ABS(Bilanca!J78-PK!J62)>$AC$2)),1,0)","v":0},{"$f":"IF(AND($O$7=1,OR(ABS(Bilanca!I80-PK!K33)>$AC$2, ABS(Bilanca!J80-PK!K62)>$AC$2)),1,0)","v":0},{"$f":"IF(AND($O$7=1,OR(ABS(Bilanca!I81-PK!L33)>$AC$2, ABS(Bilanca!J81-PK!L62)>$AC$2)),1,0)","v":0},{"$f":"IF(AND($O$7=1,OR(ABS(Bilanca!I82-PK!M33)>$AC$2, ABS(Bilanca!J82-PK!M62)>$AC$2)),1,0)","v":0},{"$f":"IF(AND($O$7=1,OR(ABS(Bilanca!I83-PK!N33)>$AC$2, ABS(Bilanca!J83-PK!N62)>$AC$2)),1,0)","v":0},{"$f":"IF(AND($O$7=1,OR(ABS(Bilanca!I84-PK!O33)>$AC$2, ABS(Bilanca!J84-PK!O62)>$AC$2)),1,0)","v":0},{"$f":"IF(AND($O$7=1,OR(ABS(Bilanca!I85-PK!P33)>$AC$2, ABS(Bilanca!J85-PK!P62)>$AC$2)),1,0)","v":0},{"$f":"IF(AND($O$7=1,OR(ABS(Bilanca!I87-PK!Q33)>$AC$2, ABS(Bilanca!J87-PK!Q62)>$AC$2)),1,0)","v":0},{"$f":"IF(AND($O$7=1,OR(ABS(Bilanca!I88-PK!R33)>$AC$2, ABS(Bilanca!J88-PK!R62)>$AC$2)),1,0)","v":0},{"$f":"IF(AND($O$7=1,OR(ABS(Bilanca!I89-PK!S33)>$AC$2, ABS(Bilanca!J89-PK!S62)>$AC$2)),1,0)","v":0},{"$f":"IF(AND($O$7=1,OR(ABS(Bilanca!I90-PK!T33)>$AC$2, ABS(Bilanca!J90-PK!T62)>$AC$2)),1,0)","v":0},{"$f":"IF(AND($O$7=1,OR(ABS(Bilanca!I91-PK!U33)>$AC$2, ABS(Bilanca!J91-PK!U62)>$AC$2)),1,0)","v":0},{"$f":"IF(AND($O$7=1,OR(ABS(Bilanca!I93-PK!W33)>$AC$2, ABS(Bilanca!J93-PK!W62)>$AC$2)),1,0)","v":0},{"$f":"IF(AND($O$7=1,OR(ABS(Bilanca!I96-PK!X33)>$AC$2, ABS(Bilanca!J96-PK!X62)>$AC$2)),1,0)","v":0},{"$f":"IF(AND($O$7=1,OR(ABS(Bilanca!I99-PK!Z33)>$AC$2, ABS(Bilanca!J99-PK!Z62)>$AC$2)),1,0)","v":0}]
[{"$f":"A71+1","v":60},{"$f":"IF(L72=1,\"Pogreška\", IF(M72=1, \"Provjera\",\"OK\"))","v":"OK"},"Ni jedan iznos u dodatnim podacima ne može biti negativan. Iznimno, na AOP oznakama 282 do 284 moguć je i negativan iznos. U slučajnu negativnog iznosa na ovim AOP oznakama kontrola će javiti upozorenje, a u slučaju negativnog iznosa na bilo kojem drugom AOP-u u Dodatnim podacima kontrola javlja pogrešku jer negativni iznosi nisu dopušteni.",null,null,null,null,null,null,null,null,{"$f":"MAX(N72:O72)","v":0},{"$f":"MAX(S72:W72)","v":0},{"$f":"IF(MIN(Dodatni!I9:J67,Dodatni!I71:I88)<0,1,0)","v":0},null,null,null,null,{"$f":"IF(MIN(Dodatni!I68:J70)<0,1,0)","v":0}]
["Kontrole dodatnih podataka",null,null,null,null,null,null,null,null,null,null,{"$f":"MAX(N73:R73)","v":0}]
[{"$f":"A72+1","v":61},{"$f":"IF(L74=1,\"Pogreška\", IF(M74=1, \"Provjera\",\"OK\"))","v":"OK"},"Prihod od posredništva (provizija od posredovanja), AOP 246 mora biti manji ili jednak stavci Prihod od trgovine (prodaje roba i usluga nabavljenih isključivo za daljnju prodaju i trgovačkih usluga) - ukupni, AOP 244.",null,null,null,null,null,null,null,null,{"$f":"MAX(N74:R74)","v":0},null,{"$f":"IF(Dodatni!I28>Dodatni!I26,1,0)","v":0},{"$f":"IF(Dodatni!J28>Dodatni!J26,1,0)","v":0}]
[{"$f":"A74+1","v":62},"OK","Prihod od građevinske djelatnosti kao podugovaratelj (podizvođač) (AOP 249) mora biti manji ili jednak zbroju stavki Prihod od građevinske djelatnosti - radova na zgradama (AOP 247) + Prihod od građevinske djelatnosti - radova na ostalim građevinama  (AOP 248).",null,null,null,null,null,null,null,null,{"$f":"MAX(N75:R75)","v":0},null,{"$f":"IF(Dodatni!I31>(Dodatni!I30+Dodatni!I29)+1,1,0)","v":0},{"$f":"IF(Dodatni!J31>(Dodatni!J30+Dodatni!J29)+1,1,0)","v":0}]
[63,"OK","Zbroj AOP oznaka 243+244+247+249+250 do 253 (prihodi po djelatnostima) mora biti jednak zbroju ukupnih prihoda od prodaje (AOP 129+130). U iznimnim slučajevima zbroj prihoda po djelatnosti može biti i veći. Kontrola javlja pogrešku ako je zbroj prihoda po djelatnosti manji od prihoda od prodaje, a upozorenje ako je veći. Kontrola zanemaruje razliku od 0,14€ zbog zaokruživanja.",null,null,null,null,null,null,null,null,{"$f":"MAX(N76:R76)","v":0},{"$f":"MAX(S76:W76)","v":0},{"$f":"IF(AND($O$4=1,SUM(Dodatni!I25:I26)+SUM(Dodatni!I29:I30)+SUM(Dodatni!I32:I35)-RDG!I9-RDG!I10+0.14<0),1,0)","v":0},{"$f":"IF(AND($O$4=1,SUM(Dodatni!J25:J26)+SUM(Dodatni!J29:J30)+SUM(Dodatni!J32:J35)-RDG!J9-RDG!J10+0.14<0),1,0)","v":0},null,null,null,{"$f":"IF(AND($O$4=1,SUM(Dodatni!I25:I26)+SUM(Dodatni!I28:I30)+SUM(Dodatni!I32:I35)-RDG!I9-RDG!I10-0.14>0),1,0)","v":0},{"$f":"IF(AND($O$4=1,SUM(Dodatni!J25:J26)+SUM(Dodatni!J28:J30)+SUM(Dodatni!J32:J35)-RDG!J9-RDG!J10-0.14>0),1,0)","v":0}]
[64,"OK","AOP oznaka 260 mora biti manja ili jednaka AOP oznaci 253.",null,null,null,null,null,null,null,null,{"$f":"MAX(N77:R77)","v":0},null,{"$f":"IF(Dodatni!I45>Dodatni!I35,1,0)","v":0},{"$f":"IF(Dodatni!J45>Dodatni!J35,1,0)","v":0}]
[65,"OK","Ako su dodatni podaci popunjeni, zbroj AOP oznaka 254+255 mora biti jednak zbroju AOP oznaka 129+130 u RDG-u uz dopušteno odstupanje od 0,14€.",null,null,null,null,null,null,null,null,0,null,{"$f":"IF(AND($O$4=1,ABS(RDG!I9+RDG!I10-Dodatni!I37-Dodatni!I38)>$AC$2),1,0)","v":0},{"$f":"IF(AND($O$4=1,ABS(RDG!J9+RDG!J10-Dodatni!J37-Dodatni!J38)>$AC$2),1,0)","v":0}]
[66,"OK","AOP 280 mora biti manji ili jednak AOP-u 279.",null,null,null,null,null,null,null,null,0,null,{"$f":"IF(Dodatni!I66>Dodatni!I65,1,0)","v":0},{"$f":"IF(Dodatni!J66>Dodatni!J65,1,0)","v":0}]
[67,"OK","AOP 242 ne smije biti veći od AOP oznake 129.",null,null,null,null,null,null,null,null,0,null,{"$f":"IF(Dodatni!I23>RDG!I9,1,0)","v":0},{"$f":"IF(Dodatni!J23>RDG!J9,1,0)","v":0}]
[68,"OK","AOP 245 ne smije biti veći od AOP oznake 244.",null,null,null,null,null,null,null,null,0,null,{"$f":"IF(Dodatni!I27>Dodatni!I26,1,0)","v":0},{"$f":"IF(Dodatni!J27>Dodatni!J26,1,0)","v":0}]
[69,"OK","AOP 245 ne smije biti veći od AOP oznake 242.",null,null,null,null,null,null,null,null,0,null,{"$f":"IF(Dodatni!I27>Dodatni!I23,1,0)","v":0},{"$f":"IF(Dodatni!J27>Dodatni!J23,1,0)","v":0}]
[70,"OK","AOP 256 ne smije biti veći od AOP oznake 131.",null,null,null,null,null,null,null,null,0,null,{"$f":"IF(Dodatni!I40>RDG!I11,1,0)","v":0},{"$f":"IF(Dodatni!J40>RDG!J11,1,0)","v":0}]
[71,"OK","AOP 257 ne smije biti veći od AOP oznake 132.",null,null,null,null,null,null,null,null,0,null,{"$f":"IF(Dodatni!I42>RDG!I12,1,0)","v":0},{"$f":"IF(Dodatni!J42>RDG!J12,1,0)","v":0}]
[72,"OK","AOP 259 ne smije biti veći od AOP oznake 258.",null,null,null,null,null,null,null,null,0,null,{"$f":"IF(Dodatni!I44>Dodatni!I43,1,0)","v":0},{"$f":"IF(Dodatni!J44>Dodatni!J43,1,0)","v":0}]
[73,"OK","AOP 263 ne smije biti veći od AOP oznake 138.",null,null,null,null,null,null,null,null,0,null,{"$f":"IF(Dodatni!I49>RDG!I18,1,0)","v":0},{"$f":"IF(Dodatni!J49>RDG!J18,1,0)","v":0}]
[74,"OK","AOP 275 ne smije biti veći od AOP oznake 274.",null,null,null,null,null,null,null,null,0,null,{"$f":"IF(Dodatni!I61>Dodatni!I60,1,0)","v":0},{"$f":"IF(Dodatni!J61>Dodatni!J60,1,0)","v":0}]
[75,"OK","AOP 286 ne smije biti veći od AOP oznake 157.",null,null,null,null,null,null,null,null,0,null,{"$f":"IF(Dodatni!I73>RDG!I37,1,0)","v":0},{"$f":"IF(Dodatni!J73>RDG!J37,1,0)","v":0}]
[{"$f":"A88+1","v":76},{"$f":"IF(L89=1,\"Pogreška\", IF(M89=1, \"Provjera\",\"OK\"))","v":"OK"},"AOP 289 ne smije biti veći od AOP oznake 168.",null,null,null,null,null,null,null,null,0,null,{"$f":"IF(Dodatni!I76>RDG!I48,1,0)","v":0},{"$f":"IF(Dodatni!J76>RDG!J48,1,0)","v":0}]
[{"$f":"A89+1","v":77},{"$f":"IF(L90=1,\"Pogreška\", IF(M90=1, \"Provjera\",\"OK\"))","v":"OK"},"AOP 296 ne smije biti veći od AOP oznake 290.",null,null,null,null,null,null,null,null,0,null,{"$f":"IF(Dodatni!I78<Dodatni!I84,1,0)","v":0},{"$f":"IF(Dodatni!J78<Dodatni!J84,1,0)","v":0}]
[{"$f":"A90+1","v":78},{"$f":"IF(L91=1,\"Pogreška\", IF(M91=1, \"Provjera\",\"OK\"))","v":"OK"},"Troškovi energije (AOP 264) trebali bi biti veći od nule ako je poslovni subjekt aktivan.",null,null,null,null,null,null,null,null,0,{"$f":"MAX(N91:O91)","v":0},{"$f":"IF(AND(P4>0,O8<>\"DA\",Dodatni!I50=0),1,0)","v":0},{"$f":"IF(AND(Q4>0,O8<>\"DA\",Dodatni!J50=0),1,0)","v":0}]
[{"$f":"A91+1","v":79},{"$f":"IF(L92=1,\"Pogreška\", IF(M92=1, \"Provjera\",\"OK\"))","v":"OK"},"Tekući izdaci za odvoz i zbrinjavanje otpada, odvodnju i tretman otpadnih voda te ostali tekući izdaci za zaštitu okoliša (AOP 265) trebali bi biti veći od nule. ",null,null,null,null,null,null,null,null,0,{"$f":"MAX(N92:O92)","v":0},{"$f":"IF(AND(P4>0,O8<>\"DA\",Dodatni!I51=0),1,0)","v":0},{"$f":"IF(AND(Q4>0,O8<>\"DA\",Dodatni!J51=0),1,0)","v":0}]
[80,{"$f":"IF(L93=1,\"Pogreška\", IF(M93=1, \"Provjera\",\"OK\"))","v":"OK"},"Iznos na stavci Prihodi od subvencija-ukupni (AOP 258), u pravilu ne bi smio biti veći od zbroja AOP oznaka 132 + 133.",null,null,null,null,null,null,null,null,0,{"$f":"MAX(N93:O93)","v":0},{"$f":"IF(Dodatni!I43>SUM(RDG!I12:I13),1,0)","v":0},{"$f":"IF(Dodatni!J43>SUM(RDG!J12:J13),1,0)","v":0}]
[81,"OK","Troškovi robe i usluga nabavljenih za daljnju prodaju, a uključenih u vlastite proizvode i/ili usluge (AOP 266) ne bi smjeli biti veći od zbroja prihoda svih djelatnosti (osim prihoda od trgovine - AOP 244). Kontrola upozorava ako je AOP 266 veći od zbroja AOP-a 243 + 247 + 248 + 250 do 253.",null,null,null,null,null,null,null,null,0,{"$f":"MAX(N94:O94)","v":0},{"$f":"IF(Dodatni!I52>(Dodatni!I25+Dodatni!I29+Dodatni!I30+SUM(Dodatni!I32:I35)),1,0)","v":0},{"$f":"IF(Dodatni!J52>(Dodatni!J25+Dodatni!J29+Dodatni!J30+SUM(Dodatni!J32:J35)),1,0)","v":0}]
[82,"OK","Troškovi robe i usluga nabavljenih za daljnju prodaju, a uključenih u vlastite proizvode i/ili usluge (AOP 266) trebali bi biti manji ili jednaki AOP oznaci 138.",null,null,null,null,null,null,null,null,0,{"$f":"MAX(N95:O95)","v":0},{"$f":"IF(Dodatni!I52>RDG!I18,1,0)","v":0},{"$f":"IF(Dodatni!J52>RDG!J18,1,0)","v":0}]
[83,"OK","Kontrola upozorenja na broj zaposlenih upozorava ako je promjena broja zaposlenih iz godine u godinu neuobičajeno velika ili ako je razlika između broja zaposlenih prema satima rada i prosjeka broja zaposlenih veća od 20%. Ako se javi ovo upozorenje, provjerite upisane podatke jer postoji mogućnost da je broj zaposlenih u nekom polju pogrešno upisan.",null,null,null,null,null,null,null,null,0,{"$f":"MAX(N96:W96)","v":0},{"$f":"IF(AND(P9=0,Q9>2,P8>0),1,0)","v":0},{"$f":"IF(AND(P10=0,Q10>2,P8>0),1,0)","v":0},{"$f":"IF(AND(P9>2,Q9=0,P8>0),1,0)","v":0},{"$f":"IF(AND(P10>2,Q10=0,P8>0),1,0)","v":0},{"$f":"IF(AND(P9+Q9>10,OR(P9<0.39*(P9+Q9),Q9<0.39*(P9+Q9))),1,0)","v":0},{"$f":"IF(AND(P10+Q10>10,OR(P10<0.39*(P10+Q10),Q10<0.39*(P10+Q10))),1,0)","v":0},{"$f":"IF(AND(P9+P10>10,OR(P9<0.39*(P9+P10),P10<0.39*(P9+P10))),1,0)","v":0},{"$f":"IF(AND(Q9+Q10>10,OR(Q9<0.39*(Q9+Q10),Q10<0.39*(Q9+Q10))),1,0)","v":0}]
[84,"OK","Kontrola broja neplaćenih osoba upozorava ako je broj neplaćenih osoba neuobičajeno velik (veći od 3 i veći od 10% prosjeka broja zaposlenih na referentnoj stranici). Provjerite upisani broj neplaćenih osoba pod AOP oznakom 299.",null,null,null,null,null,null,null,null,0,0,{"$f":"IF(AND(Dodatni!I88>3,Dodatni!I88>0.1*Kont!P10),1,0)","v":0},{"$f":"IF(AND(Dodatni!J88>3,Dodatni!J88>0.1*Kont!Q10),1,0)","v":0}]
[85,"OK","Porezi koji ne ovise o dobitku i pristojbe (AOP 276) trebali bi biti veći od nule.",null,null,null,null,null,null,null,null,0,0,{"$f":"IF(AND($O$8<>\"DA\",P4>0,Dodatni!I62=0),1,0)","v":0},{"$f":"IF(AND($O$8<>\"DA\",Q4>0,Dodatni!J62=0),1,0)","v":0}]
[86,{"$f":"IF(L99=1,\"Pogreška\", IF(M99=1, \"Provjera\",\"OK\"))","v":"OK"},"AOP 297 mora biti manji ili jednak AOP oznaci 290 osim u iznimnim situacijama. Ako se kontrola javlja, provjerite upisane podatke pod navedenim AOP oznakama.",null,null,null,null,null,null,null,null,0,0,{"$f":"IF(Dodatni!I85>Dodatni!I78,1,0)","v":0},{"$f":"IF(Dodatni!J85>Dodatni!J78,1,0)","v":0}]
[87,"OK","AOP 298 mora biti manji ili jednak sumi AOP oznaka 290 i 295 osim u iznimnim situacijama. Ako se kontrola javlja, provjerite upisane podatke pod navedenim AOP oznakama.",null,null,null,null,null,null,null,null,0,0,{"$f":"IF(Dodatni!I86>(Dodatni!I78+Dodatni!I83),1,0)","v":0},{"$f":"IF(Dodatni!J86>(Dodatni!J78+Dodatni!J83),1,0)","v":0}]
[88,"OK","Poslovni subjekt koji je u stavci Status autonomnosti odabrao 2, 3, 5, 6 ili 7,  (član grupe), trebao bi imati neki od poslovnih prihoda ostvaren unutar grupe (AOP 129 ili 132). Ako zaista nisu realizirani poslovni prihodi unutar grupe kontrolu zanemarite.",null,null,null,null,null,null,null,null,0,0,{"$f":"IF(AND(OR(S7=2,S7=3,S7=5,S7=6,S7=7),MIN(RDG!I9:J9,RDG!I12:J12)=0),1,0)","v":0}]
[89,"OK","Ako su dodatni podaci popunjeni, zbroj AOP oznaka 231 do 233 trebao bi biti manji ili jednak zbroju AOP oznaka 023+026+028+030+056+059+061+062.",null,null,null,null,null,null,null,null,0,0,{"$f":"IF(AND(P4>0,SUM(Bilanca!I31+Bilanca!I34+Bilanca!I36+Bilanca!I38+Bilanca!I64+Bilanca!I67+Bilanca!I69+Bilanca!I70)<SUM(Dodatni!I10:I12)),1,0)","v":0},{"$f":"IF(AND(Q4>0,SUM(Bilanca!J31+Bilanca!J34+Bilanca!J36+Bilanca!J38+Bilanca!J64+Bilanca!J67+Bilanca!J69+Bilanca!J70)<SUM(Dodatni!J10:J12)),1,0)","v":0}]
[90,"OK","Ako su dodatni podaci popunjeni, zbroj AOP oznaka 234 do 236 trebao bi biti manji ili jednak zbroju AOP oznaka 031+046+125.",null,null,null,null,null,null,null,null,0,0,{"$f":"IF(AND(P4>0,SUM(Bilanca!I39+Bilanca!I54+Bilanca!I134)<SUM(Dodatni!I13:I15)),1,0)","v":0},{"$f":"IF(AND(Q4>0,SUM(Bilanca!J39+Bilanca!J54+Bilanca!J134)<SUM(Dodatni!J13:J15)),1,0)","v":0}]
[91,"OK","Ako su dodatni podaci popunjeni, zbroj AOP oznaka 237 do 239 trebao bi biti manji ili jednak zbroju AOP oznaka 100+102+103+104+112+114+115+116.",null,null,null,null,null,null,null,null,0,0,{"$f":"IF(AND(P4>0,SUM(Bilanca!I109+Bilanca!I111+Bilanca!I112+Bilanca!I113+Bilanca!I121+Bilanca!I123+Bilanca!I124+Bilanca!I125)<SUM(Dodatni!I17:I19)),1,0)","v":0},{"$f":"IF(AND(Q4>0,SUM(Bilanca!J109+Bilanca!J111+Bilanca!J112+Bilanca!J113+Bilanca!J121+Bilanca!J123+Bilanca!J124+Bilanca!J125)<SUM(Dodatni!J17:J19)),1,0)","v":0}]
[92,"OK","Ako su dodatni podaci popunjeni, zbroj AOP oznaka 240 i 241 trebao bi biti manji ili jednak zbroju AOP oznaka 064+105+106+117+118.",null,null,null,null,null,null,null,null,0,0,{"$f":"IF(AND(P4>0,SUM(Bilanca!I72+Bilanca!I114+Bilanca!I115+Bilanca!I126+Bilanca!I127)<SUM(Dodatni!I20:I21)),1,0)","v":0},{"$f":"IF(AND(Q4>0,SUM(Bilanca!J72+Bilanca!J114+Bilanca!J115+Bilanca!J126+Bilanca!J127)<SUM(Dodatni!J20:J21)),1,0)","v":0}]
[{"$f":"A105+1","v":93},{"$f":"IF(L106=1,\"Pogreška\", IF(M106=1, \"Provjera\",\"OK\"))","v":"OK"},"Ako su Dodatni podaci popunjeni, Prihodi od prodaje s poduzetnicima unutar grupe, rezidentima RH, AOP 242 moraju biti manji ili jednaki stavci Prihodi od prodaje u zemlji, AOP 254. Ako je iznos na AOP poziciji 242 veći - javlja se pogreška. ",null,null,null,null,null,null,null,null,{"$f":"MAX(N106:R106)","v":0},0,{"$f":"IF(AND($S$5<>2,Dodatni!I23>Dodatni!I37),1,0)","v":0},{"$f":"IF(AND($S$5<>2,Dodatni!J23>Dodatni!J37),1,0)","v":0}]
[94,{"$f":"IF(L107=1,\"Pogreška\", IF(M107=1, \"Provjera\",\"OK\"))","v":"OK"},"Ako su Dodatni podaci popunjeni, Prihodi od prodaje unutar grupe ostvareni s nerezidentima RH (razlika AOP oznaka 129 i 242) moraju biti manji ili jednaki stavci Prihodi od prodaje u inozemstvu, AOP 255.",null,null,null,null,null,null,null,null,{"$f":"MAX(N107:R107)","v":0},0,{"$f":"IF(AND($S$5<>2,RDG!I9-Dodatni!I23>Dodatni!I38),1,0)","v":0},{"$f":"IF(AND($S$5<>2,RDG!J9-Dodatni!J23>Dodatni!J38),1,0)","v":0}]
[{"$f":"A107+1","v":95},"OK","Postavke Reginal Settingsa na ovom računalu su pogrešne. Ako je ova kontrola pogrešna znači da postavke na računalu nisu primjerene hrvatskom pravopisu. Prema hrvatskom pravopisu, tisuće se odvajaju točkom, a decimalna mjesta se odvajaju zarezom. Ova pogreška ne znači da je obrazac matematičke ili logički neispravan, već da zbog postavke ovog računala obrazac neće biti moguće učitati kroz aplikaciju. Potrebno je u Control Panel-u, opcija Regional Settings ili Regional And Language Options postaviti formate brojeva na način da se tisuće odvajaju točkom (digit group symbol), a decimalna mjesta zarezom (decimal symbol). Datoteku snimljenu na računalu sa ovakvim postavkama biti će moguće učitati.",null,null,null,null,null,null,null,null,{"$f":"MAX(N108:R108)","v":0},null,{"$f":"IF(MID(P108,2,1)<> \".\",1,0)","v":0},{"$f":"IF(MID(P108,6,1)<> \",\",1,0)","v":0},{"$f":"TEXT(1000.1,\"#.000,00\")","v":"1.000,10"}]
["Kontrole popunjenosti podataka i primjene poslovnih pravila - moraju biti zadovoljene"]
[{"$f":"A108+1","v":96},{"$f":"IF(L110=1,\"Pogreška\", IF(M110=1, \"Provjera\",\"OK\"))","v":"OK"},"Bilanca i Račun dobiti i gubitka predaju se u svim slučajevima. Podaci moraju biti popunjeni u onim stupcima u kojima je broj mjeseci poslovanja veći od nule. Izuzetak su poduzetnici koji nisu bili poslovno aktivni. Oni na Referentnoj stranici upisuju broj mjeseci poslovanja, ali moraju označiti da su bili poslovno neaktivni te tada mogu Račun dobiti i gubitka imati prazan i za stupac u kojem je broj mjeseci poslovanja veći od nule, ali se smatra kao da je popunjen.",null,null,null,null,null,null,null,null,{"$f":"MAX(N110:S110)","v":0},null,{"$f":"IF(OR(AND(P2=0,P8>0),AND(P2>0,P8=0)),1,0)","v":0},{"$f":"IF(OR(AND(Q2=0,Q8>0),AND(Q2>0,Q8=0)),1,0)","v":0},{"$f":"IF(OR(AND(P3=0,P8>0,AC4<>\"DA\"),AND(P3>0,P8=0)),1,0)","v":0},{"$f":"IF(OR(AND(Q3=0,Q8>0,O8<>\"DA\"),AND(Q3=1,Q8=0)),1,0)","v":0}]
[{"$f":"A110+1","v":97},"OK","Obrazac Dodatni podaci obavezno se popunjava ako se izvještaj predaje za statističke svrhe ili istovremeno za statističke svrhe i za javnu objavu. Dodatni podaci se popunjavaju uz vrste izvještaja 10, 11, 20, 30 i 40. Obveznici koji su na referentnoj stranici označili da su poslovno neaktivni ne moraju popuniti dodatne podatke. U tom će slučaju kontrola upozoriti da su Dodatni podaci prazni. Kontrola javlja pogrešku ako obrazac Dodatni podaci nije popunjeni kada je predaja u statističke svrhe ili je popunjen, a predaja je samo u svrhu javne objave. Dodatni podaci mora biti popunjen u svim stupcima u kojima je broj mjeseci poslovanja veći od nule.",null,null,null,null,null,null,null,null,{"$f":"MAX(N111:T111)","v":0},{"$f":"MAX(U111:W111)","v":0},{"$f":"IF(AND(S5<>2,AND(P4=0,AC4<>\"DA\",P8>0)),1,0)","v":0},{"$f":"IF(AND(S5<>2,AND(Q4=0,O8<>\"DA\",Q8>0)),1,0)","v":0},{"$f":"IF(AND(S5=2,OR(P4>0,Q4>0)),1,0)","v":0},{"$f":"IF(AND(O4>0,S2<>10,S2<>11,S2<>20,S2<>30,S2<>40),1,0)","v":0},null,null,null,{"$f":"IF(AND(S5<>2,AND(P4=0,P8>0)),1,0)","v":0},{"$f":"IF(AND(S5<>2,AND(Q4=0,Q8>0)),1,0)","v":0}]
[{"$f":"A111+1","v":98},"OK","Bilješke uz financijske izvještaje predaju se u svrhu javne objave (samo za javnu objavu ili za javnu objavu i statistiku) uz sve vrste izvještaja, a ne predaju se ako je svrha predaje samo u statističke potrebe. Pogreška je kada je u Općim podacima označeno \"NE\", a treba biti \"DA\" ili nije upisano ni \"NE\" ni \"DA\". ",null,null,null,null,null,null,null,null,{"$f":"MAX(N112:O112)","v":0},null,{"$f":"IF(AND(S5=1,AA8<>\"NE\"),1,0)","v":0},{"$f":"IF(AND(S5>1,AA8<>\"DA\"),1,0)","v":0}]
[99,"OK","Izvještaj o novčanim tokovima moraju popuniti srednji i veliki poduzetnici ako predaju izvještaj u svrhu javne objave. Ovisno o primjeni računovodstvenih politika poduzetnik popunjava jedan izvještaj, po indirektnoj ili direktnoj metodi. Kontrola javlja pogrešku ako su popunjena oba izvještaja, ili nije ni jedan, a poduzetnik ga je dužan popuniti. Ovaj izvještaj se ne popunjava ako je svrha predaje samo statistika te ako je veličina poduzetnika mikro ili mali. U svakoj godini (tekuća ili prethodna) gdje je broj mjeseci poslovanja veći od nule, moraju biti upisani podaci i u ovaj izvještaj.",null,null,null,null,null,null,null,null,{"$f":"IF(SUM(N113:S113)>0,1,0)","v":0},null,{"$f":"IF(AND(S5=1,OR(O5<>0,O6<>0)),1,0)","v":0},{"$f":"IF(AND(S3<3,OR(O5<>0,O6<>0)),1,0)","v":0},{"$f":"IF(AND(O5<>0,O6<>0),1,0)","v":0},{"$f":"IF(AND(S3>2,S5>1,AND(O5=0,O6=0)),1,0)","v":0},{"$f":"IF(AND(O5<>0,OR(P2<>P5,Q2<>Q5)),1,0)","v":0},{"$f":"IF(AND(O6<>0,OR(P2<>P6,Q2<>Q6)),1,0)","v":0}]
[100,"OK","Izvještaj o promjenama kapitala moraju popuniti svi srednji i veliki poduzetnici koji predaju izvještaj u svrhu javne objave. Ovaj izvještaj se ne popunjava ako je svrha predaje samo za statističke potrebe te ako je veličina poduzetnika mikro ili mali. ",null,null,null,null,null,null,null,null,{"$f":"IF(SUM(N114:Q114)>0,1,0)","v":0},null,{"$f":"IF(AND(S5=1,O7<>0),1,0)","v":0},{"$f":"IF(AND(S3<3,O7<>0),1,0)","v":0},{"$f":"IF(AND(S3>2,S5>1,O7=0),1,0)","v":0},{"$f":"IF(AND(O7<>0,OR(P2<>P7,Q2<>Q7)),1,0)","v":0}]
[101,"OK","Godišnje izvješće dužni su dostaviti srednji i veliki poduzetnici i to kada se izvještaj predaje za potrebe javne objave, i za vrste izvještaja 10 i 11.",null,null,null,null,null,null,null,null,{"$f":"MAX(N115:R115)","v":0},null,{"$f":"IF(AND(S5=1,AA9=\"DA\"),1,0)","v":0},{"$f":"IF(AND(S3<3,AA9=\"DA\"),1,0)","v":0},{"$f":"IF(AND(AA9=\"DA\",S2<>10,S2<>11,S2<>20,S2<>30),1,0)","v":0},{"$f":"IF(AND(AA9=\"NE\",S2<12,S3>2,S5>1),1,0)","v":0}]
[102,"OK","Odluka o raspodjeli dobiti ili pokriću gubitka predaje se za sve veličine poduzetnika, uz izvještaje s oznakom vrste izvještaja 10 i 11. Za vrste izvještaja 20 i 30 ova odluka može se predati, ali nije obvezna dok se uz ostale vrste izvještaja kao ni uz konsolidirane izvještaje ne predaje.",null,null,null,null,null,null,null,null,{"$f":"MAX(N116:R116)","v":0},null,{"$f":"IF(AND(S2<>10,S2<>11,S2<>20,S2<>30,Y9=\"DA\"),1,0)","v":0},{"$f":"IF(AND(Y9=\"DA\",RefStr!C19<2),1,0)","v":0},{"$f":"IF(AND(RefStr!C19>1,Y9<>\"DA\",S2=10,S6<>\"DA\"),1,0)","v":0},{"$f":"IF(AND(RefStr!C19>1,Y9<>\"DA\",S2=11,S6<>\"DA\"),1,0)","v":0},{"$f":"IF(AND(S6=\"DA\",Y9=\"DA\"),1,0)","v":0}]
[103,"OK","Odluka o utvrđivanju godišnjeg izvještaja predaje se za sve veličine poduzetnika, i to za izvještaje s oznakom vrste izvještaja 10 i 11 - ako je svrha predaje javna objava. Kod vrsta izvještaja 20 i 30 odluka se može predati ali i ne mora (zavisi od stečajnog ili likvidacijskog upravitelja).",null,null,null,null,null,null,null,null,{"$f":"MAX(N117:S117)","v":0},null,{"$f":"IF(AND(RefStr!C19=1,Y4=\"DA\"),1,0)","v":0},{"$f":"IF(AND(Y4=\"DA\",S2<>10,S2<>11,S2<>20,S2<>30),1,0)","v":0},{"$f":"IF(AND(S2=10,RefStr!C19>1,Y4<> \"DA\"),1,0)","v":0},{"$f":"IF(AND(S2=11,RefStr!C19>1,Y4<> \"DA\"),1,0)","v":0}]
[104,"OK","Izvještaji s oznakom vrste izvještaja 11 ne mogu biti istovremeno predani u svrhu javne objave i statistike jer se izvještaj za statistiku predaje za kalendarsku godinu, dok se izvještaj za javnu objavu predaje za poslovnu godinu koja je kod vrste izvještaja 11 različita od kalendarske, pa shodno tome podaci za dva različita razdoblja ne mogu biti identični.",null,null,null,null,null,null,null,null,{"$f":"MAX(N118:S118)","v":0},null,{"$f":"IF(AND(S2=11,S5=3),1,0)","v":0}]
[105,"OK","Kontrola na datum od i datum do te na broj mjeseci poslovanja. Ako izvještaj nije vrste izvještaja 30 te za svrhu javne objave, broj mjeseci poslovanja ne može biti veći od 12 i ne može biti nula u stupcu tekuće godine. Ako stvarno razdoblje poslovanja u tekućoj godini nije 1.1. do 31.12., broj mjeseci poslovanja mora odgovarati trajanju razdoblja datuma od i datuma do Računa dobiti u gubitka. Ako su u stupcu prethodne godine upisani podaci i broj mjeseci poslovanja mora biti veći od nule (vrijedi i obratno). Samo kod predaje vrste izvještaja 30 u svrhu javne objave datum od i datum do razdoblja mogu biti i duži od godine dana, pa može i broj mjeseci poslovanja biti veći od 12, a u tom slučaju stupac prethodne godine mora biti prazan. Vrsta izvještaja 10 ne može imati završni datum drugačiji od 31.12. osim u iznimnim slučajevima kad se tvrtka zatvara po ubrzanom postupku bez stečaja ili likvidacije. U tom slučaju, kontrola javlja upozorenje. Vrsta izvještaja 11 kod predaje za javnu objavu ne može imati završni datum 31.12., ali kod predaje za statistiku mora imati 31.12. Ni u jednom obrascu ne mogu biti popunjeni podaci za stupac godine u kojem je broj mjeseci poslovanja nula.",null,null,null,null,null,null,null,null,{"$f":"MAX(N119:O119,Q119:S119)","v":0},{"$f":"P119","v":0},{"$f":"IF(OR(P8>12,P8<0,Q8<=0,Q8<U119,Q8>V119,S8>=S9),1,0)","v":0},{"$f":"IF(AND(P8 = 0,MAX(P2:P7)=1),1,0)","v":0},{"$f":"IF(AND(S2=10,OR(MONTH(S9)<>12,DAY(S9)<>31)),1,0)","v":0},{"$f":"IF(AND(S2=11,S5=1,OR(MONTH(S9)<>12,DAY(S9)<>31)),1,0)","v":0},{"$f":"IF(AND(S2=11,MONTH(S9)=12,DAY(S9)=31,RefStr!C19=2),1,0)","v":0},null,null,{"$f":"IF(X119-ROUNDDOWN(X119,1)>0.6,ROUNDUP(X119,0),ROUNDDOWN(X119,0))","v":11},{"$f":"IF(IF(X119-ROUNDDOWN(X119,0)>0.4,ROUNDUP(X119,0),ROUNDDOWN(X119,0))=0,1,IF(X119-ROUNDDOWN(X119,0)>0.4,ROUNDUP(X119,0),ROUNDDOWN(X119,0)))","v":12},null,{"$f":"(S9-S8) / (365.25/12)","v":11.991786447638603}]
[106,"OK","Pogrešan tip datoteke. Kako je moguće da i novije i starije verzije Microsoft Excel-a rade sa starijim tipom datoteka, za predaju u Finu zadržan je stariji tip Excel datoteka jer je kompatibilan i sa svim verzijama Excel-a te je s te strane pogodan za rad i korisnicima s novim i sa starim verzijama Microsoft Excel-a. Noviji format Excel datoteka ima u nazivu nastavak \".xlsx\", dok stari tip ima nastavak \".xls\". Ako je ova kontrola pogrešna, znači da datoteka u nazivu ima tekst \".xlsx\" tj. da je pretvorena u novi format. Da bi se datoteka mogla učitati u Finine aplikacije potrebno ju je prije predaje snimiti u stariju verziju. Potrebno je odabrati \"File\" > \"Save As\" te pod \"File Type\" odabrati \"Microsoft Excel 97-2003 workbook\" (za englesku verziju Excel-a) ili \"Datoteka\" > \"Spremi kao...\" te odabrati \"Microsoft Excel 97-2003 radna knjiga\" u hrvatskoj verziji Office-a. U tom slučaju će se i u nazivu datoteke \".xlsx\" pretvoriti u \".xls\", datoteku će biti moguće poslati putem web-a ili učitati u poslovnici Fine, a ova kontrola neće javljati pogrešku.",null,null,null,null,null,null,null,null,{"$f":"MAX(N120:N120)","v":0},null,{"$f":"IF(ISERROR(P120),0,1)","v":0},{"$f":"CELL(\"filename\")","v":"D:\\DL\\izvješća\\2024\\[Godišnji financijski izvještaj poduzetnika – Javna objava.xls]NT_D"},{"$f":"FIND(\".XLSX\", UPPER(O120),1)","v":{"$error":"#VALUE!"}}]
[107,"OK","Upozorenje zaposlene i troškove osoblja. Ova kontrola upozorava u slučaju da postoje značajni troškovi osoblja ( veći od 5300 EUR-a), a broj zaposlenih krajem razdoblje ili prema satima rada je nula. Ako postoje isplate zaposlenima - moraju postojati i zaposleni, izuzetak su slučajevi gdje se radi o jednom zaposlenom koji radi tek mjesec-dva tokom godine pa je prosječan broj zaposlenih kroz cijelu godinu nula. Kontrola uspoređuje podatke iz prethodne godine i podatke iz tekuće i ovaj uvjet u oba stupca podataka treba biti zadovoljen (osim u spomenutim posebnim slučajevima).",null,null,null,null,null,null,null,null,0,{"$f":"MAX(N121:O121)","v":0},{"$f":"IF(AND(RDG!I21>40000,W10<2023,OR(P9=0,P10=0)),1,0)","v":0},{"$f":"IF(AND(RDG!J21>40000,W10<2023,OR(Q9=0,Q10=0)),1,0)","v":0},{"$f":"IF(AND(RDG!I21>5300,W10>2022,OR(P9=0,P10=0)),1,0)","v":0},{"$f":"IF(AND(RDG!J21>5300,W10>2022,OR(Q9=0,Q10=0)),1,0)","v":0}]
[null,null,null,null,null,null,null,null,null,null,null,null,null,null,null,null,null,null,null,null,null,null,null,null,null,null,null,null,null,null,null,null,null,null,null,null,null,null,null,0]